Workbook

Sheet MENU
B2: ● | C2: Probability Theory
B4: Label the probability scale with correct statements & proportions
B6: Describe the likelihood of events using the language of probability
B9: Find all possible mutually exclusive outcomes (cards & letters)
B11: Find all possible mutually exclusive outcomes (spinners & bags)
B13: Write fractional probabilities of events given in words & contexts
B15: Write fractional probabilities of events involving cards & bags
B17: Write fractional probabilities of events involving spinners
B19: Find complementary probabilities on scales (fractions or ratios)
B21: Find complementary probabilities on scales (decimals or %s)
B23: Find the probability of selecting a square (random or user-defined)
B25: Find the probability of taking a red ball (random or user-defined)
B27: Complete a probability table given the ratio of outcomes for a dice
B29: Find the probability of each outcome on a spinner & draw 4 sectors
B46: 1 | C46: =RAND() -> 0.3136239568 | D46: =RANK(C46,$C$46:$C$57) -> 10 | E46: =IF(D46>D47,D47,D46) -> 7 | F46: =E46/E47 -> 0.7 | G46: =SMALL(F46:F50,1) -> 0.1111111111 | H46: =SMALL(F46:F50,2) -> 0.6666666667 | I46: =SMALL(F46:F50,3) -> 0.7
B47: 2 | C47: =RAND() -> 0.5106986277 | D47: 7 | E47: =IF(D47>D46,D47,D46) -> 10 | H47: =H46-G46 -> 0.5555555556 | I47: =I46-H46 -> 0.03333333333
B48: 3 | C48: 0.3296871557 | D48: 9 | E48: =IF(D48>D49,D49,D48) -> 1 | F48: =E48/E49 -> 0.1111111111 | I48: =IF(I47=H47,0,1) -> 1
B49: 4 | C49: 0.9009133675 | D49: 1 | E49: =IF(D49>D48,D49,D48) -> 9
B50: 5 | C50: 0.8497624565 | D50: 2 | E50: =IF(D50>D51,D51,D50) -> 2 | F50: =E50/E51 -> 0.6666666667
B51: 6 | C51: 0.8293728895 | D51: 3 | E51: =IF(D51>D50,D51,D50) -> 3
B52: 7 | C52: 0.7412613024
B53: 8 | C53: 0.2136534368
B54: 9 | C54: 0.6322060237
B55: 10 | C55: 0.354669279
B56: 11 | C56: 0.5176004989
B57: 12 | C57: 0.1189621425

Sheet LINK
C2: All content © eStarters Ltd 2020
C4: For more downloads and further information
C6: Visit the Trinity Maths website
C8: To contact us directly, email: info@estarters.com
C10: =MENU!C2 -> Probability Theory
C12: is № 10 of 10 free sample files from the
C14: 178 Topic Files in Trinity Maths (Version 3)

Sheet COMPROB
A1: =RAND() -> 0.511794594 | B1: 0.5027841286 | C1: 0.3966126324 | D1: 0.3930618978 | E1: 0.0839593642 | F1: 0.7353857268 | G1: 0.2612752322 | H1: 0.7560818804 | I1: 0.407495218 | J1: 0.9580878014 | K1: 0.02968238269 | L1: 0.7771038378 | M1: 0.8963420866 | N1: 0.8588079806 | O1: 0.4959433563 | P1: 0.5002948576 | Q1: 0.1907567696 | R1: 0.4480975181 | S1: 0.9922859796 | T1: 0.8718055743 | U1: 0.5168743717 | V1: 0.1844251404 | W1: 0.8727284237 | X1: 0.8417677542 | Y1: 0.9155901081 | Z1: 0.8722104057
AI2: =INT(8*Y1)+5 -> 12 | AJ2: 1 | AK2: 2 | AL2: 3 | AM2: 4 | AN2: 5 | AO2: 6 | AP2: 7
AC3: 0 | AE3: 0 | AG3: 0 | AI3: =INT(7*Z1)+1 -> 7 | AJ3: P(prime №) = | AK3: P(odd №) = | AL3: P(even №) = | AM3: =CONCATENATE("P(№ < ",$AI$2,") =") -> P(№ < 12) = | AN3: =CONCATENATE("P(№ > ",$AI$2,") =") -> P(№ > 12) = | AO3: =CONCATENATE("P(№ ≤ ",$AI$2,") =") -> P(№ ≤ 12) = | AP3: =CONCATENATE("P(№ ≥ ",$AI$2,") =") -> P(№ ≥ 12) = | AQ3: № | AY3: №
AD4: a | AI4: 0 | AJ4: X | AK4: X | AL4: X | AM4: X | AN4: X | AO4: X | AP4: X | AQ4: =INT(20*O1)+1 -> 10 | AR4: =VLOOKUP(AQ4,$AI$4:$AP$24,$AI$3+1) -> 0 | AS4: =COUNTIF(AR4:AR13,1) -> 0 | AT4: =GCD(AS4,AS5) -> 0 | AU4: =AS4/AT4 ->  | AV4: =IF(AS4=0,0,AU4) -> 0 | AW4: =IF(AS4=0,CONCATENATE(" ",AV4," "),IF(AS6=1,CONCATENATE(" ",AV4," "),"X")) -> 0 | AY4: =INT(3*Z1)+1 -> 3 | BS4: =COUNTIF(AY4:AY13,3) -> 3 | BT4: =GCD(BS4,BS5) -> 3 | BU4: =BS4/BT4 -> 1 | BV4: =IF(BS4=0,0,BU4) -> 1 | BW4: =IF(BS4=0,CONCATENATE(" ",BV4," "),IF(BS6=1,CONCATENATE(" ",BV4," "),"X")) -> 
D5: =IF(H5=0,"",IF(H5=1,"●"," ● ")) ->  | H5: =BT50 -> 0 | I5: =BU50 -> 0 | J5: =BV50 -> 0 | K5: =BW50 -> 0 | M5: =IF(Q5=0,"",IF(Q5=1,"●"," ● ")) ->  | N5: ● | O5: ● | Q5: =BT51 -> 0 | R5: =BU51 -> 1 | S5: =BV51 -> 1 | T5: =BW51 -> 0 | V5: =IF(Z5=0,"",IF(Z5=1,"●"," ● ")) ->  | X5: ● | Z5: =BT52 -> 0 | AA5: =BU52 -> 0 | AB5: =BV52 -> 1 | AC5: =BW52 -> 0 | AD5: =$AM$61 -> 7.5 | AI5: 1 | AJ5: 0 | AK5: 1 | AL5: 0 | AM5: =IF(AI5<$AI$2,1,0) -> 1 | AN5: =IF(AI5>$AI$2,1,0) -> 0 | AO5: =IF(AI5<=$AI$2,1,0) -> 1 | AP5: =IF(AI5>=$AI$2,1,0) -> 0 | AQ5: =INT(20*P1)+1 -> 11 | AR5: 0 | AS5: =B4 -> 0 | AT5: =LCM(AS4,AS5) -> 0 | AU5: =AS5/AT4 ->  | AV5: =IF(AS4=0,"",IF(AS6=1,"",AU5)) ->  | AY5: =INT(3*Y1)+1 -> 3 | BS5: =B10 -> 0 | BT5: =LCM(BS4,BS5) -> 0 | BU5: =BS5/BT4 -> 0 | BV5: =IF(BS4=0,"",IF(BS6=1,"",BU5)) -> 
H6: =BP50 -> 0 | I6: =BQ50 -> 0 | J6: =BR50 -> 0 | K6: =BS50 -> 0 | M6: ● | N6: ● | O6: ● | P6: ● | Q6: =BP51 -> 1 | R6: =BQ51 -> 1 | S6: =BR51 -> 2 | T6: =BS51 -> 1 | V6: ● | W6: ● | X6: ● | Y6: ● | Z6: =BP52 -> 1 | AA6: =BQ52 -> 1 | AB6: =BR52 -> 2 | AC6: =BS52 -> 1 | AD6: =$AN$61 -> -10.7 | AI6: 2 | AJ6: 1 | AK6: 0 | AL6: 1 | AM6: 1 | AN6: 0 | AO6: 1 | AP6: 0 | AQ6: =INT(20*Q1)+1 -> 4 | AR6: 0 | AS6: =AS4/AS5 ->  | AY6: =INT(3*X1)+1 -> 3 | BS6: =BS4/BS5 -> 
D7: ● | E7: ● | F7: ● | G7: ● | H7: =BL50 -> 1 | I7: =BM50 -> 1 | J7: =BN50 -> 2 | K7: =BO50 -> 1 | M7: ● | N7: ● | O7: ● | P7: ● | Q7: =BL51 -> 1 | R7: =BM51 -> 2 | S7: =BN51 -> 1 | T7: =BO51 -> 2 | V7: ● | W7: ● | X7: ● | Y7: ● | Z7: =BL52 -> 1 | AA7: =BM52 -> 2 | AB7: =BN52 -> 1 | AC7: =BO52 -> 1 | AD7: b | AI7: 3 | AJ7: 1 | AK7: 1 | AL7: 0 | AM7: 1 | AN7: 0 | AO7: 1 | AP7: 0 | AQ7: =IF(B4>3,INT(20*R1)+1,0) -> 0 | AR7: X | AY7: =IF(B10>3,INT(3*W1)+1,0) -> 0
D8: =$BH$50 -> 3 | E8: =$BI$50 -> 4 | M8: =$BH$51 -> 7 | N8: =$BI$51 -> 10 | V8: =$BH$52 -> 7 | W8: =$BI$52 -> 9 | AD8: =$AO$61 -> 7 | AI8: 4 | AJ8: 0 | AK8: 0 | AL8: 1 | AM8: 1 | AN8: 0 | AO8: 1 | AP8: 0 | AQ8: =IF(B4>4,INT(20*S1)+1,0) -> 0 | AR8: X | AY8: =IF(B10>4,INT(3*V1)+1,0) -> 0
B9: P(●) = | E9: =CONCATENATE(" ",$BH$50," ") -> 3 | J9: P(●) = | N9: =CONCATENATE(" ",$BH$51," ") -> 7 | S9: P(●) = | W9: =CONCATENATE(" ",$BH$52," ") -> 7 | AD9: =$AP$61 -> -10.7 | AI9: 5 | AJ9: 1 | AK9: 1 | AL9: 0 | AM9: 1 | AN9: 0 | AO9: 1 | AP9: 0 | AQ9: =IF(B4>5,INT(20*T1)+1,0) -> 0 | AR9: X | AY9: =IF(B10>5,INT(3*U1)+1,0) -> 0
E10: =$BI$50 -> 4 | N10: =$BI$51 -> 10 | W10: =$BI$52 -> 9 | AD10: c | AI10: 6 | AJ10: 0 | AK10: 0 | AL10: 1 | AM10: 1 | AN10: 0 | AO10: 1 | AP10: 0 | AQ10: =IF(B4>6,INT(20*U1)+1,0) -> 0 | AR10: X | AY10: =IF(B10>6,INT(3*T1)+1,0) -> 0
D11: = | E11: =CONCATENATE($BJ$50) -> 0.75 | M11: = | N11: =CONCATENATE($BJ$51) -> 0.7 | V11: = | W11: =CONCATENATE($BJ$52) -> 0.777… | AD11: =$AQ$61 -> 7.777777778 | AI11: 7 | AJ11: 1 | AK11: 1 | AL11: 0 | AM11: 1 | AN11: 0 | AO11: 1 | AP11: 0 | AQ11: =IF(B4>7,INT(20*V1)+1,0) -> 0 | AR11: X | AY11: =IF(B10>7,INT(3*S1)+1,0) -> 0
AD12: =$AR$61 -> -10.7 | AI12: 8 | AJ12: 0 | AK12: 0 | AL12: 1 | AM12: 1 | AN12: 0 | AO12: 1 | AP12: 0 | AQ12: =IF(B4>8,INT(20*W1)+1,0) -> 0 | AR12: X | AY12: =IF(B10>8,INT(3*R1)+1,0) -> 0
D13: 0 | X13: 1 | AI13: 9 | AJ13: 0 | AK13: 1 | AL13: 0 | AM13: 1 | AN13: 0 | AO13: 1 | AP13: 0 | AQ13: =IF(B4>9,INT(20*X1)+1,0) -> 0 | AR13: X | AY13: =IF(B10>9,INT(3*Q1)+1,0) -> 0
AI14: 10 | AJ14: 0 | AK14: 0 | AL14: 1 | AM14: 1 | AN14: 0 | AO14: 1 | AP14: 0
AI15: 11 | AJ15: 1 | AK15: 1 | AL15: 0 | AM15: 1 | AN15: 0 | AO15: 1 | AP15: 0
AI16: 12 | AJ16: 0 | AK16: 0 | AL16: 1 | AM16: 0 | AN16: 0 | AO16: 1 | AP16: 1
B17: impossible | M17: even | W17: certain | AI17: 13 | AJ17: 1 | AK17: 1 | AL17: 0 | AM17: 0 | AN17: 1 | AO17: 0 | AP17: 1
M18: chance | AI18: 14 | AJ18: 0 | AK18: 0 | AL18: 1 | AM18: 0 | AN18: 1 | AO18: 0 | AP18: 1
AI19: 15 | AJ19: 0 | AK19: 1 | AL19: 0 | AM19: 0 | AN19: 1 | AO19: 0 | AP19: 1
AI20: 16 | AJ20: 0 | AK20: 0 | AL20: 1 | AM20: 0 | AN20: 1 | AO20: 0 | AP20: 1
AI21: 17 | AJ21: 1 | AK21: 1 | AL21: 0 | AM21: 0 | AN21: 1 | AO21: 0 | AP21: 1
AI22: 18 | AJ22: 0 | AK22: 0 | AL22: 1 | AM22: 0 | AN22: 1 | AO22: 0 | AP22: 1
AI23: 19 | AJ23: 1 | AK23: 1 | AL23: 0 | AM23: 0 | AN23: 1 | AO23: 0 | AP23: 1
H24: 1 | I24: 1 | Q24: =IF(RAND()>0.5,1,0) -> 1 | AI24: 20 | AJ24: 0 | AK24: 0 | AL24: 1 | AM24: 0 | AN24: 1 | AO24: 0 | AP24: 1
AI25: Total | AJ25: =COUNTIF(AJ4:AJ24,1) -> 8 | AK25: 10 | AL25: 10 | AM25: 11 | AN25: 8 | AO25: 12 | AP25: 9
AJ26: prime | AK26: odd | AL26: even | AM26: =CONCATENATE("<",$AI$2) -> <12 | AN26: =CONCATENATE(">",$AI$2) -> >12 | AO26: =CONCATENATE("≤",$AI$2) -> ≤12 | AP26: =CONCATENATE("≥",$AI$2) -> ≥12
AI31: 28 | AK31: 0
AI32: 29 | AK32: 0
AI33: 30 | AK33: 0
AI34: 31 | AK34: 0
AI35: 32 | AK35: 0
AI36: 33 | AK36: 0
AI37: 34 | AK37: 0
AI38: 35 | AK38: 0
AI39: 36 | AK39: 0
AI40: 37 | AK40: 0
AI41: 38 | AK41: 0
AI42: 39 | AK42: 0
AI43: 40 | AK43: 0
BB49: =INT(6*$O$1)+1 -> 3 | BC49: =VLOOKUP($BB$49,$BB$50:$BE$55,2) -> 35 | BD49: =VLOOKUP($BB$49,$BB$50:$BE$55,3) -> 32 | BE49: =VLOOKUP($BB$49,$BB$50:$BE$55,4) -> 36 | BL49: 5 | BM49: 6 | BN49: 7 | BO49: 8 | BP49: 9 | BQ49: 10 | BR49: 11 | BS49: 12 | BT49: 13 | BU49: 14 | BV49: 15 | BW49: 16
BA50: =INT(37*$N$1)+1 -> 32 | BB50: 1 | BC50: =$BA$50 -> 32 | BD50: =$BA$51 -> 35 | BE50: =$BA$52 -> 36 | BG50: =BC49 -> 35 | BH50: =VLOOKUP($BG$50,$BB$57:$BE$101,2) -> 3 | BI50: =VLOOKUP($BG$50,$BB$57:$BE$101,3) -> 4 | BJ50: =VLOOKUP($BG$50,$BB$57:$BE$101,4) -> 0.75 | BK50: =BH50/BI50 -> 0.75 | BL50: =VLOOKUP($BG50,$BB$57:$BQ$101,BL$49) -> 1 | BM50: =VLOOKUP($BG50,$BB$57:$BQ$101,BM$49) -> 1 | BN50: 2 | BO50: 1 | BP50: 0 | BQ50: 0 | BR50: 0 | BS50: 0 | BT50: 0 | BU50: 0 | BV50: 0 | BW50: 0
AZ51: =INT(4*$P$1)+1 -> 3 | BA51: =$BA$50+AZ51 -> 35 | BB51: 2 | BC51: =$BA$50 -> 32 | BD51: =$BA$52 -> 36 | BE51: =$BA$51 -> 35 | BG51: =BD49 -> 32 | BH51: =VLOOKUP($BG$51,$BB$57:$BE$101,2) -> 7 | BI51: =VLOOKUP($BG$51,$BB$57:$BE$101,3) -> 10 | BJ51: =VLOOKUP($BG$51,$BB$57:$BE$101,4) -> 0.7 | BK51: =BH51/BI51 -> 0.7 | BL51: =VLOOKUP($BG51,$BB$57:$BQ$101,BL$49) -> 1 | BM51: 2 | BN51: 1 | BO51: 2 | BP51: 1 | BQ51: 1 | BR51: 2 | BS51: 1 | BT51: 0 | BU51: 1 | BV51: 1 | BW51: 0
AZ52: =INT(4*$Q$1)+1 -> 1 | BA52: =$BA$51+AZ52 -> 36 | BB52: 3 | BC52: =$BA$51 -> 35 | BD52: =$BA$50 -> 32 | BE52: =$BA$52 -> 36 | BG52: =BE49 -> 36 | BH52: =VLOOKUP($BG$52,$BB$57:$BE$101,2) -> 7 | BI52: =VLOOKUP($BG$52,$BB$57:$BE$101,3) -> 9 | BJ52: =VLOOKUP($BG$52,$BB$57:$BE$101,4) -> 0.777… | BK52: =BH52/BI52 -> 0.7777777778 | BL52: =VLOOKUP($BG52,$BB$57:$BQ$101,BL$49) -> 1 | BM52: 2 | BN52: 1 | BO52: 1 | BP52: 1 | BQ52: 1 | BR52: 2 | BS52: 1 | BT52: 0 | BU52: 0 | BV52: 1 | BW52: 0
BB53: 4 | BC53: =$BA$51 -> 35 | BD53: =$BA$52 -> 36 | BE53: =$BA$50 -> 32
BB54: 5 | BC54: =$BA$52 -> 36 | BD54: =$BA$50 -> 32 | BE54: =$BA$51 -> 35
BB55: 6 | BC55: =$BA$52 -> 36 | BD55: =$BA$51 -> 35 | BE55: =$BA$50 -> 32
BF56: 1 | BG56: 2 | BH56: 3 | BI56: 4 | BJ56: 5 | BK56: 6 | BL56: 7 | BM56: 8 | BN56: 9 | BO56: 10 | BP56: 11 | BQ56: 12 | BR56: count | BS56: count
AK57: =-0.3/2.7 -> -0.1111111111 | AL57: 0.4 | AM57: =10*$BK$50+AK57 -> 7.388888889 | AN57: =AL57-1.5+AU60 -> -11.1 | AO57: =10*$BK$51+AK57 -> 6.888888889 | AP57: =AL57-1.5+AW60 -> -11.1 | AQ57: =10*$BK$52+AK57 -> 7.666666667 | AR57: =AL57-1.5+AY60 -> -11.1 | AU57: =IF($AU$60=-10,"a",".") -> a | AW57: =IF($AW$60=-10,"b",".") -> b | AY57: =IF($AY$60=-10,"c",".") -> c | BB57: 1 | BC57: 1 | BD57: 12 | BE57: 0.08333… | BF57: 2 | BG57: 2 | BH57: 1 | BI57: 2 | BJ57: 2 | BK57: 2 | BL57: 2 | BM57: 2 | BN57: 2 | BO57: 2 | BP57: 2 | BQ57: 2 | BR57: =COUNTIF(BF57:BQ57,1) -> 1 | BS57: =COUNTIF(BF57:BQ57,2)+COUNTIF(BF57:BQ57,1) -> 12 | BT57: 1 | BU57: 12 | BV57: =COUNTIF(BF57:BQ57,0) -> 0 | BW57: =BV57+BU57 -> 12 | BX57: =IF(BR57=BT57,1,0) -> 1 | BY57: =IF(BS57=BU57,1,0) -> 1
AK58: 0 | AL58: 0 | AM58: =10*$BK$50+AK58 -> 7.5 | AN58: =AL58-1.5+AU60 -> -11.5 | AO58: =10*$BK$51+AK58 -> 7 | AP58: =AL58-1.5+AW60 -> -11.5 | AQ58: =10*$BK$52+AK58 -> 7.777777778 | AR58: =AL58-1.5+AY60 -> -11.5 | AU58: =DYNOFRACT!AU62 -> 0.25 | AW58: =DYNOFRACT!AW62 -> 0.25 | AY58: =DYNOFRACT!AY62 -> 0.25 | BB58: 2 | BC58: 1 | BD58: 11 | BE58: 0.0909… | BF58: 2 | BG58: 1 | BH58: 2 | BI58: 2 | BJ58: 2 | BK58: 2 | BL58: 2 | BM58: 2 | BN58: 2 | BO58: 2 | BP58: 2 | BQ58: 0 | BR58: =COUNTIF(BF58:BQ58,1) -> 1 | BS58: =COUNTIF(BF58:BQ58,2)+COUNTIF(BF58:BQ58,1) -> 11 | BT58: 1 | BU58: 11 | BV58: 1 | BW58: =BV58+BU58 -> 12 | BX58: =IF(BR58=BT58,1,0) -> 1 | BY58: =IF(BS58=BU58,1,0) -> 1
AK59: =0.3/2.7 -> 0.1111111111 | AL59: 0.4 | AM59: =10*$BK$50+AK59 -> 7.611111111 | AN59: =AL59-1.5+AU60 -> -11.1 | AO59: =10*$BK$51+AK59 -> 7.111111111 | AP59: =AL59-1.5+AW60 -> -11.1 | AQ59: =10*$BK$52+AK59 -> 7.888888889 | AR59: =AL59-1.5+AY60 -> -11.1 | AU59: =IF($AU$60=-10,"","a") ->  | AW59: =IF($AW$60=-10,"","b") ->  | AY59: =IF($AY$60=-10,"","c") ->  | BB59: 3 | BC59: 1 | BD59: 10 | BE59: 0.1 | BF59: 2 | BG59: 2 | BH59: 1 | BI59: 2 | BJ59: 2 | BK59: 2 | BL59: 2 | BM59: 2 | BN59: 0 | BO59: 2 | BP59: 2 | BQ59: 0 | BR59: 1 | BS59: 10 | BT59: 1 | BU59: 10 | BV59: 2 | BW59: 12 | BX59: 1 | BY59: 1
AK60: 0 | AL60: 0 | AM60: =10*$BK$50+AK60 -> 7.5 | AN60: =AL60-1.5+AU60 -> -11.5 | AO60: =10*$BK$51+AK60 -> 7 | AP60: =AL60-1.5+AW60 -> -11.5 | AQ60: =10*$BK$52+AK60 -> 7.777777778 | AR60: =AL60-1.5+AY60 -> -11.5 | AT60: =10*BK50 -> 7.5 | AU60: -10 | AV60: =10*BK51 -> 7 | AW60: -10 | AX60: =10*BK52 -> 7.777777778 | AY60: -10 | BB60: 4 | BC60: 1 | BD60: 9 | BE60: 0.111… | BF60: 2 | BG60: 1 | BH60: 2 | BI60: 2 | BJ60: 2 | BK60: 2 | BL60: 2 | BM60: 2 | BN60: 0 | BO60: 0 | BP60: 2 | BQ60: 0 | BR60: 1 | BS60: 9 | BT60: 1 | BU60: 9 | BV60: 3 | BW60: 12 | BX60: 1 | BY60: 1
AK61: 0 | AL61: 0.8 | AM61: =10*$BK$50+AK61 -> 7.5 | AN61: =AL61-1.5+AU60 -> -10.7 | AO61: =10*$BK$51+AK61 -> 7 | AP61: =AL61-1.5+AW60 -> -10.7 | AQ61: =10*$BK$52+AK61 -> 7.777777778 | AR61: =AL61-1.5+AY60 -> -10.7 | AT61: =0.1/1.4 -> 0.07142857143 | AU61: =0.2/1.4 -> 0.1428571429 | AV61: =0.1/1.4 -> 0.07142857143 | AW61: =0.2/1.4 -> 0.1428571429 | AX61: =0.1/1.4 -> 0.07142857143 | AY61: =0.2/1.4 -> 0.1428571429 | BB61: 5 | BC61: 1 | BD61: 8 | BE61: 0.125 | BF61: 2 | BG61: 2 | BH61: 1 | BI61: 2 | BJ61: 2 | BK61: 2 | BL61: 2 | BM61: 2 | BN61: 0 | BO61: 0 | BP61: 0 | BQ61: 0 | BR61: 1 | BS61: 8 | BT61: 1 | BU61: 8 | BV61: 4 | BW61: 12 | BX61: 1 | BY61: 1
AM62: a | AN62: a | AO62: b | AP62: b | AQ62: c | AR62: c | AT62: a | AU62: a | AV62: b | AW62: b | AX62: c | AY62: c | BB62: 6 | BC62: 1 | BD62: 7 | BE62: 0.142857… | BF62: 2 | BG62: 1 | BH62: 2 | BI62: 2 | BJ62: 2 | BK62: 2 | BL62: 2 | BM62: 0 | BN62: 0 | BO62: 0 | BP62: 0 | BQ62: 0 | BR62: 1 | BS62: 7 | BT62: 1 | BU62: 7 | BV62: 5 | BW62: 12 | BX62: 1 | BY62: 1
AM63: -1 | AN63: 1.15 | AO63: -1.2 | AP63: 3 | AQ63: 1.25 | AR63: 1 | AT63: =$AT$60+$AT$61*AM63 -> 7.428571429 | AU63: =$AU$60+$AU$61*AN63-$AU$58 -> -10.08571429 | AV63: =$AV$60+$AV$61*AO63 -> 6.914285714 | AW63: =$AW$60+$AW$61*AP63-$AW$58 -> -9.821428571 | AX63: =$AX$60+$AX$61*AQ63 -> 7.867063492 | AY63: =$AY$60+$AY$61*AR63-$AY$58 -> -10.10714286 | BB63: 7 | BC63: 1 | BD63: 6 | BE63: 0.1666… | BF63: 2 | BG63: 2 | BH63: 1 | BI63: 2 | BJ63: 0 | BK63: 2 | BL63: 2 | BM63: 0 | BN63: 0 | BO63: 0 | BP63: 0 | BQ63: 0 | BR63: 1 | BS63: 6 | BT63: 1 | BU63: 6 | BV63: 6 | BW63: 12 | BX63: 1 | BY63: 1
AM64: 0 | AN64: 1.75 | AO64: =AO63 -> -1.2 | AP64: -1.325 | AQ64: 1 | AR64: 1.5 | AT64: 7.5 | AU64: =$AU$60+$AU$61*AN64-$AU$58 -> -10 | AV64: 6.914285714 | AW64: =$AW$60+$AW$61*AP64-$AW$58 -> -10.43928571 | AX64: 7.849206349 | AY64: =$AY$60+$AY$61*AR64-$AY$58 -> -10.03571429 | BB64: 8 | BC64: 2 | BD64: 11 | BE64: 0.1818… | BF64: 2 | BG64: 2 | BH64: 1 | BI64: 2 | BJ64: 2 | BK64: 1 | BL64: 2 | BM64: 2 | BN64: 2 | BO64: 2 | BP64: 2 | BQ64: 0 | BR64: 2 | BS64: 11 | BT64: 2 | BU64: 11 | BV64: 1 | BW64: 12 | BX64: 1 | BY64: 1
AM65: 0.8 | AN65: 1.45 | AO65: =AO63 -> -1.2 | AP65: -0.6 | AQ65: 0 | AR65: 1.75 | AT65: 7.557142857 | AU65: -10.04285714 | AV65: 6.914285714 | AW65: -10.33571429 | AX65: 7.777777778 | AY65: -10 | BB65: 9 | BC65: 1 | BD65: 5 | BE65: 0.2 | BF65: 2 | BG65: 1 | BH65: 2 | BI65: 2 | BJ65: 0 | BK65: 2 | BL65: 0 | BM65: 0 | BN65: 0 | BO65: 0 | BP65: 0 | BQ65: 0 | BR65: 1 | BS65: 5 | BT65: 1 | BU65: 5 | BV65: 7 | BW65: 12 | BX65: 1 | BY65: 1
AM66: 1 | AN66: 0.5 | AO66: =AO63 -> -1.2 | AP66: =AP65 -> -0.6 | AQ66: -1 | AR66: 1.2 | AT66: 7.571428571 | AU66: -10.17857143 | AV66: 6.914285714 | AW66: -10.33571429 | AX66: 7.706349206 | AY66: -10.07857143 | BB66: 10 | BC66: 2 | BD66: 9 | BE66: 0.222… | BF66: 2 | BG66: 1 | BH66: 2 | BI66: 2 | BJ66: 2 | BK66: 2 | BL66: 1 | BM66: 2 | BN66: 0 | BO66: 0 | BP66: 2 | BQ66: 0 | BR66: 2 | BS66: 9 | BT66: 2 | BU66: 9 | BV66: 3 | BW66: 12 | BX66: 1 | BY66: 1
AM67: 1 | AN67: -1.2 | AO67: 0 | AP67: -1.4 | AQ67: -1.25 | AR67: 0.2 | AT67: 7.571428571 | AU67: -10.42142857 | AV67: 7 | AW67: -10.45 | AX67: 7.688492063 | AY67: -10.22142857 | BB67: 11 | BC67: 1 | BD67: 4 | BE67: 0.25 | BF67: 2 | BG67: 2 | BH67: 1 | BI67: 2 | BJ67: 0 | BK67: 0 | BL67: 0 | BM67: 0 | BN67: 0 | BO67: 0 | BP67: 0 | BQ67: 0 | BR67: 1 | BS67: 4 | BT67: 1 | BU67: 4 | BV67: 8 | BW67: 12 | BX67: 1 | BY67: 1
AM68: 1 | AN68: -0.6 | AO68: 1 | AP68: -1 | AQ68: -1 | AR68: -0.8 | AT68: 7.571428571 | AU68: -10.33571429 | AV68: 7.071428571 | AW68: -10.39285714 | AX68: 7.706349206 | AY68: -10.36428571 | BB68: 12 | BC68: 3 | BD68: 11 | BE68: 0.2727… | BF68: 2 | BG68: 1 | BH68: 2 | BI68: 2 | BJ68: 1 | BK68: 2 | BL68: 1 | BM68: 2 | BN68: 2 | BO68: 2 | BP68: 2 | BQ68: 0 | BR68: 3 | BS68: 11 | BT68: 3 | BU68: 11 | BV68: 1 | BW68: 12 | BX68: 1 | BY68: 1
AM69: 0 | AN69: -1.2 | AO69: 1.25 | AP69: 0 | AQ69: 0 | AR69: -1.35 | AT69: 7.5 | AU69: -10.42142857 | AV69: 7.089285714 | AW69: -10.25 | AX69: 7.777777778 | AY69: -10.44285714 | BB69: 13 | BC69: 2 | BD69: 7 | BE69: 0.285714… | BF69: 2 | BG69: 2 | BH69: 1 | BI69: 2 | BJ69: 2 | BK69: 1 | BL69: 2 | BM69: 0 | BN69: 0 | BO69: 0 | BP69: 0 | BQ69: 0 | BR69: 2 | BS69: 7 | BT69: 2 | BU69: 7 | BV69: 5 | BW69: 12 | BX69: 1 | BY69: 1
AM70: -1 | AN70: -1 | AO70: 1 | AP70: 1.25 | AQ70: 1 | AR70: -1 | AT70: 7.428571429 | AU70: -10.39285714 | AV70: 7.071428571 | AW70: -10.07142857 | AX70: 7.849206349 | AY70: -10.39285714 | BB70: 14 | BC70: 3 | BD70: 10 | BE70: 0.3 | BF70: 2 | BG70: 1 | BH70: 2 | BI70: 1 | BJ70: 2 | BK70: 2 | BL70: 1 | BM70: 2 | BN70: 0 | BO70: 2 | BP70: 2 | BQ70: 0 | BR70: =COUNTIF(BF70:BQ70,1) -> 3 | BS70: 10 | BT70: 3 | BU70: 10 | BV70: 2 | BW70: 12 | BX70: 1 | BY70: 1
AM71: -1 | AN71: 0 | AO71: 0 | AP71: 1.75 | AQ71: 1.35 | AR71: -0.5 | AT71: 7.428571429 | AU71: -10.25 | AV71: 7 | AW71: -10 | AX71: 7.874206349 | AY71: -10.32142857 | BB71: 15 | BC71: 1 | BD71: 3 | BE71: 0.333… | BF71: 0 | BG71: 2 | BH71: 1 | BI71: 2 | BJ71: 0 | BK71: 0 | BL71: 0 | BM71: 0 | BN71: 0 | BO71: 0 | BP71: 0 | BQ71: 0 | BR71: 1 | BS71: 3 | BT71: 1 | BU71: 3 | BV71: =COUNTIF(BF71:BQ71,0) -> 9 | BW71: 12 | BX71: 1 | BY71: 1
AM72: 0 | AN72: 0.3 | AO72: =AO63 -> -1.2 | AP72: 0.8 | AQ72: 1.35 | AR72: -0.5 | AT72: 7.5 | AU72: -10.20714286 | AV72: 6.914285714 | AW72: -10.13571429 | AX72: 7.874206349 | AY72: -10.32142857 | BB72: 16 | BC72: 4 | BD72: 11 | BE72: 0.3636… | BF72: 1 | BG72: 2 | BH72: 1 | BI72: 2 | BJ72: 2 | BK72: 1 | BL72: 2 | BM72: 1 | BN72: 0 | BO72: 2 | BP72: 2 | BQ72: 2 | BR72: 4 | BS72: 11 | BT72: 4 | BU72: 11 | BV72: 1 | BW72: 12 | BX72: 1 | BY72: 1
AM73: 1 | AN73: 0.6 | AO73: =AO63 -> -1.2 | AP73: 0.8 | AQ73: 1.35 | AR73: -0.5 | AT73: 7.571428571 | AU73: -10.16428571 | AV73: 6.914285714 | AW73: -10.13571429 | AX73: 7.874206349 | AY73: -10.32142857 | BB73: 17 | BC73: 3 | BD73: 8 | BE73: 0.375 | BF73: 2 | BG73: 1 | BH73: 2 | BI73: 1 | BJ73: 2 | BK73: 2 | BL73: 1 | BM73: 2 | BN73: 0 | BO73: 0 | BP73: 0 | BQ73: 0 | BR73: 3 | BS73: 8 | BT73: 3 | BU73: 8 | BV73: 4 | BW73: 12 | BX73: 1 | BY73: 1
AM74: 1 | AN74: 0.6 | AO74: =AO63 -> -1.2 | AP74: 0.8 | AQ74: 1.35 | AR74: -0.5 | AT74: 7.571428571 | AU74: -10.16428571 | AV74: 6.914285714 | AW74: -10.13571429 | AX74: 7.874206349 | AY74: -10.32142857 | BB74: 18 | BC74: 2 | BD74: 5 | BE74: 0.4 | BF74: 1 | BG74: 2 | BH74: 1 | BI74: 2 | BJ74: 0 | BK74: 0 | BL74: 2 | BM74: 0 | BN74: 0 | BO74: 0 | BP74: 0 | BQ74: 0 | BR74: 2 | BS74: 5 | BT74: 2 | BU74: 5 | BV74: 7 | BW74: 12 | BX74: 1 | BY74: 1
AM75: 1 | AN75: 0.6 | AO75: =AO63 -> -1.2 | AP75: 0.8 | AQ75: 1.35 | AR75: -0.5 | AT75: 7.571428571 | AU75: -10.16428571 | AV75: 6.914285714 | AW75: -10.13571429 | AX75: 7.874206349 | AY75: -10.32142857 | BB75: 19 | BC75: 5 | BD75: 12 | BE75: 0.41666… | BF75: 1 | BG75: 2 | BH75: 1 | BI75: 2 | BJ75: 2 | BK75: 1 | BL75: 2 | BM75: 1 | BN75: 2 | BO75: 2 | BP75: 1 | BQ75: 2 | BR75: 5 | BS75: 12 | BT75: 5 | BU75: 12 | BV75: 0 | BW75: 12 | BX75: 1 | BY75: 1
BB76: 20 | BC76: 3 | BD76: 7 | BE76: 0.428571… | BF76: 2 | BG76: 1 | BH76: 2 | BI76: 1 | BJ76: 0 | BK76: 2 | BL76: 1 | BM76: 2 | BN76: 0 | BO76: 0 | BP76: 0 | BQ76: 0 | BR76: 3 | BS76: 7 | BT76: 3 | BU76: 7 | BV76: 5 | BW76: 12 | BX76: 1 | BY76: 1
BB77: 21 | BC77: 4 | BD77: 9 | BE77: 0.444… | BF77: 1 | BG77: 2 | BH77: 1 | BI77: 2 | BJ77: 2 | BK77: 1 | BL77: 2 | BM77: 1 | BN77: 0 | BO77: 2 | BP77: 0 | BQ77: 0 | BR77: 4 | BS77: 9 | BT77: 4 | BU77: 9 | BV77: 3 | BW77: 12 | BX77: 1 | BY77: 1
BB78: 22 | BC78: 5 | BD78: 11 | BE78: 0.4545… | BF78: 2 | BG78: 1 | BH78: 2 | BI78: 1 | BJ78: 1 | BK78: 2 | BL78: 1 | BM78: 2 | BN78: 2 | BO78: 1 | BP78: 2 | BQ78: 0 | BR78: 5 | BS78: 11 | BT78: 5 | BU78: 11 | BV78: 1 | BW78: 12 | BX78: 1 | BY78: 1
BB79: 23 | BC79: 1 | BD79: 2 | BE79: 0.5 | BF79: 0 | BG79: 1 | BH79: 2 | BI79: 0 | BJ79: 0 | BK79: 0 | BL79: 0 | BM79: 0 | BN79: 0 | BO79: 0 | BP79: 0 | BQ79: 0 | BR79: 1 | BS79: 2 | BT79: 1 | BU79: 2 | BV79: 10 | BW79: 12 | BX79: 1 | BY79: 1
BB80: 24 | BC80: 6 | BD80: 11 | BE80: 0.5454… | BF80: 1 | BG80: 2 | BH80: 1 | BI80: 2 | BJ80: 2 | BK80: 1 | BL80: 2 | BM80: 1 | BN80: 1 | BO80: 2 | BP80: 1 | BQ80: 0 | BR80: 6 | BS80: 11 | BT80: 6 | BU80: 11 | BV80: 1 | BW80: 12 | BX80: 1 | BY80: 1
BB81: 25 | BC81: 5 | BD81: 9 | BE81: 0.555… | BF81: 2 | BG81: 1 | BH81: 2 | BI81: 1 | BJ81: 1 | BK81: 2 | BL81: 1 | BM81: 2 | BN81: 0 | BO81: 1 | BP81: 0 | BQ81: 0 | BR81: 5 | BS81: 9 | BT81: 5 | BU81: 9 | BV81: 3 | BW81: 12 | BX81: 1 | BY81: 1
BB82: 26 | BC82: 4 | BD82: 7 | BE82: 0.571428… | BF82: 1 | BG82: 2 | BH82: 1 | BI82: 2 | BJ82: 0 | BK82: 1 | BL82: 2 | BM82: 1 | BN82: 0 | BO82: 0 | BP82: 0 | BQ82: 0 | BR82: 4 | BS82: 7 | BT82: 4 | BU82: 7 | BV82: 5 | BW82: 12 | BX82: 1 | BY82: 1
BB83: 27 | BC83: 7 | BD83: 12 | BE83: 0.58333… | BF83: 2 | BG83: 1 | BH83: 2 | BI83: 1 | BJ83: 1 | BK83: 2 | BL83: 1 | BM83: 2 | BN83: 1 | BO83: 1 | BP83: 2 | BQ83: 1 | BR83: 7 | BS83: 12 | BT83: 7 | BU83: 12 | BV83: 0 | BW83: 12 | BX83: 1 | BY83: 1
BB84: 28 | BC84: 3 | BD84: 5 | BE84: 0.6 | BF84: 2 | BG84: 1 | BH84: 2 | BI84: 1 | BJ84: 0 | BK84: 0 | BL84: 1 | BM84: 0 | BN84: 0 | BO84: 0 | BP84: 0 | BQ84: 0 | BR84: 3 | BS84: 5 | BT84: 3 | BU84: 5 | BV84: 7 | BW84: 12 | BX84: 1 | BY84: 1
BB85: 29 | BC85: 5 | BD85: 8 | BE85: 0.625 | BF85: 1 | BG85: 2 | BH85: 1 | BI85: 2 | BJ85: 1 | BK85: 1 | BL85: 2 | BM85: 1 | BN85: 0 | BO85: 0 | BP85: 0 | BQ85: 0 | BR85: 5 | BS85: 8 | BT85: 5 | BU85: 8 | BV85: 4 | BW85: 12 | BX85: 1 | BY85: 1
BB86: 30 | BC86: 7 | BD86: 11 | BE86: 0.6363… | BF86: 2 | BG86: 1 | BH86: 2 | BI86: 1 | BJ86: 1 | BK86: 2 | BL86: 1 | BM86: 2 | BN86: 0 | BO86: 1 | BP86: 1 | BQ86: 1 | BR86: 7 | BS86: 11 | BT86: 7 | BU86: 11 | BV86: 1 | BW86: 12 | BX86: 1 | BY86: 1
BB87: 31 | BC87: 2 | BD87: 3 | BE87: 0.666… | BF87: 0 | BG87: 1 | BH87: 2 | BI87: 1 | BJ87: 0 | BK87: 0 | BL87: 0 | BM87: 0 | BN87: 0 | BO87: 0 | BP87: 0 | BQ87: 0 | BR87: 2 | BS87: 3 | BT87: 2 | BU87: 3 | BV87: 9 | BW87: 12 | BX87: 1 | BY87: 1
BB88: 32 | BC88: 7 | BD88: 10 | BE88: 0.7 | BF88: 1 | BG88: 2 | BH88: 1 | BI88: 2 | BJ88: 1 | BK88: 1 | BL88: 2 | BM88: 1 | BN88: 0 | BO88: 1 | BP88: 1 | BQ88: 0 | BR88: 7 | BS88: 10 | BT88: 7 | BU88: 10 | BV88: 2 | BW88: 12 | BX88: 1 | BY88: 1
BB89: 33 | BC89: 5 | BD89: 7 | BE89: 0.714285… | BF89: 1 | BG89: 1 | BH89: 2 | BI89: 1 | BJ89: 1 | BK89: 2 | BL89: 1 | BM89: 0 | BN89: 0 | BO89: 0 | BP89: 0 | BQ89: 0 | BR89: 5 | BS89: 7 | BT89: 5 | BU89: 7 | BV89: 5 | BW89: 12 | BX89: 1 | BY89: 1
BB90: 34 | BC90: 8 | BD90: 11 | BE90: 0.7272… | BF90: 1 | BG90: 2 | BH90: 1 | BI90: 1 | BJ90: 2 | BK90: 1 | BL90: 2 | BM90: 1 | BN90: 1 | BO90: 1 | BP90: 1 | BQ90: 0 | BR90: 8 | BS90: 11 | BT90: 8 | BU90: 11 | BV90: 1 | BW90: 12 | BX90: 1 | BY90: 1
BB91: 35 | BC91: 3 | BD91: 4 | BE91: 0.75 | BF91: 1 | BG91: 1 | BH91: 2 | BI91: 1 | BJ91: 0 | BK91: 0 | BL91: 0 | BM91: 0 | BN91: 0 | BO91: 0 | BP91: 0 | BQ91: 0 | BR91: 3 | BS91: 4 | BT91: 3 | BU91: 4 | BV91: =COUNTIF(BF91:BQ91,0) -> 8 | BW91: 12 | BX91: 1 | BY91: 1
BB92: 36 | BC92: 7 | BD92: 9 | BE92: 0.777… | BF92: 1 | BG92: 2 | BH92: 1 | BI92: 1 | BJ92: 1 | BK92: 1 | BL92: 2 | BM92: 1 | BN92: 0 | BO92: 0 | BP92: 1 | BQ92: 0 | BR92: 7 | BS92: 9 | BT92: 7 | BU92: 9 | BV92: 3 | BW92: 12 | BX92: 1 | BY92: 1
BB93: 37 | BC93: 4 | BD93: 5 | BE93: 0.8 | BF93: 1 | BG93: 2 | BH93: 1 | BI93: 1 | BJ93: 0 | BK93: 1 | BL93: 0 | BM93: 0 | BN93: 0 | BO93: 0 | BP93: 0 | BQ93: 0 | BR93: 4 | BS93: 5 | BT93: 4 | BU93: 5 | BV93: 7 | BW93: 12 | BX93: 1 | BY93: 1
BB94: 38 | BC94: 9 | BD94: 11 | BE94: 0.8181… | BF94: 1 | BG94: 1 | BH94: 2 | BI94: 1 | BJ94: 1 | BK94: 2 | BL94: 1 | BM94: 1 | BN94: 1 | BO94: 1 | BP94: 1 | BQ94: 0 | BR94: 9 | BS94: 11 | BT94: 9 | BU94: 11 | BV94: 1 | BW94: 12 | BX94: 1 | BY94: 1
BB95: 39 | BC95: 5 | BD95: 6 | BE95: 0.8333… | BF95: 1 | BG95: 1 | BH95: 2 | BI95: 1 | BJ95: 0 | BK95: 1 | BL95: 1 | BM95: 0 | BN95: 0 | BO95: 0 | BP95: 0 | BQ95: 0 | BR95: 5 | BS95: 6 | BT95: 5 | BU95: 6 | BV95: 6 | BW95: 12 | BX95: 1 | BY95: 1
BB96: 40 | BC96: 6 | BD96: 7 | BE96: 0.857142… | BF96: 1 | BG96: 2 | BH96: 1 | BI96: 1 | BJ96: 1 | BK96: 1 | BL96: 1 | BM96: 0 | BN96: 0 | BO96: 0 | BP96: 0 | BQ96: 0 | BR96: 6 | BS96: 7 | BT96: 6 | BU96: 7 | BV96: 5 | BW96: 12 | BX96: 1 | BY96: 1
BB97: 41 | BC97: 7 | BD97: 8 | BE97: 0.875 | BF97: 1 | BG97: 1 | BH97: 2 | BI97: 1 | BJ97: 1 | BK97: 1 | BL97: 1 | BM97: 1 | BN97: 0 | BO97: 0 | BP97: 0 | BQ97: 0 | BR97: 7 | BS97: 8 | BT97: 7 | BU97: 8 | BV97: 4 | BW97: 12 | BX97: 1 | BY97: 1
BB98: 42 | BC98: 8 | BD98: 9 | BE98: 0.888… | BF98: 1 | BG98: 2 | BH98: 1 | BI98: 1 | BJ98: 1 | BK98: 1 | BL98: 1 | BM98: 1 | BN98: 0 | BO98: 0 | BP98: 1 | BQ98: 0 | BR98: 8 | BS98: 9 | BT98: 8 | BU98: 9 | BV98: 3 | BW98: 12 | BX98: 1 | BY98: 1
BB99: 43 | BC99: 9 | BD99: 10 | BE99: 0.9 | BF99: 1 | BG99: 1 | BH99: 2 | BI99: 1 | BJ99: 1 | BK99: 1 | BL99: 1 | BM99: 1 | BN99: 0 | BO99: 1 | BP99: 1 | BQ99: 0 | BR99: 9 | BS99: 10 | BT99: 9 | BU99: 10 | BV99: 2 | BW99: 12 | BX99: 1 | BY99: 1
BB100: 44 | BC100: 10 | BD100: 11 | BE100: 0.9090… | BF100: 1 | BG100: 2 | BH100: 1 | BI100: 1 | BJ100: 1 | BK100: 1 | BL100: 1 | BM100: 1 | BN100: 1 | BO100: 1 | BP100: 1 | BQ100: 0 | BR100: 10 | BS100: 11 | BT100: 10 | BU100: 11 | BV100: 1 | BW100: 12 | BX100: 1 | BY100: 1
BB101: 45 | BC101: 11 | BD101: 12 | BE101: 0.91666… | BF101: 1 | BG101: 1 | BH101: 2 | BI101: 1 | BJ101: 1 | BK101: 1 | BL101: 1 | BM101: 1 | BN101: 1 | BO101: 1 | BP101: 1 | BQ101: 1 | BR101: 11 | BS101: 12 | BT101: 11 | BU101: 12 | BV101: 0 | BW101: 12 | BX101: 1 | BY101: 1

Sheet COMPROBTWO
B1: =RAND() -> 0.1250634383 | C1: 0.4059131024 | D1: 0.5742909889 | E1: 0.3431511025 | F1: 0.4666018139 | G1: 0.41028964 | H1: 0.1039146224 | I1: 0.06249386917 | J1: 0.3385198499 | K1: 0.7304276118 | L1: 0.2709402398 | M1: 0.1247121243 | N1: 0.9471625022 | O1: 0.6455778142 | P1: 0.4699362754 | Q1: 0.9480903979 | R1: 0.4560100888 | S1: 0.96356737 | T1: 0.870196767 | U1: 0.3781855902 | V1: 0.4874271278 | W1: 0.5621186385 | X1: 0.6410686319 | Y1: 0.1147939121 | Z1: 0.9623696863
AI2: =INT(8*Y1)+5 -> 5 | AJ2: 1 | AK2: 2 | AL2: 3 | AM2: 4 | AN2: 5 | AO2: 6 | AP2: 7
AC3: 0 | AE3: 0 | AG3: 0 | AI3: =INT(7*Z1)+1 -> 7 | AJ3: P(prime №) = | AK3: P(odd №) = | AL3: P(even №) = | AM3: =CONCATENATE("P(№ < ",$AI$2,") =") -> P(№ < 5) = | AN3: =CONCATENATE("P(№ > ",$AI$2,") =") -> P(№ > 5) = | AO3: =CONCATENATE("P(№ ≤ ",$AI$2,") =") -> P(№ ≤ 5) = | AP3: =CONCATENATE("P(№ ≥ ",$AI$2,") =") -> P(№ ≥ 5) = | AQ3: № | AY3: №
X4: =IF(BG50=0,"*",IF(BG50=67,"*",VLOOKUP($BG50,$BB$57:$BZ$122,25))) -> * | Y4: =IF(BG51=0,"*",IF(BG51=67,"*",VLOOKUP($BG51,$BB$57:$BZ$122,25))) ->  | AA4: =IF(BG52=0,"*",IF(BG52=67,"*",VLOOKUP($BG52,$BB$57:$BZ$122,25))) -> * | AD4: a | AI4: 0 | AJ4: X | AK4: X | AL4: X | AM4: X | AN4: X | AO4: X | AP4: X | AQ4: =INT(20*O1)+1 -> 13 | AR4: =VLOOKUP(AQ4,$AI$4:$AP$24,$AI$3+1) -> 1 | AS4: =COUNTIF(AR4:AR13,1) -> 3 | AT4: =GCD(AS4,AS5) -> 3 | AU4: =AS4/AT4 -> 1 | AV4: =IF(AS4=0,0,AU4) -> 1 | AW4: =IF(AS4=0,CONCATENATE(" ",AV4," "),IF(AS6=1,CONCATENATE(" ",AV4," "),"X")) ->  | AY4: =INT(3*Z1)+1 -> 3 | BS4: =COUNTIF(AY4:AY13,3) -> 1 | BT4: =GCD(BS4,BS5) -> 1 | BU4: =BS4/BT4 -> 1 | BV4: =IF(BS4=0,0,BU4) -> 1 | BW4: =IF(BS4=0,CONCATENATE(" ",BV4," "),IF(BS6=1,CONCATENATE(" ",BV4," "),"X")) -> 
D5: =IF(BA50=67,"●",IF(BA50=0," ● ",IF(H5=0,"",IF(H5=1,"●"," ● ")))) ->  | E5: =IF(BA50=67,"●",IF(BA50=0," ● ",IF(I5=0,"",IF(I5=1,"●"," ● ")))) -> ● | F5: =IF(BA50=67,"●",IF(BA50=0," ● ",IF(J5=0,"",IF(J5=1,"●"," ● ")))) -> ● | G5: =IF(BA50=67,"●",IF(BA50=0," ● ",IF(K5=0,"",IF(K5=1,"●"," ● ")))) ->  | H5: =BT50 -> 0 | I5: =BU50 -> 2 | J5: =BV50 -> 2 | K5: =BW50 -> 0 | M5: =IF(BA51=67,"●",IF(BA51=0," ● ",IF(Q5=0,"",IF(Q5=1,"●"," ● ")))) ->  | N5: =IF(BA51=67,"●",IF(BA51=0," ● ",IF(R5=0,"",IF(R5=1,"●"," ● ")))) ->  | O5: =IF(BA51=67,"●",IF(BA51=0," ● ",IF(S5=0,"",IF(S5=1,"●"," ● ")))) ->  | P5: =IF(BA51=67,"●",IF(BA51=0," ● ",IF(T5=0,"",IF(T5=1,"●"," ● ")))) ->  | Q5: =BT51 -> 0 | R5: =BU51 -> 0 | S5: =BV51 -> 0 | T5: =BW51 -> 0 | V5: =IF(BA52=67,"●",IF(BA52=0," ● ",IF(Z5=0,"",IF(Z5=1,"●"," ● ")))) ->  | W5: =IF(BA52=67,"●",IF(BA52=0," ● ",IF(AA5=0,"",IF(AA5=1,"●"," ● ")))) ->  | X5: =IF(BA52=67,"●",IF(BA52=0," ● ",IF(AB5=0,"",IF(AB5=1,"●"," ● ")))) ->  | Y5: =IF(BA52=67,"●",IF(BA52=0," ● ",IF(AC5=0,"",IF(AC5=1,"●"," ● ")))) ->  | Z5: =BT52 -> 0 | AA5: =BU52 -> 0 | AB5: =BV52 -> 0 | AC5: =BW52 -> 0 | AD5: =$AM$61 -> 2 | AI5: 1 | AJ5: 0 | AK5: 1 | AL5: 0 | AM5: =IF(AI5<$AI$2,1,0) -> 1 | AN5: =IF(AI5>$AI$2,1,0) -> 0 | AO5: =IF(AI5<=$AI$2,1,0) -> 1 | AP5: =IF(AI5>=$AI$2,1,0) -> 0 | AQ5: =INT(20*P1)+1 -> 10 | AR5: 1 | AS5: =B4 -> 0 | AT5: =LCM(AS4,AS5) -> 0 | AU5: =AS5/AT4 -> 0 | AV5: =IF(AS4=0,"",IF(AS6=1,"",AU5)) ->  | AY5: =INT(3*Y1)+1 -> 1 | BS5: =B10 -> 0 | BT5: =LCM(BS4,BS5) -> 0 | BU5: =BS5/BT4 -> 0 | BV5: =IF(BS4=0,"",IF(BS6=1,"",BU5)) -> 
D6: =IF(BA50=67,"●",IF(BA50=0," ● ",IF(H6=0,"",IF(H6=1,"●"," ● ")))) -> ● | E6: =IF(BA50=67,"●",IF(BA50=0," ● ",IF(I6=0,"",IF(I6=1,"●"," ● ")))) -> ● | F6: =IF(BA50=67,"●",IF(BA50=0," ● ",IF(J6=0,"",IF(J6=1,"●"," ● ")))) -> ● | G6: =IF(BA50=67,"●",IF(BA50=0," ● ",IF(K6=0,"",IF(K6=1,"●"," ● ")))) -> ● | H6: =BP50 -> 2 | I6: =BQ50 -> 1 | J6: =BR50 -> 2 | K6: =BS50 -> 2 | M6: =IF(BA51=67,"●",IF(BA51=0," ● ",IF(Q6=0,"",IF(Q6=1,"●"," ● ")))) ->  | N6: =IF(BA51=67,"●",IF(BA51=0," ● ",IF(R6=0,"",IF(R6=1,"●"," ● ")))) ->  | O6: =IF(BA51=67,"●",IF(BA51=0," ● ",IF(S6=0,"",IF(S6=1,"●"," ● ")))) -> ● | P6: =IF(BA51=67,"●",IF(BA51=0," ● ",IF(T6=0,"",IF(T6=1,"●"," ● ")))) ->  | Q6: =BP51 -> 0 | R6: =BQ51 -> 0 | S6: =BR51 -> 2 | T6: =BS51 -> 0 | V6: =IF(BA52=67,"●",IF(BA52=0," ● ",IF(Z6=0,"",IF(Z6=1,"●"," ● ")))) -> ● | W6: =IF(BA52=67,"●",IF(BA52=0," ● ",IF(AA6=0,"",IF(AA6=1,"●"," ● ")))) -> ● | X6: =IF(BA52=67,"●",IF(BA52=0," ● ",IF(AB6=0,"",IF(AB6=1,"●"," ● ")))) -> ● | Y6: =IF(BA52=67,"●",IF(BA52=0," ● ",IF(AC6=0,"",IF(AC6=1,"●"," ● ")))) -> ● | Z6: =BP52 -> 2 | AA6: =BQ52 -> 2 | AB6: =BR52 -> 1 | AC6: =BS52 -> 2 | AD6: =$AN$61 -> -10.7 | AI6: 2 | AJ6: 1 | AK6: 0 | AL6: 1 | AM6: 1 | AN6: 0 | AO6: 1 | AP6: 0 | AQ6: =INT(20*Q1)+1 -> 19 | AR6: 1 | AS6: =AS4/AS5 ->  | AY6: =INT(3*X1)+1 -> 2 | BS6: =BS4/BS5 -> 
D7: =IF(BA50=67,"●",IF(BA50=0," ● ",IF(H7=0,"",IF(H7=1,"●"," ● ")))) -> ● | E7: =IF(BA50=67,"●",IF(BA50=0," ● ",IF(I7=0,"",IF(I7=1,"●"," ● ")))) -> ● | F7: =IF(BA50=67,"●",IF(BA50=0," ● ",IF(J7=0,"",IF(J7=1,"●"," ● ")))) -> ● | G7: =IF(BA50=67,"●",IF(BA50=0," ● ",IF(K7=0,"",IF(K7=1,"●"," ● ")))) -> ● | H7: =BL50 -> 2 | I7: =BM50 -> 2 | J7: =BN50 -> 1 | K7: =BO50 -> 2 | M7: =IF(BA51=67,"●",IF(BA51=0," ● ",IF(Q7=0,"",IF(Q7=1,"●"," ● ")))) -> ● | N7: =IF(BA51=67,"●",IF(BA51=0," ● ",IF(R7=0,"",IF(R7=1,"●"," ● ")))) -> ● | O7: =IF(BA51=67,"●",IF(BA51=0," ● ",IF(S7=0,"",IF(S7=1,"●"," ● ")))) -> ● | P7: =IF(BA51=67,"●",IF(BA51=0," ● ",IF(T7=0,"",IF(T7=1,"●"," ● ")))) -> ● | Q7: =BL51 -> 1 | R7: =BM51 -> 2 | S7: =BN51 -> 1 | T7: =BO51 -> 2 | V7: =IF(BA52=67,"●",IF(BA52=0," ● ",IF(Z7=0,"",IF(Z7=1,"●"," ● ")))) -> ● | W7: =IF(BA52=67,"●",IF(BA52=0," ● ",IF(AA7=0,"",IF(AA7=1,"●"," ● ")))) -> ● | X7: =IF(BA52=67,"●",IF(BA52=0," ● ",IF(AB7=0,"",IF(AB7=1,"●"," ● ")))) -> ● | Y7: =IF(BA52=67,"●",IF(BA52=0," ● ",IF(AC7=0,"",IF(AC7=1,"●"," ● ")))) -> ● | Z7: =BL52 -> 2 | AA7: =BM52 -> 1 | AB7: =BN52 -> 2 | AC7: =BO52 -> 2 | AD7: b | AI7: 3 | AJ7: 1 | AK7: 1 | AL7: 0 | AM7: 1 | AN7: 0 | AO7: 1 | AP7: 0 | AQ7: =IF(B4>3,INT(20*R1)+1,0) -> 0 | AR7: X | AY7: =IF(B10>3,INT(3*W1)+1,0) -> 0
D8: =IF(BA50=67,12,IF(BA50=0,0,$BH$50)) -> 2 | E8: =IF(BA50=67,12,IF(BA50=0,12,$BI$50)) -> 10 | M8: =IF(BA51=67,12,IF(BA51=0,0,$BH$51)) -> 2 | N8: =IF(BA51=67,12,IF(BA51=0,12,$BI$51)) -> 5 | V8: =IF(BA52=67,12,IF(BA52=0,0,$BH$52)) -> 2 | W8: =IF(BA52=67,12,IF(BA52=0,12,$BI$52)) -> 8 | AD8: =$AO$61 -> 4 | AI8: 4 | AJ8: 0 | AK8: 0 | AL8: 1 | AM8: 1 | AN8: 0 | AO8: 1 | AP8: 0 | AQ8: =IF(B4>4,INT(20*S1)+1,0) -> 0 | AR8: X | AY8: =IF(B10>4,INT(3*V1)+1,0) -> 0
B9: P(●) = | E9: =IF(BA50=67,"12",IF(BA50=0," 0 ",CONCATENATE(IF(BH50<10," ",""),$BH$50,IF(BH50<10," ","")))) -> 2 | G9: =IF(BG50=0,"=",IF(BG50=67,"=",IF(VLOOKUP($BG50,$BB$57:$CC$122,26)=1,"=",""))) -> = | H9: =IF(BG50=0," 0 ",IF(BG50=67," 1 ",IF(VLOOKUP($BG50,$BB$57:$CC$122,26)=0,"",CONCATENATE(" ",VLOOKUP($BG50,$BB$57:$CC$122,27)," ")))) -> 1 | J9: P(●) = | N9: =IF(BA51=67,"12",IF(BA51=0," 0 ",CONCATENATE(IF(BH51<10," ",""),$BH$51,IF(BH51<10," ","")))) -> 2 | P9: =IF(BG51=0,"=",IF(BG51=67,"=",IF(VLOOKUP($BG51,$BB$57:$CC$122,26)=1,"=",""))) ->  | Q9: =IF(BG51=0," 0 ",IF(BG51=67," 1 ",IF(VLOOKUP($BG51,$BB$57:$CC$122,26)=0,"",CONCATENATE(" ",VLOOKUP($BG51,$BB$57:$CC$122,27)," ")))) ->  | S9: P(●) = | W9: =IF(BA52=67,"12",IF(BA52=0," 0 ",CONCATENATE(IF(BH52<10," ",""),$BH$52,IF(BH52<10," ","")))) -> 2 | Y9: =IF(BG52=0,"=",IF(BG52=67,"=",IF(VLOOKUP($BG52,$BB$57:$CC$122,26)=1,"=",""))) -> = | Z9: =IF(BG52=0," 0 ",IF(BG52=67," 1 ",IF(VLOOKUP($BG52,$BB$57:$CC$122,26)=0,"",CONCATENATE(" ",VLOOKUP($BG52,$BB$57:$CC$122,27)," ")))) -> 1 | AD9: =$AP$61 -> -10.7 | AI9: 5 | AJ9: 1 | AK9: 1 | AL9: 0 | AM9: 0 | AN9: 0 | AO9: 1 | AP9: 1 | AQ9: =IF(B4>5,INT(20*T1)+1,0) -> 0 | AR9: X | AY9: =IF(B10>5,INT(3*U1)+1,0) -> 0
E10: =IF(BA50=67,12,IF(BA50=0,12,$BI$50)) -> 10 | H10: =IF(BG50=0,"1",IF(BG50=67,"1",CONCATENATE(" ",VLOOKUP($BG50,$BB$57:$CC$122,28)," "))) -> 5 | N10: =IF(BA51=67,12,IF(BA51=0,12,$BI$51)) -> 5 | Q10: =IF(BG51=0,"1",IF(BG51=67,"1",CONCATENATE(" ",VLOOKUP($BG51,$BB$57:$CC$122,28)," "))) ->  | W10: =IF(BA52=67,12,IF(BA52=0,12,$BI$52)) -> 8 | Z10: =IF(BG52=0,"1",IF(BG52=67,"1",CONCATENATE(" ",VLOOKUP($BG52,$BB$57:$CC$122,28)," "))) -> 4 | AD10: c | AI10: 6 | AJ10: 0 | AK10: 0 | AL10: 1 | AM10: 0 | AN10: 1 | AO10: 0 | AP10: 1 | AQ10: =IF(B4>6,INT(20*U1)+1,0) -> 0 | AR10: X | AY10: =IF(B10>6,INT(3*T1)+1,0) -> 0
D11: = | E11: =CONCATENATE(IF(BA50=67,1,IF(BA50=0,0,$BJ$50))) -> 0.2 | M11: = | N11: =CONCATENATE(IF(BA51=67,1,IF(BA51=0,0,$BJ$51))) -> 0.4 | V11: = | W11: =CONCATENATE(IF(BA52=67,1,IF(BA52=0,0,$BJ$52))) -> 0.25 | AD11: =$AQ$61 -> 2.5 | AI11: 7 | AJ11: 1 | AK11: 1 | AL11: 0 | AM11: 0 | AN11: 1 | AO11: 0 | AP11: 1 | AQ11: =IF(B4>7,INT(20*V1)+1,0) -> 0 | AR11: X | AY11: =IF(B10>7,INT(3*S1)+1,0) -> 0
AD12: =$AR$61 -> -10.7 | AI12: 8 | AJ12: 0 | AK12: 0 | AL12: 1 | AM12: 0 | AN12: 1 | AO12: 0 | AP12: 1 | AQ12: =IF(B4>8,INT(20*W1)+1,0) -> 0 | AR12: X | AY12: =IF(B10>8,INT(3*R1)+1,0) -> 0
D13: 0 | X13: 1 | AI13: 9 | AJ13: 0 | AK13: 1 | AL13: 0 | AM13: 0 | AN13: 1 | AO13: 0 | AP13: 1 | AQ13: =IF(B4>9,INT(20*X1)+1,0) -> 0 | AR13: X | AY13: =IF(B10>9,INT(3*Q1)+1,0) -> 0
AI14: 10 | AJ14: 0 | AK14: 0 | AL14: 1 | AM14: 0 | AN14: 1 | AO14: 0 | AP14: 1
AI15: 11 | AJ15: 1 | AK15: 1 | AL15: 0 | AM15: 0 | AN15: 1 | AO15: 0 | AP15: 1
AI16: 12 | AJ16: 0 | AK16: 0 | AL16: 1 | AM16: 0 | AN16: 1 | AO16: 0 | AP16: 1
B17: impossible | M17: even | W17: certain | AI17: 13 | AJ17: 1 | AK17: 1 | AL17: 0 | AM17: 0 | AN17: 1 | AO17: 0 | AP17: 1
M18: chance | AI18: 14 | AJ18: 0 | AK18: 0 | AL18: 1 | AM18: 0 | AN18: 1 | AO18: 0 | AP18: 1
AI19: 15 | AJ19: 0 | AK19: 1 | AL19: 0 | AM19: 0 | AN19: 1 | AO19: 0 | AP19: 1
AI20: 16 | AJ20: 0 | AK20: 0 | AL20: 1 | AM20: 0 | AN20: 1 | AO20: 0 | AP20: 1
AI21: 17 | AJ21: 1 | AK21: 1 | AL21: 0 | AM21: 0 | AN21: 1 | AO21: 0 | AP21: 1
AI22: 18 | AJ22: 0 | AK22: 0 | AL22: 1 | AM22: 0 | AN22: 1 | AO22: 0 | AP22: 1
AI23: 19 | AJ23: 1 | AK23: 1 | AL23: 0 | AM23: 0 | AN23: 1 | AO23: 0 | AP23: 1
H24: 1 | I24: 1 | Q24: =IF(RAND()>0.5,1,0) -> 1 | AI24: 20 | AJ24: 0 | AK24: 0 | AL24: 1 | AM24: 0 | AN24: 1 | AO24: 0 | AP24: 1
AI25: Total | AJ25: =COUNTIF(AJ4:AJ24,1) -> 8 | AK25: 10 | AL25: 10 | AM25: 4 | AN25: 15 | AO25: 5 | AP25: 16
AJ26: prime | AK26: odd | AL26: even | AM26: =CONCATENATE("<",$AI$2) -> <5 | AN26: =CONCATENATE(">",$AI$2) -> >5 | AO26: =CONCATENATE("≤",$AI$2) -> ≤5 | AP26: =CONCATENATE("≥",$AI$2) -> ≥5
AI31: 28 | AK31: 0
AI32: 29 | AK32: 0
AI33: 30 | AK33: 0
AI34: 31 | AK34: 0
AI35: 32 | AK35: 0
AI36: 33 | AK36: 0
AI37: 34 | AK37: 0
AI38: 35 | AK38: 0
AI39: 36 | AK39: 0
AI40: 37 | AK40: 0
AI41: 38 | AK41: 0
AI42: 39 | AK42: 0
AI43: 40 | AK43: 0
BB49: =INT(6*$O$1)+1 -> 4 | BC49: =VLOOKUP($BB$49,$BB$50:$BE$55,2) -> 11 | BD49: =VLOOKUP($BB$49,$BB$50:$BE$55,3) -> 25 | BE49: =VLOOKUP($BB$49,$BB$50:$BE$55,4) -> 14 | BL49: 5 | BM49: 6 | BN49: 7 | BO49: 8 | BP49: 9 | BQ49: 10 | BR49: 11 | BS49: 12 | BT49: 13 | BU49: 14 | BV49: 15 | BW49: 16
BA50: 11 | BB50: 1 | BC50: =$BA$50 -> 11 | BD50: =$BA$51 -> 25 | BE50: =$BA$52 -> 14 | BG50: =BC49 -> 11 | BH50: =VLOOKUP($BG$50,$BB$57:$BE$122,2) -> 2 | BI50: =VLOOKUP($BG$50,$BB$57:$BE$122,3) -> 10 | BJ50: =VLOOKUP($BG$50,$BB$57:$BE$122,4) -> 0.2 | BK50: =IF(BA50=0,0,IF(BA50=67,1,BH50/BI50)) -> 0.2 | BL50: =IF(BG50=0,2,VLOOKUP($BG50,$BB$57:$BQ$122,BL$49)) -> 2 | BM50: =IF(BG50=0,2,VLOOKUP($BG50,$BB$57:$BQ$122,BM$49)) -> 2 | BN50: =IF(BG50=0,2,VLOOKUP($BG50,$BB$57:$BQ$122,BN$49)) -> 1 | BO50: =IF(BG50=0,2,VLOOKUP($BG50,$BB$57:$BQ$122,BO$49)) -> 2 | BP50: =IF(BG50=0,2,VLOOKUP($BG50,$BB$57:$BQ$122,BP$49)) -> 2 | BQ50: =IF(BG50=0,2,VLOOKUP($BG50,$BB$57:$BQ$122,BQ$49)) -> 1 | BR50: =IF(BG50=0,2,VLOOKUP($BG50,$BB$57:$BQ$122,BR$49)) -> 2 | BS50: =IF(BG50=0,2,VLOOKUP($BG50,$BB$57:$BQ$122,BS$49)) -> 2 | BT50: =IF(BG50=0,2,VLOOKUP($BG50,$BB$57:$BQ$122,BT$49)) -> 0 | BU50: =IF(BG50=0,2,VLOOKUP($BG50,$BB$57:$BQ$122,BU$49)) -> 2 | BV50: =IF(BG50=0,2,VLOOKUP($BG50,$BB$57:$BQ$122,BV$49)) -> 2 | BW50: =IF(BG50=0,2,VLOOKUP($BG50,$BB$57:$BQ$122,BW$49)) -> 0
AZ51: =INT(4*$P$1)+1 -> 2 | BA51: 25 | BB51: 2 | BC51: 11 | BD51: 25 | BE51: 14 | BG51: =BD49 -> 25 | BH51: =VLOOKUP($BG$51,$BB$57:$BE$122,2) -> 2 | BI51: =VLOOKUP($BG$51,$BB$57:$BE$122,3) -> 5 | BJ51: =VLOOKUP($BG$51,$BB$57:$BE$122,4) -> 0.4 | BK51: =IF(BA51=0,0,IF(BA51=67,1,BH51/BI51)) -> 0.4 | BL51: =IF(BG51=0,2,VLOOKUP($BG51,$BB$57:$BQ$122,BL$49)) -> 1 | BM51: =IF(BG51=0,2,VLOOKUP($BG51,$BB$57:$BQ$122,BM$49)) -> 2 | BN51: =IF(BG51=0,2,VLOOKUP($BG51,$BB$57:$BQ$122,BN$49)) -> 1 | BO51: =IF(BG51=0,2,VLOOKUP($BG51,$BB$57:$BQ$122,BO$49)) -> 2 | BP51: =IF(BG51=0,2,VLOOKUP($BG51,$BB$57:$BQ$122,BP$49)) -> 0 | BQ51: =IF(BG51=0,2,VLOOKUP($BG51,$BB$57:$BQ$122,BQ$49)) -> 0 | BR51: =IF(BG51=0,2,VLOOKUP($BG51,$BB$57:$BQ$122,BR$49)) -> 2 | BS51: =IF(BG51=0,2,VLOOKUP($BG51,$BB$57:$BQ$122,BS$49)) -> 0 | BT51: =IF(BG51=0,2,VLOOKUP($BG51,$BB$57:$BQ$122,BT$49)) -> 0 | BU51: =IF(BG51=0,2,VLOOKUP($BG51,$BB$57:$BQ$122,BU$49)) -> 0 | BV51: =IF(BG51=0,2,VLOOKUP($BG51,$BB$57:$BQ$122,BV$49)) -> 0 | BW51: =IF(BG51=0,2,VLOOKUP($BG51,$BB$57:$BQ$122,BW$49)) -> 0
AZ52: =INT(4*$Q$1)+1 -> 4 | BA52: 14 | BB52: 3 | BC52: 11 | BD52: 25 | BE52: 14 | BG52: =BE49 -> 14 | BH52: =VLOOKUP($BG$52,$BB$57:$BE$122,2) -> 2 | BI52: =VLOOKUP($BG$52,$BB$57:$BE$122,3) -> 8 | BJ52: =VLOOKUP($BG$52,$BB$57:$BE$122,4) -> 0.25 | BK52: =IF(BA52=0,0,IF(BA52=67,1,BH52/BI52)) -> 0.25 | BL52: =IF(BG52=0,2,VLOOKUP($BG52,$BB$57:$BQ$122,BL$49)) -> 2 | BM52: =IF(BG52=0,2,VLOOKUP($BG52,$BB$57:$BQ$122,BM$49)) -> 1 | BN52: =IF(BG52=0,2,VLOOKUP($BG52,$BB$57:$BQ$122,BN$49)) -> 2 | BO52: =IF(BG52=0,2,VLOOKUP($BG52,$BB$57:$BQ$122,BO$49)) -> 2 | BP52: =IF(BG52=0,2,VLOOKUP($BG52,$BB$57:$BQ$122,BP$49)) -> 2 | BQ52: =IF(BG52=0,2,VLOOKUP($BG52,$BB$57:$BQ$122,BQ$49)) -> 2 | BR52: =IF(BG52=0,2,VLOOKUP($BG52,$BB$57:$BQ$122,BR$49)) -> 1 | BS52: =IF(BG52=0,2,VLOOKUP($BG52,$BB$57:$BQ$122,BS$49)) -> 2 | BT52: =IF(BG52=0,2,VLOOKUP($BG52,$BB$57:$BQ$122,BT$49)) -> 0 | BU52: =IF(BG52=0,2,VLOOKUP($BG52,$BB$57:$BQ$122,BU$49)) -> 0 | BV52: =IF(BG52=0,2,VLOOKUP($BG52,$BB$57:$BQ$122,BV$49)) -> 0 | BW52: =IF(BG52=0,2,VLOOKUP($BG52,$BB$57:$BQ$122,BW$49)) -> 0
BB53: 4 | BC53: 11 | BD53: 25 | BE53: 14
BB54: 5 | BC54: 11 | BD54: 25 | BE54: 14
BB55: 6 | BC55: 11 | BD55: 25 | BE55: 14
BF56: 1 | BG56: 2 | BH56: 3 | BI56: 4 | BJ56: 5 | BK56: 6 | BL56: 7 | BM56: 8 | BN56: 9 | BO56: 10 | BP56: 11 | BQ56: 12 | BR56: count | BS56: count
AK57: =-0.3/2.7 -> -0.1111111111 | AL57: 0.4 | AM57: =10*$BK$50+AK57 -> 1.888888889 | AN57: =AL57-1.5+AU60 -> -11.1 | AO57: =10*$BK$51+AK57 -> 3.888888889 | AP57: =AL57-1.5+AW60 -> -11.1 | AQ57: =10*$BK$52+AK57 -> 2.388888889 | AR57: =AL57-1.5+AY60 -> -11.1 | AU57: =IF($AU$60=-10,"a",".") -> a | AW57: =IF($AW$60=-10,"b",".") -> b | AY57: =IF($AY$60=-10,"c",".") -> c | BB57: 1 | BC57: 1 | BD57: 12 | BE57: 0.08333… | BF57: 2 | BG57: 2 | BH57: 1 | BI57: 2 | BJ57: 2 | BK57: 2 | BL57: 2 | BM57: 2 | BN57: 2 | BO57: 2 | BP57: 2 | BQ57: 2 | BR57: =COUNTIF(BF57:BQ57,1) -> 1 | BS57: =COUNTIF(BF57:BQ57,2)+COUNTIF(BF57:BQ57,1) -> 12 | BT57: 1 | BU57: 12 | BV57: =COUNTIF(BF57:BQ57,0) -> 0 | BW57: =BV57+BU57 -> 12 | BX57: =IF(BR57=BT57,1,0) -> 1 | BY57: =IF(BS57=BU57,1,0) -> 1 | BZ57: =CONCATENATE("") ->  | CB57: =CONCATENATE("") -> 
AK58: 0 | AL58: 0 | AM58: =10*$BK$50+AK58 -> 2 | AN58: =AL58-1.5+AU60 -> -11.5 | AO58: =10*$BK$51+AK58 -> 4 | AP58: =AL58-1.5+AW60 -> -11.5 | AQ58: =10*$BK$52+AK58 -> 2.5 | AR58: =AL58-1.5+AY60 -> -11.5 | AU58: =DYNOFRACT!AU62 -> 0.25 | AW58: =DYNOFRACT!AW62 -> 0.25 | AY58: =DYNOFRACT!AY62 -> 0.25 | BB58: 2 | BC58: 1 | BD58: 11 | BE58: 0.0909… | BF58: 2 | BG58: 1 | BH58: 2 | BI58: 2 | BJ58: 2 | BK58: 2 | BL58: 2 | BM58: 2 | BN58: 2 | BO58: 2 | BP58: 2 | BQ58: 0 | BR58: 1 | BS58: 11 | BT58: 1 | BU58: 11 | BV58: 1 | BW58: 12 | BX58: 1 | BY58: 1 | BZ58: =CONCATENATE("") -> 
AK59: =0.3/2.7 -> 0.1111111111 | AL59: 0.4 | AM59: =10*$BK$50+AK59 -> 2.111111111 | AN59: =AL59-1.5+AU60 -> -11.1 | AO59: =10*$BK$51+AK59 -> 4.111111111 | AP59: =AL59-1.5+AW60 -> -11.1 | AQ59: =10*$BK$52+AK59 -> 2.611111111 | AR59: =AL59-1.5+AY60 -> -11.1 | AU59: =IF($AU$60=-10,"","a") ->  | AW59: =IF($AW$60=-10,"","b") ->  | AY59: =IF($AY$60=-10,"","c") ->  | BB59: 3 | BC59: 1 | BD59: 10 | BE59: 0.1 | BF59: 2 | BG59: 2 | BH59: 1 | BI59: 2 | BJ59: 2 | BK59: 2 | BL59: 2 | BM59: 2 | BN59: 0 | BO59: 2 | BP59: 2 | BQ59: 0 | BR59: 1 | BS59: 10 | BT59: 1 | BU59: 10 | BV59: 2 | BW59: 12 | BX59: 1 | BY59: 1
AK60: 0 | AL60: 0 | AM60: =10*$BK$50+AK60 -> 2 | AN60: =AL60-1.5+AU60 -> -11.5 | AO60: =10*$BK$51+AK60 -> 4 | AP60: =AL60-1.5+AW60 -> -11.5 | AQ60: =10*$BK$52+AK60 -> 2.5 | AR60: =AL60-1.5+AY60 -> -11.5 | AT60: =10*BK50 -> 2 | AU60: -10 | AV60: =10*BK51 -> 4 | AW60: -10 | AX60: =10*BK52 -> 2.5 | AY60: -10 | BB60: 4 | BC60: 1 | BD60: 9 | BE60: 0.111… | BF60: 2 | BG60: 1 | BH60: 2 | BI60: 2 | BJ60: 2 | BK60: 2 | BL60: 2 | BM60: 2 | BN60: 0 | BO60: 0 | BP60: 2 | BQ60: 0 | BR60: 1 | BS60: 9 | BT60: 1 | BU60: 9 | BV60: 3 | BW60: 12 | BX60: 1 | BY60: 1
AK61: 0 | AL61: 0.8 | AM61: =10*$BK$50+AK61 -> 2 | AN61: =AL61-1.5+AU60 -> -10.7 | AO61: =10*$BK$51+AK61 -> 4 | AP61: =AL61-1.5+AW60 -> -10.7 | AQ61: =10*$BK$52+AK61 -> 2.5 | AR61: =AL61-1.5+AY60 -> -10.7 | AT61: =0.1/1.4 -> 0.07142857143 | AU61: =0.2/1.4 -> 0.1428571429 | AV61: =0.1/1.4 -> 0.07142857143 | AW61: =0.2/1.4 -> 0.1428571429 | AX61: =0.1/1.4 -> 0.07142857143 | AY61: =0.2/1.4 -> 0.1428571429 | BB61: 5 | BC61: 1 | BD61: 8 | BE61: 0.125 | BF61: 2 | BG61: 2 | BH61: 1 | BI61: 2 | BJ61: 2 | BK61: 2 | BL61: 2 | BM61: 2 | BN61: 0 | BO61: 0 | BP61: 0 | BQ61: 0 | BR61: 1 | BS61: 8 | BT61: 1 | BU61: 8 | BV61: 4 | BW61: 12 | BX61: 1 | BY61: 1
AM62: a | AN62: a | AO62: b | AP62: b | AQ62: c | AR62: c | AT62: a | AU62: a | AV62: b | AW62: b | AX62: c | AY62: c | BB62: 6 | BC62: 1 | BD62: 7 | BE62: 0.142857… | BF62: 2 | BG62: 1 | BH62: 2 | BI62: 2 | BJ62: 2 | BK62: 2 | BL62: 2 | BM62: 0 | BN62: 0 | BO62: 0 | BP62: 0 | BQ62: 0 | BR62: 1 | BS62: 7 | BT62: 1 | BU62: 7 | BV62: 5 | BW62: 12 | BX62: 1 | BY62: 1
AM63: -1 | AN63: 1.15 | AO63: -1.2 | AP63: 3 | AQ63: 1.25 | AR63: 1 | AT63: =$AT$60+$AT$61*AM63 -> 1.928571429 | AU63: =$AU$60+$AU$61*AN63-$AU$58 -> -10.08571429 | AV63: =$AV$60+$AV$61*AO63 -> 3.914285714 | AW63: =$AW$60+$AW$61*AP63-$AW$58 -> -9.821428571 | AX63: =$AX$60+$AX$61*AQ63 -> 2.589285714 | AY63: =$AY$60+$AY$61*AR63-$AY$58 -> -10.10714286 | BB63: 7 | BC63: 1 | BD63: 6 | BE63: 0.1666… | BF63: 2 | BG63: 2 | BH63: 1 | BI63: 2 | BJ63: 0 | BK63: 2 | BL63: 2 | BM63: 0 | BN63: 0 | BO63: 0 | BP63: 0 | BQ63: 0 | BR63: 1 | BS63: 6 | BT63: 1 | BU63: 6 | BV63: 6 | BW63: 12 | BX63: 1 | BY63: 1 | CB63: =CONCATENATE("") -> 
AM64: 0 | AN64: 1.75 | AO64: =AO63 -> -1.2 | AP64: -1.325 | AQ64: 1 | AR64: 1.5 | AT64: 2 | AU64: =$AU$60+$AU$61*AN64-$AU$58 -> -10 | AV64: 3.914285714 | AW64: =$AW$60+$AW$61*AP64-$AW$58 -> -10.43928571 | AX64: 2.571428571 | AY64: =$AY$60+$AY$61*AR64-$AY$58 -> -10.03571429 | BB64: 8 | BC64: 2 | BD64: 12 | BE64: 0.1666… | BF64: 2 | BG64: 1 | BH64: 2 | BI64: 2 | BJ64: 2 | BK64: 2 | BL64: 1 | BM64: 2 | BN64: 2 | BO64: 2 | BP64: 2 | BQ64: 2 | BR64: 2 | BS64: 12 | BT64: 1 | BU64: 6 | BV64: 0 | BW64: 6 | BX64: 0 | BY64: 0 | BZ64: * | CA64: 1 | CB64: 1 | CC64: 6
AM65: 0.8 | AN65: 1.45 | AO65: =AO63 -> -1.2 | AP65: -0.6 | AQ65: 0 | AR65: 1.75 | AT65: 2.057142857 | AU65: -10.04285714 | AV65: 3.914285714 | AW65: -10.33571429 | AX65: 2.5 | AY65: -10 | BB65: 9 | BC65: 2 | BD65: 11 | BE65: 0.1818… | BF65: 2 | BG65: 2 | BH65: 1 | BI65: 2 | BJ65: 2 | BK65: 1 | BL65: 2 | BM65: 2 | BN65: 2 | BO65: 2 | BP65: 2 | BQ65: 0 | BR65: 2 | BS65: 11 | BT65: 2 | BU65: 11 | BV65: 1 | BW65: 12 | BX65: 1 | BY65: 1 | CB65: =CONCATENATE("") ->  | CC65: =CONCATENATE("") -> 
AM66: 1 | AN66: 0.5 | AO66: =AO63 -> -1.2 | AP66: =AP65 -> -0.6 | AQ66: -1 | AR66: 1.2 | AT66: 2.071428571 | AU66: -10.17857143 | AV66: 3.914285714 | AW66: -10.33571429 | AX66: 2.428571429 | AY66: -10.07857143 | BB66: 10 | BC66: 1 | BD66: 5 | BE66: 0.2 | BF66: 2 | BG66: 1 | BH66: 2 | BI66: 2 | BJ66: 0 | BK66: 2 | BL66: 0 | BM66: 0 | BN66: 0 | BO66: 0 | BP66: 0 | BQ66: 0 | BR66: 1 | BS66: 5 | BT66: 1 | BU66: 5 | BV66: 7 | BW66: 12 | BX66: 1 | BY66: 1 | CB66: =CONCATENATE("") ->  | CC66: =CONCATENATE("") -> 
AM67: 1 | AN67: -1.2 | AO67: 0 | AP67: -1.4 | AQ67: -1.25 | AR67: 0.2 | AT67: 2.071428571 | AU67: -10.42142857 | AV67: 4 | AW67: -10.45 | AX67: 2.410714286 | AY67: -10.22142857 | BB67: 11 | BC67: 2 | BD67: 10 | BE67: 0.2 | BF67: 2 | BG67: 2 | BH67: 1 | BI67: 2 | BJ67: 2 | BK67: 1 | BL67: 2 | BM67: 2 | BN67: 0 | BO67: 2 | BP67: 2 | BQ67: 0 | BR67: 2 | BS67: 10 | BT67: 1 | BU67: 5 | BV67: 2 | BW67: 7 | BX67: 0 | BY67: 0 | BZ67: * | CA67: 1 | CB67: 1 | CC67: 5
AM68: 1 | AN68: -0.6 | AO68: 1 | AP68: -1 | AQ68: -1 | AR68: -0.8 | AT68: 2.071428571 | AU68: -10.33571429 | AV68: 4.071428571 | AW68: -10.39285714 | AX68: 2.428571429 | AY68: -10.36428571 | BB68: 12 | BC68: 2 | BD68: 9 | BE68: 0.222… | BF68: 2 | BG68: 1 | BH68: 2 | BI68: 2 | BJ68: 2 | BK68: 2 | BL68: 1 | BM68: 2 | BN68: 0 | BO68: 0 | BP68: 2 | BQ68: 0 | BR68: 2 | BS68: 9 | BT68: 2 | BU68: 9 | BV68: 3 | BW68: 12 | BX68: 1 | BY68: 1 | CB68: =CONCATENATE("") ->  | CC68: =CONCATENATE("") -> 
AM69: 0 | AN69: -1.2 | AO69: 1.25 | AP69: 0 | AQ69: 0 | AR69: -1.35 | AT69: 2 | AU69: -10.42142857 | AV69: 4.089285714 | AW69: -10.25 | AX69: 2.5 | AY69: -10.44285714 | BB69: 13 | BC69: 1 | BD69: 4 | BE69: 0.25 | BF69: 2 | BG69: 2 | BH69: 1 | BI69: 2 | BJ69: 0 | BK69: 0 | BL69: 0 | BM69: 0 | BN69: 0 | BO69: 0 | BP69: 0 | BQ69: 0 | BR69: 1 | BS69: 4 | BT69: 1 | BU69: 4 | BV69: 8 | BW69: 12 | BX69: 1 | BY69: 1 | CB69: =CONCATENATE("") ->  | CC69: =CONCATENATE("") -> 
AM70: -1 | AN70: -1 | AO70: 1 | AP70: 1.25 | AQ70: 1 | AR70: -1 | AT70: 1.928571429 | AU70: -10.39285714 | AV70: 4.071428571 | AW70: -10.07142857 | AX70: 2.571428571 | AY70: -10.39285714 | BB70: 14 | BC70: 2 | BD70: 8 | BE70: 0.25 | BF70: 2 | BG70: 1 | BH70: 2 | BI70: 2 | BJ70: 2 | BK70: 2 | BL70: 1 | BM70: 2 | BN70: 0 | BO70: 0 | BP70: 0 | BQ70: 0 | BR70: 2 | BS70: 8 | BT70: 1 | BU70: 4 | BV70: 4 | BW70: 8 | BX70: 0 | BY70: 0 | BZ70: * | CA70: 1 | CB70: 1 | CC70: 4
AM71: -1 | AN71: 0 | AO71: 0 | AP71: 1.75 | AQ71: 1.35 | AR71: -0.5 | AT71: 1.928571429 | AU71: -10.25 | AV71: 4 | AW71: -10 | AX71: 2.596428571 | AY71: -10.32142857 | BB71: 15 | BC71: 3 | BD71: 12 | BE71: 0.25 | BF71: 2 | BG71: 2 | BH71: 1 | BI71: 2 | BJ71: 2 | BK71: 1 | BL71: 2 | BM71: 1 | BN71: 2 | BO71: 2 | BP71: 2 | BQ71: 2 | BR71: 3 | BS71: 12 | BT71: 1 | BU71: 4 | BV71: 0 | BW71: 4 | BX71: 0 | BY71: 0 | BZ71: * | CA71: 1 | CB71: 1 | CC71: 4
AM72: 0 | AN72: 0.3 | AO72: =AO63 -> -1.2 | AP72: 0.8 | AQ72: 1.35 | AR72: -0.5 | AT72: 2 | AU72: -10.20714286 | AV72: 3.914285714 | AW72: -10.13571429 | AX72: 2.596428571 | AY72: -10.32142857 | BB72: 16 | BC72: 3 | BD72: 11 | BE72: 0.2727… | BF72: 2 | BG72: 1 | BH72: 2 | BI72: 2 | BJ72: 1 | BK72: 2 | BL72: 1 | BM72: 2 | BN72: 2 | BO72: 2 | BP72: 2 | BQ72: 0 | BR72: 3 | BS72: 11 | BT72: 3 | BU72: 11 | BV72: 1 | BW72: 12 | BX72: 1 | BY72: 1 | CB72: =CONCATENATE("") -> 
AM73: 1 | AN73: 0.6 | AO73: =AO63 -> -1.2 | AP73: 0.8 | AQ73: 1.35 | AR73: -0.5 | AT73: 2.071428571 | AU73: -10.16428571 | AV73: 3.914285714 | AW73: -10.13571429 | AX73: 2.596428571 | AY73: -10.32142857 | BB73: 17 | BC73: 2 | BD73: 7 | BE73: 0.285714… | BF73: 2 | BG73: 2 | BH73: 1 | BI73: 2 | BJ73: 2 | BK73: 1 | BL73: 2 | BM73: 0 | BN73: 0 | BO73: 0 | BP73: 0 | BQ73: 0 | BR73: 2 | BS73: 7 | BT73: 2 | BU73: 7 | BV73: 5 | BW73: 12 | BX73: 1 | BY73: 1
AM74: 1 | AN74: 0.6 | AO74: =AO63 -> -1.2 | AP74: 0.8 | AQ74: 1.35 | AR74: -0.5 | AT74: 2.071428571 | AU74: -10.16428571 | AV74: 3.914285714 | AW74: -10.13571429 | AX74: 2.596428571 | AY74: -10.32142857 | BB74: 18 | BC74: 3 | BD74: 10 | BE74: 0.3 | BF74: 2 | BG74: 1 | BH74: 2 | BI74: 1 | BJ74: 2 | BK74: 2 | BL74: 1 | BM74: 2 | BN74: 0 | BO74: 2 | BP74: 2 | BQ74: 0 | BR74: 3 | BS74: 10 | BT74: 3 | BU74: 10 | BV74: 2 | BW74: 12 | BX74: 1 | BY74: 1
AM75: 1 | AN75: 0.6 | AO75: =AO63 -> -1.2 | AP75: 0.8 | AQ75: 1.35 | AR75: -0.5 | AT75: 2.071428571 | AU75: -10.16428571 | AV75: 3.914285714 | AW75: -10.13571429 | AX75: 2.596428571 | AY75: -10.32142857 | BB75: 19 | BC75: 1 | BD75: 3 | BE75: 0.333… | BF75: 0 | BG75: 2 | BH75: 1 | BI75: 2 | BJ75: 0 | BK75: 0 | BL75: 0 | BM75: 0 | BN75: 0 | BO75: 0 | BP75: 0 | BQ75: 0 | BR75: 1 | BS75: 3 | BT75: 1 | BU75: 3 | BV75: 9 | BW75: 12 | BX75: 1 | BY75: 1
BB76: 20 | BC76: 2 | BD76: 6 | BE76: 0.333… | BF76: 2 | BG76: 1 | BH76: 2 | BI76: 2 | BJ76: 0 | BK76: 2 | BL76: 1 | BM76: 0 | BN76: 0 | BO76: 0 | BP76: 0 | BQ76: 0 | BR76: 2 | BS76: 6 | BT76: 1 | BU76: 3 | BV76: 6 | BW76: 9 | BX76: 0 | BY76: 0 | BZ76: * | CA76: 1 | CB76: 1 | CC76: 3
BB77: 21 | BC77: 3 | BD77: 9 | BE77: 0.333… | BF77: 1 | BG77: 2 | BH77: 1 | BI77: 2 | BJ77: 2 | BK77: 1 | BL77: 2 | BM77: 2 | BN77: 0 | BO77: 2 | BP77: 0 | BQ77: 0 | BR77: 3 | BS77: 9 | BT77: 1 | BU77: 3 | BV77: 3 | BW77: 6 | BX77: 0 | BY77: 0 | BZ77: * | CA77: 1 | CB77: 1 | CC77: 3
BB78: 22 | BC78: 4 | BD78: 12 | BE78: 0.333… | BF78: 2 | BG78: 1 | BH78: 2 | BI78: 1 | BJ78: 1 | BK78: 2 | BL78: 1 | BM78: 2 | BN78: 2 | BO78: 2 | BP78: 2 | BQ78: 2 | BR78: 4 | BS78: 12 | BT78: 1 | BU78: 3 | BV78: 0 | BW78: 3 | BX78: 0 | BY78: 0 | BZ78: * | CA78: 1 | CB78: 1 | CC78: 3
BB79: 23 | BC79: 4 | BD79: 11 | BE79: 0.3636… | BF79: 1 | BG79: 2 | BH79: 1 | BI79: 2 | BJ79: 2 | BK79: 1 | BL79: 2 | BM79: 1 | BN79: 0 | BO79: 2 | BP79: 2 | BQ79: 2 | BR79: 4 | BS79: 11 | BT79: 4 | BU79: 11 | BV79: 1 | BW79: 12 | BX79: 1 | BY79: 1 | CB79: =CONCATENATE("") -> 
BB80: 24 | BC80: 3 | BD80: 8 | BE80: 0.375 | BF80: 2 | BG80: 1 | BH80: 2 | BI80: 1 | BJ80: 2 | BK80: 2 | BL80: 1 | BM80: 2 | BN80: 0 | BO80: 0 | BP80: 0 | BQ80: 0 | BR80: 3 | BS80: 8 | BT80: 3 | BU80: 8 | BV80: 4 | BW80: 12 | BX80: 1 | BY80: 1
BB81: 25 | BC81: 2 | BD81: 5 | BE81: 0.4 | BF81: 1 | BG81: 2 | BH81: 1 | BI81: 2 | BJ81: 0 | BK81: 0 | BL81: 2 | BM81: 0 | BN81: 0 | BO81: 0 | BP81: 0 | BQ81: 0 | BR81: 2 | BS81: 5 | BT81: 2 | BU81: 5 | BV81: 7 | BW81: 12 | BX81: 1 | BY81: 1
BB82: 26 | BC82: 4 | BD82: 10 | BE82: 0.4 | BF82: 2 | BG82: 1 | BH82: 2 | BI82: 1 | BJ82: 1 | BK82: 2 | BL82: 1 | BM82: 2 | BN82: 0 | BO82: 2 | BP82: 2 | BQ82: 0 | BR82: 4 | BS82: 10 | BT82: 2 | BU82: 5 | BV82: 2 | BW82: 7 | BX82: 0 | BY82: 0 | BZ82: * | CA82: 1 | CB82: 2 | CC82: 5
BB83: 27 | BC83: 5 | BD83: 12 | BE83: 0.41666… | BF83: 1 | BG83: 2 | BH83: 1 | BI83: 2 | BJ83: 2 | BK83: 1 | BL83: 2 | BM83: 1 | BN83: 2 | BO83: 2 | BP83: 1 | BQ83: 2 | BR83: 5 | BS83: 12 | BT83: 5 | BU83: 12 | BV83: 0 | BW83: 12 | BX83: 1 | BY83: 1 | CB83: =CONCATENATE("") -> 
BB84: 28 | BC84: 3 | BD84: 7 | BE84: 0.428571… | BF84: 2 | BG84: 1 | BH84: 2 | BI84: 1 | BJ84: 0 | BK84: 2 | BL84: 1 | BM84: 2 | BN84: 0 | BO84: 0 | BP84: 0 | BQ84: 0 | BR84: 3 | BS84: 7 | BT84: 3 | BU84: 7 | BV84: 5 | BW84: 12 | BX84: 1 | BY84: 1
BB85: 29 | BC85: 4 | BD85: 9 | BE85: 0.444… | BF85: 1 | BG85: 2 | BH85: 1 | BI85: 2 | BJ85: 2 | BK85: 1 | BL85: 2 | BM85: 1 | BN85: 0 | BO85: 2 | BP85: 0 | BQ85: 0 | BR85: 4 | BS85: 9 | BT85: 4 | BU85: 9 | BV85: 3 | BW85: 12 | BX85: 1 | BY85: 1
BB86: 30 | BC86: 5 | BD86: 11 | BE86: 0.4545… | BF86: 2 | BG86: 1 | BH86: 2 | BI86: 1 | BJ86: 1 | BK86: 2 | BL86: 1 | BM86: 2 | BN86: 2 | BO86: 1 | BP86: 2 | BQ86: 0 | BR86: 5 | BS86: 11 | BT86: 5 | BU86: 11 | BV86: 1 | BW86: 12 | BX86: 1 | BY86: 1
BB87: 31 | BC87: 1 | BD87: 2 | BE87: 0.5 | BF87: 0 | BG87: 1 | BH87: 2 | BI87: 0 | BJ87: 0 | BK87: 0 | BL87: 0 | BM87: 0 | BN87: 0 | BO87: 0 | BP87: 0 | BQ87: 0 | BR87: 1 | BS87: 2 | BT87: 1 | BU87: 2 | BV87: 10 | BW87: 12 | BX87: 1 | BY87: 1
BB88: 32 | BC88: 2 | BD88: 4 | BE88: 0.5 | BF88: 1 | BG88: 2 | BH88: 1 | BI88: 2 | BJ88: 0 | BK88: 0 | BL88: 0 | BM88: 0 | BN88: 0 | BO88: 0 | BP88: 0 | BQ88: 0 | BR88: 2 | BS88: 4 | BT88: 1 | BU88: 2 | BV88: 8 | BW88: 10 | BX88: 0 | BY88: 0 | BZ88: * | CA88: 1 | CB88: 1 | CC88: 2
BB89: 33 | BC89: 3 | BD89: 6 | BE89: 0.5 | BF89: 2 | BG89: 1 | BH89: 2 | BI89: 1 | BJ89: 0 | BK89: 2 | BL89: 1 | BM89: 0 | BN89: 0 | BO89: 0 | BP89: 0 | BQ89: 0 | BR89: =COUNTIF(BF89:BQ89,1) -> 3 | BS89: =COUNTIF(BF89:BQ89,2)+COUNTIF(BF89:BQ89,1) -> 6 | BT89: 1 | BU89: 2 | BV89: =COUNTIF(BF89:BQ89,0) -> 6 | BW89: =BV89+BU89 -> 8 | BX89: =IF(BR89=BT89,1,0) -> 0 | BY89: =IF(BS89=BU89,1,0) -> 0 | BZ89: * | CA89: 1 | CB89: 1 | CC89: 2
BB90: 34 | BC90: 4 | BD90: 8 | BE90: 0.5 | BF90: 1 | BG90: 2 | BH90: 1 | BI90: 2 | BJ90: 2 | BK90: 1 | BL90: 2 | BM90: 1 | BN90: 0 | BO90: 0 | BP90: 0 | BQ90: 0 | BR90: 4 | BS90: 8 | BT90: 1 | BU90: 2 | BV90: 4 | BW90: 6 | BX90: 0 | BY90: 0 | BZ90: * | CA90: 1 | CB90: 1 | CC90: 2
BB91: 35 | BC91: 5 | BD91: 10 | BE91: 0.5 | BF91: 2 | BG91: 1 | BH91: 2 | BI91: 1 | BJ91: 1 | BK91: 2 | BL91: 1 | BM91: 2 | BN91: 0 | BO91: 1 | BP91: 2 | BQ91: 0 | BR91: 5 | BS91: 10 | BT91: 1 | BU91: 2 | BV91: 2 | BW91: 4 | BX91: 0 | BY91: 0 | BZ91: * | CA91: 1 | CB91: 1 | CC91: 2
BB92: 36 | BC92: 6 | BD92: 12 | BE92: 0.5 | BF92: 1 | BG92: 2 | BH92: 1 | BI92: 2 | BJ92: 2 | BK92: 1 | BL92: 2 | BM92: 1 | BN92: 1 | BO92: 2 | BP92: 1 | BQ92: 2 | BR92: 6 | BS92: 12 | BT92: 1 | BU92: 2 | BV92: 0 | BW92: 2 | BX92: 0 | BY92: 0 | BZ92: * | CA92: 1 | CB92: 1 | CC92: 2
BB93: 37 | BC93: 6 | BD93: 11 | BE93: 0.5454… | BF93: 1 | BG93: 2 | BH93: 1 | BI93: 2 | BJ93: 2 | BK93: 1 | BL93: 2 | BM93: 1 | BN93: 1 | BO93: 2 | BP93: 1 | BQ93: 0 | BR93: 6 | BS93: 11 | BT93: 6 | BU93: 11 | BV93: 1 | BW93: 12 | BX93: 1 | BY93: 1 | CB93: =CONCATENATE("") -> 
BB94: 38 | BC94: 5 | BD94: 9 | BE94: 0.555… | BF94: 2 | BG94: 1 | BH94: 2 | BI94: 1 | BJ94: 1 | BK94: 2 | BL94: 1 | BM94: 2 | BN94: 0 | BO94: 1 | BP94: 0 | BQ94: 0 | BR94: 5 | BS94: 9 | BT94: 5 | BU94: 9 | BV94: 3 | BW94: 12 | BX94: 1 | BY94: 1
BB95: 39 | BC95: 4 | BD95: 7 | BE95: 0.571428… | BF95: 1 | BG95: 2 | BH95: 1 | BI95: 2 | BJ95: 0 | BK95: 1 | BL95: 2 | BM95: 1 | BN95: 0 | BO95: 0 | BP95: 0 | BQ95: 0 | BR95: 4 | BS95: 7 | BT95: 4 | BU95: 7 | BV95: 5 | BW95: 12 | BX95: 1 | BY95: 1
BB96: 40 | BC96: 7 | BD96: 12 | BE96: 0.58333… | BF96: 2 | BG96: 1 | BH96: 2 | BI96: 1 | BJ96: 1 | BK96: 2 | BL96: 1 | BM96: 2 | BN96: 1 | BO96: 1 | BP96: 2 | BQ96: 1 | BR96: 7 | BS96: 12 | BT96: 7 | BU96: 12 | BV96: 0 | BW96: 12 | BX96: 1 | BY96: 1
BB97: 41 | BC97: 3 | BD97: 5 | BE97: 0.6 | BF97: 2 | BG97: 1 | BH97: 2 | BI97: 1 | BJ97: 0 | BK97: 0 | BL97: 1 | BM97: 0 | BN97: 0 | BO97: 0 | BP97: 0 | BQ97: 0 | BR97: 3 | BS97: 5 | BT97: 3 | BU97: 5 | BV97: 7 | BW97: 12 | BX97: 1 | BY97: 1
BB98: 42 | BC98: 6 | BD98: 10 | BE98: 0.6 | BF98: 1 | BG98: 2 | BH98: 1 | BI98: 2 | BJ98: 2 | BK98: 1 | BL98: 2 | BM98: 1 | BN98: 0 | BO98: 1 | BP98: 1 | BQ98: 0 | BR98: 6 | BS98: 10 | BT98: 3 | BU98: 5 | BV98: 2 | BW98: 7 | BX98: 0 | BY98: 0 | BZ98: * | CA98: 1 | CB98: 3 | CC98: 5
BB99: 43 | BC99: 5 | BD99: 8 | BE99: 0.625 | BF99: 1 | BG99: 2 | BH99: 1 | BI99: 2 | BJ99: 1 | BK99: 1 | BL99: 2 | BM99: 1 | BN99: 0 | BO99: 0 | BP99: 0 | BQ99: 0 | BR99: 5 | BS99: 8 | BT99: 5 | BU99: 8 | BV99: 4 | BW99: 12 | BX99: 1 | BY99: 1 | CB99: =CONCATENATE("") -> 
BB100: 44 | BC100: 7 | BD100: 11 | BE100: 0.6363… | BF100: 2 | BG100: 1 | BH100: 2 | BI100: 1 | BJ100: 1 | BK100: 2 | BL100: 1 | BM100: 2 | BN100: 0 | BO100: 1 | BP100: 1 | BQ100: 1 | BR100: 7 | BS100: 11 | BT100: 7 | BU100: 11 | BV100: 1 | BW100: 12 | BX100: 1 | BY100: 1
BB101: 45 | BC101: 2 | BD101: 3 | BE101: 0.666… | BF101: 0 | BG101: 1 | BH101: 2 | BI101: 1 | BJ101: 0 | BK101: 0 | BL101: 0 | BM101: 0 | BN101: 0 | BO101: 0 | BP101: 0 | BQ101: 0 | BR101: 2 | BS101: 3 | BT101: 2 | BU101: 3 | BV101: 9 | BW101: 12 | BX101: 1 | BY101: 1
BB102: 46 | BC102: 4 | BD102: 6 | BE102: 0.666… | BF102: 1 | BG102: 2 | BH102: 1 | BI102: 1 | BJ102: 0 | BK102: 1 | BL102: 2 | BM102: 0 | BN102: 0 | BO102: 0 | BP102: 0 | BQ102: 0 | BR102: 4 | BS102: 6 | BT102: 2 | BU102: 3 | BV102: 6 | BW102: 9 | BX102: 0 | BY102: 0 | BZ102: * | CA102: 1 | CB102: 2 | CC102: 3
BB103: 47 | BC103: 6 | BD103: 9 | BE103: 0.666… | BF103: 2 | BG103: 1 | BH103: 2 | BI103: 1 | BJ103: 1 | BK103: 2 | BL103: 1 | BM103: 1 | BN103: 0 | BO103: 1 | BP103: 0 | BQ103: 0 | BR103: 6 | BS103: 9 | BT103: 2 | BU103: 3 | BV103: 3 | BW103: 6 | BX103: 0 | BY103: 0 | BZ103: * | CA103: 1 | CB103: 2 | CC103: 3
BB104: 48 | BC104: 8 | BD104: 12 | BE104: 0.666… | BF104: 1 | BG104: 2 | BH104: 1 | BI104: 2 | BJ104: 2 | BK104: 1 | BL104: 2 | BM104: 1 | BN104: 1 | BO104: 1 | BP104: 1 | BQ104: 1 | BR104: 8 | BS104: 12 | BT104: 2 | BU104: 3 | BV104: 0 | BW104: 3 | BX104: 0 | BY104: 0 | BZ104: * | CA104: 1 | CB104: 2 | CC104: 3
BB105: 49 | BC105: 7 | BD105: 10 | BE105: 0.7 | BF105: 1 | BG105: 2 | BH105: 1 | BI105: 2 | BJ105: 1 | BK105: 1 | BL105: 2 | BM105: 1 | BN105: 0 | BO105: 1 | BP105: 1 | BQ105: 0 | BR105: 7 | BS105: 10 | BT105: 7 | BU105: 10 | BV105: 2 | BW105: 12 | BX105: 1 | BY105: 1 | CB105: =CONCATENATE("") -> 
BB106: 50 | BC106: 5 | BD106: 7 | BE106: 0.714285… | BF106: 1 | BG106: 1 | BH106: 2 | BI106: 1 | BJ106: 1 | BK106: 2 | BL106: 1 | BM106: 0 | BN106: 0 | BO106: 0 | BP106: 0 | BQ106: 0 | BR106: 5 | BS106: 7 | BT106: 5 | BU106: 7 | BV106: 5 | BW106: 12 | BX106: 1 | BY106: 1
BB107: 51 | BC107: 8 | BD107: 11 | BE107: 0.7272… | BF107: 1 | BG107: 2 | BH107: 1 | BI107: 1 | BJ107: 2 | BK107: 1 | BL107: 2 | BM107: 1 | BN107: 1 | BO107: 1 | BP107: 1 | BQ107: 0 | BR107: 8 | BS107: 11 | BT107: 8 | BU107: 11 | BV107: 1 | BW107: 12 | BX107: 1 | BY107: 1
BB108: 52 | BC108: 3 | BD108: 4 | BE108: 0.75 | BF108: 1 | BG108: 1 | BH108: 2 | BI108: 1 | BJ108: 0 | BK108: 0 | BL108: 0 | BM108: 0 | BN108: 0 | BO108: 0 | BP108: 0 | BQ108: 0 | BR108: 3 | BS108: 4 | BT108: 3 | BU108: 4 | BV108: 8 | BW108: 12 | BX108: 1 | BY108: 1
BB109: 53 | BC109: 6 | BD109: 8 | BE109: 0.75 | BF109: 1 | BG109: 2 | BH109: 1 | BI109: 1 | BJ109: 1 | BK109: 1 | BL109: 2 | BM109: 1 | BN109: 0 | BO109: 0 | BP109: 0 | BQ109: 0 | BR109: 6 | BS109: 8 | BT109: 3 | BU109: 4 | BV109: 4 | BW109: 8 | BX109: 0 | BY109: 0 | BZ109: * | CA109: 1 | CB109: 3 | CC109: 4
BB110: 54 | BC110: 9 | BD110: 12 | BE110: 0.75 | BF110: 1 | BG110: 1 | BH110: 2 | BI110: 1 | BJ110: 1 | BK110: 2 | BL110: 1 | BM110: 2 | BN110: 1 | BO110: 1 | BP110: 1 | BQ110: 1 | BR110: 9 | BS110: 12 | BT110: 3 | BU110: 4 | BV110: 0 | BW110: 4 | BX110: 0 | BY110: 0 | BZ110: * | CA110: 1 | CB110: 3 | CC110: 4
BB111: 55 | BC111: 7 | BD111: 9 | BE111: 0.777… | BF111: 1 | BG111: 2 | BH111: 1 | BI111: 1 | BJ111: 1 | BK111: 1 | BL111: 2 | BM111: 1 | BN111: 0 | BO111: 0 | BP111: 1 | BQ111: 0 | BR111: 7 | BS111: 9 | BT111: 7 | BU111: 9 | BV111: 3 | BW111: 12 | BX111: 1 | BY111: 1 | CB111: =CONCATENATE("") ->  | CC111: =CONCATENATE("") -> 
BB112: 56 | BC112: 4 | BD112: 5 | BE112: 0.8 | BF112: 1 | BG112: 2 | BH112: 1 | BI112: 1 | BJ112: 0 | BK112: 1 | BL112: 0 | BM112: 0 | BN112: 0 | BO112: 0 | BP112: 0 | BQ112: 0 | BR112: 4 | BS112: 5 | BT112: 4 | BU112: 5 | BV112: 7 | BW112: 12 | BX112: 1 | BY112: 1 | CB112: =CONCATENATE("") ->  | CC112: =CONCATENATE("") -> 
BB113: 57 | BC113: 8 | BD113: 10 | BE113: 0.8 | BF113: 1 | BG113: 1 | BH113: 2 | BI113: 1 | BJ113: 1 | BK113: 2 | BL113: 1 | BM113: 1 | BN113: 0 | BO113: 1 | BP113: 1 | BQ113: 0 | BR113: 8 | BS113: 10 | BT113: 4 | BU113: 5 | BV113: 2 | BW113: 7 | BX113: 0 | BY113: 0 | BZ113: * | CA113: 1 | CB113: 4 | CC113: 5
BB114: 58 | BC114: 9 | BD114: 11 | BE114: 0.8181… | BF114: 1 | BG114: 1 | BH114: 2 | BI114: 1 | BJ114: 1 | BK114: 2 | BL114: 1 | BM114: 1 | BN114: 1 | BO114: 1 | BP114: 1 | BQ114: 0 | BR114: 9 | BS114: 11 | BT114: 9 | BU114: 11 | BV114: 1 | BW114: 12 | BX114: 1 | BY114: 1 | CB114: =CONCATENATE("") ->  | CC114: =CONCATENATE("") -> 
BB115: 59 | BC115: 5 | BD115: 6 | BE115: 0.8333… | BF115: 1 | BG115: 1 | BH115: 2 | BI115: 1 | BJ115: 0 | BK115: 1 | BL115: 1 | BM115: 0 | BN115: 0 | BO115: 0 | BP115: 0 | BQ115: 0 | BR115: 5 | BS115: 6 | BT115: 5 | BU115: 6 | BV115: 6 | BW115: 12 | BX115: 1 | BY115: 1 | CB115: =CONCATENATE("") ->  | CC115: =CONCATENATE("") -> 
BB116: 60 | BC116: 10 | BD116: 12 | BE116: 0.8333… | BF116: 1 | BG116: 2 | BH116: 1 | BI116: 1 | BJ116: 1 | BK116: 1 | BL116: 2 | BM116: 1 | BN116: 1 | BO116: 1 | BP116: 1 | BQ116: 1 | BR116: 10 | BS116: 12 | BT116: 5 | BU116: 6 | BV116: 0 | BW116: 6 | BX116: 0 | BY116: 0 | BZ116: * | CA116: 1 | CB116: 5 | CC116: 6
BB117: 61 | BC117: 6 | BD117: 7 | BE117: 0.857142… | BF117: 1 | BG117: 2 | BH117: 1 | BI117: 1 | BJ117: 1 | BK117: 1 | BL117: 1 | BM117: 0 | BN117: 0 | BO117: 0 | BP117: 0 | BQ117: 0 | BR117: 6 | BS117: 7 | BT117: 6 | BU117: 7 | BV117: 5 | BW117: 12 | BX117: 1 | BY117: 1 | CB117: =CONCATENATE("") -> 
BB118: 62 | BC118: 7 | BD118: 8 | BE118: 0.875 | BF118: 1 | BG118: 1 | BH118: 2 | BI118: 1 | BJ118: 1 | BK118: 1 | BL118: 1 | BM118: 1 | BN118: 0 | BO118: 0 | BP118: 0 | BQ118: 0 | BR118: 7 | BS118: 8 | BT118: 7 | BU118: 8 | BV118: 4 | BW118: 12 | BX118: 1 | BY118: 1
BB119: 63 | BC119: 8 | BD119: 9 | BE119: 0.888… | BF119: 1 | BG119: 2 | BH119: 1 | BI119: 1 | BJ119: 1 | BK119: 1 | BL119: 1 | BM119: 1 | BN119: 0 | BO119: 0 | BP119: 1 | BQ119: 0 | BR119: 8 | BS119: 9 | BT119: 8 | BU119: 9 | BV119: 3 | BW119: 12 | BX119: 1 | BY119: 1
BB120: 64 | BC120: 9 | BD120: 10 | BE120: 0.9 | BF120: 1 | BG120: 1 | BH120: 2 | BI120: 1 | BJ120: 1 | BK120: 1 | BL120: 1 | BM120: 1 | BN120: 0 | BO120: 1 | BP120: 1 | BQ120: 0 | BR120: 9 | BS120: 10 | BT120: 9 | BU120: 10 | BV120: 2 | BW120: 12 | BX120: 1 | BY120: 1
BB121: 65 | BC121: 10 | BD121: 11 | BE121: 0.9090… | BF121: 1 | BG121: 2 | BH121: 1 | BI121: 1 | BJ121: 1 | BK121: 1 | BL121: 1 | BM121: 1 | BN121: 1 | BO121: 1 | BP121: 1 | BQ121: 0 | BR121: =COUNTIF(BF121:BQ121,1) -> 10 | BS121: 11 | BT121: 10 | BU121: 11 | BV121: 1 | BW121: =BV121+BU121 -> 12 | BX121: 1 | BY121: 1
BB122: 66 | BC122: 11 | BD122: 12 | BE122: 0.91666… | BF122: 1 | BG122: 1 | BH122: 2 | BI122: 1 | BJ122: 1 | BK122: 1 | BL122: 1 | BM122: 1 | BN122: 1 | BO122: 1 | BP122: 1 | BQ122: 1 | BR122: =COUNTIF(BF122:BQ122,1) -> 11 | BS122: 12 | BT122: 11 | BU122: 12 | BV122: 0 | BW122: =BV122+BU122 -> 12 | BX122: 1 | BY122: 1 | BZ122: =CONCATENATE("") -> 
BF124: 2 | BG124: 2 | BH124: 1 | BI124: 2 | BJ124: 2 | BK124: 2 | BL124: 2 | BM124: 2 | BN124: 2 | BO124: 2 | BP124: 2 | BQ124: 2
BF125: 2 | BG125: 1 | BH125: 2 | BI125: 2 | BJ125: 2 | BK125: 2 | BL125: 2 | BM125: 2 | BN125: 2 | BO125: 2 | BP125: 2 | BQ125: 0
BF126: 2 | BG126: 2 | BH126: 1 | BI126: 2 | BJ126: 2 | BK126: 2 | BL126: 2 | BM126: 2 | BN126: 0 | BO126: 2 | BP126: 2 | BQ126: 0
BF127: 2 | BG127: 1 | BH127: 2 | BI127: 2 | BJ127: 2 | BK127: 2 | BL127: 2 | BM127: 2 | BN127: 0 | BO127: 0 | BP127: 2 | BQ127: 0
BF128: 2 | BG128: 2 | BH128: 1 | BI128: 2 | BJ128: 2 | BK128: 2 | BL128: 2 | BM128: 2 | BN128: 0 | BO128: 0 | BP128: 0 | BQ128: 0
BF129: 2 | BG129: 1 | BH129: 2 | BI129: 2 | BJ129: 2 | BK129: 2 | BL129: 2 | BM129: 0 | BN129: 0 | BO129: 0 | BP129: 0 | BQ129: 0
BF130: 2 | BG130: 2 | BH130: 1 | BI130: 2 | BJ130: 0 | BK130: 2 | BL130: 2 | BM130: 0 | BN130: 0 | BO130: 0 | BP130: 0 | BQ130: 0
BF131: 2 | BG131: 2 | BH131: 1 | BI131: 2 | BJ131: 2 | BK131: 1 | BL131: 2 | BM131: 2 | BN131: 2 | BO131: 2 | BP131: 2 | BQ131: 0
BF132: 2 | BG132: 1 | BH132: 2 | BI132: 2 | BJ132: 0 | BK132: 2 | BL132: 0 | BM132: 0 | BN132: 0 | BO132: 0 | BP132: 0 | BQ132: 0
BF133: 2 | BG133: 1 | BH133: 2 | BI133: 2 | BJ133: 2 | BK133: 2 | BL133: 1 | BM133: 2 | BN133: 0 | BO133: 0 | BP133: 2 | BQ133: 0
BF134: 2 | BG134: 2 | BH134: 1 | BI134: 2 | BJ134: 0 | BK134: 0 | BL134: 0 | BM134: 0 | BN134: 0 | BO134: 0 | BP134: 0 | BQ134: 0
BF135: 2 | BG135: 1 | BH135: 2 | BI135: 2 | BJ135: 1 | BK135: 2 | BL135: 1 | BM135: 2 | BN135: 2 | BO135: 2 | BP135: 2 | BQ135: 0
BF136: 2 | BG136: 2 | BH136: 1 | BI136: 2 | BJ136: 2 | BK136: 1 | BL136: 2 | BM136: 0 | BN136: 0 | BO136: 0 | BP136: 0 | BQ136: 0
BF137: 2 | BG137: 1 | BH137: 2 | BI137: 1 | BJ137: 2 | BK137: 2 | BL137: 1 | BM137: 2 | BN137: 0 | BO137: 2 | BP137: 2 | BQ137: 0
BF138: 0 | BG138: 2 | BH138: 1 | BI138: 2 | BJ138: 0 | BK138: 0 | BL138: 0 | BM138: 0 | BN138: 0 | BO138: 0 | BP138: 0 | BQ138: 0
BF139: 1 | BG139: 2 | BH139: 1 | BI139: 2 | BJ139: 2 | BK139: 1 | BL139: 2 | BM139: 1 | BN139: 0 | BO139: 2 | BP139: 2 | BQ139: 2
BF140: 2 | BG140: 1 | BH140: 2 | BI140: 1 | BJ140: 2 | BK140: 2 | BL140: 1 | BM140: 2 | BN140: 0 | BO140: 0 | BP140: 0 | BQ140: 0
BF141: 1 | BG141: 2 | BH141: 1 | BI141: 2 | BJ141: 0 | BK141: 0 | BL141: 2 | BM141: 0 | BN141: 0 | BO141: 0 | BP141: 0 | BQ141: 0
BF142: 1 | BG142: 2 | BH142: 1 | BI142: 2 | BJ142: 2 | BK142: 1 | BL142: 2 | BM142: 1 | BN142: 2 | BO142: 2 | BP142: 1 | BQ142: 2
BF143: 2 | BG143: 1 | BH143: 2 | BI143: 1 | BJ143: 0 | BK143: 2 | BL143: 1 | BM143: 2 | BN143: 0 | BO143: 0 | BP143: 0 | BQ143: 0
BF144: 1 | BG144: 2 | BH144: 1 | BI144: 2 | BJ144: 2 | BK144: 1 | BL144: 2 | BM144: 1 | BN144: 0 | BO144: 2 | BP144: 0 | BQ144: 0
BF145: 2 | BG145: 1 | BH145: 2 | BI145: 1 | BJ145: 1 | BK145: 2 | BL145: 1 | BM145: 2 | BN145: 2 | BO145: 1 | BP145: 2 | BQ145: 0
BF146: 0 | BG146: 1 | BH146: 2 | BI146: 0 | BJ146: 0 | BK146: 0 | BL146: 0 | BM146: 0 | BN146: 0 | BO146: 0 | BP146: 0 | BQ146: 0
BF147: 1 | BG147: 2 | BH147: 1 | BI147: 2 | BJ147: 2 | BK147: 1 | BL147: 2 | BM147: 1 | BN147: 1 | BO147: 2 | BP147: 1 | BQ147: 0
BF148: 2 | BG148: 1 | BH148: 2 | BI148: 1 | BJ148: 1 | BK148: 2 | BL148: 1 | BM148: 2 | BN148: 0 | BO148: 1 | BP148: 0 | BQ148: 0
BF149: 1 | BG149: 2 | BH149: 1 | BI149: 2 | BJ149: 0 | BK149: 1 | BL149: 2 | BM149: 1 | BN149: 0 | BO149: 0 | BP149: 0 | BQ149: 0
BF150: 2 | BG150: 1 | BH150: 2 | BI150: 1 | BJ150: 1 | BK150: 2 | BL150: 1 | BM150: 2 | BN150: 1 | BO150: 1 | BP150: 2 | BQ150: 1
BF151: 2 | BG151: 1 | BH151: 2 | BI151: 1 | BJ151: 0 | BK151: 0 | BL151: 1 | BM151: 0 | BN151: 0 | BO151: 0 | BP151: 0 | BQ151: 0
BF152: 1 | BG152: 2 | BH152: 1 | BI152: 2 | BJ152: 1 | BK152: 1 | BL152: 2 | BM152: 1 | BN152: 0 | BO152: 0 | BP152: 0 | BQ152: 0
BF153: 2 | BG153: 1 | BH153: 2 | BI153: 1 | BJ153: 1 | BK153: 2 | BL153: 1 | BM153: 2 | BN153: 0 | BO153: 1 | BP153: 1 | BQ153: 1
BF154: 0 | BG154: 1 | BH154: 2 | BI154: 1 | BJ154: 0 | BK154: 0 | BL154: 0 | BM154: 0 | BN154: 0 | BO154: 0 | BP154: 0 | BQ154: 0
BF155: 1 | BG155: 2 | BH155: 1 | BI155: 2 | BJ155: 1 | BK155: 1 | BL155: 2 | BM155: 1 | BN155: 0 | BO155: 1 | BP155: 1 | BQ155: 0
BF156: 1 | BG156: 1 | BH156: 2 | BI156: 1 | BJ156: 1 | BK156: 2 | BL156: 1 | BM156: 0 | BN156: 0 | BO156: 0 | BP156: 0 | BQ156: 0
BF157: 1 | BG157: 2 | BH157: 1 | BI157: 1 | BJ157: 2 | BK157: 1 | BL157: 2 | BM157: 1 | BN157: 1 | BO157: 1 | BP157: 1 | BQ157: 0
BF158: 1 | BG158: 1 | BH158: 2 | BI158: 1 | BJ158: 0 | BK158: 0 | BL158: 0 | BM158: 0 | BN158: 0 | BO158: 0 | BP158: 0 | BQ158: 0
BF159: 1 | BG159: 2 | BH159: 1 | BI159: 1 | BJ159: 1 | BK159: 1 | BL159: 2 | BM159: 1 | BN159: 0 | BO159: 0 | BP159: 1 | BQ159: 0
BF160: 1 | BG160: 2 | BH160: 1 | BI160: 1 | BJ160: 0 | BK160: 1 | BL160: 0 | BM160: 0 | BN160: 0 | BO160: 0 | BP160: 0 | BQ160: 0
BF161: 1 | BG161: 1 | BH161: 2 | BI161: 1 | BJ161: 1 | BK161: 2 | BL161: 1 | BM161: 1 | BN161: 1 | BO161: 1 | BP161: 1 | BQ161: 0
BF162: 1 | BG162: 1 | BH162: 2 | BI162: 1 | BJ162: 0 | BK162: 1 | BL162: 1 | BM162: 0 | BN162: 0 | BO162: 0 | BP162: 0 | BQ162: 0
BF163: 1 | BG163: 2 | BH163: 1 | BI163: 1 | BJ163: 1 | BK163: 1 | BL163: 1 | BM163: 0 | BN163: 0 | BO163: 0 | BP163: 0 | BQ163: 0
BF164: 1 | BG164: 1 | BH164: 2 | BI164: 1 | BJ164: 1 | BK164: 1 | BL164: 1 | BM164: 1 | BN164: 0 | BO164: 0 | BP164: 0 | BQ164: 0
BF165: 1 | BG165: 2 | BH165: 1 | BI165: 1 | BJ165: 1 | BK165: 1 | BL165: 1 | BM165: 1 | BN165: 0 | BO165: 0 | BP165: 1 | BQ165: 0
BF166: 1 | BG166: 1 | BH166: 2 | BI166: 1 | BJ166: 1 | BK166: 1 | BL166: 1 | BM166: 1 | BN166: 0 | BO166: 1 | BP166: 1 | BQ166: 0
BF167: 1 | BG167: 2 | BH167: 1 | BI167: 1 | BJ167: 1 | BK167: 1 | BL167: 1 | BM167: 1 | BN167: 1 | BO167: 1 | BP167: 1 | BQ167: 0
BF168: 1 | BG168: 1 | BH168: 2 | BI168: 1 | BJ168: 1 | BK168: 1 | BL168: 1 | BM168: 1 | BN168: 1 | BO168: 1 | BP168: 1 | BQ168: 1

Sheet COMGAME
A1: =RAND() -> 0.7331036877 | B1: 0.9506633519 | C1: 0.7654828626 | D1: 0.7742878276 | E1: 0.8876679035 | F1: 0.1058461908 | G1: 0.2853305382 | H1: 0.4505640526 | I1: 0.167978329 | J1: 0.4851445685 | K1: 0.4583253593 | L1: 0.3960980228 | M1: 0.1417213734 | N1: 0.314834291 | O1: 0.5200145898 | P1: 0.779292451 | Q1: 0.7884563081 | R1: 0.8242538121 | S1: 0.6052496707 | T1: 0.8391743646 | U1: 0.727051364 | V1: 0.6315178029 | W1: 0.901771199 | X1: 0.07957936005 | Y1: 0.220083773 | Z1: 0.04068320645
Y2: =IF(I20=0,"",IF(I20=20,"",IF(BJ39=BH39,"","*"))) -> * | Z2: =IF(OR(E20=0,E20=32),"",IF(MOD(E20,2)=0,"*","")) -> * | AA2: =IF(F20=0,"",IF(F20=24,"",IF(BJ45=BH45,"","*"))) -> * | AI2: =INT(8*Y1)+5 -> 6 | AJ2: 1 | AK2: 2 | AL2: 3 | AM2: 4 | AN2: 5 | AO2: 6 | AP2: 7
AI3: =INT(7*Z1)+1 -> 1 | AJ3: P(prime №) = | AK3: P(odd №) = | AL3: P(even №) = | AM3: =CONCATENATE("P(№ < ",$AI$2,") =") -> P(№ < 6) = | AN3: =CONCATENATE("P(№ > ",$AI$2,") =") -> P(№ > 6) = | AO3: =CONCATENATE("P(№ ≤ ",$AI$2,") =") -> P(№ ≤ 6) = | AP3: =CONCATENATE("P(№ ≥ ",$AI$2,") =") -> P(№ ≥ 6) = | AQ3: № | AY3: №
C4: =IF(T5=0,0,IF(T5>13,1,0)) -> 0 | D4: =IF(T5=0,0,IF(T5>6,1,0)) -> 0 | E4: =IF(T5=0,0,IF(T5>14,1,0)) -> 0 | F4: =IF(T5=0,0,IF(T5>7,1,0)) -> 0 | G4: =IF(T5=0,0,IF(T5>15,1,0)) -> 0 | H4: =I20 -> 6 | K4: =IF(T6>20,1,0) -> 0 | L4: =IF(T6>8,1,0) -> 1 | M4: =IF(T6>21,1,0) -> 0 | N4: =IF(T6>10,1,0) -> 0 | O4: =IF(T6>22,1,0) -> 0 | P4: =IF(T6>11,1,0) -> 0 | Q4: =IF(T6>23,1,0) -> 0 | R4: =IF(T6>13,1,0) -> 0 | V4: =IF(T7>7,1,0) -> 1 | W4: =IF(T7>16,1,0) -> 0 | X4: =IF(T7>8,1,0) -> 0 | Y4: =IF(T7>17,1,0) -> 0 | Z4: =IF(T7>9,1,0) -> 0 | AA4: =IF(T7>18,1,0) -> 0 | AD4: a | AI4: 0 | AJ4: X | AK4: X | AL4: X | AM4: X | AN4: X | AO4: X | AP4: X | AQ4: =INT(20*O1)+1 -> 11 | AR4: =VLOOKUP(AQ4,$AI$4:$AP$24,$AI$3+1) -> 1 | AS4: =COUNTIF(AR4:AR13,1) -> 1 | AT4: =GCD(AS4,AS5) -> 1 | AU4: =AS4/AT4 -> 1 | AV4: =IF(AS4=0,0,AU4) -> 1 | AW4: =IF(AS4=0,CONCATENATE(" ",AV4," "),IF(AS6=1,CONCATENATE(" ",AV4," "),"X")) ->  | AY4: =INT(3*Z1)+1 -> 1 | BS4: =COUNTIF(AY4:AY13,3) -> 0 | BT4: =GCD(BS4,BS5) -> 0 | BU4: =BS4/BT4 ->  | BV4: =IF(BS4=0,0,BU4) -> 0 | BW4: =IF(BS4=0,CONCATENATE(" ",BV4," "),IF(BS6=1,CONCATENATE(" ",BV4," "),"X")) -> 0
C5: =IF(T5=0,0,IF(T5>5,1,0)) -> 1 | D5: =IF(T5=0,0,IF(T5>19,1,0)) -> 0 | E5: =IF(T5=0,0,IF(T5>1,1,0)) -> 1 | F5: =IF(T5=0,0,IF(T5>17,1,0)) -> 0 | G5: =IF(T5=0,0,IF(T5>8,1,0)) -> 0 | I5: 1 | K5: =IF(T6>7,1,0) -> 1 | L5: =IF(T6>31,1,0) -> 0 | M5: =IF(T6>9,1,0) -> 1 | N5: =IF(T6>29,1,0) -> 0 | O5: =IF(T6>1,1,0) -> 1 | P5: =IF(T6>27,1,0) -> 0 | Q5: =IF(T6>12,1,0) -> 0 | R5: =IF(T6>24,1,0) -> 0 | T5: =IF(I5=1,I20,0) -> 6 | V5: =IF(T7>15,1,0) -> 0 | W5: =IF(T7>6,1,0) -> 1 | X5: =IF(T7>22,1,0) -> 0 | Y5: =IF(T7>1,1,0) -> 1 | Z5: =IF(T7>20,1,0) -> 0 | AA5: =IF(T7>10,1,0) -> 0 | AC5: =BW52 -> 2 | AD5: =$AM$61 -> 3 | AI5: 1 | AJ5: 0 | AK5: 1 | AL5: 0 | AM5: =IF(AI5<$AI$2,1,0) -> 1 | AN5: =IF(AI5>$AI$2,1,0) -> 0 | AO5: =IF(AI5<=$AI$2,1,0) -> 1 | AP5: =IF(AI5>=$AI$2,1,0) -> 0 | AQ5: =INT(20*P1)+1 -> 16 | AR5: 0 | AS5: =B4 -> 0 | AT5: =LCM(AS4,AS5) -> 0 | AU5: =AS5/AT4 -> 0 | AV5: =IF(AS4=0,"",IF(AS6=1,"",AU5)) ->  | AY5: =INT(3*Y1)+1 -> 1 | BS5: =B10 -> 0 | BT5: =LCM(BS4,BS5) -> 0 | BU5: =BS5/BT4 ->  | BV5: =IF(BS4=0,"",IF(BS6=1,"",BU5)) -> 
C6: =IF(T5=0,0,IF(T5>12,1,0)) -> 0 | D6: =IF(T5=0,0,IF(T5>0,1,0)) -> 1 | E6: =IF(T5=0,0,IF(T5>18,1,0)) -> 0 | F6: =IF(T5=0,0,IF(T5>2,1,0)) -> 1 | G6: =IF(T5=0,0,IF(T5>16,1,0)) -> 0 | I6: 1 | K6: =IF(T6>19,1,0) -> 0 | L6: =IF(T6>5,1,0) -> 1 | M6: =IF(T6>30,1,0) -> 0 | N6: =IF(T6>0,1,0) -> 1 | O6: =IF(T6>28,1,0) -> 0 | P6: =IF(T6>2,1,0) -> 1 | Q6: =IF(T6>26,1,0) -> 0 | R6: =IF(T6>14,1,0) -> 0 | T6: =IF(I6=1,E20,0) -> 10 | V6: =IF(T7>5,1,0) -> 1 | W6: =IF(T7>23,1,0) -> 0 | X6: =IF(T7>0,1,0) -> 1 | Y6: =IF(T7>21,1,0) -> 0 | Z6: =IF(T7>2,1,0) -> 1 | AA6: =IF(T7>19,1,0) -> 0 | AC6: =BS52 -> 2 | AD6: =$AN$61 -> -10.7 | AI6: 2 | AJ6: 1 | AK6: 0 | AL6: 1 | AM6: 1 | AN6: 0 | AO6: 1 | AP6: 0 | AQ6: =INT(20*Q1)+1 -> 16 | AR6: 0 | AS6: =AS4/AS5 ->  | AY6: =INT(3*X1)+1 -> 1 | BS6: =BS4/BS5 -> 
C7: =IF(T5=0,0,IF(T5>4,1,0)) -> 1 | D7: =IF(T5=0,0,IF(T5>11,1,0)) -> 0 | E7: =IF(T5=0,0,IF(T5>3,1,0)) -> 1 | F7: =IF(T5=0,0,IF(T5>10,1,0)) -> 0 | G7: =IF(T5=0,0,IF(T5>9,1,0)) -> 0 | I7: 1 | K7: =IF(T6>6,1,0) -> 1 | L7: =IF(T6>18,1,0) -> 0 | M7: =IF(T6>4,1,0) -> 1 | N7: =IF(T6>17,1,0) -> 0 | O7: =IF(T6>3,1,0) -> 1 | P7: =IF(T6>16,1,0) -> 0 | Q7: =IF(T6>15,1,0) -> 0 | R7: =IF(T6>25,1,0) -> 0 | T7: =IF(I7=1,F20,0) -> 8 | V7: =IF(T7>14,1,0) -> 0 | W7: =IF(T7>4,1,0) -> 1 | X7: =IF(T7>13,1,0) -> 0 | Y7: =IF(T7>3,1,0) -> 1 | Z7: =IF(T7>12,1,0) -> 0 | AA7: =IF(T7>11,1,0) -> 0 | AC7: =BO52 -> 2 | AD7: b | AI7: 3 | AJ7: 1 | AK7: 1 | AL7: 0 | AM7: 1 | AN7: 0 | AO7: 1 | AP7: 0 | AQ7: =IF(B4>3,INT(20*R1)+1,0) -> 0 | AR7: X | AY7: =IF(B10>3,INT(3*W1)+1,0) -> 0
AD8: =$AO$61 -> 3.125 | AI8: 4 | AJ8: 0 | AK8: 0 | AL8: 1 | AM8: 1 | AN8: 0 | AO8: 1 | AP8: 0 | AQ8: =IF(B4>4,INT(20*S1)+1,0) -> 0 | AR8: X | AY8: =IF(B10>4,INT(3*V1)+1,0) -> 0
B9: P(■) = | E9: =CONCATENATE(IF(I20<10," ",""),I20,IF(I20<10," ","")) -> 6 | G9: =IF(I20=0,"",IF(I20=20,"",IF($BJ$39=$BH$39,"","= "))) -> = | H9: =IF(I20=0,"",IF(I20=20,"",IF($BJ$39=$BH$39,"",CONCATENATE(" ",$BJ$38," ")))) -> 3 | J9: P(■) = | N9: =CONCATENATE(IF(BH41<10," ",""),$BH$41,IF(BH41<10," ","")) -> 10 | P9: =IF(OR(E20=0,E20=32),"",IF(MOD(E20,2)=0,"=","")) -> = | Q9: =IF(E20=0,"",IF(E20=32,"",IF($BJ$42=$BH$42,"",CONCATENATE(IF(BJ41<10," ",""),$BJ$41,IF(BJ41<10," ",""))))) -> 5 | S9: P(■) = | W9: =CONCATENATE(IF(BH44<10," ",""),$BH$44,IF(BH44<10," ","")) -> 8 | Y9: =IF(F20=0,"",IF(F20=24,"",IF($BJ$45=$BH$45,"","= "))) -> = | Z9: =IF(F20=0,"",IF(F20=24,"",IF($BJ$45=$BH$45,"",CONCATENATE(IF(BJ44<10," ",""),$BJ$44,IF(BJ44<10," ",""))))) -> 1 | AD9: =$AP$61 -> -10.7 | AI9: 5 | AJ9: 1 | AK9: 1 | AL9: 0 | AM9: 1 | AN9: 0 | AO9: 1 | AP9: 0 | AQ9: =IF(B4>5,INT(20*T1)+1,0) -> 0 | AR9: X | AY9: =IF(B10>5,INT(3*U1)+1,0) -> 0
E10: 20 | H10: =IF(I20=0,"",IF(I20=20,"",IF($BJ$39=$BH$39,"",CONCATENATE($BJ$39)))) -> 10 | N10: 32 | Q10: =IF(E20=0,"",IF(E20=32,"",IF($BJ$42=$BH$42,"",CONCATENATE($BJ$42)))) -> 16 | W10: 24 | Z10: =IF(F20=0,"",IF(F20=24,"",IF($BJ$45=$BH$45,"",CONCATENATE($BJ$45)))) -> 3 | AD10: c | AI10: 6 | AJ10: 0 | AK10: 0 | AL10: 1 | AM10: 0 | AN10: 0 | AO10: 1 | AP10: 1 | AQ10: =IF(B4>6,INT(20*U1)+1,0) -> 0 | AR10: X | AY10: =IF(B10>6,INT(3*T1)+1,0) -> 0
D11: = | E11: =CONCATENATE($BH$50/BI50) -> 0.3 | M11: = | N11: =CONCATENATE(E20/32) -> 0.3125 | V11: = | W11: =IF(F20=0,"0",IF(F20=24,"1",CONCATENATE(VLOOKUP($F$20,$I$89:$K$111,3)))) -> 0.333… | AD11: =$AQ$61 -> 3.333333333 | AI11: 7 | AJ11: 1 | AK11: 1 | AL11: 0 | AM11: 0 | AN11: 1 | AO11: 0 | AP11: 1 | AQ11: =IF(B4>7,INT(20*V1)+1,0) -> 0 | AR11: X | AY11: =IF(B10>7,INT(3*S1)+1,0) -> 0
AD12: =$AR$61 -> -10.7 | AI12: 8 | AJ12: 0 | AK12: 0 | AL12: 1 | AM12: 0 | AN12: 1 | AO12: 0 | AP12: 1 | AQ12: =IF(B4>8,INT(20*W1)+1,0) -> 0 | AR12: X | AY12: =IF(B10>8,INT(3*R1)+1,0) -> 0
D13: 0 | X13: 1 | AI13: 9 | AJ13: 0 | AK13: 1 | AL13: 0 | AM13: 0 | AN13: 1 | AO13: 0 | AP13: 1 | AQ13: =IF(B4>9,INT(20*X1)+1,0) -> 0 | AR13: X | AY13: =IF(B10>9,INT(3*Q1)+1,0) -> 0
AI14: 10 | AJ14: 0 | AK14: 0 | AL14: 1 | AM14: 0 | AN14: 1 | AO14: 0 | AP14: 1
AI15: 11 | AJ15: 1 | AK15: 1 | AL15: 0 | AM15: 0 | AN15: 1 | AO15: 0 | AP15: 1
AI16: 12 | AJ16: 0 | AK16: 0 | AL16: 1 | AM16: 0 | AN16: 1 | AO16: 0 | AP16: 1
B17: impossible | M17: even | W17: certain | AI17: 13 | AJ17: 1 | AK17: 1 | AL17: 0 | AM17: 0 | AN17: 1 | AO17: 0 | AP17: 1
M18: chance | AI18: 14 | AJ18: 0 | AK18: 0 | AL18: 1 | AM18: 0 | AN18: 1 | AO18: 0 | AP18: 1
AI19: 15 | AJ19: 0 | AK19: 1 | AL19: 0 | AM19: 0 | AN19: 1 | AO19: 0 | AP19: 1
C20: =INT(297*N1)+1 -> 94 | D20: =VLOOKUP($C$20,$C$21:$F$317,2) -> 7 | E20: =Q88 -> 10 | F20: =V88 -> 8 | I20: =(INT(19*N1)+1) -> 6 | J20: 1 | K20: 2 | L20: 3 | M20: 4 | N20: 5 | O20: 6 | P20: 7 | Q20: 8 | R20: 9 | S20: 10 | T20: 11 | U20: 12 | V20: 13 | W20: 14 | X20: 15 | Y20: 16 | Z20: 17 | AA20: 18 | AB20: 19 | AC20: 20 | AI20: 16 | AJ20: 0 | AK20: 0 | AL20: 1 | AM20: 0 | AN20: 1 | AO20: 0 | AP20: 1
C21: 1 | D21: 1 | E21: 1 | F21: 1 | I21: 1 | P21: 1 | AD21: =SUM(J21:AC21) -> 1 | AE21: =AD21-I21 -> 0 | AI21: 17 | AJ21: 1 | AK21: 1 | AL21: 0 | AM21: 0 | AN21: 1 | AO21: 0 | AP21: 1
C22: 2 | D22: =D21 -> 1 | E22: 1 | F22: 2 | I22: 2 | S22: 1 | Z22: 1 | AD22: =SUM(J22:AC22) -> 2 | AE22: =AD22-I22 -> 0 | AI22: 18 | AJ22: 0 | AK22: 0 | AL22: 1 | AM22: 0 | AN22: 1 | AO22: 0 | AP22: 1
C23: 3 | D23: 1 | E23: 1 | F23: 3 | I23: 3 | L23: 1 | P23: 1 | Z23: 1 | AD23: 3 | AE23: 0 | AI23: 19 | AJ23: 1 | AK23: 1 | AL23: 0 | AM23: 0 | AN23: 1 | AO23: 0 | AP23: 1
C24: 4 | D24: 1 | E24: 2 | F24: 1 | H24: 1 | I24: 4 | J24: 1 | M24: 1 | P24: 1 | S24: 1 | AD24: 4 | AE24: 0 | AI24: 20 | AJ24: 0 | AK24: 0 | AL24: 1 | AM24: 0 | AN24: 1 | AO24: 0 | AP24: 1
C25: 5 | D25: 1 | E25: 2 | F25: 2 | I25: 5 | M25: 1 | O25: 1 | S25: 1 | V25: 1 | W25: 1 | AD25: 5 | AE25: 0 | AI25: Total | AJ25: =COUNTIF(AJ4:AJ24,1) -> 8 | AK25: 10 | AL25: 10 | AM25: 5 | AN25: 14 | AO25: 6 | AP25: 15
C26: 6 | D26: 1 | E26: 2 | F26: 3 | I26: 6 | L26: 1 | Q26: 1 | T26: 1 | U26: 1 | Z26: 1 | AB26: 1 | AD26: 6 | AE26: 0 | AJ26: prime | AK26: odd | AL26: even | AM26: =CONCATENATE("<",$AI$2) -> <6 | AN26: =CONCATENATE(">",$AI$2) -> >6 | AO26: =CONCATENATE("≤",$AI$2) -> ≤6 | AP26: =CONCATENATE("≥",$AI$2) -> ≥6
C27: 7 | D27: 1 | E27: 3 | F27: 1 | I27: 7 | L27: 1 | N27: 1 | R27: 1 | T27: 1 | X27: 1 | Z27: 1 | AB27: 1 | AD27: 7 | AE27: 0
C28: 8 | D28: 1 | E28: 3 | F28: 2 | I28: 8 | J28: 1 | N28: 1 | P28: 1 | T28: 1 | V28: 1 | X28: 1 | Z28: 1 | AB28: 1 | AD28: 8 | AE28: 0
C29: 9 | D29: 1 | E29: 3 | F29: 3 | I29: 9 | J29: 1 | L29: 1 | O29: 1 | R29: 1 | U29: 1 | W29: 1 | Y29: 1 | AA29: 1 | AC29: 1 | AD29: 9 | AE29: 0
C30: 10 | D30: 2 | E30: 1 | F30: 1 | I30: 10 | J30: 1 | M30: 1 | P30: 1 | R30: 1 | S30: 1 | T30: 1 | V30: 1 | X30: 1 | Z30: 1 | AC30: 1 | AD30: 10 | AE30: 0
C31: 11 | D31: =D30 -> 2 | E31: 1 | F31: =F30+1 -> 2 | I31: 11 | J31: 1 | L31: 1 | M31: 1 | O31: 1 | Q31: 1 | S31: 1 | U31: 1 | W31: 1 | X31: 1 | Y31: 1 | AA31: 1 | AD31: 11 | AE31: 0 | AI31: 28 | AK31: 0
C32: 12 | D32: 2 | E32: 1 | F32: =F31+1 -> 3 | I32: 12 | J32: 1 | L32: 1 | N32: 1 | O32: 1 | R32: 1 | S32: 1 | U32: 1 | W32: 1 | Y32: 1 | Z32: 1 | AA32: 1 | AC32: 1 | AD32: 12 | AE32: 0 | AI32: 29 | AK32: 0
C33: 13 | D33: 2 | E33: 1 | F33: =F32+1 -> 4 | I33: 13 | J33: 1 | L33: 1 | M33: 1 | O33: 1 | P33: 1 | Q33: 1 | T33: 1 | U33: 1 | W33: 1 | X33: 1 | Z33: 1 | AA33: 1 | AC33: 1 | AD33: 13 | AE33: 0 | AI33: 30 | AK33: 0
C34: 14 | D34: 2 | E34: =E30+1 -> 2 | F34: =F30 -> 1 | I34: 14 | J34: 1 | L34: 1 | M34: 1 | N34: 1 | P34: 1 | R34: 1 | T34: 1 | V34: 1 | W34: 1 | Y34: 1 | Z34: 1 | AA34: 1 | AB34: 1 | AC34: 1 | AD34: 14 | AE34: 0 | AI34: 31 | AK34: 0
C35: 15 | D35: 2 | E35: 2 | F35: =F34+1 -> 2 | I35: 15 | K35: 1 | L35: 1 | M35: 1 | N35: 1 | O35: 1 | Q35: 1 | R35: 1 | S35: 1 | T35: 1 | U35: 1 | W35: 1 | Y35: 1 | AA35: 1 | AB35: 1 | AC35: 1 | AD35: 15 | AE35: 0 | AI35: 32 | AK35: 0
C36: 16 | D36: 2 | E36: 2 | F36: 3 | I36: 16 | K36: 1 | L36: 1 | M36: 1 | N36: 1 | O36: 1 | P36: 1 | R36: 1 | S36: 1 | U36: 1 | V36: 1 | W36: 1 | X36: 1 | Y36: 1 | Z36: 1 | AA36: 1 | AB36: 1 | AD36: 16 | AE36: 0 | AI36: 33 | AK36: 0
C37: 17 | D37: 2 | E37: 2 | F37: 4 | I37: 17 | J37: 1 | L37: 1 | M37: 1 | N37: 1 | O37: 1 | P37: 1 | R37: 1 | S37: 1 | T37: 1 | U37: 1 | V37: 1 | W37: 1 | X37: 1 | Y37: 1 | AA37: 1 | AB37: 1 | AC37: 1 | AD37: 17 | AE37: 0 | AI37: 34 | AK37: 0
C38: 18 | D38: 2 | E38: =E34+1 -> 3 | F38: =F34 -> 1 | I38: 18 | J38: 1 | K38: 1 | L38: 1 | M38: 1 | N38: 1 | O38: 1 | P38: 1 | Q38: 1 | R38: 1 | T38: 1 | U38: 1 | W38: 1 | X38: 1 | Y38: 1 | Z38: 1 | AA38: 1 | AB38: 1 | AC38: 1 | AD38: 18 | AE38: 0 | AI38: 35 | AK38: 0 | BH38: =BH50 -> 6 | BI38: =GCD(BH38,BH39) -> 2 | BJ38: =BH38/BI38 -> 3 | BK38: =IF(BH38=0,0,BJ38) -> 3
C39: 19 | D39: 2 | E39: 3 | F39: 2 | I39: 19 | J39: 1 | K39: 1 | L39: 1 | M39: 1 | N39: 1 | O39: 1 | P39: 1 | R39: 1 | S39: 1 | T39: 1 | U39: 1 | V39: 1 | W39: 1 | X39: 1 | Y39: 1 | Z39: 1 | AA39: 1 | AB39: 1 | AC39: 1 | AD39: 19 | AE39: 0 | AI39: 36 | AK39: 0 | BH39: =BI50 -> 20 | BI39: =LCM(BH38,BH39) -> 60 | BJ39: =BH39/BI38 -> 10 | BK39: =IF(BH38=0,"",IF(BH40=1,"",BJ39)) -> 10
C40: 20 | D40: 2 | E40: 3 | F40: 3 | AI40: 37 | AK40: 0 | BH40: =BH38/BH39 -> 0.3
C41: 21 | D41: 2 | E41: 3 | F41: 4 | I41: =E20 -> 10 | J41: 1 | K41: 2 | L41: 3 | M41: 4 | N41: 5 | O41: 6 | P41: 7 | Q41: 8 | R41: 9 | S41: 10 | T41: 11 | U41: 12 | V41: 13 | W41: 14 | X41: 15 | Y41: 16 | Z41: 17 | AA41: 18 | AB41: 19 | AC41: 20 | AD41: 32 | AI41: 38 | AK41: 0 | BH41: =BH51 -> 10 | BI41: =GCD(BH41,BH42) -> 2 | BJ41: =BH41/BI41 -> 5 | BK41: =IF(BH41=0,0,BJ41) -> 5
C42: 22 | D42: 2 | E42: =E38+1 -> 4 | F42: =F38 -> 1 | I42: 1 | P42: 1 | AE42: =SUM(J42:AD42) -> 1 | AF42: =AE42-I42 -> 0 | AI42: 39 | AK42: 0 | BH42: =BI51 -> 32 | BI42: =LCM(BH41,BH42) -> 160 | BJ42: =BH42/BI41 -> 16 | BK42: =IF(BH41=0,"",IF(BH43=1,"",BJ42)) -> 16
C43: 23 | D43: 2 | E43: 4 | F43: 2 | I43: 2 | S43: 1 | Z43: 1 | AE43: =SUM(J43:AD43) -> 2 | AF43: =AE43-I43 -> 0 | AI43: 40 | AK43: 0 | BH43: =BH41/BH42 -> 0.3125
C44: 24 | D44: 2 | E44: 4 | F44: 3 | I44: 3 | L44: 1 | P44: 1 | Z44: 1 | AE44: 3 | AF44: 0 | BH44: =BH52 -> 8 | BI44: =GCD(BH44,BH45) -> 8 | BJ44: =BH44/BI44 -> 1 | BK44: =IF(BH44=0,0,BJ44) -> 1
C45: 25 | D45: 2 | E45: 4 | F45: 4 | I45: 4 | J45: 1 | O45: 1 | P45: 1 | Z45: 1 | AE45: 4 | AF45: 0 | BH45: =BI52 -> 24 | BI45: =LCM(BH44,BH45) -> 24 | BJ45: =BH45/BI44 -> 3 | BK45: =IF(BH44=0,"",IF(BH46=1,"",BJ45)) -> 3
C46: 26 | D46: =D30+1 -> 3 | E46: 2 | F46: 2 | I46: 5 | M46: 1 | O46: 1 | S46: 1 | W46: 1 | AA46: 1 | AE46: 5 | AF46: 0 | BH46: =BH44/BH45 -> 0.3333333333
C47: 27 | D47: =D46 -> 3 | E47: 2 | F47: =F46+1 -> 3 | I47: 6 | L47: 1 | Q47: 1 | T47: 1 | U47: 1 | Z47: 1 | AB47: 1 | AE47: 6 | AF47: 0
C48: 28 | D48: 3 | E48: 2 | F48: =F47+1 -> 4 | I48: 7 | L48: 1 | N48: 1 | R48: 1 | T48: 1 | X48: 1 | Z48: 1 | AB48: 1 | AE48: 7 | AF48: 0
C49: 29 | D49: 3 | E49: 2 | F49: =F48+1 -> 5 | I49: 8 | J49: 1 | N49: 1 | P49: 1 | T49: 1 | V49: 1 | X49: 1 | Z49: 1 | AB49: 1 | AE49: 8 | AF49: 0 | BB49: =INT(6*$O$1)+1 -> 4 | BC49: =VLOOKUP($BB$49,$BB$50:$BE$55,2) -> 16 | BD49: =VLOOKUP($BB$49,$BB$50:$BE$55,3) -> 20 | BE49: =VLOOKUP($BB$49,$BB$50:$BE$55,4) -> 12 | BL49: 5 | BM49: 6 | BN49: 7 | BO49: 8 | BP49: 9 | BQ49: 10 | BR49: 11 | BS49: 12 | BT49: 13 | BU49: 14 | BV49: 15 | BW49: 16
C50: 30 | D50: 3 | E50: =E46+1 -> 3 | F50: =F46 -> 2 | I50: 9 | J50: 1 | L50: 1 | N50: 1 | R50: 1 | U50: 1 | W50: 1 | Y50: 1 | AA50: 1 | AC50: 1 | AE50: 9 | AF50: 0 | BA50: =INT(37*$N$1)+1 -> 12 | BB50: 1 | BC50: =$BA$50 -> 12 | BD50: =$BA$51 -> 16 | BE50: =$BA$52 -> 20 | BG50: =BC49 -> 16 | BH50: =I20 -> 6 | BI50: 20 | BJ50: =VLOOKUP($BG$50,$BB$57:$BE$101,4) -> 0.3636… | BK50: =BH50/BI50 -> 0.3 | BL50: =VLOOKUP($BG50,$BB$57:$BQ$101,BL$49) -> 1 | BM50: 2 | BN50: 1 | BO50: 2 | BP50: 2 | BQ50: 1 | BR50: 2 | BS50: 2 | BT50: 0 | BU50: 2 | BV50: 2 | BW50: 1
C51: 31 | D51: 3 | E51: =E50 -> 3 | F51: =F50+1 -> 3 | I51: 10 | J51: 1 | N51: 1 | P51: 1 | R51: 1 | S51: 1 | T51: 1 | V51: 1 | X51: 1 | Z51: 1 | AC51: 1 | AE51: 10 | AF51: 0 | AZ51: =INT(4*$P$1)+1 -> 4 | BA51: =$BA$50+AZ51 -> 16 | BB51: 2 | BC51: =$BA$50 -> 12 | BD51: =$BA$52 -> 20 | BE51: =$BA$51 -> 16 | BG51: =BD49 -> 20 | BH51: =E20 -> 10 | BI51: 32 | BJ51: =VLOOKUP($BG$51,$BB$57:$BE$101,4) -> 0.428571… | BK51: =BH51/BI51 -> 0.3125 | BL51: 2 | BM51: 1 | BN51: 2 | BO51: 2 | BP51: 1 | BQ51: 1 | BR51: 2 | BS51: 0 | BT51: 0 | BU51: 0 | BV51: 0 | BW51: 0
C52: 32 | D52: 3 | E52: =E51 -> 3 | F52: =F51+1 -> 4 | I52: 11 | J52: 1 | L52: 1 | M52: 1 | Q52: 1 | S52: 1 | U52: 1 | W52: 1 | X52: 1 | Y52: 1 | AA52: 1 | AC52: 1 | AE52: 11 | AF52: 0 | AZ52: =INT(4*$Q$1)+1 -> 4 | BA52: =$BA$51+AZ52 -> 20 | BB52: 3 | BC52: =$BA$51 -> 16 | BD52: =$BA$50 -> 12 | BE52: =$BA$52 -> 20 | BG52: =BE49 -> 12 | BH52: =F20 -> 8 | BI52: 24 | BJ52: =VLOOKUP($BG$52,$BB$57:$BE$101,4) -> 0.2727… | BK52: =BH52/BI52 -> 0.3333333333 | BL52: 2 | BM52: 1 | BN52: 2 | BO52: 2 | BP52: 1 | BQ52: 2 | BR52: 2 | BS52: 2 | BT52: 2 | BU52: 0 | BV52: 1 | BW52: 2
C53: 33 | D53: 3 | E53: =E52 -> 3 | F53: =F52+1 -> 5 | I53: 12 | J53: 1 | L53: 1 | N53: 1 | O53: 1 | R53: 1 | S53: 1 | U53: 1 | W53: 1 | Y53: 1 | Z53: 1 | AA53: 1 | AC53: 1 | AE53: 12 | AF53: 0 | BB53: 4 | BC53: =$BA$51 -> 16 | BD53: =$BA$52 -> 20 | BE53: =$BA$50 -> 12
C54: 34 | D54: 3 | E54: =E50+1 -> 4 | F54: =F50 -> 2 | I54: 13 | J54: 1 | L54: 1 | M54: 1 | O54: 1 | P54: 1 | Q54: 1 | T54: 1 | U54: 1 | W54: 1 | X54: 1 | Y54: 1 | AA54: 1 | AC54: 1 | AE54: 13 | AF54: 0 | BB54: 5 | BC54: =$BA$52 -> 20 | BD54: =$BA$50 -> 12 | BE54: =$BA$51 -> 16
C55: 35 | D55: 3 | E55: =E54 -> 4 | F55: =F54+1 -> 3 | I55: 14 | J55: 1 | L55: 1 | M55: 1 | N55: 1 | P55: 1 | R55: 1 | T55: 1 | V55: 1 | W55: 1 | Y55: 1 | Z55: 1 | AA55: 1 | AB55: 1 | AC55: 1 | AE55: 14 | AF55: 0 | BB55: 6 | BC55: =$BA$52 -> 20 | BD55: =$BA$51 -> 16 | BE55: =$BA$50 -> 12
C56: 36 | D56: 3 | E56: =E55 -> 4 | F56: =F55+1 -> 4 | I56: 15 | K56: 1 | L56: 1 | M56: 1 | N56: 1 | O56: 1 | Q56: 1 | R56: 1 | S56: 1 | T56: 1 | U56: 1 | W56: 1 | Y56: 1 | AA56: 1 | AB56: 1 | AC56: 1 | AE56: 15 | AF56: 0 | BF56: 1 | BG56: 2 | BH56: 3 | BI56: 4 | BJ56: 5 | BK56: 6 | BL56: 7 | BM56: 8 | BN56: 9 | BO56: 10 | BP56: 11 | BQ56: 12 | BR56: count | BS56: count
C57: 37 | D57: 3 | E57: =E56 -> 4 | F57: =F56+1 -> 5 | I57: 16 | K57: 1 | L57: 1 | M57: 1 | N57: 1 | O57: 1 | P57: 1 | R57: 1 | S57: 1 | U57: 1 | V57: 1 | W57: 1 | X57: 1 | Y57: 1 | Z57: 1 | AA57: 1 | AB57: 1 | AE57: 16 | AF57: 0 | AK57: =-0.3/2.7 -> -0.1111111111 | AL57: 0.4 | AM57: =10*$BK$50+AK57 -> 2.888888889 | AN57: =AL57-1.5+AU60 -> -11.1 | AO57: =10*$BK$51+AK57 -> 3.013888889 | AP57: =AL57-1.5+AW60 -> -11.1 | AQ57: =10*$BK$52+AK57 -> 3.222222222 | AR57: =AL57-1.5+AY60 -> -11.1 | AU57: =IF($AU$60=-10,"a",".") -> a | AW57: =IF($AW$60=-10,"b",".") -> b | AY57: =IF($AY$60=-10,"c",".") -> c | BB57: 1 | BC57: 1 | BD57: 12 | BE57: 0.0833… | BF57: 2 | BG57: 2 | BH57: 2 | BI57: 2 | BJ57: 2 | BK57: 1 | BL57: 2 | BM57: 2 | BN57: 2 | BO57: 2 | BP57: 2 | BQ57: 2 | BR57: =COUNTIF(BF57:BQ57,1) -> 1 | BS57: =COUNTIF(BF57:BQ57,2)+COUNTIF(BF57:BQ57,1) -> 12 | BT57: 1 | BU57: 12 | BV57: =COUNTIF(BF57:BQ57,0) -> 0 | BW57: =BV57+BU57 -> 12 | BX57: =IF(BR57=BT57,1,0) -> 1 | BY57: 1
C58: 38 | D58: 3 | E58: =E54+1 -> 5 | F58: =F54 -> 2 | I58: 17 | J58: 1 | L58: 1 | M58: 1 | N58: 1 | O58: 1 | P58: 1 | R58: 1 | S58: 1 | T58: 1 | U58: 1 | V58: 1 | W58: 1 | X58: 1 | Y58: 1 | AA58: 1 | AB58: 1 | AC58: 1 | AE58: 17 | AF58: 0 | AK58: 0 | AL58: 0 | AM58: =10*$BK$50+AK58 -> 3 | AN58: =AL58-1.5+AU60 -> -11.5 | AO58: =10*$BK$51+AK58 -> 3.125 | AP58: =AL58-1.5+AW60 -> -11.5 | AQ58: =10*$BK$52+AK58 -> 3.333333333 | AR58: =AL58-1.5+AY60 -> -11.5 | AU58: =DYNOFRACT!AU62 -> 0.25 | AW58: =DYNOFRACT!AW62 -> 0.25 | AY58: =DYNOFRACT!AY62 -> 0.25 | BB58: 2 | BC58: 1 | BD58: 11 | BE58: 0.0909… | BF58: 2 | BG58: 2 | BH58: 2 | BI58: 2 | BJ58: 2 | BK58: 2 | BL58: 2 | BM58: 2 | BN58: 1 | BO58: 2 | BP58: 2 | BQ58: 0 | BR58: 1 | BS58: 11 | BT58: 1 | BU58: 11 | BV58: 1 | BW58: 12 | BX58: 1 | BY58: 1
C59: 39 | D59: 3 | E59: =E58 -> 5 | F59: =F58+1 -> 3 | I59: 18 | J59: 1 | K59: 1 | L59: 1 | M59: 1 | O59: 1 | P59: 1 | Q59: 1 | R59: 1 | S59: 1 | T59: 1 | U59: 1 | W59: 1 | X59: 1 | Y59: 1 | Z59: 1 | AA59: 1 | AB59: 1 | AC59: 1 | AE59: 18 | AF59: 0 | AK59: =0.3/2.7 -> 0.1111111111 | AL59: 0.4 | AM59: =10*$BK$50+AK59 -> 3.111111111 | AN59: =AL59-1.5+AU60 -> -11.1 | AO59: =10*$BK$51+AK59 -> 3.236111111 | AP59: =AL59-1.5+AW60 -> -11.1 | AQ59: =10*$BK$52+AK59 -> 3.444444444 | AR59: =AL59-1.5+AY60 -> -11.1 | AU59: =IF($AU$60=-10,"","a") ->  | AW59: =IF($AW$60=-10,"","b") ->  | AY59: =IF($AY$60=-10,"","c") ->  | BB59: 3 | BC59: 1 | BD59: 10 | BE59: 0.1 | BF59: 2 | BG59: 2 | BH59: 2 | BI59: 2 | BJ59: 2 | BK59: 2 | BL59: 1 | BM59: 2 | BN59: 2 | BO59: 0 | BP59: 2 | BQ59: 0 | BR59: 1 | BS59: 10 | BT59: 1 | BU59: 10 | BV59: 2 | BW59: 12 | BX59: 1 | BY59: 1
C60: 40 | D60: 3 | E60: =E59 -> 5 | F60: =F59+1 -> 4 | I60: 19 | J60: 1 | K60: 1 | L60: 1 | M60: 1 | N60: 1 | O60: 1 | P60: 1 | R60: 1 | S60: 1 | T60: 1 | U60: 1 | V60: 1 | W60: 1 | X60: 1 | Y60: 1 | Z60: 1 | AA60: 1 | AB60: 1 | AC60: 1 | AE60: 19 | AF60: 0 | AK60: 0 | AL60: 0 | AM60: =10*$BK$50+AK60 -> 3 | AN60: =AL60-1.5+AU60 -> -11.5 | AO60: =10*$BK$51+AK60 -> 3.125 | AP60: =AL60-1.5+AW60 -> -11.5 | AQ60: =10*$BK$52+AK60 -> 3.333333333 | AR60: =AL60-1.5+AY60 -> -11.5 | AT60: =10*BK50 -> 3 | AU60: -10 | AV60: =10*BK51 -> 3.125 | AW60: -10 | AX60: =10*BK52 -> 3.333333333 | AY60: -10 | BB60: 4 | BC60: 1 | BD60: 9 | BE60: 0.111… | BF60: 2 | BG60: 2 | BH60: 2 | BI60: 2 | BJ60: 2 | BK60: 1 | BL60: 2 | BM60: 2 | BN60: 0 | BO60: 0 | BP60: 2 | BQ60: 0 | BR60: 1 | BS60: 9 | BT60: 1 | BU60: 9 | BV60: 3 | BW60: 12 | BX60: 1 | BY60: 1
C61: 41 | D61: 3 | E61: =E60 -> 5 | F61: =F60+1 -> 5 | I61: 20 | J61: 1 | K61: 1 | L61: 1 | M61: 1 | N61: 1 | O61: 1 | P61: 1 | Q61: 1 | R61: 1 | S61: 1 | U61: 1 | V61: 1 | W61: 1 | X61: 1 | Y61: 1 | Z61: 1 | AA61: 1 | AB61: 1 | AC61: 1 | AD61: 1 | AE61: 20 | AF61: 0 | AK61: 0 | AL61: 0.8 | AM61: =10*$BK$50+AK61 -> 3 | AN61: =AL61-1.5+AU60 -> -10.7 | AO61: =10*$BK$51+AK61 -> 3.125 | AP61: =AL61-1.5+AW60 -> -10.7 | AQ61: =10*$BK$52+AK61 -> 3.333333333 | AR61: =AL61-1.5+AY60 -> -10.7 | AT61: =0.1/1.4 -> 0.07142857143 | AU61: =0.2/1.4 -> 0.1428571429 | AV61: =0.1/1.4 -> 0.07142857143 | AW61: =0.2/1.4 -> 0.1428571429 | AX61: =0.1/1.4 -> 0.07142857143 | AY61: =0.2/1.4 -> 0.1428571429 | BB61: 5 | BC61: 1 | BD61: 8 | BE61: 0.125 | BF61: 2 | BG61: 2 | BH61: 2 | BI61: 2 | BJ61: 2 | BK61: 1 | BL61: 2 | BM61: 2 | BN61: 0 | BO61: 0 | BP61: 0 | BQ61: 0 | BR61: 1 | BS61: 8 | BT61: 1 | BU61: 8 | BV61: 4 | BW61: 12 | BX61: 1 | BY61: 1
C62: 42 | D62: =D46+1 -> 4 | E62: 3 | F62: 3 | AM62: a | AN62: a | AO62: b | AP62: b | AQ62: c | AR62: c | AT62: a | AU62: a | AV62: b | AW62: b | AX62: c | AY62: c | BB62: 6 | BC62: 1 | BD62: 7 | BE62: 0.142857… | BF62: 2 | BG62: 2 | BH62: 2 | BI62: 2 | BJ62: 2 | BK62: 0 | BL62: 1 | BM62: 2 | BN62: 0 | BO62: 0 | BP62: 0 | BQ62: 0 | BR62: 1 | BS62: 7 | BT62: 1 | BU62: 7 | BV62: 5 | BW62: 12 | BX62: 1 | BY62: 1
C63: 43 | D63: =D62 -> 4 | E63: 3 | F63: =F62+1 -> 4 | I63: =F20 -> 8 | J63: 1 | K63: 2 | L63: 3 | M63: 4 | N63: 5 | O63: 6 | P63: 7 | Q63: 8 | R63: 9 | S63: 10 | T63: 11 | U63: 12 | V63: 13 | W63: 14 | X63: 15 | Y63: 16 | Z63: 17 | AA63: 18 | AB63: 19 | AC63: 20 | AD63: 21 | AE63: 22 | AF63: 23 | AG63: 24 | AM63: -1 | AN63: 1.15 | AO63: -1.2 | AP63: 3 | AQ63: 1.25 | AR63: 1 | AT63: =$AT$60+$AT$61*AM63 -> 2.928571429 | AU63: =$AU$60+$AU$61*AN63-$AU$58 -> -10.08571429 | AV63: =$AV$60+$AV$61*AO63 -> 3.039285714 | AW63: =$AW$60+$AW$61*AP63-$AW$58 -> -9.821428571 | AX63: =$AX$60+$AX$61*AQ63 -> 3.422619048 | AY63: =$AY$60+$AY$61*AR63-$AY$58 -> -10.10714286 | BB63: 7 | BC63: 1 | BD63: 6 | BE63: 0.166… | BF63: 2 | BG63: 1 | BH63: 2 | BI63: 2 | BJ63: 0 | BK63: 2 | BL63: 0 | BM63: 2 | BN63: 0 | BO63: 0 | BP63: 0 | BQ63: 0 | BR63: 1 | BS63: 6 | BT63: 1 | BU63: 6 | BV63: 6 | BW63: 12 | BX63: 1 | BY63: 1
C64: 44 | D64: 4 | E64: 3 | F64: =F63+1 -> 5 | I64: 1 | P64: 1 | AH64: =SUM(J64:AG64) -> 1 | AI64: =AH64-I64 -> 0 | AM64: 0 | AN64: 1.75 | AO64: =AO63 -> -1.2 | AP64: -1.325 | AQ64: 1 | AR64: 1.5 | AT64: 3 | AU64: -10 | AV64: 3.039285714 | AW64: -10.43928571 | AX64: 3.404761905 | AY64: -10.03571429 | BB64: 8 | BC64: 2 | BD64: 11 | BE64: 0.1818… | BF64: 1 | BG64: 2 | BH64: 2 | BI64: 2 | BJ64: 2 | BK64: 2 | BL64: 2 | BM64: 1 | BN64: 2 | BO64: 2 | BP64: 0 | BQ64: 2 | BR64: 2 | BS64: 11 | BT64: 2 | BU64: 11 | BV64: 1 | BW64: 12 | BX64: 1 | BY64: 1
C65: 45 | D65: 4 | E65: 3 | F65: =F64+1 -> 6 | I65: 2 | S65: 1 | Z65: 1 | AH65: =SUM(J65:AG65) -> 2 | AI65: =AH65-I65 -> 0 | AM65: 0.8 | AN65: 1.45 | AO65: =AO63 -> -1.2 | AP65: -0.6 | AQ65: 0 | AR65: 1.75 | AT65: 3.057142857 | AU65: -10.04285714 | AV65: 3.039285714 | AW65: -10.33571429 | AX65: 3.333333333 | AY65: -10 | BB65: 9 | BC65: 1 | BD65: 5 | BE65: 0.2 | BF65: 2 | BG65: 2 | BH65: 1 | BI65: 2 | BJ65: 2 | BK65: 0 | BL65: 0 | BM65: 0 | BN65: 0 | BO65: 0 | BP65: 0 | BQ65: 0 | BR65: 1 | BS65: 5 | BT65: 1 | BU65: 5 | BV65: 7 | BW65: 12 | BX65: 1 | BY65: 1
C66: 46 | D66: 4 | E66: =E62+1 -> 4 | F66: =F62 -> 3 | I66: 3 | L66: 1 | O66: 1 | Z66: 1 | AH66: 3 | AI66: 0 | AM66: 1 | AN66: 0.5 | AO66: =AO63 -> -1.2 | AP66: =AP65 -> -0.6 | AQ66: -1 | AR66: 1.2 | AT66: 3.071428571 | AU66: -10.17857143 | AV66: 3.039285714 | AW66: -10.33571429 | AX66: 3.261904762 | AY66: -10.07857143 | BB66: 10 | BC66: 2 | BD66: 9 | BE66: 0.222… | BF66: 2 | BG66: 1 | BH66: 2 | BI66: 2 | BJ66: 2 | BK66: 2 | BL66: 2 | BM66: 2 | BN66: 0 | BO66: 1 | BP66: 0 | BQ66: 0 | BR66: 2 | BS66: 9 | BT66: 2 | BU66: 9 | BV66: 3 | BW66: 12 | BX66: 1 | BY66: 1
C67: 47 | D67: 4 | E67: =E66 -> 4 | F67: =F66+1 -> 4 | I67: 4 | J67: 1 | M67: 1 | P67: 1 | S67: 1 | AH67: 4 | AI67: 0 | AM67: 1 | AN67: -1.2 | AO67: 0 | AP67: -1.4 | AQ67: -1.25 | AR67: 0.2 | AT67: 3.071428571 | AU67: -10.42142857 | AV67: 3.125 | AW67: -10.45 | AX67: 3.244047619 | AY67: -10.22142857 | BB67: 11 | BC67: 1 | BD67: 4 | BE67: 0.25 | BF67: 2 | BG67: 1 | BH67: 2 | BI67: 2 | BJ67: 0 | BK67: 0 | BL67: 0 | BM67: 0 | BN67: 0 | BO67: 0 | BP67: 0 | BQ67: 0 | BR67: 1 | BS67: 4 | BT67: 1 | BU67: 4 | BV67: 8 | BW67: 12 | BX67: 1 | BY67: 1
C68: 48 | D68: 4 | E68: =E67 -> 4 | F68: =F67+1 -> 5 | I68: 5 | M68: 1 | O68: 1 | S68: 1 | V68: 1 | AB68: 1 | AH68: 5 | AI68: 0 | AM68: 1 | AN68: -0.6 | AO68: 1 | AP68: -1 | AQ68: -1 | AR68: -0.8 | AT68: 3.071428571 | AU68: -10.33571429 | AV68: 3.196428571 | AW68: -10.39285714 | AX68: 3.261904762 | AY68: -10.36428571 | BB68: 12 | BC68: 3 | BD68: 11 | BE68: 0.2727… | BF68: 2 | BG68: 1 | BH68: 2 | BI68: 2 | BJ68: 1 | BK68: 2 | BL68: 2 | BM68: 2 | BN68: 2 | BO68: 0 | BP68: 1 | BQ68: 2 | BR68: 3 | BS68: 11 | BT68: 3 | BU68: 11 | BV68: 1 | BW68: 12 | BX68: 1 | BY68: 1
C69: 49 | D69: 4 | E69: =E68 -> 4 | F69: =F68+1 -> 6 | I69: 6 | J69: 1 | L69: 1 | T69: 1 | U69: 1 | Z69: 1 | AB69: 1 | AH69: 6 | AI69: 0 | AM69: 0 | AN69: -1.2 | AO69: 1.25 | AP69: 0 | AQ69: 0 | AR69: -1.35 | AT69: 3 | AU69: -10.42142857 | AV69: 3.214285714 | AW69: -10.25 | AX69: 3.333333333 | AY69: -10.44285714 | BB69: 13 | BC69: 2 | BD69: 7 | BE69: 0.285714… | BF69: 2 | BG69: 1 | BH69: 2 | BI69: 2 | BJ69: 2 | BK69: 2 | BL69: 1 | BM69: 0 | BN69: 0 | BO69: 0 | BP69: 0 | BQ69: 0 | BR69: 2 | BS69: 7 | BT69: 2 | BU69: 7 | BV69: 5 | BW69: 12 | BX69: 1 | BY69: 1
C70: 50 | D70: 4 | E70: =E66+1 -> 5 | F70: =F66 -> 3 | I70: 7 | L70: 1 | O70: 1 | R70: 1 | T70: 1 | Y70: 1 | Z70: 1 | AB70: 1 | AH70: 7 | AI70: 0 | AM70: -1 | AN70: -1 | AO70: 1 | AP70: 1.25 | AQ70: 1 | AR70: -1 | AT70: 2.928571429 | AU70: -10.39285714 | AV70: 3.196428571 | AW70: -10.07142857 | AX70: 3.404761905 | AY70: -10.39285714 | BB70: 14 | BC70: 3 | BD70: 10 | BE70: 0.3 | BF70: 1 | BG70: 2 | BH70: 1 | BI70: 2 | BJ70: 2 | BK70: 1 | BL70: 2 | BM70: 2 | BN70: 0 | BO70: 0 | BP70: 2 | BQ70: 2 | BR70: 3 | BS70: 10 | BT70: 3 | BU70: 10 | BV70: 2 | BW70: 12 | BX70: 1 | BY70: 1
C71: 51 | D71: 4 | E71: =E70 -> 5 | F71: =F70+1 -> 4 | I71: 8 | K71: 1 | N71: 1 | P71: 1 | S71: 1 | V71: 1 | X71: 1 | AA71: 1 | AC71: 1 | AH71: 8 | AI71: 0 | AM71: -1 | AN71: 0 | AO71: 0 | AP71: 1.75 | AQ71: 1.35 | AR71: -0.5 | AT71: 2.928571429 | AU71: -10.25 | AV71: 3.125 | AW71: -10 | AX71: 3.429761905 | AY71: -10.32142857 | BB71: 15 | BC71: 1 | BD71: 3 | BE71: 0.333… | BF71: 2 | BG71: 2 | BH71: 1 | BI71: 0 | BJ71: 0 | BK71: 0 | BL71: 0 | BM71: 0 | BN71: 0 | BO71: 0 | BP71: 0 | BQ71: 0 | BR71: 1 | BS71: 3 | BT71: 1 | BU71: 3 | BV71: 9 | BW71: 12 | BX71: 1 | BY71: 1
C72: 52 | D72: 4 | E72: =E71 -> 5 | F72: =F71+1 -> 5 | I72: 9 | J72: 1 | L72: 1 | O72: 1 | R72: 1 | U72: 1 | W72: 1 | AA72: 1 | AC72: 1 | AD72: 1 | AH72: 9 | AI72: 0 | AM72: 0 | AN72: 0.3 | AO72: =AO63 -> -1.2 | AP72: 0.8 | AQ72: 1.35 | AR72: -0.5 | AT72: 3 | AU72: -10.20714286 | AV72: 3.039285714 | AW72: -10.13571429 | AX72: 3.429761905 | AY72: -10.32142857 | BB72: 16 | BC72: 4 | BD72: 11 | BE72: 0.3636… | BF72: 1 | BG72: 2 | BH72: 1 | BI72: 2 | BJ72: 2 | BK72: 1 | BL72: 2 | BM72: 2 | BN72: 0 | BO72: 2 | BP72: 2 | BQ72: 1 | BR72: 4 | BS72: 11 | BT72: 4 | BU72: 11 | BV72: 1 | BW72: 12 | BX72: 1 | BY72: 1
C73: 53 | D73: 4 | E73: =E72 -> 5 | F73: =F72+1 -> 6 | I73: 10 | J73: 1 | M73: 1 | P73: 1 | R73: 1 | S73: 1 | T73: 1 | V73: 1 | X73: 1 | Z73: 1 | AC73: 1 | AH73: 10 | AI73: 0 | AM73: 1 | AN73: 0.6 | AO73: =AO63 -> -1.2 | AP73: 0.8 | AQ73: 1.35 | AR73: -0.5 | AT73: 3.071428571 | AU73: -10.16428571 | AV73: 3.039285714 | AW73: -10.13571429 | AX73: 3.429761905 | AY73: -10.32142857 | BB73: 17 | BC73: 3 | BD73: 8 | BE73: 0.375 | BF73: 2 | BG73: 1 | BH73: 2 | BI73: 2 | BJ73: 1 | BK73: 2 | BL73: 2 | BM73: 1 | BN73: 0 | BO73: 0 | BP73: 0 | BQ73: 0 | BR73: 3 | BS73: 8 | BT73: 3 | BU73: 8 | BV73: 4 | BW73: 12 | BX73: 1 | BY73: 1
C74: 54 | D74: 4 | E74: =E70+1 -> 6 | F74: =F70 -> 3 | I74: 11 | J74: 1 | L74: 1 | O74: 1 | Q74: 1 | S74: 1 | T74: 1 | V74: 1 | X74: 1 | Y74: 1 | AA74: 1 | AG74: 1 | AH74: 11 | AI74: 0 | AM74: 1 | AN74: 0.6 | AO74: =AO63 -> -1.2 | AP74: 0.8 | AQ74: 1.35 | AR74: -0.5 | AT74: 3.071428571 | AU74: -10.16428571 | AV74: 3.039285714 | AW74: -10.13571429 | AX74: 3.429761905 | AY74: -10.32142857 | BB74: 18 | BC74: 2 | BD74: 5 | BE74: 0.4 | BF74: 2 | BG74: 1 | BH74: 2 | BI74: 2 | BJ74: 1 | BK74: 0 | BL74: 0 | BM74: 0 | BN74: 0 | BO74: 0 | BP74: 0 | BQ74: 0 | BR74: 2 | BS74: 5 | BT74: 2 | BU74: 5 | BV74: 7 | BW74: 12 | BX74: 1 | BY74: 1
C75: 55 | D75: 4 | E75: =E74 -> 6 | F75: =F74+1 -> 4 | I75: 12 | J75: 1 | L75: 1 | O75: 1 | R75: 1 | U75: 1 | W75: 1 | X75: 1 | Y75: 1 | Z75: 1 | AA75: 1 | AC75: 1 | AF75: 1 | AH75: 12 | AI75: 0 | AM75: 1 | AN75: 0.6 | AO75: =AO63 -> -1.2 | AP75: 0.8 | AQ75: 1.35 | AR75: -0.5 | AT75: 3.071428571 | AU75: -10.16428571 | AV75: 3.039285714 | AW75: -10.13571429 | AX75: 3.429761905 | AY75: -10.32142857 | BB75: 19 | BC75: 5 | BD75: 12 | BE75: 0.416… | BF75: 1 | BG75: 2 | BH75: 2 | BI75: 1 | BJ75: 2 | BK75: 1 | BL75: 2 | BM75: 2 | BN75: 1 | BO75: 2 | BP75: 1 | BQ75: 2 | BR75: 5 | BS75: 12 | BT75: 5 | BU75: 12 | BV75: 0 | BW75: 12 | BX75: 1 | BY75: 1
C76: 56 | D76: 4 | E76: =E75 -> 6 | F76: =F75+1 -> 5 | I76: 13 | J76: 1 | L76: 1 | O76: 1 | Q76: 1 | R76: 1 | T76: 1 | U76: 1 | W76: 1 | X76: 1 | Z76: 1 | AA76: 1 | AC76: 1 | AF76: 1 | AH76: 13 | AI76: 0 | BB76: 20 | BC76: 3 | BD76: 7 | BE76: 0.428571… | BF76: 2 | BG76: 1 | BH76: 2 | BI76: 2 | BJ76: 1 | BK76: 1 | BL76: 2 | BM76: 0 | BN76: 0 | BO76: 0 | BP76: 0 | BQ76: 0 | BR76: 3 | BS76: 7 | BT76: 3 | BU76: 7 | BV76: 5 | BW76: 12 | BX76: 1 | BY76: 1
C77: 57 | D77: 4 | E77: =E76 -> 6 | F77: =F76+1 -> 6 | I77: 14 | J77: 1 | L77: 1 | N77: 1 | O77: 1 | P77: 1 | Q77: 1 | R77: 1 | T77: 1 | W77: 1 | Z77: 1 | AA77: 1 | AB77: 1 | AC77: 1 | AE77: 1 | AH77: 14 | AI77: 0 | BB77: 21 | BC77: 4 | BD77: 9 | BE77: 0.444… | BF77: 1 | BG77: 2 | BH77: 1 | BI77: 1 | BJ77: 2 | BK77: 2 | BL77: 2 | BM77: 2 | BN77: 0 | BO77: 0 | BP77: 1 | BQ77: 0 | BR77: 4 | BS77: 9 | BT77: 4 | BU77: 9 | BV77: 3 | BW77: 12 | BX77: 1 | BY77: 1
C78: 58 | D78: =D62+1 -> 5 | E78: 4 | F78: 4 | I78: 15 | J78: 1 | L78: 1 | M78: 1 | O78: 1 | Q78: 1 | R78: 1 | S78: 1 | T78: 1 | U78: 1 | W78: 1 | Y78: 1 | AA78: 1 | AB78: 1 | AC78: 1 | AD78: 1 | AH78: 15 | AI78: 0 | BB78: 22 | BC78: 5 | BD78: 11 | BE78: 0.4545… | BF78: 2 | BG78: 1 | BH78: 1 | BI78: 2 | BJ78: 1 | BK78: 2 | BL78: 2 | BM78: 1 | BN78: 0 | BO78: 2 | BP78: 1 | BQ78: 2 | BR78: 5 | BS78: 11 | BT78: 5 | BU78: 11 | BV78: 1 | BW78: 12 | BX78: 1 | BY78: 1
C79: 59 | D79: =D78 -> 5 | E79: 4 | F79: =F78+1 -> 5 | I79: 16 | K79: 1 | L79: 1 | M79: 1 | N79: 1 | O79: 1 | P79: 1 | R79: 1 | S79: 1 | U79: 1 | V79: 1 | X79: 1 | Y79: 1 | AA79: 1 | AB79: 1 | AD79: 1 | AG79: 1 | AH79: 16 | AI79: 0 | BB79: 23 | BC79: 1 | BD79: 2 | BE79: 0.5 | BF79: 0 | BG79: 1 | BH79: 2 | BI79: 0 | BJ79: 0 | BK79: 0 | BL79: 0 | BM79: 0 | BN79: 0 | BO79: 0 | BP79: 0 | BQ79: 0 | BR79: 1 | BS79: 2 | BT79: 1 | BU79: 2 | BV79: 10 | BW79: 12 | BX79: 1 | BY79: 1
C80: 60 | D80: 5 | E80: 4 | F80: =F79+1 -> 6 | I80: 17 | J80: 1 | L80: 1 | M80: 1 | N80: 1 | O80: 1 | P80: 1 | S80: 1 | T80: 1 | U80: 1 | V80: 1 | W80: 1 | Y80: 1 | AA80: 1 | AB80: 1 | AC80: 1 | AD80: 1 | AF80: 1 | AH80: 17 | AI80: 0 | BB80: 24 | BC80: 6 | BD80: 11 | BE80: 0.5454… | BF80: 1 | BG80: 1 | BH80: 2 | BI80: 1 | BJ80: 2 | BK80: 1 | BL80: 1 | BM80: 2 | BN80: 0 | BO80: 2 | BP80: 2 | BQ80: 1 | BR80: 6 | BS80: 11 | BT80: 6 | BU80: 11 | BV80: 1 | BW80: 12 | BX80: 1 | BY80: 1
C81: 61 | D81: 5 | E81: 4 | F81: =F80+1 -> 7 | I81: 18 | J81: 1 | K81: 1 | L81: 1 | M81: 1 | N81: 1 | O81: 1 | Q81: 1 | R81: 1 | T81: 1 | U81: 1 | W81: 1 | X81: 1 | Y81: 1 | Z81: 1 | AB81: 1 | AC81: 1 | AE81: 1 | AG81: 1 | AH81: 18 | AI81: 0 | BB81: 25 | BC81: 5 | BD81: 9 | BE81: 0.555… | BF81: 1 | BG81: 2 | BH81: 1 | BI81: 2 | BJ81: 2 | BK81: 1 | BL81: 2 | BM81: 1 | BN81: 1 | BO81: 0 | BP81: 0 | BQ81: 0 | BR81: 5 | BS81: 9 | BT81: 5 | BU81: 9 | BV81: 3 | BW81: 12 | BX81: 1 | BY81: 1
C82: 62 | D82: =D81 -> 5 | E82: =E78+1 -> 5 | F82: =F78 -> 4 | I82: 19 | J82: 1 | K82: 1 | L82: 1 | M82: 1 | N82: 1 | O82: 1 | P82: 1 | R82: 1 | S82: 1 | T82: 1 | U82: 1 | V82: 1 | W82: 1 | X82: 1 | Z82: 1 | AB82: 1 | AC82: 1 | AE82: 1 | AG82: 1 | AH82: 19 | AI82: 0 | BB82: 26 | BC82: 4 | BD82: 7 | BE82: 0.571428… | BF82: 1 | BG82: 1 | BH82: 2 | BI82: 1 | BJ82: 2 | BK82: 2 | BL82: 1 | BM82: 0 | BN82: 0 | BO82: 0 | BP82: 0 | BQ82: 0 | BR82: 4 | BS82: 7 | BT82: 4 | BU82: 7 | BV82: 5 | BW82: 12 | BX82: 1 | BY82: 1
C83: 63 | D83: =D82 -> 5 | E83: =E82 -> 5 | F83: =F82+1 -> 5 | I83: 20 | K83: 1 | L83: 1 | M83: 1 | N83: 1 | O83: 1 | P83: 1 | Q83: 1 | R83: 1 | S83: 1 | U83: 1 | V83: 1 | W83: 1 | X83: 1 | Y83: 1 | Z83: 1 | AA83: 1 | AB83: 1 | AC83: 1 | AD83: 1 | AF83: 1 | AH83: 20 | AI83: 0 | BB83: 27 | BC83: 7 | BD83: 12 | BE83: 0.583… | BF83: 1 | BG83: 1 | BH83: 2 | BI83: 1 | BJ83: 1 | BK83: 2 | BL83: 1 | BM83: 1 | BN83: 2 | BO83: 1 | BP83: 2 | BQ83: 2 | BR83: 7 | BS83: 12 | BT83: 7 | BU83: 12 | BV83: 0 | BW83: 12 | BX83: 1 | BY83: 1
C84: 64 | D84: =D83 -> 5 | E84: =E83 -> 5 | F84: =F83+1 -> 6 | I84: 21 | K84: 1 | L84: 1 | M84: 1 | N84: 1 | O84: 1 | P84: 1 | Q84: 1 | R84: 1 | S84: 1 | T84: 1 | V84: 1 | W84: 1 | X84: 1 | Y84: 1 | Z84: 1 | AA84: 1 | AB84: 1 | AC84: 1 | AD84: 1 | AE84: 1 | AG84: 1 | AH84: 21 | AI84: 0 | BB84: 28 | BC84: 3 | BD84: 5 | BE84: 0.6 | BF84: 1 | BG84: 2 | BH84: 1 | BI84: 1 | BJ84: 2 | BK84: 0 | BL84: 0 | BM84: 0 | BN84: 0 | BO84: 0 | BP84: 0 | BQ84: 0 | BR84: 3 | BS84: 5 | BT84: 3 | BU84: 5 | BV84: 7 | BW84: 12 | BX84: 1 | BY84: 1
C85: 65 | D85: =D84 -> 5 | E85: =E84 -> 5 | F85: =F84+1 -> 7 | I85: 22 | J85: 1 | L85: 1 | M85: 1 | N85: 1 | O85: 1 | P85: 1 | Q85: 1 | R85: 1 | S85: 1 | T85: 1 | U85: 1 | W85: 1 | X85: 1 | Y85: 1 | Z85: 1 | AA85: 1 | AB85: 1 | AC85: 1 | AD85: 1 | AE85: 1 | AF85: 1 | AG85: 1 | AH85: 22 | AI85: 0 | BB85: 29 | BC85: 5 | BD85: 8 | BE85: 0.625 | BF85: 2 | BG85: 1 | BH85: 2 | BI85: 1 | BJ85: 1 | BK85: 2 | BL85: 1 | BM85: 1 | BN85: 0 | BO85: 0 | BP85: 0 | BQ85: 0 | BR85: 5 | BS85: 8 | BT85: 5 | BU85: 8 | BV85: 4 | BW85: 12 | BX85: 1 | BY85: 1
C86: 66 | D86: =D85 -> 5 | E86: =E82+1 -> 6 | F86: =F82 -> 4 | I86: 23 | J86: 1 | K86: 1 | L86: 1 | M86: 1 | N86: 1 | O86: 1 | P86: 1 | Q86: 1 | R86: 1 | S86: 1 | T86: 1 | V86: 1 | W86: 1 | X86: 1 | Y86: 1 | Z86: 1 | AA86: 1 | AB86: 1 | AC86: 1 | AD86: 1 | AE86: 1 | AF86: 1 | AG86: 1 | AH86: 23 | AI86: 0 | BB86: 30 | BC86: 7 | BD86: 11 | BE86: 0.6363… | BF86: 1 | BG86: 1 | BH86: 1 | BI86: 2 | BJ86: 2 | BK86: 1 | BL86: 2 | BM86: 1 | BN86: 1 | BO86: 1 | BP86: 0 | BQ86: 2 | BR86: 7 | BS86: 11 | BT86: 7 | BU86: 11 | BV86: 1 | BW86: 12 | BX86: 1 | BY86: 1
C87: 67 | D87: =D86 -> 5 | E87: =E86 -> 6 | F87: =F86+1 -> 5 | BB87: 31 | BC87: 2 | BD87: 3 | BE87: 0.666… | BF87: 1 | BG87: 2 | BH87: 1 | BI87: 0 | BJ87: 0 | BK87: 0 | BL87: 0 | BM87: 0 | BN87: 0 | BO87: 0 | BP87: 0 | BQ87: 0 | BR87: 2 | BS87: 3 | BT87: 2 | BU87: 3 | BV87: 9 | BW87: 12 | BX87: 1 | BY87: 1
C88: 68 | D88: 5 | E88: =E87 -> 6 | F88: =F87+1 -> 6 | J88: 32 | K88: 24 | N88: =I20 -> 6 | O88: =INT(5*O1)+2 -> 4 | P88: =INT(5*P1)+7 -> 10 | Q88: =VLOOKUP(N88,N89:X111,O88) -> 10 | V88: =VLOOKUP(N88,N89:X111,P88) -> 8 | BB88: 32 | BC88: 7 | BD88: 10 | BE88: 0.7 | BF88: 1 | BG88: 2 | BH88: 1 | BI88: 1 | BJ88: 1 | BK88: 1 | BL88: 2 | BM88: 1 | BN88: 1 | BO88: 0 | BP88: 0 | BQ88: 2 | BR88: 7 | BS88: 10 | BT88: 7 | BU88: 10 | BV88: 2 | BW88: 12 | BX88: 1 | BY88: 1
C89: 69 | D89: 5 | E89: =E88 -> 6 | F89: =F88+1 -> 7 | I89: 1 | J89: 0.047619… | K89: 0.041666… | N89: 1 | O89: =P89-1 -> 1 | P89: 2 | Q89: 3 | R89: =Q89+1 -> 4 | S89: 5 | T89: =U89-1 -> 1 | U89: 2 | V89: 3 | W89: =V89+1 -> 4 | X89: 5 | BB89: 33 | BC89: 5 | BD89: 7 | BE89: 0.714285… | BF89: 1 | BG89: 2 | BH89: 1 | BI89: 1 | BJ89: 1 | BK89: 1 | BL89: 2 | BM89: 0 | BN89: 0 | BO89: 0 | BP89: 0 | BQ89: 0 | BR89: 5 | BS89: 7 | BT89: 5 | BU89: 7 | BV89: 5 | BW89: 12 | BX89: 1 | BY89: 1
C90: 70 | D90: 5 | E90: =E86+1 -> 7 | F90: =F86 -> 4 | I90: 2 | J90: 0.095238… | K90: 0.08333… | N90: 2 | O90: 1 | P90: 2 | Q90: 3 | R90: 4 | S90: 5 | T90: 1 | U90: 2 | V90: 3 | W90: 4 | X90: 5 | BB90: 34 | BC90: 8 | BD90: 11 | BE90: 0.7272… | BF90: 1 | BG90: 1 | BH90: 1 | BI90: 2 | BJ90: 2 | BK90: 1 | BL90: 1 | BM90: 1 | BN90: 0 | BO90: 1 | BP90: 2 | BQ90: 1 | BR90: 8 | BS90: 11 | BT90: 8 | BU90: 11 | BV90: 1 | BW90: 12 | BX90: 1 | BY90: 1
C91: 71 | D91: 5 | E91: =E90 -> 7 | F91: =F90+1 -> 5 | I91: 3 | J91: 0.142857… | K91: 0.125 | N91: 3 | O91: 3 | P91: 4 | Q91: 5 | R91: 6 | S91: 7 | T91: 2 | U91: 3 | V91: 4 | W91: 5 | X91: 6 | BB91: 35 | BC91: 3 | BD91: 4 | BE91: 0.75 | BF91: 1 | BG91: 2 | BH91: 1 | BI91: 1 | BJ91: 0 | BK91: 0 | BL91: 0 | BM91: 0 | BN91: 0 | BO91: 0 | BP91: 0 | BQ91: 0 | BR91: 3 | BS91: 4 | BT91: 3 | BU91: 4 | BV91: 8 | BW91: 12 | BX91: 1 | BY91: 1
C92: 72 | D92: 5 | E92: =E91 -> 7 | F92: =F91+1 -> 6 | I92: 4 | J92: 0.190476… | K92: 0.1666… | N92: 4 | O92: 4 | P92: 5 | Q92: 6 | R92: 7 | S92: 8 | T92: 3 | U92: 4 | V92: 5 | W92: 6 | X92: 7 | BB92: 36 | BC92: 7 | BD92: 9 | BE92: 0.777… | BF92: 1 | BG92: 1 | BH92: 1 | BI92: 2 | BJ92: 2 | BK92: 1 | BL92: 1 | BM92: 1 | BN92: 1 | BO92: 0 | BP92: 0 | BQ92: 0 | BR92: 7 | BS92: 9 | BT92: 7 | BU92: 9 | BV92: 3 | BW92: 12 | BX92: 1 | BY92: 1
C93: 73 | D93: 5 | E93: =E92 -> 7 | F93: =F92+1 -> 7 | I93: 5 | J93: 0.238095… | K93: 0.208333… | N93: 5 | O93: 6 | P93: 7 | Q93: 8 | R93: 9 | S93: 10 | T93: 4 | U93: 5 | V93: 6 | W93: 7 | X93: 8 | BB93: 37 | BC93: 4 | BD93: 5 | BE93: 0.8 | BF93: 1 | BG93: 1 | BH93: 2 | BI93: 1 | BJ93: 1 | BK93: 0 | BL93: 0 | BM93: 0 | BN93: 0 | BO93: 0 | BP93: 0 | BQ93: 0 | BR93: 4 | BS93: 5 | BT93: 4 | BU93: 5 | BV93: 7 | BW93: 12 | BX93: 1 | BY93: 1
C94: 74 | D94: =D78+1 -> 6 | E94: 5 | F94: 6 | I94: 6 | J94: 0.285714… | K94: 0.25 | N94: 6 | O94: 8 | P94: 9 | Q94: 10 | R94: 11 | S94: 12 | T94: 5 | U94: 6 | V94: 7 | W94: 8 | X94: 9 | BB94: 38 | BC94: 9 | BD94: 11 | BE94: 0.8181… | BF94: 1 | BG94: 1 | BH94: 1 | BI94: 2 | BJ94: 1 | BK94: 1 | BL94: 1 | BM94: 1 | BN94: 2 | BO94: 0 | BP94: 1 | BQ94: 1 | BR94: 9 | BS94: 11 | BT94: 9 | BU94: 11 | BV94: 1 | BW94: 12 | BX94: 1 | BY94: 1
C95: 75 | D95: 6 | E95: =E94 -> 5 | F95: =F94+1 -> 7 | I95: 7 | J95: 0.333… | K95: 0.291666… | N95: 7 | O95: 9 | P95: 10 | Q95: 11 | R95: 12 | S95: 13 | T95: 6 | U95: 7 | V95: 8 | W95: 9 | X95: 10 | BB95: 39 | BC95: 5 | BD95: 6 | BE95: 0.833… | BF95: 1 | BG95: 2 | BH95: 1 | BI95: 1 | BJ95: 1 | BK95: 1 | BL95: 0 | BM95: 0 | BN95: 0 | BO95: 0 | BP95: 0 | BQ95: 0 | BR95: 5 | BS95: 6 | BT95: 5 | BU95: 6 | BV95: 6 | BW95: 12 | BX95: 1 | BY95: 1
C96: 76 | D96: 6 | E96: =E95 -> 5 | F96: =F95+1 -> 8 | I96: 8 | J96: 0.380952… | K96: 0.333… | N96: 8 | O96: 11 | P96: 12 | Q96: 13 | R96: 14 | S96: 15 | T96: 8 | U96: 9 | V96: 10 | W96: 11 | X96: 12 | BB96: 40 | BC96: 6 | BD96: 7 | BE96: 0.857142… | BF96: 1 | BG96: 2 | BH96: 1 | BI96: 1 | BJ96: 1 | BK96: 1 | BL96: 1 | BM96: 0 | BN96: 0 | BO96: 0 | BP96: 0 | BQ96: 0 | BR96: 6 | BS96: 7 | BT96: 6 | BU96: 7 | BV96: 5 | BW96: 12 | BX96: 1 | BY96: 1
C97: 77 | D97: 6 | E97: =E96 -> 5 | F97: =F96+1 -> 9 | I97: 9 | J97: 0.428571… | K97: 0.375 | N97: 9 | O97: 12 | P97: 13 | Q97: 14 | R97: 15 | S97: 16 | T97: 9 | U97: 10 | V97: 11 | W97: 12 | X97: 13 | BB97: 41 | BC97: 7 | BD97: 8 | BE97: 0.875 | BF97: 1 | BG97: 2 | BH97: 1 | BI97: 1 | BJ97: 1 | BK97: 1 | BL97: 1 | BM97: 1 | BN97: 0 | BO97: 0 | BP97: 0 | BQ97: 0 | BR97: 7 | BS97: 8 | BT97: 7 | BU97: 8 | BV97: 4 | BW97: 12 | BX97: 1 | BY97: 1
C98: 78 | D98: 6 | E98: =E94+1 -> 6 | F98: =F94 -> 6 | I98: 10 | J98: 0.476190… | K98: 0.41666… | N98: 10 | O98: 14 | P98: 15 | Q98: 16 | R98: 17 | S98: 18 | T98: 10 | U98: 11 | V98: 12 | W98: 13 | X98: 14 | BB98: 42 | BC98: 8 | BD98: 9 | BE98: 0.888… | BF98: 1 | BG98: 1 | BH98: 1 | BI98: 1 | BJ98: 1 | BK98: 2 | BL98: 1 | BM98: 1 | BN98: 0 | BO98: 1 | BP98: 0 | BQ98: 0 | BR98: 8 | BS98: 9 | BT98: 8 | BU98: 9 | BV98: 3 | BW98: 12 | BX98: 1 | BY98: 1
C99: 79 | D99: 6 | E99: =E98 -> 6 | F99: =F98+1 -> 7 | I99: 11 | J99: 0.523809… | K99: 0.458333… | N99: 11 | O99: 16 | P99: 17 | Q99: 18 | R99: 19 | S99: 20 | T99: 11 | U99: 12 | V99: 13 | W99: 14 | X99: 15 | BB99: 43 | BC99: 9 | BD99: 10 | BE99: 0.9 | BF99: 1 | BG99: 1 | BH99: 2 | BI99: 1 | BJ99: 1 | BK99: 1 | BL99: 1 | BM99: 1 | BN99: 1 | BO99: 0 | BP99: 0 | BQ99: 1 | BR99: 9 | BS99: 10 | BT99: 9 | BU99: 10 | BV99: 2 | BW99: 12 | BX99: 1 | BY99: 1
C100: 80 | D100: 6 | E100: =E99 -> 6 | F100: =F99+1 -> 8 | I100: 12 | J100: 0.571428… | K100: 0.5 | N100: 12 | O100: 17 | P100: 18 | Q100: 19 | R100: 20 | S100: 21 | T100: 12 | U100: 13 | V100: 14 | W100: 15 | X100: 16 | BB100: 44 | BC100: 10 | BD100: 11 | BE100: 0.9090… | BF100: 1 | BG100: 1 | BH100: 1 | BI100: 1 | BJ100: 1 | BK100: 2 | BL100: 1 | BM100: 1 | BN100: 1 | BO100: 1 | BP100: 1 | BQ100: 0 | BR100: 10 | BS100: 11 | BT100: 10 | BU100: 11 | BV100: 1 | BW100: 12 | BX100: 1 | BY100: 1
C101: 81 | D101: 6 | E101: =E100 -> 6 | F101: =F100+1 -> 9 | I101: 13 | J101: 0.619047… | K101: 0.541666… | N101: 13 | O101: 19 | P101: 20 | Q101: 21 | R101: 22 | S101: 23 | T101: 14 | U101: 15 | V101: 16 | W101: 17 | X101: 18 | BB101: 45 | BC101: 11 | BD101: 12 | BE101: 0.916… | BF101: 1 | BG101: 1 | BH101: 1 | BI101: 1 | BJ101: 1 | BK101: 2 | BL101: 1 | BM101: 1 | BN101: 1 | BO101: 1 | BP101: 1 | BQ101: 1 | BR101: 11 | BS101: 12 | BT101: 11 | BU101: 12 | BV101: 0 | BW101: 12 | BX101: 1 | BY101: 1
C102: 82 | D102: 6 | E102: =E98+1 -> 7 | F102: =F98 -> 6 | I102: 14 | J102: 0.666… | K102: 0.58333… | N102: 14 | O102: 20 | P102: 21 | Q102: 22 | R102: 23 | S102: 24 | T102: 15 | U102: 16 | V102: 17 | W102: 18 | X102: 19
C103: 83 | D103: 6 | E103: =E102 -> 7 | F103: =F102+1 -> 7 | I103: 15 | J103: 0.714285… | K103: 0.625 | N103: 15 | O103: 22 | P103: 23 | Q103: 24 | R103: 25 | S103: 26 | T103: 16 | U103: 17 | V103: 18 | W103: 19 | X103: 20
C104: 84 | D104: 6 | E104: =E103 -> 7 | F104: =F103+1 -> 8 | I104: 16 | J104: 0.761904… | K104: 0.666… | N104: 16 | O104: 24 | P104: 25 | Q104: 26 | R104: 27 | S104: 28 | T104: 17 | U104: 18 | V104: 19 | W104: 20 | X104: 21
C105: 85 | D105: 6 | E105: =E104 -> 7 | F105: =F104+1 -> 9 | I105: 17 | J105: 0.809523… | K105: 0.708333… | N105: 17 | O105: 25 | P105: 26 | Q105: 27 | R105: 28 | S105: 29 | T105: 18 | U105: 19 | V105: 20 | W105: 21 | X105: 22
C106: 86 | D106: 6 | E106: =E102+1 -> 8 | F106: =F102 -> 6 | I106: 18 | J106: 0.857142… | K106: 0.75 | N106: 18 | O106: 27 | P106: 28 | Q106: 29 | R106: 30 | S106: 31 | T106: 19 | U106: 20 | V106: 21 | W106: 22 | X106: 23
C107: 87 | D107: 6 | E107: =E106 -> 8 | F107: =F106+1 -> 7 | I107: 19 | J107: 0.904761… | K107: 0.791666… | N107: 19 | O107: 27 | P107: 28 | Q107: 29 | R107: 30 | S107: 31 | T107: 19 | U107: 20 | V107: 21 | W107: 22 | X107: 23
C108: 88 | D108: 6 | E108: =E107 -> 8 | F108: =F107+1 -> 8 | I108: 20 | J108: 0.952380… | K108: 0.8333… | N108: 20
C109: 89 | D109: 6 | E109: =E108 -> 8 | F109: =F108+1 -> 9 | I109: 21 | K109: 0.875 | N109: 21
C110: 90 | D110: =D94+1 -> 7 | E110: 6 | F110: 7 | I110: 22 | K110: 0.91666… | N110: 22
C111: 91 | D111: =D110 -> 7 | E111: =E110 -> 6 | F111: =F110+1 -> 8 | I111: 23 | K111: 0.958333… | N111: 23
C112: 92 | D112: 7 | E112: =E111 -> 6 | F112: =F111+1 -> 9
C113: 93 | D113: 7 | E113: =E112 -> 6 | F113: =F112+1 -> 10
C114: 94 | D114: 7 | E114: =E110+1 -> 7 | F114: =F110 -> 7
C115: 95 | D115: 7 | E115: =E114 -> 7 | F115: =F114+1 -> 8
C116: 96 | D116: 7 | E116: =E115 -> 7 | F116: =F115+1 -> 9
C117: 97 | D117: 7 | E117: =E116 -> 7 | F117: =F116+1 -> 10
C118: 98 | D118: 7 | E118: =E114+1 -> 8 | F118: =F114 -> 7
C119: 99 | D119: 7 | E119: =E118 -> 8 | F119: =F118+1 -> 8
C120: 100 | D120: 7 | E120: =E119 -> 8 | F120: =F119+1 -> 9
C121: 101 | D121: 7 | E121: =E120 -> 8 | F121: =F120+1 -> 10
C122: 102 | D122: 7 | E122: =E118+1 -> 9 | F122: =F118 -> 7
C123: 103 | D123: 7 | E123: =E122 -> 9 | F123: =F122+1 -> 8
C124: 104 | D124: 7 | E124: =E123 -> 9 | F124: =F123+1 -> 9
C125: 105 | D125: 7 | E125: =E124 -> 9 | F125: =F124+1 -> 10
C126: 106 | D126: =D110+1 -> 8 | E126: 7 | F126: 8
C127: 107 | D127: 8 | E127: =E126 -> 7 | F127: =F126+1 -> 9
C128: 108 | D128: 8 | E128: =E127 -> 7 | F128: =F127+1 -> 10
C129: 109 | D129: 8 | E129: =E128 -> 7 | F129: =F128+1 -> 11
C130: 110 | D130: 8 | E130: =E126+1 -> 8 | F130: =F126 -> 8
C131: 111 | D131: 8 | E131: =E130 -> 8 | F131: =F130+1 -> 9
C132: 112 | D132: 8 | E132: =E131 -> 8 | F132: =F131+1 -> 10
C133: 113 | D133: 8 | E133: =E132 -> 8 | F133: =F132+1 -> 11
C134: 114 | D134: 8 | E134: =E130+1 -> 9 | F134: =F130 -> 8
C135: 115 | D135: 8 | E135: =E134 -> 9 | F135: =F134+1 -> 9
C136: 116 | D136: 8 | E136: =E135 -> 9 | F136: =F135+1 -> 10
C137: 117 | D137: 8 | E137: =E136 -> 9 | F137: =F136+1 -> 11
C138: 118 | D138: 8 | E138: =E134+1 -> 10 | F138: =F134 -> 8
C139: 119 | D139: 8 | E139: =E138 -> 10 | F139: =F138+1 -> 9
C140: 120 | D140: 8 | E140: =E139 -> 10 | F140: =F139+1 -> 10
C141: 121 | D141: 8 | E141: =E140 -> 10 | F141: =F140+1 -> 11
C142: 122 | D142: =D126+1 -> 9 | E142: 8 | F142: 9
C143: 123 | D143: =D142 -> 9 | E143: =E142 -> 8 | F143: =F142+1 -> 10
C144: 124 | D144: 9 | E144: =E143 -> 8 | F144: =F143+1 -> 11
C145: 125 | D145: 9 | E145: =E144 -> 8 | F145: =F144+1 -> 12
C146: 126 | D146: 9 | E146: =E142+1 -> 9 | F146: =F142 -> 9
C147: 127 | D147: 9 | E147: =E146 -> 9 | F147: =F146+1 -> 10
C148: 128 | D148: 9 | E148: =E147 -> 9 | F148: =F147+1 -> 11
C149: 129 | D149: 9 | E149: =E148 -> 9 | F149: =F148+1 -> 12
C150: 130 | D150: 9 | E150: =E146+1 -> 10 | F150: =F146 -> 9
C151: 131 | D151: 9 | E151: =E150 -> 10 | F151: =F150+1 -> 10
C152: 132 | D152: 9 | E152: =E151 -> 10 | F152: =F151+1 -> 11
C153: 133 | D153: 9 | E153: =E152 -> 10 | F153: =F152+1 -> 12
C154: 134 | D154: 9 | E154: =E150+1 -> 11 | F154: =F150 -> 9
C155: 135 | D155: 9 | E155: =E154 -> 11 | F155: =F154+1 -> 10
C156: 136 | D156: 9 | E156: =E155 -> 11 | F156: =F155+1 -> 11
C157: 137 | D157: 9 | E157: =E156 -> 11 | F157: =F156+1 -> 12
C158: 138 | D158: =D142+1 -> 10 | E158: 9 | F158: 10
C159: 139 | D159: 10 | E159: =E158 -> 9 | F159: =F158+1 -> 11
C160: 140 | D160: 10 | E160: =E159 -> 9 | F160: =F159+1 -> 12
C161: 141 | D161: 10 | E161: =E160 -> 9 | F161: =F160+1 -> 13
C162: 142 | D162: 10 | E162: =E158+1 -> 10 | F162: =F158 -> 10
C163: 143 | D163: 10 | E163: =E162 -> 10 | F163: =F162+1 -> 11
C164: 144 | D164: 10 | E164: =E163 -> 10 | F164: =F163+1 -> 12
C165: 145 | D165: 10 | E165: =E164 -> 10 | F165: =F164+1 -> 13
C166: 146 | D166: 10 | E166: =E162+1 -> 11 | F166: =F162 -> 10
C167: 147 | D167: 10 | E167: =E166 -> 11 | F167: =F166+1 -> 11
C168: 148 | D168: 10 | E168: =E167 -> 11 | F168: =F167+1 -> 12
C169: 149 | D169: 10 | E169: =E168 -> 11 | F169: =F168+1 -> 13
C170: 150 | D170: 10 | E170: =E166+1 -> 12 | F170: =F166 -> 10
C171: 151 | D171: 10 | E171: =E170 -> 12 | F171: =F170+1 -> 11
C172: 152 | D172: 10 | E172: =E171 -> 12 | F172: =F171+1 -> 12
C173: 153 | D173: 10 | E173: =E172 -> 12 | F173: =F172+1 -> 13
C174: 154 | D174: =D158+1 -> 11 | E174: 10 | F174: 12
C175: 155 | D175: =D174 -> 11 | E175: =E174 -> 10 | F175: =F174+1 -> 13
C176: 156 | D176: 11 | E176: =E175 -> 10 | F176: =F175+1 -> 14
C177: 157 | D177: 11 | E177: =E176 -> 10 | F177: =F176+1 -> 15
C178: 158 | D178: 11 | E178: =E174+1 -> 11 | F178: =F174 -> 12
C179: 159 | D179: 11 | E179: =E178 -> 11 | F179: =F178+1 -> 13
C180: 160 | D180: 11 | E180: =E179 -> 11 | F180: =F179+1 -> 14
C181: 161 | D181: 11 | E181: =E180 -> 11 | F181: =F180+1 -> 15
C182: 162 | D182: 11 | E182: =E178+1 -> 12 | F182: =F178 -> 12
C183: 163 | D183: 11 | E183: =E182 -> 12 | F183: =F182+1 -> 13
C184: 164 | D184: 11 | E184: =E183 -> 12 | F184: =F183+1 -> 14
C185: 165 | D185: 11 | E185: =E184 -> 12 | F185: =F184+1 -> 15
C186: 166 | D186: 11 | E186: =E182+1 -> 13 | F186: =F182 -> 12
C187: 167 | D187: 11 | E187: =E186 -> 13 | F187: =F186+1 -> 13
C188: 168 | D188: 11 | E188: =E187 -> 13 | F188: =F187+1 -> 14
C189: 169 | D189: 11 | E189: =E188 -> 13 | F189: =F188+1 -> 15
C190: 170 | D190: =D174+1 -> 12 | E190: 11 | F190: 13
C191: 171 | D191: 12 | E191: =E190 -> 11 | F191: =F190+1 -> 14
C192: 172 | D192: 12 | E192: =E191 -> 11 | F192: =F191+1 -> 15
C193: 173 | D193: 12 | E193: =E192 -> 11 | F193: =F192+1 -> 16
C194: 174 | D194: 12 | E194: =E190+1 -> 12 | F194: =F190 -> 13
C195: 175 | D195: 12 | E195: =E194 -> 12 | F195: =F194+1 -> 14
C196: 176 | D196: 12 | E196: =E195 -> 12 | F196: =F195+1 -> 15
C197: 177 | D197: 12 | E197: =E196 -> 12 | F197: =F196+1 -> 16
C198: 178 | D198: 12 | E198: =E194+1 -> 13 | F198: =F194 -> 13
C199: 179 | D199: 12 | E199: =E198 -> 13 | F199: =F198+1 -> 14
C200: 180 | D200: 12 | E200: =E199 -> 13 | F200: =F199+1 -> 15
... 117 more rows

Sheet COMGAMETWO
B1: =RAND() -> 0.1265055705 | C1: 0.5058716666 | D1: 0.734823697 | E1: 0.8254017108 | F1: 0.9944433816 | G1: 0.723886913 | H1: 0.8003589118 | I1: 0.8437977061 | J1: 0.1527966074 | K1: 0.8024261099 | L1: 0.4461166049 | M1: 0.7465164196 | N1: 0.6056827095 | O1: 0.8868611297 | P1: 0.003770269792 | Q1: 0.8266847887 | R1: 0.2271851694 | S1: 0.1546386102 | T1: 0.6643588273 | U1: 0.5299219147 | V1: 0.7726086837 | W1: 0.1502266598 | X1: 0.8845015626 | Y1: 0.1895765244 | Z1: 0.3259237426
AI2: =INT(8*Y1)+5 -> 6 | AJ2: 1 | AK2: 2 | AL2: 3 | AM2: 4 | AN2: 5 | AO2: 6 | AP2: 7
X3: =IF(I20=0,"",IF(I20=20,"",IF(BJ39=BH39,"","*"))) -> * | Y3: =IF(OR(E20=0,E20=32),"",IF(MOD(E20,2)=0,"* ","")) -> * | AA3: =IF(F20=0,"",IF(F20=24,"",IF(BJ45=BH45,"","*"))) -> * | AI3: =INT(7*Z1)+1 -> 3 | AJ3: P(prime №) = | AK3: P(odd №) = | AL3: P(even №) = | AM3: =CONCATENATE("P(№ < ",$AI$2,") =") -> P(№ < 6) = | AN3: =CONCATENATE("P(№ > ",$AI$2,") =") -> P(№ > 6) = | AO3: =CONCATENATE("P(№ ≤ ",$AI$2,") =") -> P(№ ≤ 6) = | AP3: =CONCATENATE("P(№ ≥ ",$AI$2,") =") -> P(№ ≥ 6) = | AQ3: № | AY3: №
C4: =IF(T5=0,0,IF(T5>13,1,0)) -> 0 | D4: =IF(T5=0,0,IF(T5>6,1,0)) -> 1 | E4: =IF(T5=0,0,IF(T5>14,1,0)) -> 0 | F4: =IF(T5=0,0,IF(T5>7,1,0)) -> 1 | G4: =IF(T5=0,0,IF(T5>15,1,0)) -> 0 | H4: =I20 -> 8 | K4: =IF(T6>20,1,0) -> 0 | L4: =IF(T6>8,1,0) -> 0 | M4: =IF(T6>21,1,0) -> 0 | N4: =IF(T6>10,1,0) -> 0 | O4: =IF(T6>22,1,0) -> 0 | P4: =IF(T6>11,1,0) -> 0 | Q4: =IF(T6>23,1,0) -> 0 | R4: =IF(T6>13,1,0) -> 0 | V4: =IF(T7>7,1,0) -> 1 | W4: =IF(T7>16,1,0) -> 0 | X4: =IF(T7>8,1,0) -> 0 | Y4: =IF(T7>17,1,0) -> 0 | Z4: =IF(T7>9,1,0) -> 0 | AA4: =IF(T7>18,1,0) -> 0 | AD4: a | AI4: 0 | AJ4: X | AK4: X | AL4: X | AM4: X | AN4: X | AO4: X | AP4: X | AQ4: =INT(20*O1)+1 -> 18 | AR4: =VLOOKUP(AQ4,$AI$4:$AP$24,$AI$3+1) -> 1 | AS4: =COUNTIF(AR4:AR13,1) -> 1 | AT4: =GCD(AS4,AS5) -> 1 | AU4: =AS4/AT4 -> 1 | AV4: =IF(AS4=0,0,AU4) -> 1 | AW4: =IF(AS4=0,CONCATENATE(" ",AV4," "),IF(AS6=1,CONCATENATE(" ",AV4," "),"X")) ->  | AY4: =INT(3*Z1)+1 -> 1 | BS4: =COUNTIF(AY4:AY13,3) -> 1 | BT4: =GCD(BS4,BS5) -> 1 | BU4: =BS4/BT4 -> 1 | BV4: =IF(BS4=0,0,BU4) -> 1 | BW4: =IF(BS4=0,CONCATENATE(" ",BV4," "),IF(BS6=1,CONCATENATE(" ",BV4," "),"X")) -> 
C5: =IF(T5=0,0,IF(T5>5,1,0)) -> 1 | D5: =IF(T5=0,0,IF(T5>19,1,0)) -> 0 | E5: =IF(T5=0,0,IF(T5>1,1,0)) -> 1 | F5: =IF(T5=0,0,IF(T5>17,1,0)) -> 0 | G5: =IF(T5=0,0,IF(T5>8,1,0)) -> 0 | I5: 1 | K5: =IF(T6>7,1,0) -> 1 | L5: =IF(T6>31,1,0) -> 0 | M5: =IF(T6>9,1,0) -> 0 | N5: =IF(T6>29,1,0) -> 0 | O5: =IF(T6>1,1,0) -> 1 | P5: =IF(T6>27,1,0) -> 0 | Q5: =IF(T6>12,1,0) -> 0 | R5: =IF(T6>24,1,0) -> 0 | T5: =IF(I5=1,I20,0) -> 8 | V5: =IF(T7>15,1,0) -> 0 | W5: =IF(T7>6,1,0) -> 1 | X5: =IF(T7>22,1,0) -> 0 | Y5: =IF(T7>1,1,0) -> 1 | Z5: =IF(T7>20,1,0) -> 0 | AA5: =IF(T7>10,1,0) -> 0 | AC5: =BW52 -> 0 | AD5: =$AM$61 -> 4 | AI5: 1 | AJ5: 0 | AK5: 1 | AL5: 0 | AM5: =IF(AI5<$AI$2,1,0) -> 1 | AN5: =IF(AI5>$AI$2,1,0) -> 0 | AO5: =IF(AI5<=$AI$2,1,0) -> 1 | AP5: =IF(AI5>=$AI$2,1,0) -> 0 | AQ5: =INT(20*P1)+1 -> 1 | AR5: 0 | AS5: =B4 -> 0 | AT5: =LCM(AS4,AS5) -> 0 | AU5: =AS5/AT4 -> 0 | AV5: =IF(AS4=0,"",IF(AS6=1,"",AU5)) ->  | AY5: =INT(3*Y1)+1 -> 1 | BS5: =B10 -> 0 | BT5: =LCM(BS4,BS5) -> 0 | BU5: =BS5/BT4 -> 0 | BV5: =IF(BS4=0,"",IF(BS6=1,"",BU5)) -> 
C6: =IF(T5=0,0,IF(T5>12,1,0)) -> 0 | D6: =IF(T5=0,0,IF(T5>0,1,0)) -> 1 | E6: =IF(T5=0,0,IF(T5>18,1,0)) -> 0 | F6: =IF(T5=0,0,IF(T5>2,1,0)) -> 1 | G6: =IF(T5=0,0,IF(T5>16,1,0)) -> 0 | I6: 1 | K6: =IF(T6>19,1,0) -> 0 | L6: =IF(T6>5,1,0) -> 1 | M6: =IF(T6>30,1,0) -> 0 | N6: =IF(T6>0,1,0) -> 1 | O6: =IF(T6>28,1,0) -> 0 | P6: =IF(T6>2,1,0) -> 1 | Q6: =IF(T6>26,1,0) -> 0 | R6: =IF(T6>14,1,0) -> 0 | T6: =IF(I6=1,E20,0) -> 8 | V6: =IF(T7>5,1,0) -> 1 | W6: =IF(T7>23,1,0) -> 0 | X6: =IF(T7>0,1,0) -> 1 | Y6: =IF(T7>21,1,0) -> 0 | Z6: =IF(T7>2,1,0) -> 1 | AA6: =IF(T7>19,1,0) -> 0 | AC6: =BS52 -> 0 | AD6: =$AN$61 -> -10.7 | AI6: 2 | AJ6: 1 | AK6: 0 | AL6: 1 | AM6: 1 | AN6: 0 | AO6: 1 | AP6: 0 | AQ6: =INT(20*Q1)+1 -> 17 | AR6: 0 | AS6: =AS4/AS5 ->  | AY6: =INT(3*X1)+1 -> 3 | BS6: =BS4/BS5 -> 
C7: =IF(T5=0,0,IF(T5>4,1,0)) -> 1 | D7: =IF(T5=0,0,IF(T5>11,1,0)) -> 0 | E7: =IF(T5=0,0,IF(T5>3,1,0)) -> 1 | F7: =IF(T5=0,0,IF(T5>10,1,0)) -> 0 | G7: =IF(T5=0,0,IF(T5>9,1,0)) -> 0 | I7: 1 | K7: =IF(T6>6,1,0) -> 1 | L7: =IF(T6>18,1,0) -> 0 | M7: =IF(T6>4,1,0) -> 1 | N7: =IF(T6>17,1,0) -> 0 | O7: =IF(T6>3,1,0) -> 1 | P7: =IF(T6>16,1,0) -> 0 | Q7: =IF(T6>15,1,0) -> 0 | R7: =IF(T6>25,1,0) -> 0 | T7: =IF(I7=1,F20,0) -> 8 | V7: =IF(T7>14,1,0) -> 0 | W7: =IF(T7>4,1,0) -> 1 | X7: =IF(T7>13,1,0) -> 0 | Y7: =IF(T7>3,1,0) -> 1 | Z7: =IF(T7>12,1,0) -> 0 | AA7: =IF(T7>11,1,0) -> 0 | AC7: =BO52 -> 0 | AD7: b | AI7: 3 | AJ7: 1 | AK7: 1 | AL7: 0 | AM7: 1 | AN7: 0 | AO7: 1 | AP7: 0 | AQ7: =IF(B4>3,INT(20*R1)+1,0) -> 0 | AR7: X | AY7: =IF(B10>3,INT(3*W1)+1,0) -> 0
AD8: =$AO$61 -> 2.5 | AI8: 4 | AJ8: 0 | AK8: 0 | AL8: 1 | AM8: 1 | AN8: 0 | AO8: 1 | AP8: 0 | AQ8: =IF(B4>4,INT(20*S1)+1,0) -> 0 | AR8: X | AY8: =IF(B10>4,INT(3*V1)+1,0) -> 0
B9: P(■) = | E9: =CONCATENATE(IF(I20<10," ",""),I20,IF(I20<10," ","")) -> 8 | G9: =IF(I20=0,"=",IF(I20=20,"=",IF($BJ$39=$BH$39,"","= "))) -> = | H9: =IF(I20=0," 0 ",IF(I20=20," 1 ",IF($BJ$39=$BH$39,"",CONCATENATE(" ",$BJ$38," ")))) -> 2 | J9: P(■) = | N9: =CONCATENATE(IF(BH41<10," ",""),$BH$41,IF(BH41<10," ","")) -> 8 | P9: =IF(OR(E20=0,E20=32),"=",IF(MOD(E20,2)=0,"=","")) -> = | Q9: =IF(E20=0," 0 ",IF(E20=32," 1 ",IF($BJ$42=$BH$42,"",CONCATENATE(IF(BJ41<10," ",""),$BJ$41,IF(BJ41<10," ",""))))) -> 1 | S9: P(■) = | W9: =CONCATENATE(IF(BH44<10," ",""),$BH$44,IF(BH44<10," ","")) -> 8 | Y9: =IF(F20=0,"=",IF(F20=24,"=",IF($BJ$45=$BH$45,"","= "))) -> = | Z9: =IF(F20=0," 0 ",IF(F20=24," 1 ",IF($BJ$45=$BH$45,"",CONCATENATE(IF(BJ44<10," ",""),$BJ$44,IF(BJ44<10," ",""))))) -> 1 | AD9: =$AP$61 -> -10.7 | AI9: 5 | AJ9: 1 | AK9: 1 | AL9: 0 | AM9: 1 | AN9: 0 | AO9: 1 | AP9: 0 | AQ9: =IF(B4>5,INT(20*T1)+1,0) -> 0 | AR9: X | AY9: =IF(B10>5,INT(3*U1)+1,0) -> 0
E10: 20 | H10: =IF(I20=0,"1",IF(I20=20,"1",IF($BJ$39=$BH$39,"",CONCATENATE($BJ$39)))) -> 5 | N10: 32 | Q10: =IF(E20=0,"1",IF(E20=32,"1",IF($BJ$42=$BH$42,"",CONCATENATE($BJ$42)))) -> 4 | W10: 24 | Z10: =IF(F20=0,"1",IF(F20=24,"1",IF($BJ$45=$BH$45,"",CONCATENATE($BJ$45)))) -> 3 | AD10: c | AI10: 6 | AJ10: 0 | AK10: 0 | AL10: 1 | AM10: 0 | AN10: 0 | AO10: 1 | AP10: 1 | AQ10: =IF(B4>6,INT(20*U1)+1,0) -> 0 | AR10: X | AY10: =IF(B10>6,INT(3*T1)+1,0) -> 0
D11: = | E11: =CONCATENATE($BH$50/BI50) -> 0.4 | M11: = | N11: =CONCATENATE(E20/32) -> 0.25 | V11: = | W11: =IF(F20=0,"0",IF(F20=24,"1",CONCATENATE(VLOOKUP($F$20,$I$89:$K$111,3)))) -> 0.333… | AD11: =$AQ$61 -> 3.333333333 | AI11: 7 | AJ11: 1 | AK11: 1 | AL11: 0 | AM11: 0 | AN11: 1 | AO11: 0 | AP11: 1 | AQ11: =IF(B4>7,INT(20*V1)+1,0) -> 0 | AR11: X | AY11: =IF(B10>7,INT(3*S1)+1,0) -> 0
AD12: =$AR$61 -> -10.7 | AI12: 8 | AJ12: 0 | AK12: 0 | AL12: 1 | AM12: 0 | AN12: 1 | AO12: 0 | AP12: 1 | AQ12: =IF(B4>8,INT(20*W1)+1,0) -> 0 | AR12: X | AY12: =IF(B10>8,INT(3*R1)+1,0) -> 0
D13: 0 | X13: 1 | AI13: 9 | AJ13: 0 | AK13: 1 | AL13: 0 | AM13: 0 | AN13: 1 | AO13: 0 | AP13: 1 | AQ13: =IF(B4>9,INT(20*X1)+1,0) -> 0 | AR13: X | AY13: =IF(B10>9,INT(3*Q1)+1,0) -> 0
AI14: 10 | AJ14: 0 | AK14: 0 | AL14: 1 | AM14: 0 | AN14: 1 | AO14: 0 | AP14: 1
AI15: 11 | AJ15: 1 | AK15: 1 | AL15: 0 | AM15: 0 | AN15: 1 | AO15: 0 | AP15: 1
AI16: 12 | AJ16: 0 | AK16: 0 | AL16: 1 | AM16: 0 | AN16: 1 | AO16: 0 | AP16: 1
B17: impossible | M17: even | W17: certain | AI17: 13 | AJ17: 1 | AK17: 1 | AL17: 0 | AM17: 0 | AN17: 1 | AO17: 0 | AP17: 1
M18: chance | AI18: 14 | AJ18: 0 | AK18: 0 | AL18: 1 | AM18: 0 | AN18: 1 | AO18: 0 | AP18: 1
AI19: 15 | AJ19: 0 | AK19: 1 | AL19: 0 | AM19: 0 | AN19: 1 | AO19: 0 | AP19: 1
C20: =INT(297*N1)+1 -> 180 | D20: =VLOOKUP($C$20,$C$21:$F$317,2) -> 12 | E20: 8 | F20: 8 | I20: 8 | J20: 1 | K20: 2 | L20: 3 | M20: 4 | N20: 5 | O20: 6 | P20: 7 | Q20: 8 | R20: 9 | S20: 10 | T20: 11 | U20: 12 | V20: 13 | W20: 14 | X20: 15 | Y20: 16 | Z20: 17 | AA20: 18 | AB20: 19 | AC20: 20 | AI20: 16 | AJ20: 0 | AK20: 0 | AL20: 1 | AM20: 0 | AN20: 1 | AO20: 0 | AP20: 1
C21: 1 | D21: 1 | E21: 1 | F21: 1 | I21: 1 | P21: 1 | AD21: =SUM(J21:AC21) -> 1 | AE21: =AD21-I21 -> 0 | AI21: 17 | AJ21: 1 | AK21: 1 | AL21: 0 | AM21: 0 | AN21: 1 | AO21: 0 | AP21: 1
C22: 2 | D22: =D21 -> 1 | E22: 1 | F22: 2 | I22: 2 | S22: 1 | Z22: 1 | AD22: =SUM(J22:AC22) -> 2 | AE22: =AD22-I22 -> 0 | AI22: 18 | AJ22: 0 | AK22: 0 | AL22: 1 | AM22: 0 | AN22: 1 | AO22: 0 | AP22: 1
C23: 3 | D23: 1 | E23: 1 | F23: 3 | I23: 3 | L23: 1 | P23: 1 | Z23: 1 | AD23: 3 | AE23: 0 | AI23: 19 | AJ23: 1 | AK23: 1 | AL23: 0 | AM23: 0 | AN23: 1 | AO23: 0 | AP23: 1
C24: 4 | D24: 1 | E24: 2 | F24: 1 | H24: 1 | I24: 4 | J24: 1 | M24: 1 | P24: 1 | S24: 1 | AD24: 4 | AE24: 0 | AI24: 20 | AJ24: 0 | AK24: 0 | AL24: 1 | AM24: 0 | AN24: 1 | AO24: 0 | AP24: 1
C25: 5 | D25: 1 | E25: 2 | F25: 2 | I25: 5 | M25: 1 | O25: 1 | S25: 1 | V25: 1 | W25: 1 | AD25: 5 | AE25: 0 | AI25: Total | AJ25: =COUNTIF(AJ4:AJ24,1) -> 8 | AK25: 10 | AL25: 10 | AM25: 5 | AN25: 14 | AO25: 6 | AP25: 15
C26: 6 | D26: 1 | E26: 2 | F26: 3 | I26: 6 | L26: 1 | Q26: 1 | T26: 1 | U26: 1 | Z26: 1 | AB26: 1 | AD26: 6 | AE26: 0 | AJ26: prime | AK26: odd | AL26: even | AM26: =CONCATENATE("<",$AI$2) -> <6 | AN26: =CONCATENATE(">",$AI$2) -> >6 | AO26: =CONCATENATE("≤",$AI$2) -> ≤6 | AP26: =CONCATENATE("≥",$AI$2) -> ≥6
C27: 7 | D27: 1 | E27: 3 | F27: 1 | I27: 7 | L27: 1 | N27: 1 | R27: 1 | T27: 1 | X27: 1 | Z27: 1 | AB27: 1 | AD27: 7 | AE27: 0
C28: 8 | D28: 1 | E28: 3 | F28: 2 | I28: 8 | J28: 1 | N28: 1 | P28: 1 | T28: 1 | V28: 1 | X28: 1 | Z28: 1 | AB28: 1 | AD28: 8 | AE28: 0
C29: 9 | D29: 1 | E29: 3 | F29: 3 | I29: 9 | J29: 1 | L29: 1 | O29: 1 | R29: 1 | U29: 1 | W29: 1 | Y29: 1 | AA29: 1 | AC29: 1 | AD29: 9 | AE29: 0
C30: 10 | D30: 2 | E30: 1 | F30: 1 | I30: 10 | J30: 1 | M30: 1 | P30: 1 | R30: 1 | S30: 1 | T30: 1 | V30: 1 | X30: 1 | Z30: 1 | AC30: 1 | AD30: 10 | AE30: 0
C31: 11 | D31: =D30 -> 2 | E31: 1 | F31: =F30+1 -> 2 | I31: 11 | J31: 1 | L31: 1 | M31: 1 | O31: 1 | Q31: 1 | S31: 1 | U31: 1 | W31: 1 | X31: 1 | Y31: 1 | AA31: 1 | AD31: 11 | AE31: 0 | AI31: 28 | AK31: 0
C32: 12 | D32: 2 | E32: 1 | F32: =F31+1 -> 3 | I32: 12 | J32: 1 | L32: 1 | N32: 1 | O32: 1 | R32: 1 | S32: 1 | U32: 1 | W32: 1 | Y32: 1 | Z32: 1 | AA32: 1 | AC32: 1 | AD32: 12 | AE32: 0 | AI32: 29 | AK32: 0
C33: 13 | D33: 2 | E33: 1 | F33: =F32+1 -> 4 | I33: 13 | J33: 1 | L33: 1 | M33: 1 | O33: 1 | P33: 1 | Q33: 1 | T33: 1 | U33: 1 | W33: 1 | X33: 1 | Z33: 1 | AA33: 1 | AC33: 1 | AD33: 13 | AE33: 0 | AI33: 30 | AK33: 0
C34: 14 | D34: 2 | E34: =E30+1 -> 2 | F34: =F30 -> 1 | I34: 14 | J34: 1 | L34: 1 | M34: 1 | N34: 1 | P34: 1 | R34: 1 | T34: 1 | V34: 1 | W34: 1 | Y34: 1 | Z34: 1 | AA34: 1 | AB34: 1 | AC34: 1 | AD34: 14 | AE34: 0 | AI34: 31 | AK34: 0
C35: 15 | D35: 2 | E35: 2 | F35: =F34+1 -> 2 | I35: 15 | K35: 1 | L35: 1 | M35: 1 | N35: 1 | O35: 1 | Q35: 1 | R35: 1 | S35: 1 | T35: 1 | U35: 1 | W35: 1 | Y35: 1 | AA35: 1 | AB35: 1 | AC35: 1 | AD35: 15 | AE35: 0 | AI35: 32 | AK35: 0
C36: 16 | D36: 2 | E36: 2 | F36: 3 | I36: 16 | K36: 1 | L36: 1 | M36: 1 | N36: 1 | O36: 1 | P36: 1 | R36: 1 | S36: 1 | U36: 1 | V36: 1 | W36: 1 | X36: 1 | Y36: 1 | Z36: 1 | AA36: 1 | AB36: 1 | AD36: 16 | AE36: 0 | AI36: 33 | AK36: 0
C37: 17 | D37: 2 | E37: 2 | F37: 4 | I37: 17 | J37: 1 | L37: 1 | M37: 1 | N37: 1 | O37: 1 | P37: 1 | R37: 1 | S37: 1 | T37: 1 | U37: 1 | V37: 1 | W37: 1 | X37: 1 | Y37: 1 | AA37: 1 | AB37: 1 | AC37: 1 | AD37: 17 | AE37: 0 | AI37: 34 | AK37: 0
C38: 18 | D38: 2 | E38: =E34+1 -> 3 | F38: =F34 -> 1 | I38: 18 | J38: 1 | K38: 1 | L38: 1 | M38: 1 | N38: 1 | O38: 1 | P38: 1 | Q38: 1 | R38: 1 | T38: 1 | U38: 1 | W38: 1 | X38: 1 | Y38: 1 | Z38: 1 | AA38: 1 | AB38: 1 | AC38: 1 | AD38: 18 | AE38: 0 | AI38: 35 | AK38: 0 | BH38: =BH50 -> 8 | BI38: =GCD(BH38,BH39) -> 4 | BJ38: =BH38/BI38 -> 2 | BK38: =IF(BH38=0,0,BJ38) -> 2
C39: 19 | D39: 2 | E39: 3 | F39: 2 | I39: 19 | J39: 1 | K39: 1 | L39: 1 | M39: 1 | N39: 1 | O39: 1 | P39: 1 | R39: 1 | S39: 1 | T39: 1 | U39: 1 | V39: 1 | W39: 1 | X39: 1 | Y39: 1 | Z39: 1 | AA39: 1 | AB39: 1 | AC39: 1 | AD39: 19 | AE39: 0 | AI39: 36 | AK39: 0 | BH39: =BI50 -> 20 | BI39: =LCM(BH38,BH39) -> 40 | BJ39: =BH39/BI38 -> 5 | BK39: =IF(BH38=0,"",IF(BH40=1,"",BJ39)) -> 5
C40: 20 | D40: 2 | E40: 3 | F40: 3 | AI40: 37 | AK40: 0 | BH40: =BH38/BH39 -> 0.4
C41: 21 | D41: 2 | E41: 3 | F41: 4 | I41: =E20 -> 8 | J41: 1 | K41: 2 | L41: 3 | M41: 4 | N41: 5 | O41: 6 | P41: 7 | Q41: 8 | R41: 9 | S41: 10 | T41: 11 | U41: 12 | V41: 13 | W41: 14 | X41: 15 | Y41: 16 | Z41: 17 | AA41: 18 | AB41: 19 | AC41: 20 | AD41: 32 | AI41: 38 | AK41: 0 | BH41: =BH51 -> 8 | BI41: =GCD(BH41,BH42) -> 8 | BJ41: =BH41/BI41 -> 1 | BK41: =IF(BH41=0,0,BJ41) -> 1
C42: 22 | D42: 2 | E42: =E38+1 -> 4 | F42: =F38 -> 1 | I42: 1 | P42: 1 | AE42: =SUM(J42:AD42) -> 1 | AF42: =AE42-I42 -> 0 | AI42: 39 | AK42: 0 | BH42: =BI51 -> 32 | BI42: =LCM(BH41,BH42) -> 32 | BJ42: =BH42/BI41 -> 4 | BK42: =IF(BH41=0,"",IF(BH43=1,"",BJ42)) -> 4
C43: 23 | D43: 2 | E43: 4 | F43: 2 | I43: 2 | S43: 1 | Z43: 1 | AE43: =SUM(J43:AD43) -> 2 | AF43: =AE43-I43 -> 0 | AI43: 40 | AK43: 0 | BH43: =BH41/BH42 -> 0.25
C44: 24 | D44: 2 | E44: 4 | F44: 3 | I44: 3 | L44: 1 | P44: 1 | Z44: 1 | AE44: 3 | AF44: 0 | BH44: =BH52 -> 8 | BI44: =GCD(BH44,BH45) -> 8 | BJ44: =BH44/BI44 -> 1 | BK44: =IF(BH44=0,0,BJ44) -> 1
C45: 25 | D45: 2 | E45: 4 | F45: 4 | I45: 4 | J45: 1 | O45: 1 | P45: 1 | Z45: 1 | AE45: 4 | AF45: 0 | BH45: =BI52 -> 24 | BI45: =LCM(BH44,BH45) -> 24 | BJ45: =BH45/BI44 -> 3 | BK45: =IF(BH44=0,"",IF(BH46=1,"",BJ45)) -> 3
C46: 26 | D46: =D30+1 -> 3 | E46: 2 | F46: 2 | I46: 5 | M46: 1 | O46: 1 | S46: 1 | W46: 1 | AA46: 1 | AE46: 5 | AF46: 0 | BH46: =BH44/BH45 -> 0.3333333333
C47: 27 | D47: =D46 -> 3 | E47: 2 | F47: =F46+1 -> 3 | I47: 6 | L47: 1 | Q47: 1 | T47: 1 | U47: 1 | Z47: 1 | AB47: 1 | AE47: 6 | AF47: 0
C48: 28 | D48: 3 | E48: 2 | F48: =F47+1 -> 4 | I48: 7 | L48: 1 | N48: 1 | R48: 1 | T48: 1 | X48: 1 | Z48: 1 | AB48: 1 | AE48: 7 | AF48: 0
C49: 29 | D49: 3 | E49: 2 | F49: =F48+1 -> 5 | I49: 8 | J49: 1 | N49: 1 | P49: 1 | T49: 1 | V49: 1 | X49: 1 | Z49: 1 | AB49: 1 | AE49: 8 | AF49: 0 | BB49: =INT(6*$O$1)+1 -> 6 | BC49: =VLOOKUP($BB$49,$BB$50:$BE$55,2) -> 28 | BD49: =VLOOKUP($BB$49,$BB$50:$BE$55,3) -> 24 | BE49: =VLOOKUP($BB$49,$BB$50:$BE$55,4) -> 23 | BL49: 5 | BM49: 6 | BN49: 7 | BO49: 8 | BP49: 9 | BQ49: 10 | BR49: 11 | BS49: 12 | BT49: 13 | BU49: 14 | BV49: 15 | BW49: 16
C50: 30 | D50: 3 | E50: =E46+1 -> 3 | F50: =F46 -> 2 | I50: 9 | J50: 1 | L50: 1 | N50: 1 | R50: 1 | U50: 1 | W50: 1 | Y50: 1 | AA50: 1 | AC50: 1 | AE50: 9 | AF50: 0 | BA50: =INT(37*$N$1)+1 -> 23 | BB50: 1 | BC50: =$BA$50 -> 23 | BD50: =$BA$51 -> 24 | BE50: =$BA$52 -> 28 | BG50: =BC49 -> 28 | BH50: =I20 -> 8 | BI50: 20 | BJ50: =VLOOKUP($BG$50,$BB$57:$BE$101,4) -> 0.6 | BK50: =BH50/BI50 -> 0.4 | BL50: =VLOOKUP($BG50,$BB$57:$BQ$101,BL$49) -> 1 | BM50: 2 | BN50: 1 | BO50: 1 | BP50: 2 | BQ50: 0 | BR50: 0 | BS50: 0 | BT50: 0 | BU50: 0 | BV50: 0 | BW50: 0
C51: 31 | D51: 3 | E51: =E50 -> 3 | F51: =F50+1 -> 3 | I51: 10 | J51: 1 | N51: 1 | P51: 1 | R51: 1 | S51: 1 | T51: 1 | V51: 1 | X51: 1 | Z51: 1 | AC51: 1 | AE51: 10 | AF51: 0 | AZ51: =INT(4*$P$1)+1 -> 1 | BA51: =$BA$50+AZ51 -> 24 | BB51: 2 | BC51: =$BA$50 -> 23 | BD51: =$BA$52 -> 28 | BE51: =$BA$51 -> 24 | BG51: =BD49 -> 24 | BH51: =E20 -> 8 | BI51: 32 | BJ51: =VLOOKUP($BG$51,$BB$57:$BE$101,4) -> 0.5454… | BK51: =BH51/BI51 -> 0.25 | BL51: 1 | BM51: 1 | BN51: 2 | BO51: 1 | BP51: 2 | BQ51: 1 | BR51: 1 | BS51: 2 | BT51: 0 | BU51: 2 | BV51: 2 | BW51: 1
C52: 32 | D52: 3 | E52: =E51 -> 3 | F52: =F51+1 -> 4 | I52: 11 | J52: 1 | L52: 1 | M52: 1 | Q52: 1 | S52: 1 | U52: 1 | W52: 1 | X52: 1 | Y52: 1 | AA52: 1 | AC52: 1 | AE52: 11 | AF52: 0 | AZ52: =INT(4*$Q$1)+1 -> 4 | BA52: =$BA$51+AZ52 -> 28 | BB52: 3 | BC52: =$BA$51 -> 24 | BD52: =$BA$50 -> 23 | BE52: =$BA$52 -> 28 | BG52: =BE49 -> 23 | BH52: =F20 -> 8 | BI52: 24 | BJ52: =VLOOKUP($BG$52,$BB$57:$BE$101,4) -> 0.5 | BK52: =BH52/BI52 -> 0.3333333333 | BL52: 0 | BM52: 1 | BN52: 2 | BO52: 0 | BP52: 0 | BQ52: 0 | BR52: 0 | BS52: 0 | BT52: 0 | BU52: 0 | BV52: 0 | BW52: 0
C53: 33 | D53: 3 | E53: =E52 -> 3 | F53: =F52+1 -> 5 | I53: 12 | J53: 1 | L53: 1 | N53: 1 | O53: 1 | R53: 1 | S53: 1 | U53: 1 | W53: 1 | Y53: 1 | Z53: 1 | AA53: 1 | AC53: 1 | AE53: 12 | AF53: 0 | BB53: 4 | BC53: =$BA$51 -> 24 | BD53: =$BA$52 -> 28 | BE53: =$BA$50 -> 23
C54: 34 | D54: 3 | E54: =E50+1 -> 4 | F54: =F50 -> 2 | I54: 13 | J54: 1 | L54: 1 | M54: 1 | O54: 1 | P54: 1 | Q54: 1 | T54: 1 | U54: 1 | W54: 1 | X54: 1 | Y54: 1 | AA54: 1 | AC54: 1 | AE54: 13 | AF54: 0 | BB54: 5 | BC54: =$BA$52 -> 28 | BD54: =$BA$50 -> 23 | BE54: =$BA$51 -> 24
C55: 35 | D55: 3 | E55: =E54 -> 4 | F55: =F54+1 -> 3 | I55: 14 | J55: 1 | L55: 1 | M55: 1 | N55: 1 | P55: 1 | R55: 1 | T55: 1 | V55: 1 | W55: 1 | Y55: 1 | Z55: 1 | AA55: 1 | AB55: 1 | AC55: 1 | AE55: 14 | AF55: 0 | BB55: 6 | BC55: =$BA$52 -> 28 | BD55: =$BA$51 -> 24 | BE55: =$BA$50 -> 23
C56: 36 | D56: 3 | E56: =E55 -> 4 | F56: =F55+1 -> 4 | I56: 15 | K56: 1 | L56: 1 | M56: 1 | N56: 1 | O56: 1 | Q56: 1 | R56: 1 | S56: 1 | T56: 1 | U56: 1 | W56: 1 | Y56: 1 | AA56: 1 | AB56: 1 | AC56: 1 | AE56: 15 | AF56: 0 | BF56: 1 | BG56: 2 | BH56: 3 | BI56: 4 | BJ56: 5 | BK56: 6 | BL56: 7 | BM56: 8 | BN56: 9 | BO56: 10 | BP56: 11 | BQ56: 12 | BR56: count | BS56: count
C57: 37 | D57: 3 | E57: =E56 -> 4 | F57: =F56+1 -> 5 | I57: 16 | K57: 1 | L57: 1 | M57: 1 | N57: 1 | O57: 1 | P57: 1 | R57: 1 | S57: 1 | U57: 1 | V57: 1 | W57: 1 | X57: 1 | Y57: 1 | Z57: 1 | AA57: 1 | AB57: 1 | AE57: 16 | AF57: 0 | AK57: =-0.3/2.7 -> -0.1111111111 | AL57: 0.4 | AM57: =10*$BK$50+AK57 -> 3.888888889 | AN57: =AL57-1.5+AU60 -> -11.1 | AO57: =10*$BK$51+AK57 -> 2.388888889 | AP57: =AL57-1.5+AW60 -> -11.1 | AQ57: =10*$BK$52+AK57 -> 3.222222222 | AR57: =AL57-1.5+AY60 -> -11.1 | AU57: =IF(AU60=-10,"a",".") -> a | AW57: =IF(AW60=-10,"b",".") -> b | AY57: =IF(AY60=-10,"c",".") -> c | BB57: 1 | BC57: 1 | BD57: 12 | BE57: 0.0833… | BF57: 2 | BG57: 2 | BH57: 2 | BI57: 2 | BJ57: 2 | BK57: 1 | BL57: 2 | BM57: 2 | BN57: 2 | BO57: 2 | BP57: 2 | BQ57: 2 | BR57: =COUNTIF(BF57:BQ57,1) -> 1 | BS57: =COUNTIF(BF57:BQ57,2)+COUNTIF(BF57:BQ57,1) -> 12 | BT57: 1 | BU57: 12 | BV57: =COUNTIF(BF57:BQ57,0) -> 0 | BW57: =BV57+BU57 -> 12 | BX57: =IF(BR57=BT57,1,0) -> 1 | BY57: 1
C58: 38 | D58: 3 | E58: =E54+1 -> 5 | F58: =F54 -> 2 | I58: 17 | J58: 1 | L58: 1 | M58: 1 | N58: 1 | O58: 1 | P58: 1 | R58: 1 | S58: 1 | T58: 1 | U58: 1 | V58: 1 | W58: 1 | X58: 1 | Y58: 1 | AA58: 1 | AB58: 1 | AC58: 1 | AE58: 17 | AF58: 0 | AK58: 0 | AL58: 0 | AM58: =10*$BK$50+AK58 -> 4 | AN58: =AL58-1.5+AU60 -> -11.5 | AO58: =10*$BK$51+AK58 -> 2.5 | AP58: =AL58-1.5+AW60 -> -11.5 | AQ58: =10*$BK$52+AK58 -> 3.333333333 | AR58: =AL58-1.5+AY60 -> -11.5 | AU58: =DYNOFRACT!AU62 -> 0.25 | AW58: =DYNOFRACT!AW62 -> 0.25 | AY58: =DYNOFRACT!AY62 -> 0.25 | BB58: 2 | BC58: 1 | BD58: 11 | BE58: 0.0909… | BF58: 2 | BG58: 2 | BH58: 2 | BI58: 2 | BJ58: 2 | BK58: 2 | BL58: 2 | BM58: 2 | BN58: 1 | BO58: 2 | BP58: 2 | BQ58: 0 | BR58: 1 | BS58: 11 | BT58: 1 | BU58: 11 | BV58: 1 | BW58: 12 | BX58: 1 | BY58: 1
C59: 39 | D59: 3 | E59: =E58 -> 5 | F59: =F58+1 -> 3 | I59: 18 | J59: 1 | K59: 1 | L59: 1 | M59: 1 | O59: 1 | P59: 1 | Q59: 1 | R59: 1 | S59: 1 | T59: 1 | U59: 1 | W59: 1 | X59: 1 | Y59: 1 | Z59: 1 | AA59: 1 | AB59: 1 | AC59: 1 | AE59: 18 | AF59: 0 | AK59: =0.3/2.7 -> 0.1111111111 | AL59: 0.4 | AM59: =10*$BK$50+AK59 -> 4.111111111 | AN59: =AL59-1.5+AU60 -> -11.1 | AO59: =10*$BK$51+AK59 -> 2.611111111 | AP59: =AL59-1.5+AW60 -> -11.1 | AQ59: =10*$BK$52+AK59 -> 3.444444444 | AR59: =AL59-1.5+AY60 -> -11.1 | AU59: =IF(AU60=-10,"","a") ->  | AW59: =IF(AW60=-10,"","b") ->  | AY59: =IF(AY60=-10,"","c") ->  | BB59: 3 | BC59: 1 | BD59: 10 | BE59: 0.1 | BF59: 2 | BG59: 2 | BH59: 2 | BI59: 2 | BJ59: 2 | BK59: 2 | BL59: 1 | BM59: 2 | BN59: 2 | BO59: 0 | BP59: 2 | BQ59: 0 | BR59: 1 | BS59: 10 | BT59: 1 | BU59: 10 | BV59: 2 | BW59: 12 | BX59: 1 | BY59: 1
C60: 40 | D60: 3 | E60: =E59 -> 5 | F60: =F59+1 -> 4 | I60: 19 | J60: 1 | K60: 1 | L60: 1 | M60: 1 | N60: 1 | O60: 1 | P60: 1 | R60: 1 | S60: 1 | T60: 1 | U60: 1 | V60: 1 | W60: 1 | X60: 1 | Y60: 1 | Z60: 1 | AA60: 1 | AB60: 1 | AC60: 1 | AE60: 19 | AF60: 0 | AK60: 0 | AL60: 0 | AM60: =10*$BK$50+AK60 -> 4 | AN60: =AL60-1.5+AU60 -> -11.5 | AO60: =10*$BK$51+AK60 -> 2.5 | AP60: =AL60-1.5+AW60 -> -11.5 | AQ60: =10*$BK$52+AK60 -> 3.333333333 | AR60: =AL60-1.5+AY60 -> -11.5 | AT60: =10*BK50 -> 4 | AU60: -10 | AV60: =10*BK51 -> 2.5 | AW60: -10 | AX60: =10*BK52 -> 3.333333333 | AY60: -10 | BB60: 4 | BC60: 1 | BD60: 9 | BE60: 0.111… | BF60: 2 | BG60: 2 | BH60: 2 | BI60: 2 | BJ60: 2 | BK60: 1 | BL60: 2 | BM60: 2 | BN60: 0 | BO60: 0 | BP60: 2 | BQ60: 0 | BR60: 1 | BS60: 9 | BT60: 1 | BU60: 9 | BV60: 3 | BW60: 12 | BX60: 1 | BY60: 1
C61: 41 | D61: 3 | E61: =E60 -> 5 | F61: =F60+1 -> 5 | I61: 20 | J61: 1 | K61: 1 | L61: 1 | M61: 1 | N61: 1 | O61: 1 | P61: 1 | Q61: 1 | R61: 1 | S61: 1 | U61: 1 | V61: 1 | W61: 1 | X61: 1 | Y61: 1 | Z61: 1 | AA61: 1 | AB61: 1 | AC61: 1 | AD61: 1 | AE61: 20 | AF61: 0 | AK61: 0 | AL61: 0.8 | AM61: =10*$BK$50+AK61 -> 4 | AN61: =AL61-1.5+AU60 -> -10.7 | AO61: =10*$BK$51+AK61 -> 2.5 | AP61: =AL61-1.5+AW60 -> -10.7 | AQ61: =10*$BK$52+AK61 -> 3.333333333 | AR61: =AL61-1.5+AY60 -> -10.7 | AT61: =0.1/1.4 -> 0.07142857143 | AU61: =0.2/1.4 -> 0.1428571429 | AV61: =0.1/1.4 -> 0.07142857143 | AW61: =0.2/1.4 -> 0.1428571429 | AX61: =0.1/1.4 -> 0.07142857143 | AY61: =0.2/1.4 -> 0.1428571429 | BB61: 5 | BC61: 1 | BD61: 8 | BE61: 0.125 | BF61: 2 | BG61: 2 | BH61: 2 | BI61: 2 | BJ61: 2 | BK61: 1 | BL61: 2 | BM61: 2 | BN61: 0 | BO61: 0 | BP61: 0 | BQ61: 0 | BR61: 1 | BS61: 8 | BT61: 1 | BU61: 8 | BV61: 4 | BW61: 12 | BX61: 1 | BY61: 1
C62: 42 | D62: =D46+1 -> 4 | E62: 3 | F62: 3 | AM62: a | AN62: a | AO62: b | AP62: b | AQ62: c | AR62: c | AT62: a | AU62: a | AV62: b | AW62: b | AX62: c | AY62: c | BB62: 6 | BC62: 1 | BD62: 7 | BE62: 0.142857… | BF62: 2 | BG62: 2 | BH62: 2 | BI62: 2 | BJ62: 2 | BK62: 0 | BL62: 1 | BM62: 2 | BN62: 0 | BO62: 0 | BP62: 0 | BQ62: 0 | BR62: 1 | BS62: 7 | BT62: 1 | BU62: 7 | BV62: 5 | BW62: 12 | BX62: 1 | BY62: 1
C63: 43 | D63: =D62 -> 4 | E63: 3 | F63: =F62+1 -> 4 | I63: =F20 -> 8 | J63: 1 | K63: 2 | L63: 3 | M63: 4 | N63: 5 | O63: 6 | P63: 7 | Q63: 8 | R63: 9 | S63: 10 | T63: 11 | U63: 12 | V63: 13 | W63: 14 | X63: 15 | Y63: 16 | Z63: 17 | AA63: 18 | AB63: 19 | AC63: 20 | AD63: 21 | AE63: 22 | AF63: 23 | AG63: 24 | AM63: -1 | AN63: 1.15 | AO63: -1.2 | AP63: 3 | AQ63: 1.25 | AR63: 1 | AT63: =$AT$60+$AT$61*AM63 -> 3.928571429 | AU63: =$AU$60+$AU$61*AN63-$AU$58 -> -10.08571429 | AV63: =$AV$60+$AV$61*AO63 -> 2.414285714 | AW63: =$AW$60+$AW$61*AP63-$AW$58 -> -9.821428571 | AX63: =$AX$60+$AX$61*AQ63 -> 3.422619048 | AY63: =$AY$60+$AY$61*AR63-$AY$58 -> -10.10714286 | BB63: 7 | BC63: 1 | BD63: 6 | BE63: 0.166… | BF63: 2 | BG63: 1 | BH63: 2 | BI63: 2 | BJ63: 0 | BK63: 2 | BL63: 0 | BM63: 2 | BN63: 0 | BO63: 0 | BP63: 0 | BQ63: 0 | BR63: 1 | BS63: 6 | BT63: 1 | BU63: 6 | BV63: 6 | BW63: 12 | BX63: 1 | BY63: 1
C64: 44 | D64: 4 | E64: 3 | F64: =F63+1 -> 5 | I64: 1 | P64: 1 | AH64: =SUM(J64:AG64) -> 1 | AI64: =AH64-I64 -> 0 | AM64: 0 | AN64: 1.75 | AO64: =AO63 -> -1.2 | AP64: -1.325 | AQ64: 1 | AR64: 1.5 | AT64: 4 | AU64: -10 | AV64: 2.414285714 | AW64: -10.43928571 | AX64: 3.404761905 | AY64: -10.03571429 | BB64: 8 | BC64: 2 | BD64: 11 | BE64: 0.1818… | BF64: 1 | BG64: 2 | BH64: 2 | BI64: 2 | BJ64: 2 | BK64: 2 | BL64: 2 | BM64: 1 | BN64: 2 | BO64: 2 | BP64: 0 | BQ64: 2 | BR64: 2 | BS64: 11 | BT64: 2 | BU64: 11 | BV64: 1 | BW64: 12 | BX64: 1 | BY64: 1
C65: 45 | D65: 4 | E65: 3 | F65: =F64+1 -> 6 | I65: 2 | S65: 1 | Z65: 1 | AH65: =SUM(J65:AG65) -> 2 | AI65: =AH65-I65 -> 0 | AM65: 0.8 | AN65: 1.45 | AO65: =AO63 -> -1.2 | AP65: -0.6 | AQ65: 0 | AR65: 1.75 | AT65: 4.057142857 | AU65: -10.04285714 | AV65: 2.414285714 | AW65: -10.33571429 | AX65: 3.333333333 | AY65: -10 | BB65: 9 | BC65: 1 | BD65: 5 | BE65: 0.2 | BF65: 2 | BG65: 2 | BH65: 1 | BI65: 2 | BJ65: 2 | BK65: 0 | BL65: 0 | BM65: 0 | BN65: 0 | BO65: 0 | BP65: 0 | BQ65: 0 | BR65: 1 | BS65: 5 | BT65: 1 | BU65: 5 | BV65: 7 | BW65: 12 | BX65: 1 | BY65: 1
C66: 46 | D66: 4 | E66: =E62+1 -> 4 | F66: =F62 -> 3 | I66: 3 | L66: 1 | O66: 1 | Z66: 1 | AH66: 3 | AI66: 0 | AM66: 1 | AN66: 0.5 | AO66: =AO63 -> -1.2 | AP66: =AP65 -> -0.6 | AQ66: -1 | AR66: 1.2 | AT66: 4.071428571 | AU66: -10.17857143 | AV66: 2.414285714 | AW66: -10.33571429 | AX66: 3.261904762 | AY66: -10.07857143 | BB66: 10 | BC66: 2 | BD66: 9 | BE66: 0.222… | BF66: 2 | BG66: 1 | BH66: 2 | BI66: 2 | BJ66: 2 | BK66: 2 | BL66: 2 | BM66: 2 | BN66: 0 | BO66: 1 | BP66: 0 | BQ66: 0 | BR66: 2 | BS66: 9 | BT66: 2 | BU66: 9 | BV66: 3 | BW66: 12 | BX66: 1 | BY66: 1
C67: 47 | D67: 4 | E67: =E66 -> 4 | F67: =F66+1 -> 4 | I67: 4 | J67: 1 | M67: 1 | P67: 1 | S67: 1 | AH67: 4 | AI67: 0 | AM67: 1 | AN67: -1.2 | AO67: 0 | AP67: -1.4 | AQ67: -1.25 | AR67: 0.2 | AT67: 4.071428571 | AU67: -10.42142857 | AV67: 2.5 | AW67: -10.45 | AX67: 3.244047619 | AY67: -10.22142857 | BB67: 11 | BC67: 1 | BD67: 4 | BE67: 0.25 | BF67: 2 | BG67: 1 | BH67: 2 | BI67: 2 | BJ67: 0 | BK67: 0 | BL67: 0 | BM67: 0 | BN67: 0 | BO67: 0 | BP67: 0 | BQ67: 0 | BR67: 1 | BS67: 4 | BT67: 1 | BU67: 4 | BV67: 8 | BW67: 12 | BX67: 1 | BY67: 1
C68: 48 | D68: 4 | E68: =E67 -> 4 | F68: =F67+1 -> 5 | I68: 5 | M68: 1 | O68: 1 | S68: 1 | V68: 1 | AB68: 1 | AH68: 5 | AI68: 0 | AM68: 1 | AN68: -0.6 | AO68: 1 | AP68: -1 | AQ68: -1 | AR68: -0.8 | AT68: 4.071428571 | AU68: -10.33571429 | AV68: 2.571428571 | AW68: -10.39285714 | AX68: 3.261904762 | AY68: -10.36428571 | BB68: 12 | BC68: 3 | BD68: 11 | BE68: 0.2727… | BF68: 2 | BG68: 1 | BH68: 2 | BI68: 2 | BJ68: 1 | BK68: 2 | BL68: 2 | BM68: 2 | BN68: 2 | BO68: 0 | BP68: 1 | BQ68: 2 | BR68: 3 | BS68: 11 | BT68: 3 | BU68: 11 | BV68: 1 | BW68: 12 | BX68: 1 | BY68: 1
C69: 49 | D69: 4 | E69: =E68 -> 4 | F69: =F68+1 -> 6 | I69: 6 | J69: 1 | L69: 1 | T69: 1 | U69: 1 | Z69: 1 | AB69: 1 | AH69: 6 | AI69: 0 | AM69: 0 | AN69: -1.2 | AO69: 1.25 | AP69: 0 | AQ69: 0 | AR69: -1.35 | AT69: 4 | AU69: -10.42142857 | AV69: 2.589285714 | AW69: -10.25 | AX69: 3.333333333 | AY69: -10.44285714 | BB69: 13 | BC69: 2 | BD69: 7 | BE69: 0.285714… | BF69: 2 | BG69: 1 | BH69: 2 | BI69: 2 | BJ69: 2 | BK69: 2 | BL69: 1 | BM69: 0 | BN69: 0 | BO69: 0 | BP69: 0 | BQ69: 0 | BR69: 2 | BS69: 7 | BT69: 2 | BU69: 7 | BV69: 5 | BW69: 12 | BX69: 1 | BY69: 1
C70: 50 | D70: 4 | E70: =E66+1 -> 5 | F70: =F66 -> 3 | I70: 7 | L70: 1 | O70: 1 | R70: 1 | T70: 1 | Y70: 1 | Z70: 1 | AB70: 1 | AH70: 7 | AI70: 0 | AM70: -1 | AN70: -1 | AO70: 1 | AP70: 1.25 | AQ70: 1 | AR70: -1 | AT70: 3.928571429 | AU70: -10.39285714 | AV70: 2.571428571 | AW70: -10.07142857 | AX70: 3.404761905 | AY70: -10.39285714 | BB70: 14 | BC70: 3 | BD70: 10 | BE70: 0.3 | BF70: 1 | BG70: 2 | BH70: 1 | BI70: 2 | BJ70: 2 | BK70: 1 | BL70: 2 | BM70: 2 | BN70: 0 | BO70: 0 | BP70: 2 | BQ70: 2 | BR70: 3 | BS70: 10 | BT70: 3 | BU70: 10 | BV70: 2 | BW70: 12 | BX70: 1 | BY70: 1
C71: 51 | D71: 4 | E71: =E70 -> 5 | F71: =F70+1 -> 4 | I71: 8 | K71: 1 | N71: 1 | P71: 1 | S71: 1 | V71: 1 | X71: 1 | AA71: 1 | AC71: 1 | AH71: 8 | AI71: 0 | AM71: -1 | AN71: 0 | AO71: 0 | AP71: 1.75 | AQ71: 1.35 | AR71: -0.5 | AT71: 3.928571429 | AU71: -10.25 | AV71: 2.5 | AW71: -10 | AX71: 3.429761905 | AY71: -10.32142857 | BB71: 15 | BC71: 1 | BD71: 3 | BE71: 0.333… | BF71: 2 | BG71: 2 | BH71: 1 | BI71: 0 | BJ71: 0 | BK71: 0 | BL71: 0 | BM71: 0 | BN71: 0 | BO71: 0 | BP71: 0 | BQ71: 0 | BR71: 1 | BS71: 3 | BT71: 1 | BU71: 3 | BV71: 9 | BW71: 12 | BX71: 1 | BY71: 1
C72: 52 | D72: 4 | E72: =E71 -> 5 | F72: =F71+1 -> 5 | I72: 9 | J72: 1 | L72: 1 | O72: 1 | R72: 1 | U72: 1 | W72: 1 | AA72: 1 | AC72: 1 | AD72: 1 | AH72: 9 | AI72: 0 | AM72: 0 | AN72: 0.3 | AO72: =AO63 -> -1.2 | AP72: 0.8 | AQ72: 1.35 | AR72: -0.5 | AT72: 4 | AU72: -10.20714286 | AV72: 2.414285714 | AW72: -10.13571429 | AX72: 3.429761905 | AY72: -10.32142857 | BB72: 16 | BC72: 4 | BD72: 11 | BE72: 0.3636… | BF72: 1 | BG72: 2 | BH72: 1 | BI72: 2 | BJ72: 2 | BK72: 1 | BL72: 2 | BM72: 2 | BN72: 0 | BO72: 2 | BP72: 2 | BQ72: 1 | BR72: 4 | BS72: 11 | BT72: 4 | BU72: 11 | BV72: 1 | BW72: 12 | BX72: 1 | BY72: 1
C73: 53 | D73: 4 | E73: =E72 -> 5 | F73: =F72+1 -> 6 | I73: 10 | J73: 1 | M73: 1 | P73: 1 | R73: 1 | S73: 1 | T73: 1 | V73: 1 | X73: 1 | Z73: 1 | AC73: 1 | AH73: 10 | AI73: 0 | AM73: 1 | AN73: 0.6 | AO73: =AO63 -> -1.2 | AP73: 0.8 | AQ73: 1.35 | AR73: -0.5 | AT73: 4.071428571 | AU73: -10.16428571 | AV73: 2.414285714 | AW73: -10.13571429 | AX73: 3.429761905 | AY73: -10.32142857 | BB73: 17 | BC73: 3 | BD73: 8 | BE73: 0.375 | BF73: 2 | BG73: 1 | BH73: 2 | BI73: 2 | BJ73: 1 | BK73: 2 | BL73: 2 | BM73: 1 | BN73: 0 | BO73: 0 | BP73: 0 | BQ73: 0 | BR73: 3 | BS73: 8 | BT73: 3 | BU73: 8 | BV73: 4 | BW73: 12 | BX73: 1 | BY73: 1
C74: 54 | D74: 4 | E74: =E70+1 -> 6 | F74: =F70 -> 3 | I74: 11 | J74: 1 | L74: 1 | O74: 1 | Q74: 1 | S74: 1 | T74: 1 | V74: 1 | X74: 1 | Y74: 1 | AA74: 1 | AG74: 1 | AH74: 11 | AI74: 0 | AM74: 1 | AN74: 0.6 | AO74: =AO63 -> -1.2 | AP74: 0.8 | AQ74: 1.35 | AR74: -0.5 | AT74: 4.071428571 | AU74: -10.16428571 | AV74: 2.414285714 | AW74: -10.13571429 | AX74: 3.429761905 | AY74: -10.32142857 | BB74: 18 | BC74: 2 | BD74: 5 | BE74: 0.4 | BF74: 2 | BG74: 1 | BH74: 2 | BI74: 2 | BJ74: 1 | BK74: 0 | BL74: 0 | BM74: 0 | BN74: 0 | BO74: 0 | BP74: 0 | BQ74: 0 | BR74: 2 | BS74: 5 | BT74: 2 | BU74: 5 | BV74: 7 | BW74: 12 | BX74: 1 | BY74: 1
C75: 55 | D75: 4 | E75: =E74 -> 6 | F75: =F74+1 -> 4 | I75: 12 | J75: 1 | L75: 1 | O75: 1 | R75: 1 | U75: 1 | W75: 1 | X75: 1 | Y75: 1 | Z75: 1 | AA75: 1 | AC75: 1 | AF75: 1 | AH75: 12 | AI75: 0 | AM75: 1 | AN75: 0.6 | AO75: =AO63 -> -1.2 | AP75: 0.8 | AQ75: 1.35 | AR75: -0.5 | AT75: 4.071428571 | AU75: -10.16428571 | AV75: 2.414285714 | AW75: -10.13571429 | AX75: 3.429761905 | AY75: -10.32142857 | BB75: 19 | BC75: 5 | BD75: 12 | BE75: 0.416… | BF75: 1 | BG75: 2 | BH75: 2 | BI75: 1 | BJ75: 2 | BK75: 1 | BL75: 2 | BM75: 2 | BN75: 1 | BO75: 2 | BP75: 1 | BQ75: 2 | BR75: 5 | BS75: 12 | BT75: 5 | BU75: 12 | BV75: 0 | BW75: 12 | BX75: 1 | BY75: 1
C76: 56 | D76: 4 | E76: =E75 -> 6 | F76: =F75+1 -> 5 | I76: 13 | J76: 1 | L76: 1 | O76: 1 | Q76: 1 | R76: 1 | T76: 1 | U76: 1 | W76: 1 | X76: 1 | Z76: 1 | AA76: 1 | AC76: 1 | AF76: 1 | AH76: 13 | AI76: 0 | BB76: 20 | BC76: 3 | BD76: 7 | BE76: 0.428571… | BF76: 2 | BG76: 1 | BH76: 2 | BI76: 2 | BJ76: 1 | BK76: 1 | BL76: 2 | BM76: 0 | BN76: 0 | BO76: 0 | BP76: 0 | BQ76: 0 | BR76: 3 | BS76: 7 | BT76: 3 | BU76: 7 | BV76: 5 | BW76: 12 | BX76: 1 | BY76: 1
C77: 57 | D77: 4 | E77: =E76 -> 6 | F77: =F76+1 -> 6 | I77: 14 | J77: 1 | L77: 1 | N77: 1 | O77: 1 | P77: 1 | Q77: 1 | R77: 1 | T77: 1 | W77: 1 | Z77: 1 | AA77: 1 | AB77: 1 | AC77: 1 | AE77: 1 | AH77: 14 | AI77: 0 | BB77: 21 | BC77: 4 | BD77: 9 | BE77: 0.444… | BF77: 1 | BG77: 2 | BH77: 1 | BI77: 1 | BJ77: 2 | BK77: 2 | BL77: 2 | BM77: 2 | BN77: 0 | BO77: 0 | BP77: 1 | BQ77: 0 | BR77: 4 | BS77: 9 | BT77: 4 | BU77: 9 | BV77: 3 | BW77: 12 | BX77: 1 | BY77: 1
C78: 58 | D78: =D62+1 -> 5 | E78: 4 | F78: 4 | I78: 15 | J78: 1 | L78: 1 | M78: 1 | O78: 1 | Q78: 1 | R78: 1 | S78: 1 | T78: 1 | U78: 1 | W78: 1 | Y78: 1 | AA78: 1 | AB78: 1 | AC78: 1 | AD78: 1 | AH78: 15 | AI78: 0 | BB78: 22 | BC78: 5 | BD78: 11 | BE78: 0.4545… | BF78: 2 | BG78: 1 | BH78: 1 | BI78: 2 | BJ78: 1 | BK78: 2 | BL78: 2 | BM78: 1 | BN78: 0 | BO78: 2 | BP78: 1 | BQ78: 2 | BR78: 5 | BS78: 11 | BT78: 5 | BU78: 11 | BV78: 1 | BW78: 12 | BX78: 1 | BY78: 1
C79: 59 | D79: =D78 -> 5 | E79: 4 | F79: =F78+1 -> 5 | I79: 16 | K79: 1 | L79: 1 | M79: 1 | N79: 1 | O79: 1 | P79: 1 | R79: 1 | S79: 1 | U79: 1 | V79: 1 | X79: 1 | Y79: 1 | AA79: 1 | AB79: 1 | AD79: 1 | AG79: 1 | AH79: 16 | AI79: 0 | BB79: 23 | BC79: 1 | BD79: 2 | BE79: 0.5 | BF79: 0 | BG79: 1 | BH79: 2 | BI79: 0 | BJ79: 0 | BK79: 0 | BL79: 0 | BM79: 0 | BN79: 0 | BO79: 0 | BP79: 0 | BQ79: 0 | BR79: 1 | BS79: 2 | BT79: 1 | BU79: 2 | BV79: 10 | BW79: 12 | BX79: 1 | BY79: 1
C80: 60 | D80: 5 | E80: 4 | F80: =F79+1 -> 6 | I80: 17 | J80: 1 | L80: 1 | M80: 1 | N80: 1 | O80: 1 | P80: 1 | S80: 1 | T80: 1 | U80: 1 | V80: 1 | W80: 1 | Y80: 1 | AA80: 1 | AB80: 1 | AC80: 1 | AD80: 1 | AF80: 1 | AH80: 17 | AI80: 0 | BB80: 24 | BC80: 6 | BD80: 11 | BE80: 0.5454… | BF80: 1 | BG80: 1 | BH80: 2 | BI80: 1 | BJ80: 2 | BK80: 1 | BL80: 1 | BM80: 2 | BN80: 0 | BO80: 2 | BP80: 2 | BQ80: 1 | BR80: 6 | BS80: 11 | BT80: 6 | BU80: 11 | BV80: 1 | BW80: 12 | BX80: 1 | BY80: 1
C81: 61 | D81: 5 | E81: 4 | F81: =F80+1 -> 7 | I81: 18 | J81: 1 | K81: 1 | L81: 1 | M81: 1 | N81: 1 | O81: 1 | Q81: 1 | R81: 1 | T81: 1 | U81: 1 | W81: 1 | X81: 1 | Y81: 1 | Z81: 1 | AB81: 1 | AC81: 1 | AE81: 1 | AG81: 1 | AH81: 18 | AI81: 0 | BB81: 25 | BC81: 5 | BD81: 9 | BE81: 0.555… | BF81: 1 | BG81: 2 | BH81: 1 | BI81: 2 | BJ81: 2 | BK81: 1 | BL81: 2 | BM81: 1 | BN81: 1 | BO81: 0 | BP81: 0 | BQ81: 0 | BR81: 5 | BS81: 9 | BT81: 5 | BU81: 9 | BV81: 3 | BW81: 12 | BX81: 1 | BY81: 1
C82: 62 | D82: =D81 -> 5 | E82: =E78+1 -> 5 | F82: =F78 -> 4 | I82: 19 | J82: 1 | K82: 1 | L82: 1 | M82: 1 | N82: 1 | O82: 1 | P82: 1 | R82: 1 | S82: 1 | T82: 1 | U82: 1 | V82: 1 | W82: 1 | X82: 1 | Z82: 1 | AB82: 1 | AC82: 1 | AE82: 1 | AG82: 1 | AH82: 19 | AI82: 0 | BB82: 26 | BC82: 4 | BD82: 7 | BE82: 0.571428… | BF82: 1 | BG82: 1 | BH82: 2 | BI82: 1 | BJ82: 2 | BK82: 2 | BL82: 1 | BM82: 0 | BN82: 0 | BO82: 0 | BP82: 0 | BQ82: 0 | BR82: 4 | BS82: 7 | BT82: 4 | BU82: 7 | BV82: 5 | BW82: 12 | BX82: 1 | BY82: 1
C83: 63 | D83: =D82 -> 5 | E83: =E82 -> 5 | F83: =F82+1 -> 5 | I83: 20 | K83: 1 | L83: 1 | M83: 1 | N83: 1 | O83: 1 | P83: 1 | Q83: 1 | R83: 1 | S83: 1 | U83: 1 | V83: 1 | W83: 1 | X83: 1 | Y83: 1 | Z83: 1 | AA83: 1 | AB83: 1 | AC83: 1 | AD83: 1 | AF83: 1 | AH83: 20 | AI83: 0 | BB83: 27 | BC83: 7 | BD83: 12 | BE83: 0.583… | BF83: 1 | BG83: 1 | BH83: 2 | BI83: 1 | BJ83: 1 | BK83: 2 | BL83: 1 | BM83: 1 | BN83: 2 | BO83: 1 | BP83: 2 | BQ83: 2 | BR83: 7 | BS83: 12 | BT83: 7 | BU83: 12 | BV83: 0 | BW83: 12 | BX83: 1 | BY83: 1
C84: 64 | D84: =D83 -> 5 | E84: =E83 -> 5 | F84: =F83+1 -> 6 | I84: 21 | K84: 1 | L84: 1 | M84: 1 | N84: 1 | O84: 1 | P84: 1 | Q84: 1 | R84: 1 | S84: 1 | T84: 1 | V84: 1 | W84: 1 | X84: 1 | Y84: 1 | Z84: 1 | AA84: 1 | AB84: 1 | AC84: 1 | AD84: 1 | AE84: 1 | AG84: 1 | AH84: 21 | AI84: 0 | BB84: 28 | BC84: 3 | BD84: 5 | BE84: 0.6 | BF84: 1 | BG84: 2 | BH84: 1 | BI84: 1 | BJ84: 2 | BK84: 0 | BL84: 0 | BM84: 0 | BN84: 0 | BO84: 0 | BP84: 0 | BQ84: 0 | BR84: 3 | BS84: 5 | BT84: 3 | BU84: 5 | BV84: 7 | BW84: 12 | BX84: 1 | BY84: 1
C85: 65 | D85: =D84 -> 5 | E85: =E84 -> 5 | F85: =F84+1 -> 7 | I85: 22 | J85: 1 | L85: 1 | M85: 1 | N85: 1 | O85: 1 | P85: 1 | Q85: 1 | R85: 1 | S85: 1 | T85: 1 | U85: 1 | W85: 1 | X85: 1 | Y85: 1 | Z85: 1 | AA85: 1 | AB85: 1 | AC85: 1 | AD85: 1 | AE85: 1 | AF85: 1 | AG85: 1 | AH85: 22 | AI85: 0 | BB85: 29 | BC85: 5 | BD85: 8 | BE85: 0.625 | BF85: 2 | BG85: 1 | BH85: 2 | BI85: 1 | BJ85: 1 | BK85: 2 | BL85: 1 | BM85: 1 | BN85: 0 | BO85: 0 | BP85: 0 | BQ85: 0 | BR85: 5 | BS85: 8 | BT85: 5 | BU85: 8 | BV85: 4 | BW85: 12 | BX85: 1 | BY85: 1
C86: 66 | D86: =D85 -> 5 | E86: =E82+1 -> 6 | F86: =F82 -> 4 | I86: 23 | J86: 1 | K86: 1 | L86: 1 | M86: 1 | N86: 1 | O86: 1 | P86: 1 | Q86: 1 | R86: 1 | S86: 1 | T86: 1 | V86: 1 | W86: 1 | X86: 1 | Y86: 1 | Z86: 1 | AA86: 1 | AB86: 1 | AC86: 1 | AD86: 1 | AE86: 1 | AF86: 1 | AG86: 1 | AH86: 23 | AI86: 0 | BB86: 30 | BC86: 7 | BD86: 11 | BE86: 0.6363… | BF86: 1 | BG86: 1 | BH86: 1 | BI86: 2 | BJ86: 2 | BK86: 1 | BL86: 2 | BM86: 1 | BN86: 1 | BO86: 1 | BP86: 0 | BQ86: 2 | BR86: 7 | BS86: 11 | BT86: 7 | BU86: 11 | BV86: 1 | BW86: 12 | BX86: 1 | BY86: 1
C87: 67 | D87: =D86 -> 5 | E87: =E86 -> 6 | F87: =F86+1 -> 5 | BB87: 31 | BC87: 2 | BD87: 3 | BE87: 0.666… | BF87: 1 | BG87: 2 | BH87: 1 | BI87: 0 | BJ87: 0 | BK87: 0 | BL87: 0 | BM87: 0 | BN87: 0 | BO87: 0 | BP87: 0 | BQ87: 0 | BR87: 2 | BS87: 3 | BT87: 2 | BU87: 3 | BV87: 9 | BW87: 12 | BX87: 1 | BY87: 1
C88: 68 | D88: 5 | E88: =E87 -> 6 | F88: =F87+1 -> 6 | J88: 32 | K88: 24 | N88: 1 | O88: 1 | P88: 1 | Q88: 1 | R88: 1 | S88: 1 | T88: 1 | U88: 1 | V88: 1 | W88: 1 | X88: 1 | BB88: 32 | BC88: 7 | BD88: 10 | BE88: 0.7 | BF88: 1 | BG88: 2 | BH88: 1 | BI88: 1 | BJ88: 1 | BK88: 1 | BL88: 2 | BM88: 1 | BN88: 1 | BO88: 0 | BP88: 0 | BQ88: 2 | BR88: 7 | BS88: 10 | BT88: 7 | BU88: 10 | BV88: 2 | BW88: 12 | BX88: 1 | BY88: 1
C89: 69 | D89: 5 | E89: =E88 -> 6 | F89: =F88+1 -> 7 | I89: 1 | J89: 0.047619… | K89: 0.041666… | N89: 1 | O89: =P89-1 -> 1 | P89: 2 | Q89: 3 | R89: =Q89+1 -> 4 | S89: =R89+1 -> 5 | T89: =U89-1 -> 1 | U89: 2 | V89: 3 | W89: =V89+1 -> 4 | X89: =W89+1 -> 5 | BB89: 33 | BC89: 5 | BD89: 7 | BE89: 0.714285… | BF89: 1 | BG89: 2 | BH89: 1 | BI89: 1 | BJ89: 1 | BK89: 1 | BL89: 2 | BM89: 0 | BN89: 0 | BO89: 0 | BP89: 0 | BQ89: 0 | BR89: 5 | BS89: 7 | BT89: 5 | BU89: 7 | BV89: 5 | BW89: 12 | BX89: 1 | BY89: 1
C90: 70 | D90: 5 | E90: =E86+1 -> 7 | F90: =F86 -> 4 | I90: 2 | J90: 0.095238… | K90: 0.08333… | N90: 2 | O90: 1 | P90: 2 | Q90: 3 | R90: 4 | S90: 5 | T90: 1 | U90: 2 | V90: 3 | W90: 4 | X90: 5 | BB90: 34 | BC90: 8 | BD90: 11 | BE90: 0.7272… | BF90: 1 | BG90: 1 | BH90: 1 | BI90: 2 | BJ90: 2 | BK90: 1 | BL90: 1 | BM90: 1 | BN90: 0 | BO90: 1 | BP90: 2 | BQ90: 1 | BR90: 8 | BS90: 11 | BT90: 8 | BU90: 11 | BV90: 1 | BW90: 12 | BX90: 1 | BY90: 1
C91: 71 | D91: 5 | E91: =E90 -> 7 | F91: =F90+1 -> 5 | I91: 3 | J91: 0.142857… | K91: 0.125 | N91: 3 | O91: 3 | P91: 4 | Q91: 5 | R91: 6 | S91: 7 | T91: 2 | U91: 3 | V91: 4 | W91: 5 | X91: 6 | BB91: 35 | BC91: 3 | BD91: 4 | BE91: 0.75 | BF91: 1 | BG91: 2 | BH91: 1 | BI91: 1 | BJ91: 0 | BK91: 0 | BL91: 0 | BM91: 0 | BN91: 0 | BO91: 0 | BP91: 0 | BQ91: 0 | BR91: 3 | BS91: 4 | BT91: 3 | BU91: 4 | BV91: 8 | BW91: 12 | BX91: 1 | BY91: 1
C92: 72 | D92: 5 | E92: =E91 -> 7 | F92: =F91+1 -> 6 | I92: 4 | J92: 0.190476… | K92: 0.1666… | N92: 4 | O92: 4 | P92: 5 | Q92: 6 | R92: 7 | S92: 8 | T92: 3 | U92: 4 | V92: 5 | W92: 6 | X92: 7 | BB92: 36 | BC92: 7 | BD92: 9 | BE92: 0.777… | BF92: 1 | BG92: 1 | BH92: 1 | BI92: 2 | BJ92: 2 | BK92: 1 | BL92: 1 | BM92: 1 | BN92: 1 | BO92: 0 | BP92: 0 | BQ92: 0 | BR92: 7 | BS92: 9 | BT92: 7 | BU92: 9 | BV92: 3 | BW92: 12 | BX92: 1 | BY92: 1
C93: 73 | D93: 5 | E93: =E92 -> 7 | F93: =F92+1 -> 7 | I93: 5 | J93: 0.238095… | K93: 0.208333… | N93: 5 | O93: 6 | P93: 7 | Q93: 8 | R93: 9 | S93: 10 | T93: 4 | U93: 5 | V93: 6 | W93: 7 | X93: 8 | BB93: 37 | BC93: 4 | BD93: 5 | BE93: 0.8 | BF93: 1 | BG93: 1 | BH93: 2 | BI93: 1 | BJ93: 1 | BK93: 0 | BL93: 0 | BM93: 0 | BN93: 0 | BO93: 0 | BP93: 0 | BQ93: 0 | BR93: 4 | BS93: 5 | BT93: 4 | BU93: 5 | BV93: 7 | BW93: 12 | BX93: 1 | BY93: 1
C94: 74 | D94: =D78+1 -> 6 | E94: 5 | F94: 6 | I94: 6 | J94: 0.285714… | K94: 0.25 | N94: 6 | O94: 8 | P94: 9 | Q94: 10 | R94: 11 | S94: 12 | T94: 5 | U94: 6 | V94: 7 | W94: 8 | X94: 9 | BB94: 38 | BC94: 9 | BD94: 11 | BE94: 0.8181… | BF94: 1 | BG94: 1 | BH94: 1 | BI94: 2 | BJ94: 1 | BK94: 1 | BL94: 1 | BM94: 1 | BN94: 2 | BO94: 0 | BP94: 1 | BQ94: 1 | BR94: 9 | BS94: 11 | BT94: 9 | BU94: 11 | BV94: 1 | BW94: 12 | BX94: 1 | BY94: 1
C95: 75 | D95: 6 | E95: =E94 -> 5 | F95: =F94+1 -> 7 | I95: 7 | J95: 0.333… | K95: 0.291666… | N95: 7 | O95: 9 | P95: 10 | Q95: 11 | R95: 12 | S95: 13 | T95: 6 | U95: 7 | V95: 8 | W95: 9 | X95: 10 | BB95: 39 | BC95: 5 | BD95: 6 | BE95: 0.833… | BF95: 1 | BG95: 2 | BH95: 1 | BI95: 1 | BJ95: 1 | BK95: 1 | BL95: 0 | BM95: 0 | BN95: 0 | BO95: 0 | BP95: 0 | BQ95: 0 | BR95: 5 | BS95: 6 | BT95: 5 | BU95: 6 | BV95: 6 | BW95: 12 | BX95: 1 | BY95: 1
C96: 76 | D96: 6 | E96: =E95 -> 5 | F96: =F95+1 -> 8 | I96: 8 | J96: 0.380952… | K96: 0.333… | N96: 8 | O96: 11 | P96: 12 | Q96: 13 | R96: 14 | S96: 15 | T96: 8 | U96: 9 | V96: 10 | W96: 11 | X96: 12 | BB96: 40 | BC96: 6 | BD96: 7 | BE96: 0.857142… | BF96: 1 | BG96: 2 | BH96: 1 | BI96: 1 | BJ96: 1 | BK96: 1 | BL96: 1 | BM96: 0 | BN96: 0 | BO96: 0 | BP96: 0 | BQ96: 0 | BR96: 6 | BS96: 7 | BT96: 6 | BU96: 7 | BV96: 5 | BW96: 12 | BX96: 1 | BY96: 1
C97: 77 | D97: 6 | E97: =E96 -> 5 | F97: =F96+1 -> 9 | I97: 9 | J97: 0.428571… | K97: 0.375 | N97: 9 | O97: 12 | P97: 13 | Q97: 14 | R97: 15 | S97: 16 | T97: 9 | U97: 10 | V97: 11 | W97: 12 | X97: 13 | BB97: 41 | BC97: 7 | BD97: 8 | BE97: 0.875 | BF97: 1 | BG97: 2 | BH97: 1 | BI97: 1 | BJ97: 1 | BK97: 1 | BL97: 1 | BM97: 1 | BN97: 0 | BO97: 0 | BP97: 0 | BQ97: 0 | BR97: 7 | BS97: 8 | BT97: 7 | BU97: 8 | BV97: 4 | BW97: 12 | BX97: 1 | BY97: 1
C98: 78 | D98: 6 | E98: =E94+1 -> 6 | F98: =F94 -> 6 | I98: 10 | J98: 0.476190… | K98: 0.41666… | N98: 10 | O98: 14 | P98: 15 | Q98: 16 | R98: 17 | S98: 18 | T98: 10 | U98: 11 | V98: 12 | W98: 13 | X98: 14 | BB98: 42 | BC98: 8 | BD98: 9 | BE98: 0.888… | BF98: 1 | BG98: 1 | BH98: 1 | BI98: 1 | BJ98: 1 | BK98: 2 | BL98: 1 | BM98: 1 | BN98: 0 | BO98: 1 | BP98: 0 | BQ98: 0 | BR98: 8 | BS98: 9 | BT98: 8 | BU98: 9 | BV98: 3 | BW98: 12 | BX98: 1 | BY98: 1
C99: 79 | D99: 6 | E99: =E98 -> 6 | F99: =F98+1 -> 7 | I99: 11 | J99: 0.523809… | K99: 0.458333… | N99: 11 | O99: 16 | P99: 17 | Q99: 18 | R99: 19 | S99: 20 | T99: 11 | U99: 12 | V99: 13 | W99: 14 | X99: 15 | BB99: 43 | BC99: 9 | BD99: 10 | BE99: 0.9 | BF99: 1 | BG99: 1 | BH99: 2 | BI99: 1 | BJ99: 1 | BK99: 1 | BL99: 1 | BM99: 1 | BN99: 1 | BO99: 0 | BP99: 0 | BQ99: 1 | BR99: 9 | BS99: 10 | BT99: 9 | BU99: 10 | BV99: 2 | BW99: 12 | BX99: 1 | BY99: 1
C100: 80 | D100: 6 | E100: =E99 -> 6 | F100: =F99+1 -> 8 | I100: 12 | J100: 0.571428… | K100: 0.5 | N100: 12 | O100: 17 | P100: 18 | Q100: 19 | R100: 20 | S100: 21 | T100: 12 | U100: 13 | V100: 14 | W100: 15 | X100: 16 | BB100: 44 | BC100: 10 | BD100: 11 | BE100: 0.9090… | BF100: 1 | BG100: 1 | BH100: 1 | BI100: 1 | BJ100: 1 | BK100: 2 | BL100: 1 | BM100: 1 | BN100: 1 | BO100: 1 | BP100: 1 | BQ100: 0 | BR100: 10 | BS100: 11 | BT100: 10 | BU100: 11 | BV100: 1 | BW100: 12 | BX100: 1 | BY100: 1
C101: 81 | D101: 6 | E101: =E100 -> 6 | F101: =F100+1 -> 9 | I101: 13 | J101: 0.619047… | K101: 0.541666… | N101: 13 | O101: 19 | P101: 20 | Q101: 21 | R101: 22 | S101: 23 | T101: 14 | U101: 15 | V101: 16 | W101: 17 | X101: 18 | BB101: 45 | BC101: 11 | BD101: 12 | BE101: 0.916… | BF101: 1 | BG101: 1 | BH101: 1 | BI101: 1 | BJ101: 1 | BK101: 2 | BL101: 1 | BM101: 1 | BN101: 1 | BO101: 1 | BP101: 1 | BQ101: 1 | BR101: 11 | BS101: 12 | BT101: 11 | BU101: 12 | BV101: 0 | BW101: 12 | BX101: 1 | BY101: 1
C102: 82 | D102: 6 | E102: =E98+1 -> 7 | F102: =F98 -> 6 | I102: 14 | J102: 0.666… | K102: 0.58333… | N102: 14 | O102: 20 | P102: 21 | Q102: 22 | R102: 23 | S102: 24 | T102: 15 | U102: 16 | V102: 17 | W102: 18 | X102: 19
C103: 83 | D103: 6 | E103: =E102 -> 7 | F103: =F102+1 -> 7 | I103: 15 | J103: 0.714285… | K103: 0.625 | N103: 15 | O103: 22 | P103: 23 | Q103: 24 | R103: 25 | S103: 26 | T103: 16 | U103: 17 | V103: 18 | W103: 19 | X103: 20
C104: 84 | D104: 6 | E104: =E103 -> 7 | F104: =F103+1 -> 8 | I104: 16 | J104: 0.761904… | K104: 0.666… | N104: 16 | O104: 24 | P104: 25 | Q104: 26 | R104: 27 | S104: 28 | T104: 17 | U104: 18 | V104: 19 | W104: 20 | X104: 21
C105: 85 | D105: 6 | E105: =E104 -> 7 | F105: =F104+1 -> 9 | I105: 17 | J105: 0.809523… | K105: 0.708333… | N105: 17 | O105: 25 | P105: 26 | Q105: 27 | R105: 28 | S105: 29 | T105: 18 | U105: 19 | V105: 20 | W105: 21 | X105: 22
C106: 86 | D106: 6 | E106: =E102+1 -> 8 | F106: =F102 -> 6 | I106: 18 | J106: 0.857142… | K106: 0.75 | N106: 18 | O106: 27 | P106: 28 | Q106: 29 | R106: 30 | S106: 31 | T106: 19 | U106: 20 | V106: 21 | W106: 22 | X106: 23
C107: 87 | D107: 6 | E107: =E106 -> 8 | F107: =F106+1 -> 7 | I107: 19 | J107: 0.904761… | K107: 0.791666… | N107: 19 | O107: 27 | P107: 28 | Q107: 29 | R107: 30 | S107: 31 | T107: 19 | U107: 20 | V107: 21 | W107: 22 | X107: 23
C108: 88 | D108: 6 | E108: =E107 -> 8 | F108: =F107+1 -> 8 | I108: 20 | J108: 0.952380… | K108: 0.8333… | N108: 20
C109: 89 | D109: 6 | E109: =E108 -> 8 | F109: =F108+1 -> 9 | I109: 21 | K109: 0.875 | N109: 21
C110: 90 | D110: =D94+1 -> 7 | E110: 6 | F110: 7 | I110: 22 | K110: 0.91666… | N110: 22
C111: 91 | D111: =D110 -> 7 | E111: =E110 -> 6 | F111: =F110+1 -> 8 | I111: 23 | K111: 0.958333… | N111: 23
C112: 92 | D112: 7 | E112: =E111 -> 6 | F112: =F111+1 -> 9
C113: 93 | D113: 7 | E113: =E112 -> 6 | F113: =F112+1 -> 10
C114: 94 | D114: 7 | E114: =E110+1 -> 7 | F114: =F110 -> 7
C115: 95 | D115: 7 | E115: =E114 -> 7 | F115: =F114+1 -> 8
C116: 96 | D116: 7 | E116: =E115 -> 7 | F116: =F115+1 -> 9
C117: 97 | D117: 7 | E117: =E116 -> 7 | F117: =F116+1 -> 10
C118: 98 | D118: 7 | E118: =E114+1 -> 8 | F118: =F114 -> 7
C119: 99 | D119: 7 | E119: =E118 -> 8 | F119: =F118+1 -> 8
C120: 100 | D120: 7 | E120: =E119 -> 8 | F120: =F119+1 -> 9
C121: 101 | D121: 7 | E121: =E120 -> 8 | F121: =F120+1 -> 10
C122: 102 | D122: 7 | E122: =E118+1 -> 9 | F122: =F118 -> 7
C123: 103 | D123: 7 | E123: =E122 -> 9 | F123: =F122+1 -> 8
C124: 104 | D124: 7 | E124: =E123 -> 9 | F124: =F123+1 -> 9
C125: 105 | D125: 7 | E125: =E124 -> 9 | F125: =F124+1 -> 10
C126: 106 | D126: =D110+1 -> 8 | E126: 7 | F126: 8
C127: 107 | D127: 8 | E127: =E126 -> 7 | F127: =F126+1 -> 9
C128: 108 | D128: 8 | E128: =E127 -> 7 | F128: =F127+1 -> 10
C129: 109 | D129: 8 | E129: =E128 -> 7 | F129: =F128+1 -> 11
C130: 110 | D130: 8 | E130: =E126+1 -> 8 | F130: =F126 -> 8
C131: 111 | D131: 8 | E131: =E130 -> 8 | F131: =F130+1 -> 9
C132: 112 | D132: 8 | E132: =E131 -> 8 | F132: =F131+1 -> 10
C133: 113 | D133: 8 | E133: =E132 -> 8 | F133: =F132+1 -> 11
C134: 114 | D134: 8 | E134: =E130+1 -> 9 | F134: =F130 -> 8
C135: 115 | D135: 8 | E135: =E134 -> 9 | F135: =F134+1 -> 9
C136: 116 | D136: 8 | E136: =E135 -> 9 | F136: =F135+1 -> 10
C137: 117 | D137: 8 | E137: =E136 -> 9 | F137: =F136+1 -> 11
C138: 118 | D138: 8 | E138: =E134+1 -> 10 | F138: =F134 -> 8
C139: 119 | D139: 8 | E139: =E138 -> 10 | F139: =F138+1 -> 9
C140: 120 | D140: 8 | E140: =E139 -> 10 | F140: =F139+1 -> 10
C141: 121 | D141: 8 | E141: =E140 -> 10 | F141: =F140+1 -> 11
C142: 122 | D142: =D126+1 -> 9 | E142: 8 | F142: 9
C143: 123 | D143: =D142 -> 9 | E143: =E142 -> 8 | F143: =F142+1 -> 10
C144: 124 | D144: 9 | E144: =E143 -> 8 | F144: =F143+1 -> 11
C145: 125 | D145: 9 | E145: =E144 -> 8 | F145: =F144+1 -> 12
C146: 126 | D146: 9 | E146: =E142+1 -> 9 | F146: =F142 -> 9
C147: 127 | D147: 9 | E147: =E146 -> 9 | F147: =F146+1 -> 10
C148: 128 | D148: 9 | E148: =E147 -> 9 | F148: =F147+1 -> 11
C149: 129 | D149: 9 | E149: =E148 -> 9 | F149: =F148+1 -> 12
C150: 130 | D150: 9 | E150: =E146+1 -> 10 | F150: =F146 -> 9
C151: 131 | D151: 9 | E151: =E150 -> 10 | F151: =F150+1 -> 10
C152: 132 | D152: 9 | E152: =E151 -> 10 | F152: =F151+1 -> 11
C153: 133 | D153: 9 | E153: =E152 -> 10 | F153: =F152+1 -> 12
C154: 134 | D154: 9 | E154: =E150+1 -> 11 | F154: =F150 -> 9
C155: 135 | D155: 9 | E155: =E154 -> 11 | F155: =F154+1 -> 10
C156: 136 | D156: 9 | E156: =E155 -> 11 | F156: =F155+1 -> 11
C157: 137 | D157: 9 | E157: =E156 -> 11 | F157: =F156+1 -> 12
C158: 138 | D158: =D142+1 -> 10 | E158: 9 | F158: 10
C159: 139 | D159: 10 | E159: =E158 -> 9 | F159: =F158+1 -> 11
C160: 140 | D160: 10 | E160: =E159 -> 9 | F160: =F159+1 -> 12
C161: 141 | D161: 10 | E161: =E160 -> 9 | F161: =F160+1 -> 13
C162: 142 | D162: 10 | E162: =E158+1 -> 10 | F162: =F158 -> 10
C163: 143 | D163: 10 | E163: =E162 -> 10 | F163: =F162+1 -> 11
C164: 144 | D164: 10 | E164: =E163 -> 10 | F164: =F163+1 -> 12
C165: 145 | D165: 10 | E165: =E164 -> 10 | F165: =F164+1 -> 13
C166: 146 | D166: 10 | E166: =E162+1 -> 11 | F166: =F162 -> 10
C167: 147 | D167: 10 | E167: =E166 -> 11 | F167: =F166+1 -> 11
C168: 148 | D168: 10 | E168: =E167 -> 11 | F168: =F167+1 -> 12
C169: 149 | D169: 10 | E169: =E168 -> 11 | F169: =F168+1 -> 13
C170: 150 | D170: 10 | E170: =E166+1 -> 12 | F170: =F166 -> 10
C171: 151 | D171: 10 | E171: =E170 -> 12 | F171: =F170+1 -> 11
C172: 152 | D172: 10 | E172: =E171 -> 12 | F172: =F171+1 -> 12
C173: 153 | D173: 10 | E173: =E172 -> 12 | F173: =F172+1 -> 13
C174: 154 | D174: =D158+1 -> 11 | E174: 10 | F174: 12
C175: 155 | D175: =D174 -> 11 | E175: =E174 -> 10 | F175: =F174+1 -> 13
C176: 156 | D176: 11 | E176: =E175 -> 10 | F176: =F175+1 -> 14
C177: 157 | D177: 11 | E177: =E176 -> 10 | F177: =F176+1 -> 15
C178: 158 | D178: 11 | E178: =E174+1 -> 11 | F178: =F174 -> 12
C179: 159 | D179: 11 | E179: =E178 -> 11 | F179: =F178+1 -> 13
C180: 160 | D180: 11 | E180: =E179 -> 11 | F180: =F179+1 -> 14
C181: 161 | D181: 11 | E181: =E180 -> 11 | F181: =F180+1 -> 15
C182: 162 | D182: 11 | E182: =E178+1 -> 12 | F182: =F178 -> 12
C183: 163 | D183: 11 | E183: =E182 -> 12 | F183: =F182+1 -> 13
C184: 164 | D184: 11 | E184: =E183 -> 12 | F184: =F183+1 -> 14
C185: 165 | D185: 11 | E185: =E184 -> 12 | F185: =F184+1 -> 15
C186: 166 | D186: 11 | E186: =E182+1 -> 13 | F186: =F182 -> 12
C187: 167 | D187: 11 | E187: =E186 -> 13 | F187: =F186+1 -> 13
C188: 168 | D188: 11 | E188: =E187 -> 13 | F188: =F187+1 -> 14
C189: 169 | D189: 11 | E189: =E188 -> 13 | F189: =F188+1 -> 15
C190: 170 | D190: =D174+1 -> 12 | E190: 11 | F190: 13
C191: 171 | D191: 12 | E191: =E190 -> 11 | F191: =F190+1 -> 14
C192: 172 | D192: 12 | E192: =E191 -> 11 | F192: =F191+1 -> 15
C193: 173 | D193: 12 | E193: =E192 -> 11 | F193: =F192+1 -> 16
C194: 174 | D194: 12 | E194: =E190+1 -> 12 | F194: =F190 -> 13
C195: 175 | D195: 12 | E195: =E194 -> 12 | F195: =F194+1 -> 14
C196: 176 | D196: 12 | E196: =E195 -> 12 | F196: =F195+1 -> 15
C197: 177 | D197: 12 | E197: =E196 -> 12 | F197: =F196+1 -> 16
C198: 178 | D198: 12 | E198: =E194+1 -> 13 | F198: =F194 -> 13
C199: 179 | D199: 12 | E199: =E198 -> 13 | F199: =F198+1 -> 14
C200: 180 | D200: 12 | E200: =E199 -> 13 | F200: =F199+1 -> 15
... 117 more rows

Sheet PROBSCALE
C2: Label the probability scale with the correct
C3: statements, fractions, decimals and percentages.
C4: 0 | D4: 0 | E4: 0 | F4: 0 | G4: 0 | H4: 0 | I4: 0 | J4: 1 | K4: 1 | L4: 1 | M4: 1 | N4: 1 | O4: 1 | P4: 0 | Q4: 0 | R4: 0 | S4: 0 | T4: 0 | U4: 0 | V4: 0 | W4: 0 | X4: 0 | Y4: 0 | Z4: 0 | AA4: 0 | AB4: 0
E6: =IF(C4=1,"less likely ","… ") -> … | P6: =IF(D4=1," more likely"," …") -> …
I7: =IF(F4=1,"poor","") ->  | N7: =IF(G4=1,"even","") ->  | S7: =IF(H4=1,"good","") -> 
C8: =IF(E4=1,"impossible"," …") -> … | I8: =IF(F4=1,"chance","…") -> … | N8: =IF(G4=1,"chance","…") -> … | S8: =IF(H4=1,"chance","…") -> … | W8: =IF(I4=1,"certain ","… ") -> …
E12: =IF(J4=1,0,"") -> 0 | J12: =IF(P4=1,CONCATENATE(" ",1," "),"") ->  | O12: =IF(Q4=1,CONCATENATE(" ",1," "),"") ->  | T12: =IF(R4=1,CONCATENATE(" ",3," "),"") ->  | Y12: =IF(K4=1,1,"") -> 1
E13: =IF(J4=1,"","…") ->  | J13: =IF(P4=1,4,"…") -> … | O13: =IF(Q4=1,2,"…") -> … | T13: =IF(R4=1,4,"…") -> … | Y13: =IF(K4=1,"","…") -> 
E14: =IF(L4=1,0,"…") -> 0 | I14: =IF(S4=1,CONCATENATE(0.25),"…") -> … | N14: =IF(T4=1,CONCATENATE(0.5),"…") -> … | S14: =IF(U4=1,CONCATENATE(0.75),"…") -> … | Y14: =IF(M4=1,1,"…") -> 1
E15: =IF(N4=1,"0%","… ") -> 0% | I15: =IF(V4=1,CONCATENATE(" ",25,"%"),"…") -> … | N15: =IF(W4=1,CONCATENATE(" ",50,"%"),"…") -> … | S15: =IF(X4=1,CONCATENATE(" ",75,"%"),"…") -> … | X15: =IF(O4=1,CONCATENATE(" ",100,"%"),"…") -> 100%
C17: certain | F17: even chance | M17: less likely | S17: impossible
C18: good chance | J18: more likely | S18: poor chance

Sheet LANGUAGE
A1: =RAND() -> 0.2057664635 | B1: =RAND() -> 0.0783375631 | C1: 0.02422843297 | D1: 0.7779111186 | E1: 0.2950782123 | F1: 0.696777469 | G1: 0.6451723466 | H1: 0.09007918082 | I1: 0.7141424439 | J1: 0.4035426996 | K1: 0.9925712388 | L1: 0.549858309 | M1: 0.454888981 | N1: 0.1494716996 | O1: 0.2417571869 | P1: 0.1709571888 | Q1: 0.257506744 | R1: 0.7875625086 | S1: 0.9895350329 | T1: 0.07432196771 | U1: 0.3420241206 | V1: 0.3910239471 | W1: 0.7753784429 | X1: 0.01073634688 | Y1: 0.1574171808 | Z1: 0.1077728219
B2: Describe the likelihood or chance of the event.
B3: Place its letter on the probability scale below. | AJ3: event | AK3: P | AL3: state | AM3: pos’n | AN3: display
B4: a. | C4: =AJ53 -> The moon will be visible sometime this evening. | AH4: =IF(AI4=$AI$53,$AU$59,IF(AI4=$AI$54,$AW$59,IF(AI4=$AI$55,$AY$59,"X"))) ->  | AI4: 1 | AJ4: =CONCATENATE("I see ",AP4," on the way home tonight.") -> I see Keira Knightley on the way home tonight. | AL4: very unlikely | AM4: 1 | AN4: =CONCATENATE(" ",AH4) ->  | AO4: =N1 -> 0.1494716996 | AP4: =IF(AO4>0.8,"David Beckham",IF(AO4>0.6,"Tom Cruise",IF(AO4>0.4,"Beyoncé",IF(AO4>0.2,"Tiger Woods","Keira Knightley")))) -> Keira Knightley
Q5: =AL53 -> likely | AH5: X | AI5: 2 | AJ5: =IF(AO5>0.75,"I will go home tonight by hovercraft.",IF(AO5>0.5,"I will fly home tonight in an aeroplane.",IF(AO5>0.25,"I will fly home tonight by microlight.","I will fly home tonight by helicopter."))) -> I will fly home tonight by helicopter. | AL5: very unlikely | AM5: 1 | AN5: =CONCATENATE(" ",AH5) -> X | AO5: =O1 -> 0.2417571869
Q6: … | AH6: X | AI6: 3 | AJ6: =CONCATENATE("I will walk from ",AP6," to ",AR6," in a day.") -> I will walk from Dover to Leeds in a day. | AL6: impossible | AM6: 1 | AN6: =CONCATENATE(AH6) -> X | AO6: =P1 -> 0.1709571888 | AP6: =IF(AO6>0.8,"London",IF(AO6>0.6,"Brighton",IF(AO6>0.4,"Cornwall",IF(AO6>0.2,"Windsor","Dover")))) -> Dover | AQ6: =Q1 -> 0.257506744 | AR6: =IF(AQ6>0.8,"Edinburgh",IF(AQ6>0.6,"Glasgow",IF(AQ6>0.4,"Manchester",IF(AQ6>0.2,"Leeds","Scotland")))) -> Leeds
B7: b. | C7: =AJ54 -> A car selected at random is the colour purple. | AH7: X | AI7: 4 | AJ7: A relative of mine wins the lottery jackpot tonight. | AL7: very unlikely | AM7: 1 | AN7: =CONCATENATE(" ",AH7) -> X
Q8: =AL54 -> unlikely | AH8: X | AI8: 5 | AJ8: =IF(R1>0.5,"My mother has the same birthday as me.","My father has the same birthday as me.") -> My mother has the same birthday as me. | AL8: very unlikely | AM8: 1 | AN8: =CONCATENATE(" ",AH8) -> X
Q9: … | AH9: X | AI9: 6 | AJ9: =IF(S1>0.5,"A purple pig will fly past the window.","A pink elephant will fly past the window.") -> A purple pig will fly past the window. | AL9: impossible | AM9: 1 | AN9: =CONCATENATE(AH9) -> X
B10: c. | C10: =AJ55 -> I see Keira Knightley on the way home tonight. | AH10: X | AI10: 7 | AJ10: =IF(AO10>0.67,"I will be given a pet Dragon for Christmas.",IF(AO10>0.33,"I will be given a pet T-Rex for Christmas.","I will be given a pet Balrog for Christmas.")) -> I will be given a pet Balrog for Christmas. | AL10: impossible | AM10: 1 | AN10: =CONCATENATE(AH10) -> X | AO10: =T1 -> 0.07432196771
Q11: =AL55 -> very unlikely | AH11: X | AI11: 8 | AJ11: =IF(U1>0.5,"I will play basketball on the Moon one day.","I will play cricket on the surface of Mars one day.") -> I will play cricket on the surface of Mars one day. | AL11: very unlikely | AM11: 1 | AN11: =CONCATENATE(" ",AH11) -> X
Q12: … | AH12: X | AI12: 9 | AJ12: =IF(V1>0.5,"I will give birth to a polar bear cub tomorrow.","I will give birth to a baby giraffe tomorrow.") -> I will give birth to a baby giraffe tomorrow. | AL12: impossible | AM12: 1 | AN12: =CONCATENATE(AH12) -> X
D13: =IF(AM53=1,AN53,IF(AM54=1,AN54,IF(AM55=1,AN55,0))) ->  | F13: =IF(AM53=2,AN53,IF(AM54=2,AN54,IF(AM55=2,AN55,0))) -> 0 | G13: =IF(AM53=3,AN53,IF(AM54=3,AN54,IF(AM55=3,AN55,0))) -> 0 | H13: =IF(AM53=4,AN53,IF(AM54=4,AN54,IF(AM55=4,AN55,0))) ->  | I13: =IF(AM53=5,AN53,IF(AM54=5,AN54,IF(AM55=5,AN55,0))) -> 0 | K13: =IF(AM53=6,AN53,IF(AM54=6,AN54,IF(AM55=6,AN55,0))) -> 0 | L13: =IF(AM53=7,AN53,IF(AM54=7,AN54,IF(AM55=7,AN55,0))) -> 0 | M13: =IF(AM53=8,AN53,IF(AM54=8,AN54,IF(AM55=8,AN55,0))) -> 0 | N13: =IF(AM53=9,AN53,IF(AM54=9,AN54,IF(AM55=9,AN55,0))) -> 0 | P13: =IF(AM53=10,AN53,IF(AM54=10,AN54,IF(AM55=10,AN55,0))) -> 0 | Q13: =IF(AM53=11,AN53,IF(AM54=11,AN54,IF(AM55=11,AN55,0))) -> 0 | R13: =IF(AM53=12,AN53,IF(AM54=12,AN54,IF(AM55=12,AN55,0))) ->  | S13: =IF(AM53=13,AN53,IF(AM54=13,AN54,IF(AM55=13,AN55,0))) -> 0 | U13: =IF(AM53=14,AN53,IF(AM54=14,AN54,IF(AM55=14,AN55,0))) -> 0 | V13: =IF(AM53=15,AN53,IF(AM54=15,AN54,IF(AM55=15,AN55,0))) -> 0 | W13: =IF(AM53=16,AN53,IF(AM54=16,AN54,IF(AM55=16,AN55,0))) -> 0 | X13: =IF(AM53=17,AN53,IF(AM54=17,AN54,IF(AM55=17,AN55,0))) -> 0 | AH13: X | AI13: 10 | AJ13: =IF(N1>0.5,"My cat will sing the National Anthem backwards.","My dog will cook dinner and do the washing-up.") -> My dog will cook dinner and do the washing-up. | AL13: impossible | AM13: 1 | AN13: =CONCATENATE(AH13) -> X
AH14: X | AI14: 11 | AJ14: =IF(O1>0.5,"My Maths teacher will turn into a Werewolf.","My English teacher will grow wings and fly.") -> My English teacher will grow wings and fly. | AL14: impossible | AM14: 1 | AN14: X
AH15: X | AI15: 12 | AJ15: =IF(P1>0.5,"The Prime Minister visits our school tomorrow.","The USA President visits our school tomorrow.") -> The USA President visits our school tomorrow. | AL15: very unlikely | AM15: 2 | AN15: =CONCATENATE(AH15," ") -> X
AH16: X | AI16: 13 | AJ16: =IF(Q1>0.5,"Both goalkeepers score in the FA Cup Final.","Both goalkeepers score in the World Cup Final.") -> Both goalkeepers score in the World Cup Final. | AL16: very unlikely | AM16: 2 | AN16: X
B17: impossible | M17: even | W17: certain | AH17: X | AI17: 14 | AJ17: =CONCATENATE("Every ",AR17," in the class will have 100% ",AP17) -> Every girl in the class will have 100% punctuality. | AL17: very unlikely | AM17: 2 | AN17: X | AO17: =N1 -> 0.1494716996 | AP17: =IF(AO17>0.5,"attendance.","punctuality.") -> punctuality. | AQ17: =O1 -> 0.2417571869 | AR17: =IF(AQ17>0.5,"boy","girl") -> girl
M18: chance | AH18: X | AI18: 15 | AJ18: =IF(P1>0.5,"I will be 100% fit throughout my entire life.","I will never be ill throughout my entire life.") -> I will never be ill throughout my entire life. | AL18: very unlikely | AM18: 2 | AN18: X
AH19: X | AI19: 16 | AJ19: =IF(Q1>0.5,"One of my school friends is in a hit movie.","One of my school friends records a hit single.") -> One of my school friends records a hit single. | AL19: unlikely | AM19: 4 | AN19: X
AI20: 17 | AJ20: =IF(R1>0.5,"A car selected at random is the colour purple.","A car selected at random is the colour yellow.") -> A car selected at random is the colour purple. | AL20: unlikely | AM20: 4
AH21: X | AI21: 18 | AJ21: =IF(S1>0.5,"The next person I see is over 2 metres tall.","The next dog I see has only three legs.") -> The next person I see is over 2 metres tall. | AL21: unlikely | AM21: 4 | AN21: X
AH22: X | AI22: 19 | AJ22: =CONCATENATE("A coin taken at random from a till is ",AP22) -> A coin taken at random from a till is a pound coin. | AL22: unlikely | AM22: 3 | AN22: X | AO22: =T1 -> 0.07432196771 | AP22: =IF(AO22>0.86,"a 1p piece.",IF(AO22>0.72,"a 2p piece.",IF(AO22>0.57,"a 5p piece.",IF(AO22>0.42,"a 10p piece.",IF(AO22>0.28,"a 20p piece.",IF(AO22>0.14,"a 50p piece.","a pound coin.")))))) -> a pound coin.
AH23: X | AI23: 20 | AJ23: =CONCATENATE("When I throw a dice I get a ",AP23,".") -> When I throw a dice I get a three. | AL23: unlikely | AM23: 4 | AN23: =CONCATENATE(AH23," ") -> X | AO23: =U1 -> 0.3420241206 | AP23: =IF(AO23>0.8,"six",IF(AO23>0.6,"five",IF(AO23>0.4,"four",IF(AO23>0.2,"three","two")))) -> three
AH24: X | AI24: 21 | AJ24: =IF(V1>0.5,"I will pass my driving test before I am 17¼.","I will get five Grade 9s or A*s in my GCSEs.") -> I will get five Grade 9s or A*s in my GCSEs. | AL24: unlikely | AM24: 5 | AN24: =CONCATENATE(AH24," ") -> X
AH25: X | AI25: 22 | AJ25: =IF(N1>0.5,"It will rain sometime today.","It will rain sometime tomorrow.") -> It will rain sometime tomorrow. | AL25: even chance | AM25: 9 | AN25: =CONCATENATE(AH25) -> X
AH26: X | AI26: 23 | AJ26: =IF(O1>0.5,"A coin thrown in the air will land on heads.","A coin thrown in the air will land on tails.") -> A coin thrown in the air will land on tails. | AL26: even chance | AM26: 9 | AN26: =CONCATENATE(AH26) -> X
AH27: X | AI27: 24 | AJ27: =IF(P1>0.5,"A newly born baby will be a boy.","A newly born baby will be a girl.") -> A newly born baby will be a girl. | AL27: even chance | AM27: 9 | AN27: X
AH28: X | AI28: 25 | AJ28: =IF(AO28>0.75,"When I throw a dice I get an even number.",IF(AO28>0.5,"When I throw a dice I get an odd number.",IF(AO28>0.25,"When I throw a dice I get a prime number.","When I throw a dice I get a multiple of 2."))) -> When I throw a dice I get a prime number. | AL28: even chance | AM28: 9 | AN28: X | AO28: =Q1 -> 0.257506744 | AQ28: =N1 -> 0.1494716996
AH29: X | AI29: 26 | AJ29: =IF(O1>0.5,"The age of my Maths Teacher is an odd number.","The age of my Maths Teacher is an even number.") -> The age of my Maths Teacher is an even number. | AL29: even chance | AM29: 9 | AN29: X | AQ29: =Q1 -> 0.257506744 | AR29: =IF(AQ29>0.8,"six",IF(AQ29>0.6,"five",IF(AQ29>0.4,"four",IF(AQ29>0.2,"three","two")))) -> three
AH30: X | AI30: 27 | AJ30: =IF(P1>0.5,"It will be very cold on Christmas Day in England.","It will be quite warm on July 21st in England.") -> It will be quite warm on July 21st in England. | AL30: likely | AM30: 11 | AN30: X
AI31: 28 | AJ31: The moon will be visible sometime this evening. | AL31: likely | AM31: 12
AH32: X | AI32: 29 | AJ32: =IF(Q1>0.5,"A pupil chosen at random will have a pet at home.","A pupil chosen at random will own a DVD player.") -> A pupil chosen at random will own a DVD player. | AL32: likely | AM32: 12 | AN32: X
AH33: X | AI33: 30 | AJ33: A pupil chosen at random will be right-handed. | AL33: very likely | AM33: 13 | AN33: X
AH34: X | AI34: 31 | AJ34: =IF(R1>0.5,"Rain interrupts play during Wimbledon fortnight.","Injury time is to be added on to the FA Cup Final.") -> Rain interrupts play during Wimbledon fortnight. | AL34: very likely | AM34: 13 | AN34: =CONCATENATE(" ",AH34) -> X
AH35: X | AI35: 32 | AJ35: =IF(S1>0.5,"I will get homework before the weekend.","I will have homework to do at the weekend.") -> I will get homework before the weekend. | AL35: very likely | AM35: 15 | AN35: =CONCATENATE(AH35) -> X
AH36: X | AI36: 33 | AJ36: =IF(T1>0.5,"I will watch TV this week.","I will watch TV at the weekend.") -> I will watch TV at the weekend. | AL36: very likely | AM36: 16 | AN36: X
AH37: X | AI37: 34 | AJ37: =IF(AO37>0.67,"I will eat some food this year.",IF(AO37>0.33,"I will drink some water this year.","I will fall asleep this year.")) -> I will drink some water this year. | AL37: certain | AM37: 17 | AN37: X | AO37: =U1 -> 0.3420241206
AH38: X | AI38: 35 | AJ38: =IF(V1>0.5,"The surface of the Sun will be hot tomorrow.","The Moon will have no atmosphere tomorrow.") -> The Moon will have no atmosphere tomorrow. | AL38: certain | AM38: 17 | AN38: X
AH39: X | AI39: 36 | AJ39: =IF(N1>0.5,"A banana will be damaged if I stand on it.","A strawberry will be crushed if I stand on it.") -> A strawberry will be crushed if I stand on it. | AL39: certain | AM39: 17 | AN39: X
AH40: X | AI40: 37 | AJ40: =IF(O1>0.5,"My parent will be pleased if I do all my homework.","My teacher will be pleased if I do well in my tests.") -> My teacher will be pleased if I do well in my tests. | AL40: certain | AM40: 17 | AN40: X
AI41: 38
AI42: 39
AI43: 40
AJ44: impossible | AL44: =COUNTIF($AL$4:$AL$43,AJ44) -> 6 | AM44: =AL44+AL45 -> 15 | AO44: 1 | AP44: =$AM$45 -> 1 | AQ44: =$AM$47 -> 17 | AR44: =$AM$49 -> 28
AJ45: very unlikely | AL45: 9 | AM45: =INT(AM44*X1)+1 -> 1 | AO45: 2 | AP45: =$AM$45 -> 1 | AQ45: =$AM$49 -> 28 | AR45: =$AM$47 -> 17
AJ46: unlikely | AL46: 6 | AM46: =AL46+AL47 -> 11 | AO46: 3 | AP46: =$AM$47 -> 17 | AQ46: =$AM$45 -> 1 | AR46: =$AM$49 -> 28
AJ47: even chance | AL47: 5 | AM47: =INT(AM46*Y1)+AM44+1 -> 17 | AO47: 4 | AP47: =$AM$47 -> 17 | AQ47: =$AM$49 -> 28 | AR47: =$AM$45 -> 1
AJ48: likely | AL48: 3 | AM48: =AL48+AL49+AL50 -> 11 | AO48: 5 | AP48: =$AM$49 -> 28 | AQ48: =$AM$47 -> 17 | AR48: =$AM$45 -> 1
AJ49: very likely | AL49: 4 | AM49: =INT(AM48*Z1)+AM46+AM44+1 -> 28 | AO49: 6 | AP49: =$AM$49 -> 28 | AQ49: =$AM$45 -> 1 | AR49: =$AM$47 -> 17
AJ50: certain | AL50: 4
AL51: =SUM(AL44:AL50) -> 37
AI52: =INT(6*W1)+1 -> 5
AI53: =VLOOKUP($AI$52,$AO$44:$AR$49,2) -> 28 | AJ53: =VLOOKUP(AI53,$AI$4:$AQ$43,2) -> The moon will be visible sometime this evening. | AK53: =VLOOKUP(AI53,$AI$4:$AQ$43,3) -> 0 | AL53: =VLOOKUP(AI53,$AI$4:$AQ$43,4) -> likely | AM53: =VLOOKUP(AI53,$AI$4:$AQ$43,5) -> 12 | AN53: =VLOOKUP(AI53,$AI$4:$AQ$43,6) -> 
AI54: =VLOOKUP($AI$52,$AO$44:$AR$49,3) -> 17 | AJ54: =VLOOKUP(AI54,$AI$4:$AQ$43,2) -> A car selected at random is the colour purple. | AK54: =VLOOKUP(AI54,$AI$4:$AQ$43,3) -> 0 | AL54: =VLOOKUP(AI54,$AI$4:$AQ$43,4) -> unlikely | AM54: =VLOOKUP(AI54,$AI$4:$AQ$43,5) -> 4 | AN54: =VLOOKUP(AI54,$AI$4:$AQ$43,6) -> 
AI55: =VLOOKUP($AI$52,$AO$44:$AR$49,4) -> 1 | AJ55: =VLOOKUP(AI55,$AI$4:$AQ$43,2) -> I see Keira Knightley on the way home tonight. | AK55: =VLOOKUP(AI55,$AI$4:$AQ$43,3) -> 0 | AL55: =VLOOKUP(AI55,$AI$4:$AQ$43,4) -> very unlikely | AM55: =VLOOKUP(AI55,$AI$4:$AQ$43,5) -> 1 | AN55: =VLOOKUP(AI55,$AI$4:$AQ$43,6) -> 
AU58: =IF($AU$60=-10,"a",".") -> a | AW58: =IF($AW$60=-10,"b",".") -> b | AY58: =IF($AY$60=-10,"c",".") -> c
AU59: =IF($AU$60=-10,"","a") ->  | AW59: =IF($AW$60=-10,"","b") ->  | AY59: =IF($AY$60=-10,"","c") -> 
AU60: -10 | AW60: -10 | AY60: -10

Sheet IDALLMUTEO
A1: =RAND() -> 0.06012096118 | B1: 0.9196257682 | C1: 0.6082663219 | D1: 0.9545459065 | E1: 0.802269125 | F1: 0.4026094407 | G1: 0.2184500647 | H1: 0.4894628202 | I1: 0.7883550457 | J1: 0.829530659 | K1: 0.6931480345 | L1: 0.2967623034 | M1: 0.3930117228 | N1: 0.9568559094 | O1: 0.5572493156 | P1: 0.3633383487 | Q1: 0.03504246119 | R1: 0.02411401237 | S1: 0.7363621614 | T1: 0.3537852597 | U1: 0.8314980611 | V1: 0.7002973395 | W1: 0.9845727492 | X1: 0.9791032732 | Y1: 0.8546754685 | Z1: 0.2224461204
A2: =AE3 -> 4 | B2: Find all possible mutually exclusive outcomes | AD2: =AE183 -> 1 | AE2: 0.5 | AI2: x | AJ2: 1 | AK2: 2 | AL2: 3 | AM2: 4 | AN2: 5 | AO2: 6 | AP2: 7 | AQ2: =AH14 -> 1 | BI2: =INT(8*O1)+1 -> 5 | BJ2: 1 | BK2: 2 | BL2: 3 | BM2: 4 | BN2: 5 | BO2: 6 | BP2: 7 | BQ2: =BH14 -> 1
B3: if I spin a spinner or take a ball without looking. | AD3: =IF(RAND()>AE2,AD2,X4) -> 1 | AE3: =VLOOKUP($AD$3,$AD$4:$AG$79,2) -> 4 | AF3: =VLOOKUP($AD$3,$AD$4:$AG$79,3) -> blue, green | AG3: =VLOOKUP($AD$3,$AD$4:$AG$79,4) -> Yes, 1 of each | AI3: 3 | AJ3: P(prime №) = | AK3: P(odd №) = | AL3: =CONCATENATE("P(",AQ2,") =") -> P(1) = | AM3: =CONCATENATE("P(№ < ",AI2,") =") -> P(№ < x) = | AN3: =CONCATENATE("P(№ > ",AI2,") =") -> P(№ > x) = | AO3: =CONCATENATE("P(№ ≤ ",AI2,") =") -> P(№ ≤ x) = | AP3: =CONCATENATE("P(№ ≥ ",AI2,") =") -> P(№ ≥ x) = | AQ3: № | AY3: № | BI3: =INT(4*P1)+4 -> 5 | BJ3: P(prime №) = | BK3: P(odd №) = | BL3: =CONCATENATE("P(",BQ2,") =") -> P(1) = | BM3: =CONCATENATE("P(№ < ",BI2,") =") -> P(№ < 5) = | BN3: =CONCATENATE("P(№ > ",BI2,") =") -> P(№ > 5) = | BO3: =CONCATENATE("P(№ ≤ ",BI2,") =") -> P(№ ≤ 5) = | BP3: =CONCATENATE("P(№ ≥ ",BI2,") =") -> P(№ ≥ 5) = | BQ3: № | BY3: №
B4: =INT(76*RAND())+1 -> 7 | X4: =B4 -> 7 | Y4: =IF(AG3="No","","*") -> * | Z4: =IF(AS31=6,"*","") -> * | AA4: =IF(Y12=Y13,"*","") ->  | AD4: 1 | AE4: 4 | AF4: blue, green | AG4: Yes, 1 of each | AI4: 0 | AJ4: X | AK4: X | AL4: X | AM4: X | AN4: X | AO4: X | AP4: X | AQ4: =D4 -> 0 | AR4: =VLOOKUP(AQ4,AI4:AP24,AI3+1) -> 0 | AS4: =COUNTIF(AR4:AR13,1) -> 0 | AT4: =GCD(AS4,AS5) -> 6 | AU4: =AS4/AT4 -> 0 | AV4: =IF(AS4=0,0,AU4) -> 0 | AW4: =IF(AS4=0,CONCATENATE(" ",AV4," "),IF(AS6=1,CONCATENATE(" ",AV4," "),"X")) -> 0 | AY4: =AQ4 -> 0 | BI4: 0 | BJ4: X | BK4: X | BL4: X | BM4: X | BN4: X | BO4: X | BP4: X | BQ4: =#REF! ->  | BR4: =VLOOKUP(BQ4,$BI$4:$BP$24,$BI$3+1) ->  | BS4: =COUNTIF(BR4:BR13,1) -> 0 | BT4: =GCD(BS4,BS5) -> 8 | BU4: =BS4/BT4 -> 0 | BV4: =IF(BS4=0,0,BU4) -> 0 | BW4: =IF(BS4=0,CONCATENATE(" ",BV4," "),IF(BS6=1,CONCATENATE(" ",BV4," "),"X")) -> 0 | BY4: =BQ4 -> 
R5: Possible outcomes are : | S5: =$AF$3 -> blue, green | AD5: 2 | AE5: 6 | AF5: green, white | AG5: No | AH5: =COUNTIF(AQ4:AQ13,AI5) -> 0 | AI5: 1 | AJ5: 0 | AK5: 1 | AL5: =IF(AI5=AQ2,1,0) -> 1 | AM5: =IF(AI5<AI2,1,0) -> 1 | AN5: =IF(AI5>AI2,1,0) -> 0 | AO5: =IF(AI5<=AI2,1,0) -> 1 | AP5: =IF(AI5>=AI2,1,0) -> 0 | AQ5: =E4 -> 0 | AR5: =VLOOKUP(AQ5,AI4:AP24,AI3+1) -> 0 | AS5: 6 | AT5: =LCM(AS4,AS5) -> 0 | AU5: =AS5/AT4 -> 1 | AV5: =IF(AS4=0,"",IF(AS6=1,"",AU5)) ->  | AY5: 0 | BH5: =COUNTIF(BQ4:BQ13,BI5) -> 0 | BI5: 1 | BJ5: 0 | BK5: 1 | BL5: =IF(BI5=$BQ$2,1,0) -> 1 | BM5: =IF(BI5<$BI$2,1,0) -> 1 | BN5: =IF(BI5>$BI$2,1,0) -> 0 | BO5: =IF(BI5<=$BI$2,1,0) -> 1 | BP5: =IF(BI5>=$BI$2,1,0) -> 0 | BQ5: =#REF! ->  | BS5: 8 | BT5: =LCM(BS4,BS5) -> 0 | BU5: =BS5/BT4 -> 1 | BV5: =IF(BS4=0,"",IF(BS6=1,"",BU5)) -> 
R6: Are they equally likely? : | S6: =$AG$3 -> Yes, 1 of each | AD6: 3 | AE6: 7 | AF6: blue, green, white | AG6: Yes, 1 of each | AH6: =COUNTIF(AQ4:AQ13,AI6) -> 0 | AI6: 2 | AJ6: 1 | AK6: 0 | AL6: =IF(AI6=$AQ$2,1,0) -> 0 | AM6: =IF(AI6<$AI$2,1,0) -> 1 | AN6: =IF(AI6>$AI$2,1,0) -> 0 | AO6: =IF(AI6<=$AI$2,1,0) -> 1 | AP6: =IF(AI6>=$AI$2,1,0) -> 0 | AQ6: =F4 -> 0 | AR6: =VLOOKUP(AQ6,$AI$4:$AP$24,$AI$3+1) -> 0 | AS6: =AS4/AS5 -> 0 | AY6: 0 | BH6: =COUNTIF(BQ4:BQ13,BI6) -> 0 | BI6: 2 | BJ6: 1 | BK6: 0 | BL6: 0 | BM6: 1 | BN6: 0 | BO6: 1 | BP6: 0 | BQ6: =#REF! ->  | BS6: =BS4/BS5 -> 0
F7: =RAND() -> 0.8124121949 | G7: =INT(10*RAND())+0 -> 9 | H7: =INT(10*RAND())+0 -> 9 | I7: =INT(10*RAND())+0 -> 1 | J7: =IF($M$7>0.66,G7,INT(10*RAND())+0) -> 9 | K7: =IF($M$7>0.66,H7,INT(10*RAND())+0) -> 9 | L7: =IF($M$7>0.66,I7,INT(10*RAND())+0) -> 1 | M7: =RAND() -> 0.9727372682 | Y7: =$BV$5 ->  | AD7: 4 | AE7: 8 | AF7: blue, white | AG7: No | AH7: =COUNTIF(AQ4:AQ13,AI7) -> 0 | AI7: 3 | AJ7: 1 | AK7: 1 | AL7: 0 | AM7: 1 | AN7: 0 | AO7: 1 | AP7: 0 | AQ7: =G4 -> 0 | AR7: 0 | AY7: 0 | BH7: =COUNTIF(BQ4:BQ13,BI7) -> 0 | BI7: 3 | BJ7: 1 | BK7: 1 | BL7: 0 | BM7: 1 | BN7: 0 | BO7: 1 | BP7: 0 | BQ7: =#REF! -> 
G8: =IF(F7>0.7,INT(5*RAND())+0,G7) -> 4 | H8: =IF($F$7>0.7,G8+1,H7) -> 5 | I8: =IF($F$7>0.7,H8+1,I7) -> 6 | J8: =IF($F$7>0.7,I8+1,J7) -> 7 | K8: =IF($F$7>0.7,J8+1,K7) -> 8 | L8: =IF($F$7>0.7,K8+1,L7) -> 9 | AD8: 5 | AE8: 10 | AF8: green, white | AG8: Yes, 2 of each | AH8: =COUNTIF(AQ4:AQ13,AI8) -> 0 | AI8: 4 | AJ8: 0 | AK8: 0 | AL8: 0 | AM8: 1 | AN8: 0 | AO8: 1 | AP8: 0 | AQ8: =H4 -> 0 | AR8: 0 | AY8: 0 | BH8: =COUNTIF(BQ4:BQ13,BI8) -> 0 | BI8: 4 | BJ8: 0 | BK8: 0 | BL8: 0 | BM8: 1 | BN8: 0 | BO8: 1 | BP8: 0 | BQ8: =U4 -> 0 | BR8: X | BY8: 0
R9: Possible outcomes are : | S9: =AP30 -> 4, 5, 6, 7, 8, 9 | AD9: 6 | AE9: 11 | AF9: blue, green, white | AG9: No | AH9: =COUNTIF(AQ4:AQ13,AI9) -> 0 | AI9: 5 | AJ9: 1 | AK9: 1 | AL9: 0 | AM9: 1 | AN9: 0 | AO9: 1 | AP9: 0 | AQ9: =I4 -> 0 | AR9: 0 | AY9: 0 | BH9: =COUNTIF(BQ4:BQ13,BI9) -> 0 | BI9: 5 | BJ9: 1 | BK9: 1 | BL9: 0 | BM9: 0 | BN9: 0 | BO9: 1 | BP9: 1 | BQ9: =V4 -> 0 | BR9: X | BY9: 0
R10: Are they equally likely? : | S10: =IF(AS31=6,CONCATENATE("Yes, ",AS29," of each"),"No") -> Yes, 1 of each | AD10: 7 | AE10: 12 | AF10: blue, green, white | AG10: No | AH10: =COUNTIF(AQ4:AQ13,AI10) -> 0 | AI10: 6 | AJ10: 0 | AK10: 0 | AL10: 0 | AM10: 1 | AN10: 0 | AO10: 1 | AP10: 0 | AR10: 0 | BH10: =COUNTIF(BQ4:BQ13,BI10) -> 0 | BI10: 6 | BJ10: 0 | BK10: 0 | BL10: 0 | BM10: 0 | BN10: 1 | BO10: 0 | BP10: 1 | BQ10: =W4 -> 0 | BR10: X | BY10: 0
I11: =INT(3*RAND())+1 -> 1 | J11: =INT(3*RAND())+1 -> 2 | L11: x | M11: =IF(I11=1,"●","") -> ● | O11: x | P11: x | Q11: =IF(I11=2,"●","") ->  | R11: ● | S11: x | T11: x | U11: =IF(I11=3,"●","") ->  | W11: x | X11: 1 | Y11: =COUNTIF(H11:K13,1) -> 3 | AD11: 8 | AE11: 13 | AF11: blue, white | AG11: No | AH11: =COUNTIF(AQ4:AQ13,AI11) -> 0 | AI11: 7 | AJ11: 1 | AK11: 1 | AL11: 0 | AM11: 1 | AN11: 0 | AO11: 1 | AP11: 0 | AR11: 0 | BH11: =COUNTIF(BQ4:BQ13,BI11) -> 0 | BI11: 7 | BJ11: 1 | BK11: 1 | BL11: 0 | BM11: 0 | BN11: 1 | BO11: 0 | BP11: 1 | BQ11: =#REF! -> 
H12: =INT(3*RAND())+1 -> 1 | I12: =INT(3*RAND())+1 -> 1 | J12: =INT(3*RAND())+1 -> 2 | K12: =INT(3*RAND())+1 -> 3 | L12: =IF(H12=1,"●","") -> ● | M12: ● | O12: =IF(K12=1,"●","") ->  | P12: =IF(H12=2,"●","") ->  | R12: ● | S12: =IF(K12=2,"●","") ->  | T12: =IF(H12=3,"●","") ->  | W12: =IF(K12=3,"●","") -> ● | X12: 2 | Y12: =COUNTIF(H11:K13,2) -> 4 | AD12: 9 | AE12: 15 | AF12: green, white | AG12: No | AH12: =COUNTIF(AQ4:AQ13,AI12) -> 0 | AI12: 8 | AJ12: 0 | AK12: 0 | AL12: 0 | AM12: 1 | AN12: 0 | AO12: 1 | AP12: 0 | AR12: 0 | BH12: =COUNTIF(BQ4:BQ13,BI12) -> 0 | BI12: 8 | BJ12: 0 | BK12: 0 | BL12: 0 | BM12: 0 | BN12: 1 | BO12: 0 | BP12: 1 | BR12: X
A13: =A2 -> 4 | C13: ● | D13: ● | H13: =INT(3*RAND())+1 -> 2 | I13: =INT(2*RAND())+2 -> 3 | J13: =INT(2*RAND())+2 -> 2 | K13: =INT(3*RAND())+1 -> 3 | L13: =IF(H13=1,"●","") ->  | O13: =IF(K13=1,"●","") ->  | P13: =IF(H13=2,"●","") -> ● | R13: ● | S13: =IF(K13=2,"●","") ->  | T13: =IF(H13=3,"●","") ->  | U13: ● | W13: =IF(K13=3,"●","") -> ● | X13: 3 | Y13: =COUNTIF(H11:K13,3) -> 3 | AD13: 10 | AE13: 16 | AF13: blue, green, white | AG13: No | AH13: =MAX(AH5:AH12) -> 0 | AI13: 9 | AJ13: 0 | AK13: 1 | AL13: 0 | AM13: 1 | AN13: 0 | AO13: 1 | AP13: 0 | AR13: 0 | BH13: =MAX(BH5:BH12) -> 0 | BI13: 9 | BJ13: 0 | BK13: 1 | BL13: 0 | BM13: 0 | BN13: 1 | BO13: 0 | BP13: 1 | BR13: X
B14: ● | C14: ● | D14: ● | E14: ● | R14: Possible outcomes are : | S14: =IF(AND(Y13>0,Y12>0),"green, purple",IF(AND(Y13=0,Y12>0),"green",IF(AND(Y13>0,Y12=0),"purple","NIL"))) -> green, purple | AD14: 11 | AE14: 17 | AF14: blue, green, white | AG14: No | AH14: =IF(AH13=AH5,AI5,IF(AH13=AH6,AI6,IF(AH13=AH7,AI7,IF(AH13=AH8,AI8,IF(AH13=AH9,AI9,IF(AH13=AH10,AI10,IF(AH13=AH11,AI11,AI12))))))) -> 1 | BH14: =IF(BH13=BH5,BI5,IF(BH13=BH6,BI6,IF(BH13=BH7,BI7,IF(BH13=BH8,BI8,IF(BH13=BH9,BI9,IF(BH13=BH10,BI10,IF(BH13=BH11,BI11,BI12))))))) -> 1
B15: ● | C15: ● | D15: ● | E15: ● | R15: Are they equally likely? : | S15: =IF(Y12=Y13,CONCATENATE("Yes, ",Y12," of each"),"No") -> No | AD15: 12 | AE15: 18 | AF15: blue, green, white | AG15: No
AD16: 13 | AE16: 19 | AF16: blue, white | AG16: No
AD17: 14 | AE17: 21 | AF17: green, white | AG17: Yes, 3 of each | AJ17: =G8 -> 4 | AK17: 5 | AL17: 6 | AM17: 7 | AN17: 8 | AO17: 9
AD18: 15 | AE18: 22 | AF18: blue, green, white | AG18: No | AJ18: 1 | AK18: 2 | AL18: 3 | AM18: 4 | AN18: 5 | AO18: 6
AD19: 16 | AE19: 23 | AF19: blue, green, white | AG19: Yes, 2 of each | AI19: 0 | AJ19: =IF($AJ$17=AI19,1,0) -> 0 | AK19: =IF($AK$17=AI19,1,0) -> 0 | AL19: =IF($AL$17=AI19,1,0) -> 0 | AM19: =IF($AM$17=AI19,1,0) -> 0 | AN19: =IF($AN$17=AI19,1,0) -> 0 | AO19: =IF($AO$17=AI19,1,0) -> 0 | AP19: =SUM(AJ19:AO19) -> 0 | AQ19: =IF(AND(AP19>0,SUM(AP20:$AP$28)>0),", ","") ->  | AR19: =IF(AP19>0,AI19,"") ->  | AS19: =IF(AP19>0,AP19,"") -> 
AD20: 17 | AE20: 24 | AF20: blue, green, white | AG20: No | AI20: 1 | AJ20: =IF($AJ$17=AI20,1,0) -> 0 | AK20: =IF($AK$17=AI20,1,0) -> 0 | AL20: =IF($AL$17=AI20,1,0) -> 0 | AM20: =IF($AM$17=AI20,1,0) -> 0 | AN20: =IF($AN$17=AI20,1,0) -> 0 | AO20: =IF($AO$17=AI20,1,0) -> 0 | AP20: =SUM(AJ20:AO20) -> 0 | AQ20: =IF(AND(AP20>0,SUM(AP21:$AP$28)>0),", ","") ->  | AR20: =IF(AP20>0,AI20,"") ->  | AS20: =IF(AP20>0,AP20,"") -> 
AD21: 18 | AE21: 25 | AF21: blue, green, white | AG21: No | AI21: 2 | AJ21: 0 | AK21: 0 | AL21: 0 | AM21: 0 | AN21: 0 | AO21: 0 | AP21: 0 | AQ21: =IF(AND(AP21>0,SUM(AP22:$AP$28)>0),", ","") ->  | AR21: =IF(AP21>0,AI21,"") ->  | AS21: =IF(AP21>0,AP21,"") -> 
AD22: 19 | AE22: 26 | AF22: blue, white | AG22: No | AI22: 3 | AJ22: 0 | AK22: 0 | AL22: 0 | AM22: 0 | AN22: 0 | AO22: 0 | AP22: 0 | AQ22: =IF(AND(AP22>0,SUM(AP23:$AP$28)>0),", ","") -> 
AD23: 20 | AE23: 28 | AF23: green, white | AG23: No | AI23: 4 | AJ23: 1 | AK23: 0 | AL23: 0 | AM23: 0 | AN23: 0 | AO23: 0 | AP23: 1 | AQ23: =IF(AND(AP23>0,SUM(AP24:$AP$28)>0),", ","") -> , | AR23: 4 | AS23: 1
H24: 1 | I24: 1 | AD24: 21 | AE24: 29 | AF24: blue, green, white | AG24: No | AI24: 5 | AJ24: 0 | AK24: 1 | AL24: 0 | AM24: 0 | AN24: 0 | AO24: 0 | AP24: 1 | AQ24: =IF(AND(AP24>0,SUM(AP25:$AP$28)>0),", ","") -> , | AR24: 5 | AS24: 1
AD25: 22 | AE25: 30 | AF25: blue, green, white | AG25: No | AI25: 6 | AJ25: 0 | AK25: 0 | AL25: 1 | AM25: 0 | AN25: 0 | AO25: 0 | AP25: 1 | AQ25: =IF(AND(AP25>0,SUM(AP26:$AP$28)>0),", ","") -> , | AR25: 6 | AS25: 1
AD26: 23 | AE26: 31 | AF26: blue, green, white | AG26: No | AI26: 7 | AJ26: 0 | AK26: 0 | AL26: 0 | AM26: 1 | AN26: 0 | AO26: 0 | AP26: 1 | AQ26: =IF(AND(AP26>0,SUM(AP27:$AP$28)>0),", ","") -> , | AR26: 7 | AS26: 1
AD27: 24 | AE27: 32 | AF27: blue, green, white | AG27: No | AI27: 8 | AJ27: 0 | AK27: 0 | AL27: 0 | AM27: 0 | AN27: 1 | AO27: 0 | AP27: 1 | AQ27: =IF(AND(AP27>0,SUM(AP28:$AP$28)>0),", ","") -> , | AR27: 8 | AS27: 1
AD28: 25 | AE28: 33 | AF28: blue, green, white | AG28: No | AI28: 9 | AJ28: 0 | AK28: 0 | AL28: 0 | AM28: 0 | AN28: 0 | AO28: 1 | AP28: 1 | AR28: 9 | AS28: 1
AD29: 26 | AE29: 34 | AF29: blue, white | AG29: No | AS29: =MAX(AS19:AS28) -> 1
AD30: 27 | AE30: 36 | AF30: green, white | AG30: Yes, 4 of each | AP30: =CONCATENATE(AR19,AQ19,AR20,AQ20,AR21,AQ21,AR22,AQ22,AR23,AQ23,AR24,AQ24,AR25,AQ25,AR26,AQ26,AR27,AQ27,AR28,AQ28) -> 4, 5, 6, 7, 8, 9 | AS30: =COUNTIF(AS19:AS28,AS29) -> 6
AD31: 28 | AE31: 37 | AF31: blue, green, white | AG31: No | AS31: =AS30*AS29 -> 6
AD32: 29 | AE32: 38 | AF32: blue, green, white | AG32: No
AD33: 30 | AE33: 39 | AF33: blue, green, white | AG33: No
AD34: 31 | AE34: 40 | AF34: blue, green, white | AG34: No
AD35: 32 | AE35: 41 | AF35: blue, green, white | AG35: No
AD36: 33 | AE36: 42 | AF36: blue, green, white | AG36: No
AD37: 34 | AE37: 43 | AF37: blue, white | AG37: No
AD38: 35 | AE38: 45 | AF38: green, white | AG38: No
AD39: 36 | AE39: 46 | AF39: blue, green, white | AG39: No
AD40: 37 | AE40: 47 | AF40: blue, green, white | AG40: No
AD41: 38 | AE41: 48 | AF41: blue, green, white | AG41: Yes, 3 of each
AD42: 39 | AE42: 49 | AF42: blue, green, white | AG42: No
AD43: 40 | AE43: 50 | AF43: blue, green, white | AG43: No
AD44: 41 | AE44: 51 | AF44: blue, green, white | AG44: No
AD45: 42 | AE45: 52 | AF45: blue, green, white | AG45: No
AD46: 43 | AE46: 53 | AF46: blue, white | AG46: No
AD47: 44 | AE47: 55 | AF47: green, white | AG47: Yes, 5 of each
AD48: 45 | AE48: 56 | AF48: blue, green, white | AG48: No
AD49: 46 | AE49: 57 | AF49: blue, green, white | AG49: No
AD50: 47 | AE50: 58 | AF50: blue, green, white | AG50: No
AD51: 48 | AE51: 59 | AF51: blue, green, white | AG51: No
AD52: 49 | AE52: 60 | AF52: blue, green, white | AG52: No
AD53: 50 | AE53: 61 | AF53: blue, green, white | AG53: No
AD54: 51 | AE54: 62 | AF54: blue, green, white | AG54: No
AD55: 52 | AE55: 63 | AF55: blue, green, white | AG55: No
AD56: 53 | AE56: 64 | AF56: blue, white | AG56: No
AD57: 54 | AE57: 66 | AF57: green, white | AG57: No | AK57: =-0.3/2.7 -> -0.1111111111 | AL57: 0.4 | AM57: =10*$AS$6+AK57 -> -0.1111111111 | AN57: =AL57-1.5+AU60 -> -11.1 | AO57: =10*$BS$6+AK57 -> -0.1111111111 | AP57: =AL57-1.5+AW60 -> -11.1 | AQ57: =10*$CL$78+AK57 -> 4.888888889 | AR57: =AL57-1.5+AY60 -> -11.1
AD58: 55 | AE58: 67 | AF58: blue, green, white | AG58: No | AK58: 0 | AL58: 0 | AM58: =10*$AS$6+AK58 -> 0 | AN58: =AL58-1.5+AU60 -> -11.5 | AO58: =10*$BS$6+AK58 -> 0 | AP58: =AL58-1.5+AW60 -> -11.5 | AQ58: =10*$CL$78+AK58 -> 5 | AR58: =AL58-1.5+AY60 -> -11.5 | AU58: =DYNOFRACT!AU62 -> 0.25 | AW58: =DYNOFRACT!AW62 -> 0.25 | AY58: =DYNOFRACT!AY62 -> 0.25
AD59: 56 | AE59: 68 | AF59: blue, green, white | AG59: No | AK59: =0.3/2.7 -> 0.1111111111 | AL59: 0.4 | AM59: =10*$AS$6+AK59 -> 0.1111111111 | AN59: =AL59-1.5+AU60 -> -11.1 | AO59: =10*$BS$6+AK59 -> 0.1111111111 | AP59: =AL59-1.5+AW60 -> -11.1 | AQ59: =10*$CL$78+AK59 -> 5.111111111 | AR59: =AL59-1.5+AY60 -> -11.1 | AU59: =IF(AU60=-10,"","a") ->  | AW59: =IF(AW60=-10,"","b") ->  | AY59: =IF(AY60=-10,"","c") -> 
AD60: 57 | AE60: 69 | AF60: blue, green, white | AG60: No | AK60: 0 | AL60: 0 | AM60: =10*$AS$6+AK60 -> 0 | AN60: =AL60-1.5+AU60 -> -11.5 | AO60: =10*$BS$6+AK60 -> 0 | AP60: =AL60-1.5+AW60 -> -11.5 | AQ60: =10*$CL$78+AK60 -> 5 | AR60: =AL60-1.5+AY60 -> -11.5 | AT60: =10*$AS$6 -> 0 | AU60: -10 | AV60: =10*BS6 -> 0 | AW60: -10 | AX60: =10*CL78 -> 5 | AY60: -10
AD61: 58 | AE61: 70 | AF61: blue, green, white | AG61: No | AK61: 0 | AL61: 0.8 | AM61: =10*$AS$6+AK61 -> 0 | AN61: =AL61-1.5+AU60 -> -10.7 | AO61: =10*$BS$6+AK61 -> 0 | AP61: =AL61-1.5+AW60 -> -10.7 | AQ61: =10*$CL$78+AK61 -> 5 | AR61: =AL61-1.5+AY60 -> -10.7 | AT61: =0.1/1.4 -> 0.07142857143 | AU61: =0.2/1.4 -> 0.1428571429 | AV61: =0.1/1.4 -> 0.07142857143 | AW61: =0.2/1.4 -> 0.1428571429 | AX61: =0.1/1.4 -> 0.07142857143 | AY61: =0.2/1.4 -> 0.1428571429
AD62: 59 | AE62: 71 | AF62: blue, green, white | AG62: No | AM62: a | AN62: a | AO62: b | AP62: b | AQ62: c | AR62: c | AT62: a | AU62: a | AV62: b | AW62: b | AX62: c | AY62: c
AD63: 60 | AE63: 72 | AF63: blue, green, white | AG63: No | AM63: -1 | AN63: 1.15 | AO63: -1.2 | AP63: 3 | AQ63: 1.25 | AR63: 1 | AT63: =$AT$60+$AT$61*AM63 -> -0.07142857143 | AU63: =$AU$60+$AU$61*AN63-$AU$58 -> -10.08571429 | AV63: =$AV$60+$AV$61*AO63 -> -0.08571428571 | AW63: =$AW$60+$AW$61*AP63-$AW$58 -> -9.821428571 | AX63: =$AX$60+$AX$61*AQ63 -> 5.089285714 | AY63: =$AY$60+$AY$61*AR63-$AY$58 -> -10.10714286
AD64: 61 | AE64: 73 | AF64: blue, green, white | AG64: No | AM64: 0 | AN64: 1.75 | AO64: =AO63 -> -1.2 | AP64: -1.325 | AQ64: 1 | AR64: 1.5 | AT64: 0 | AU64: -10 | AV64: -0.08571428571 | AW64: -10.43928571 | AX64: 5.071428571 | AY64: -10.03571429
AD65: 62 | AE65: 74 | AF65: blue, green, white | AG65: No | AM65: 0.8 | AN65: 1.45 | AO65: =AO63 -> -1.2 | AP65: -0.6 | AQ65: 0 | AR65: 1.75 | AT65: 0.05714285714 | AU65: -10.04285714 | AV65: -0.08571428571 | AW65: -10.33571429 | AX65: 5 | AY65: -10
AD66: 63 | AE66: 75 | AF66: blue, green, white | AG66: No | AM66: 1 | AN66: 0.5 | AO66: =AO63 -> -1.2 | AP66: =AP65 -> -0.6 | AQ66: -1 | AR66: 1.2 | AT66: 0.07142857143 | AU66: -10.17857143 | AV66: -0.08571428571 | AW66: -10.33571429 | AX66: 4.928571429 | AY66: -10.07857143
AD67: 64 | AE67: 76 | AF67: blue, white | AG67: No | AM67: 1 | AN67: -1.2 | AO67: 0 | AP67: -1.4 | AQ67: -1.25 | AR67: 0.2 | AT67: 0.07142857143 | AU67: -10.42142857 | AV67: 0 | AW67: -10.45 | AX67: 4.910714286 | AY67: -10.22142857
AD68: 65 | AE68: 78 | AF68: green, white | AG68: Yes, 6 of each | AM68: 1 | AN68: -0.6 | AO68: 1 | AP68: -1 | AQ68: -1 | AR68: -0.8 | AT68: 0.07142857143 | AU68: -10.33571429 | AV68: 0.07142857143 | AW68: -10.39285714 | AX68: 4.928571429 | AY68: -10.36428571
AD69: 66 | AE69: 79 | AF69: blue, green, white | AG69: No | AM69: 0 | AN69: -1.2 | AO69: 1.25 | AP69: 0 | AQ69: 0 | AR69: -1.35 | AT69: 0 | AU69: -10.42142857 | AV69: 0.08928571429 | AW69: -10.25 | AX69: 5 | AY69: -10.44285714
AD70: 67 | AE70: 80 | AF70: blue, green, white | AG70: No | AM70: -1 | AN70: -1 | AO70: 1 | AP70: 1.25 | AQ70: 1 | AR70: -1 | AT70: -0.07142857143 | AU70: -10.39285714 | AV70: 0.07142857143 | AW70: -10.07142857 | AX70: 5.071428571 | AY70: -10.39285714
AD71: 68 | AE71: 81 | AF71: blue, green, white | AG71: No | AM71: -1 | AN71: 0 | AO71: 0 | AP71: 1.75 | AQ71: 1.35 | AR71: -0.5 | AT71: -0.07142857143 | AU71: -10.25 | AV71: 0 | AW71: -10 | AX71: 5.096428571 | AY71: -10.32142857
AD72: 69 | AE72: 82 | AF72: blue, green, white | AG72: Yes, 4 of each | AM72: 0 | AN72: 0.3 | AO72: =AO63 -> -1.2 | AP72: 0.8 | AQ72: 1.35 | AR72: -0.5 | AT72: 0 | AU72: -10.20714286 | AV72: -0.08571428571 | AW72: -10.13571429 | AX72: 5.096428571 | AY72: -10.32142857
AD73: 70 | AE73: 83 | AF73: blue, green, white | AG73: No | AM73: 1 | AN73: 0.6 | AO73: =AO63 -> -1.2 | AP73: 0.8 | AQ73: 1.35 | AR73: -0.5 | AT73: 0.07142857143 | AU73: -10.16428571 | AV73: -0.08571428571 | AW73: -10.13571429 | AX73: 5.096428571 | AY73: -10.32142857 | CW73: =CX73*8+CY73 -> 7 | CY73: =1*INT(9*RAND())+1 -> 7
AD74: 71 | AE74: 84 | AF74: blue, green, white | AG74: No | AM74: 1 | AN74: 0.6 | AO74: =AO63 -> -1.2 | AP74: 0.8 | AQ74: 1.35 | AR74: -0.5 | AT74: 0.07142857143 | AU74: -10.16428571 | AV74: -0.08571428571 | AW74: -10.13571429 | AX74: 5.096428571 | AY74: -10.32142857
AD75: 72 | AE75: 85 | AF75: blue, green, white | AG75: No | AM75: 1 | AN75: 0.6 | AO75: =AO63 -> -1.2 | AP75: 0.8 | AQ75: 1.35 | AR75: -0.5 | AT75: 0.07142857143 | AU75: -10.16428571 | AV75: -0.08571428571 | AW75: -10.13571429 | AX75: 5.096428571 | AY75: -10.32142857
AD76: 73 | AE76: 86 | AF76: blue, green, white | AG76: No | CX76: 1 | CY76: 2 | CZ76: 3 | DA76: 4 | DB76: 5 | DC76: 6 | DD76: 7 | DE76: 8 | DF76: 9 | DG76: 10 | DH76: 11 | DI76: 12 | DJ76: 13 | DK76: 14 | DL76: 15 | DM76: 16 | DN76: 17 | DO76: 18 | DP76: 19 | DQ76: 20 | DR76: 21 | DS76: 22 | DT76: 23 | DU76: 24 | DV76: 25 | DW76: 26 | DX76: 27 | DY76: 28 | DZ76: 29 | EA76: 30 | EB76: 31 | EC76: 32 | ED76: 33 | EE76: 34 | EF76: 35 | EG76: 36 | EH76: 37 | EI76: 38 | EJ76: 39 | EK76: 40 | EL76: 41 | EM76: 42 | EN76: 43 | EO76: 44 | EP76: 45 | EQ76: 46 | ER76: 47 | ES76: 48 | ET76: 49 | EU76: 50 | EV76: 51 | EW76: 52 | EX76: 53 | EY76: 54 | EZ76: 55 | FA76: 56 | FB76: 57 | FC76: 58 | FD76: 59 | FE76: 60 | FF76: 61 | FG76: 62 | FH76: 63 | FI76: 64 | FJ76: 65 | FK76: 66 | FL76: 67 | FM76: 68 | FN76: 69 | FO76: 70 | FP76: 71 | FQ76: 72 | FR76: 73 | FS76: 74 | FT76: 75 | FU76: 76 | FV76: 77 | FW76: 78 | FX76: 79 | FY76: 80 | FZ76: 81 | GA76: 82 | GB76: 83 | GC76: 84 | GD76: 85 | GE76: 86 | GF76: 87 | GG76: 88 | GH76: 89 | GI76: 90
AD77: 74 | AE77: 87 | AF77: blue, green, white | AG77: No | CW77: =HLOOKUP($CW$85,$CX$76:$GI$79,2) ->  | CX77: = | CY77: = | CZ77: = | DB77: = | DC77: = | DF77: = | DG77: = | DI77: = | DK77: = | DL77: = | DQ77: = | DR77: = | DT77: = | DU77: = | DV77: = | DX77: = | DY77: = | EF77: = | EG77: = | EI77: = | EK77: = | EM77: = | EO77: = | EP77: = | ES77: = | EV77: = | EY77: = | EZ77: = | FB77: = | FD77: = | FE77: = | FF77: = | FH77: = | FJ77: = | FK77: = | FV77: = | FW77: = | FY77: = | FZ77: = | GA77: = | GC77: = | GE77: = | GF77: = | GG77: = | GI77: =
AD78: 75 | AE78: 88 | AF78: blue, green, white | AG78: No | CL78: =CL79/CL80 -> 0.5 | CW78: =HLOOKUP($CW$85,$CX$76:$GI$79,3) ->  | CX78: 0 | CY78: 1 | CZ78: 0 | DB78: 1 | DC78: 0 | DF78: 1 | DG78: 0 | DI78: 1 | DK78: 1 | DL78: 0 | DQ78: 1 | DR78: 0 | DT78: 1 | DU78: 1 | DV78: 2 | DX78: 1 | DY78: 0 | EF78: 1 | EG78: 0 | EI78: 1 | EK78: 1 | EM78: 3 | EO78: 1 | EP78: 0 | ES78: 1 | EV78: 2 | EY78: 1 | EZ78: 0 | FB78: 1 | FD78: 2 | FE78: 1 | FF78: 3 | FH78: 4 | FJ78: 1 | FK78: 0 | FV78: 1 | FW78: 0 | FY78: 1 | FZ78: 1 | GA78: 1 | GC78: 1 | GE78: 2 | GF78: 3 | GG78: 5 | GI78: 1
AD79: 76 | AE79: 89 | AF79: blue, white | AG79: No | CJ79: =CL97 -> 38 | CK79: =CL96 -> 3 | CL79: =CW86 -> 1 | CM79: =GCD(CL79,CL80) -> 1 | CN79: =CL79/CM79 -> 1 | CO79: =IF($BF$3=1,CN79,CL79) -> 1 | CT79: =B1 -> 0.9196257682 | CW79: =HLOOKUP($CW$85,$CX$76:$GI$79,4) -> 1 | CX79: 1 | CY79: 1 | CZ79: 1 | DA79: 1 | DB79: 1 | DC79: 1 | DD79: 1 | DE79: 1 | DF79: 1 | DG79: 1 | DH79: 1 | DI79: 2 | DJ79: 1 | DK79: 1 | DL79: 1 | DM79: 1 | DN79: 1 | DO79: 1 | DP79: 1 | DQ79: 1 | DR79: 1 | DS79: 1 | DT79: 3 | DU79: 2 | DV79: 3 | DW79: 1 | DX79: 1 | DY79: 1 | DZ79: 1 | EA79: 1 | EB79: 1 | EC79: 1 | ED79: 1 | EE79: 1 | EF79: 1 | EG79: 1 | EH79: 1 | EI79: 4 | EJ79: 1 | EK79: 2 | EL79: 1 | EM79: 4 | EN79: 1 | EO79: 1 | EP79: 1 | EQ79: 1 | ER79: 1 | ES79: 3 | ET79: 1 | EU79: 1 | EV79: 3 | EW79: 1 | EX79: 1 | EY79: 1 | EZ79: 1 | FA79: 1 | FB79: 5 | FC79: 1 | FD79: 5 | FE79: 2 | FF79: 5 | FG79: 1 | FH79: 5 | FI79: 1 | FJ79: 1 | FK79: 1 | FL79: 1 | FM79: 1 | FN79: 1 | FO79: 1 | FP79: 1 | FQ79: 1 | FR79: 1 | FS79: 1 | FT79: 1 | FU79: 1 | FV79: 1 | FW79: 1 | FX79: 1 | FY79: 6 | FZ79: 4 | GA79: 3 | GB79: 1 | GC79: 2 | GD79: 1 | GE79: 3 | GF79: 4 | GG79: 6 | GH79: 1 | GI79: 1
CL80: =CW87 -> 2 | CM80: =LCM(CL79,CL80) -> 2 | CN80: =CL80/CM79 -> 2 | CO80: =IF($BF$3=1,CN80,CL80) -> 2 | CT80: =MOD(29*$CT$79,1) -> 0.6691472789 | CW80: =HLOOKUP($CW$85,$CX$76:$GI$80,5) ->  | CX80: 1 | CY80: 0 | CZ80: 1 | DB80: 0 | DC80: 1 | DF80: 0 | DG80: 1 | DI80: 1 | DK80: 0 | DL80: 1 | DQ80: 0 | DR80: 1 | DT80: 2 | DU80: 1 | DV80: 1 | DX80: 0 | DY80: 1 | EF80: 0 | EG80: 1 | EI80: 3 | EK80: 1 | EM80: 1 | EO80: 0 | EP80: 1 | ES80: 2 | EV80: 1 | EY80: 0 | EZ80: 1 | FB80: 4 | FD80: 3 | FE80: 1 | FF80: 2 | FH80: 1 | FJ80: 0 | FK80: 1 | FV80: 0 | FW80: 1 | FY80: 5 | FZ80: 3 | GA80: 2 | GC80: 1 | GE80: 1 | GF80: 1 | GG80: 1 | GI80: 0
AD81: =INT(62*RAND())+1 -> 7 | AE81: =VLOOKUP($AD$81,$AD$82:$AF$181,2) -> MAMMAL | AF81: =VLOOKUP($AD$81,$AD$82:$AF$181,3) -> M, A, L | AG81: =VLOOKUP($AD$81,$AD$82:$AM$181,4) -> No | CL81: =CJ79 -> 38 | CM81: =GCD(CL81,CL82) -> 2 | CN81: =CL81/CM81 -> 19 | CO81: =IF(BF$3=1,CN81,CL81) -> 38 | CW81: =HLOOKUP($CW$85,$CX$76:$GI$79,4) -> 1 | CX81: =CX89+CX91+CX93+CX95+CX97+CX99+CX101+CX103+CX105+CX107+CX109+CX111 -> 1 | CY81: 1 | CZ81: =CZ89+CZ91+CZ93+CZ95+CZ97+CZ99+CZ101+CZ103+CZ105+CZ107+CZ109+CZ111 -> 2 | DA81: =DA89+DA91+DA93+DA95+DA97+DA99+DA101+DA103+DA105+DA107+DA109+DA111 -> 1 | DB81: 1 | DC81: =DC89+DC91+DC93+DC95+DC97+DC99+DC101+DC103+DC105+DC107+DC109+DC111 -> 3 | DD81: =DD89+DD91+DD93+DD95+DD97+DD99+DD101+DD103+DD105+DD107+DD109+DD111 -> 2 | DE81: =DE89+DE91+DE93+DE95+DE97+DE99+DE101+DE103+DE105+DE107+DE109+DE111 -> 1 | DF81: 1 | DG81: =DG89+DG91+DG93+DG95+DG97+DG99+DG101+DG103+DG105+DG107+DG109+DG111 -> 4 | DH81: =DH89+DH91+DH93+DH95+DH97+DH99+DH101+DH103+DH105+DH107+DH109+DH111 -> 3 | DI81: =DI89+DI91+DI93+DI95+DI97+DI99+DI101+DI103+DI105+DI107+DI109+DI111 -> 2 | DJ81: =DJ89+DJ91+DJ93+DJ95+DJ97+DJ99+DJ101+DJ103+DJ105+DJ107+DJ109+DJ111 -> 1 | DK81: 1 | DL81: =DL89+DL91+DL93+DL95+DL97+DL99+DL101+DL103+DL105+DL107+DL109+DL111 -> 5 | DM81: =DM89+DM91+DM93+DM95+DM97+DM99+DM101+DM103+DM105+DM107+DM109+DM111 -> 4 | DN81: =DN89+DN91+DN93+DN95+DN97+DN99+DN101+DN103+DN105+DN107+DN109+DN111 -> 3 | DO81: =DO89+DO91+DO93+DO95+DO97+DO99+DO101+DO103+DO105+DO107+DO109+DO111 -> 2 | DP81: =DP89+DP91+DP93+DP95+DP97+DP99+DP101+DP103+DP105+DP107+DP109+DP111 -> 1 | DQ81: 1 | DR81: =DR89+DR91+DR93+DR95+DR97+DR99+DR101+DR103+DR105+DR107+DR109+DR111 -> 6 | DS81: 5 | DT81: 4 | DU81: 3 | DV81: 2 | DW81: 1 | DX81: 1 | DY81: =DY89+DY91+DY93+DY95+DY97+DY99+DY101+DY103+DY105+DY107+DY109+DY111 -> 7 | DZ81: 6 | EA81: 5 | EB81: 4 | EC81: 3 | ED81: 2 | EE81: 1 | EF81: 1 | EG81: =EG89+EG91+EG93+EG95+EG97+EG99+EG101+EG103+EG105+EG107+EG109+EG111 -> 8 | EH81: 7 | EI81: 6 | EJ81: 5 | EK81: 4 | EL81: 3 | EM81: 2 | EN81: 1 | EO81: 1 | EP81: =EP89+EP91+EP93+EP95+EP97+EP99+EP101+EP103+EP105+EP107+EP109+EP111 -> 9 | EQ81: 8 | ER81: 7 | ES81: 6 | ET81: 5 | EU81: 4 | EV81: 3 | EW81: 2 | EX81: 1 | EY81: 1 | EZ81: =EZ89+EZ91+EZ93+EZ95+EZ97+EZ99+EZ101+EZ103+EZ105+EZ107+EZ109+EZ111 -> 10 | FA81: =FA89+FA91+FA93+FA95+FA97+FA99+FA101+FA103+FA105+FA107+FA109+FA111 -> 9 | FB81: =FB89+FB91+FB93+FB95+FB97+FB99+FB101+FB103+FB105+FB107+FB109+FB111 -> 8 | FC81: =FC89+FC91+FC93+FC95+FC97+FC99+FC101+FC103+FC105+FC107+FC109+FC111 -> 7 | FD81: =FD89+FD91+FD93+FD95+FD97+FD99+FD101+FD103+FD105+FD107+FD109+FD111 -> 6 | FE81: 2 | FF81: =FF89+FF91+FF93+FF95+FF97+FF99+FF101+FF103+FF105+FF107+FF109+FF111 -> 4 | FG81: =FG89+FG91+FG93+FG95+FG97+FG99+FG101+FG103+FG105+FG107+FG109+FG111 -> 3 | FH81: =FH89+FH91+FH93+FH95+FH97+FH99+FH101+FH103+FH105+FH107+FH109+FH111 -> 2 | FI81: =FI89+FI91+FI93+FI95+FI97+FI99+FI101+FI103+FI105+FI107+FI109+FI111 -> 1 | FJ81: 1 | FK81: =FK89+FK91+FK93+FK95+FK97+FK99+FK101+FK103+FK105+FK107+FK109+FK111 -> 11 | FL81: 10 | FM81: 9 | FN81: 8 | FO81: 7 | FP81: 6 | FQ81: 5 | FR81: 4 | FS81: 3 | FT81: 2 | FU81: 1 | FV81: 1 | FW81: =FW89+FW91+FW93+FW95+FW97+FW99+FW101+FW103+FW105+FW107+FW109+FW111 -> 12 | FX81: 11 | FY81: 10 | FZ81: 9 | GA81: 8 | GB81: 7 | GC81: 6 | GD81: 5 | GE81: 4 | GF81: 3 | GG81: 2 | GH81: 1 | GI81: 1
AD82: 1 | AE82: MAMA | AF82: M, A | AG82: Yes, 2 of each | CL82: =CM97 -> 10 | CM82: =LCM(CL81,CL82) -> 190 | CN82: =CL82/CM81 -> 5 | CO82: =IF(BF$3=1,CN82,CL82) -> 10 | CX82: =IF(AND(CX83=CX86,CX84=CX87),1,0) -> 1 | CY82: 0 | CZ82: 1 | DA82: 1 | DB82: 0 | DC82: 1 | DD82: 1 | DE82: 1 | DF82: 0 | DG82: 1 | DH82: 1 | DI82: 1 | DJ82: 1 | DK82: 0 | DL82: 1 | DM82: 1 | DN82: 1 | DO82: 1 | DP82: 1 | DQ82: 0 | DR82: 1 | DS82: 1 | DT82: 1 | DU82: 1 | DV82: 1 | DW82: 1 | DX82: 0 | DY82: 1 | DZ82: 1 | EA82: 1 | EB82: 1 | EC82: 1 | ED82: =IF(AND(ED83=ED86,ED84=ED87),1,0) -> 1 | EE82: 1 | EF82: 0 | EG82: 1 | EH82: 1 | EI82: 1 | EJ82: 1 | EK82: 1 | EL82: 1 | EM82: 1 | EN82: 1 | EO82: 0 | EP82: 1 | EQ82: 1 | ER82: 1 | ES82: 1 | ET82: 1 | EU82: 1 | EV82: 1 | EW82: 1 | EX82: 1 | EY82: 0 | EZ82: 1 | FA82: 1 | FB82: 1 | FC82: 1 | FD82: 1 | FE82: 0 | FF82: 1 | FG82: 1 | FH82: 1 | FI82: 1 | FJ82: =IF(AND(FJ83=FJ86,FJ84=FJ87),1,0) -> 0 | FK82: 1 | FL82: 1 | FM82: 1 | FN82: 1 | FO82: 1 | FP82: 1 | FQ82: 1 | FR82: 1 | FS82: 1 | FT82: 1 | FU82: 1 | FV82: 0 | FW82: 1 | FX82: 1 | FY82: 1 | FZ82: 1 | GA82: 1 | GB82: 1 | GC82: 1 | GD82: 1 | GE82: 1 | GF82: 1 | GG82: 1 | GH82: 1 | GI82: 0
AD83: 2 | AE83: HISSES | AF83: H, I, S, E | AG83: No | CX83: =CX88+CX90+CX92+CX94+CX96+CX98+CX100+CX102+CX104+CX106+CX108+CX110 -> 0 | CY83: 1 | CZ83: 0 | DA83: 1 | DB83: 2 | DC83: 0 | DD83: 1 | DE83: 2 | DF83: 3 | DG83: 0 | DH83: 1 | DI83: 2 | DJ83: 3 | DK83: 4 | DL83: 0 | DM83: 1 | DN83: 2 | DO83: 3 | DP83: 4 | DQ83: 5 | DR83: 0 | DS83: 1 | DT83: 2 | DU83: 3 | DV83: 4 | DW83: 5 | DX83: 6 | DY83: 0 | DZ83: 1 | EA83: 2 | EB83: 3 | EC83: 4 | ED83: =ED88+ED90+ED92+ED94+ED96+ED98+ED100+ED102+ED104+ED106+ED108+ED110 -> 5 | EE83: 6 | EF83: 7 | EG83: 0 | EH83: 1 | EI83: 2 | EJ83: 3 | EK83: 4 | EL83: 5 | EM83: 6 | EN83: 7 | EO83: 8 | EP83: 0 | EQ83: 1 | ER83: 2 | ES83: 3 | ET83: 4 | EU83: 5 | EV83: 6 | EW83: 7 | EX83: 8 | EY83: 9 | EZ83: 0 | FA83: 1 | FB83: 2 | FC83: 3 | FD83: 4 | FE83: 5 | FF83: 6 | FG83: 7 | FH83: 8 | FI83: 9 | FJ83: =FJ88+FJ90+FJ92+FJ94+FJ96+FJ98+FJ100+FJ102+FJ104+FJ106+FJ108+FJ110 -> 10 | FK83: 0 | FL83: 1 | FM83: 2 | FN83: 3 | FO83: 4 | FP83: 5 | FQ83: 6 | FR83: 7 | FS83: 8 | FT83: 9 | FU83: 10 | FV83: 11 | FW83: 0 | FX83: 1 | FY83: 2 | FZ83: 3 | GA83: 4 | GB83: 5 | GC83: 6 | GD83: 7 | GE83: 8 | GF83: 9 | GG83: 10 | GH83: 11 | GI83: 12
AD84: 3 | AE84: COMMA | AF84: C, O, M, A | AG84: No | CX84: =CX83+CX81 -> 1 | CY84: 2 | CZ84: 2 | DA84: 2 | DB84: 3 | DC84: 3 | DD84: 3 | DE84: 3 | DF84: 4 | DG84: 4 | DH84: 4 | DI84: 4 | DJ84: 4 | DK84: 5 | DL84: 5 | DM84: 5 | DN84: 5 | DO84: 5 | DP84: 5 | DQ84: 6 | DR84: 6 | DS84: 6 | DT84: 6 | DU84: 6 | DV84: 6 | DW84: 6 | DX84: 7 | DY84: 7 | DZ84: 7 | EA84: 7 | EB84: 7 | EC84: 7 | ED84: =ED83+ED81 -> 7 | EE84: 7 | EF84: 8 | EG84: 8 | EH84: 8 | EI84: 8 | EJ84: 8 | EK84: 8 | EL84: 8 | EM84: 8 | EN84: 8 | EO84: 9 | EP84: 9 | EQ84: 9 | ER84: 9 | ES84: 9 | ET84: 9 | EU84: 9 | EV84: 9 | EW84: 9 | EX84: 9 | EY84: 10 | EZ84: 10 | FA84: 10 | FB84: 10 | FC84: 10 | FD84: 10 | FE84: 7 | FF84: 10 | FG84: 10 | FH84: 10 | FI84: 10 | FJ84: =FJ83+FJ81 -> 11 | FK84: 11 | FL84: 11 | FM84: 11 | FN84: 11 | FO84: 11 | FP84: 11 | FQ84: 11 | FR84: 11 | FS84: 11 | FT84: 11 | FU84: 11 | FV84: 12 | FW84: 12 | FX84: 12 | FY84: 12 | FZ84: 12 | GA84: 12 | GB84: 12 | GC84: 12 | GD84: 12 | GE84: 12 | GF84: 12 | GG84: 12 | GH84: 12 | GI84: 13
AD85: 4 | AE85: COCO | AF85: C, O | AG85: Yes, 2 of each | CT85: =CO97 -> 65 | CU85: =CP97 -> 65 | CV85: =CQ97 -> 65 | CW85: =CR97 -> 4 | CX85: 1 | CY85: 2 | CZ85: 3 | DA85: 4 | DB85: 5 | DC85: 6 | DD85: 7 | DE85: 8 | DF85: 9 | DG85: 10 | DH85: 11 | DI85: 12 | DJ85: 13 | DK85: 14 | DL85: 15 | DM85: 16 | DN85: 17 | DO85: 18 | DP85: 19 | DQ85: 20 | DR85: 21 | DS85: 22 | DT85: 23 | DU85: 24 | DV85: 25 | DW85: 26 | DX85: 27 | DY85: 28 | DZ85: 29 | EA85: 30 | EB85: 31 | EC85: 32 | ED85: 33 | EE85: 34 | EF85: 35 | EG85: 36 | EH85: 37 | EI85: 38 | EJ85: 39 | EK85: 40 | EL85: 41 | EM85: 42 | EN85: 43 | EO85: 44 | EP85: 45 | EQ85: 46 | ER85: 47 | ES85: 48 | ET85: 49 | EU85: 50 | EV85: 51 | EW85: 52 | EX85: 53 | EY85: 54 | EZ85: 55 | FA85: 56 | FB85: 57 | FC85: 58 | FD85: 59 | FE85: 60 | FF85: 61 | FG85: 62 | FH85: 63 | FI85: 64 | FJ85: 65 | FK85: 66 | FL85: 67 | FM85: 68 | FN85: 69 | FO85: 70 | FP85: 71 | FQ85: 72 | FR85: 73 | FS85: 74 | FT85: 75 | FU85: 76 | FV85: 77 | FW85: 78 | FX85: 79 | FY85: 80 | FZ85: 81 | GA85: 82 | GB85: 83 | GC85: 84 | GD85: 85 | GE85: 86 | GF85: 87 | GG85: 88 | GH85: 89 | GI85: 90
AD86: 5 | AE86: TOTO | AF86: T, O | AG86: Yes, 2 of each | CL86: den | CM86: num | CN86: options | CT86: =HLOOKUP(CT85,$CX$85:$GI$112,2) -> 10 | CU86: =HLOOKUP(CU85,$CX$85:$GI$112,2) -> 10 | CV86: =HLOOKUP(CV85,$CX$85:$GI$112,2) -> 10 | CW86: =HLOOKUP(CW85,$CX$85:$GI$112,2) -> 1 | CX86: 0 | CY86: 1 | CZ86: 0 | DA86: 1 | DB86: 2 | DC86: 0 | DD86: 1 | DE86: 2 | DF86: 3 | DG86: 0 | DH86: 1 | DI86: 2 | DJ86: 3 | DK86: 4 | DL86: 0 | DM86: 1 | DN86: 2 | DO86: 3 | DP86: 4 | DQ86: 5 | DR86: 0 | DS86: 1 | DT86: 2 | DU86: 3 | DV86: 4 | DW86: 5 | DX86: 6 | DY86: 0 | DZ86: 1 | EA86: 2 | EB86: 3 | EC86: 4 | ED86: 5 | EE86: 6 | EF86: 7 | EG86: 0 | EH86: 1 | EI86: 2 | EJ86: 3 | EK86: 4 | EL86: 5 | EM86: 6 | EN86: 7 | EO86: 8 | EP86: 0 | EQ86: 1 | ER86: 2 | ES86: 3 | ET86: 4 | EU86: 5 | EV86: 6 | EW86: 7 | EX86: 8 | EY86: 9 | EZ86: 0 | FA86: 1 | FB86: 2 | FC86: 3 | FD86: 4 | FE86: 5 | FF86: 6 | FG86: 7 | FH86: 8 | FI86: 9 | FJ86: 10 | FK86: 0 | FL86: 1 | FM86: 2 | FN86: 3 | FO86: 4 | FP86: 5 | FQ86: 6 | FR86: 7 | FS86: 8 | FT86: 9 | FU86: 10 | FV86: 11 | FW86: 0 | FX86: 1 | FY86: 2 | FZ86: 3 | GA86: 4 | GB86: 5 | GC86: 6 | GD86: 7 | GE86: 8 | GF86: 9 | GG86: 10 | GH86: 11 | GI86: 12
AD87: 6 | AE87: WINNER | AF87: W, I, N, E, R | AG87: No | CK87: 1 | CL87: 2 | CM87: 1 | CN87: 3 | CT87: =HLOOKUP(CT85,$CX$85:$GI$112,3) -> 10 | CU87: =HLOOKUP(CU85,$CX$85:$GI$112,3) -> 10 | CV87: =HLOOKUP(CV85,$CX$85:$GI$112,3) -> 10 | CW87: =HLOOKUP(CW85,$CX$85:$GI$112,3) -> 2 | CX87: 1 | CY87: 1 | CZ87: 2 | DA87: 2 | DB87: 2 | DC87: 3 | DD87: 3 | DE87: 3 | DF87: 3 | DG87: 4 | DH87: 4 | DI87: 4 | DJ87: 4 | DK87: 4 | DL87: 5 | DM87: 5 | DN87: 5 | DO87: 5 | DP87: 5 | DQ87: 5 | DR87: 6 | DS87: 6 | DT87: 6 | DU87: 6 | DV87: 6 | DW87: 6 | DX87: 6 | DY87: 7 | DZ87: 7 | EA87: 7 | EB87: 7 | EC87: 7 | ED87: 7 | EE87: 7 | EF87: 7 | EG87: 8 | EH87: 8 | EI87: 8 | EJ87: 8 | EK87: 8 | EL87: 8 | EM87: 8 | EN87: 8 | EO87: 8 | EP87: 9 | EQ87: 9 | ER87: 9 | ES87: 9 | ET87: 9 | EU87: 9 | EV87: 9 | EW87: 9 | EX87: 9 | EY87: 9 | EZ87: 10 | FA87: 10 | FB87: 10 | FC87: 10 | FD87: 10 | FE87: 10 | FF87: 10 | FG87: 10 | FH87: 10 | FI87: 10 | FJ87: 10 | FK87: 11 | FL87: 11 | FM87: 11 | FN87: 11 | FO87: 11 | FP87: 11 | FQ87: 11 | FR87: 11 | FS87: 11 | FT87: 11 | FU87: 11 | FV87: 11 | FW87: 12 | FX87: 12 | FY87: 12 | FZ87: 12 | GA87: 12 | GB87: 12 | GC87: 12 | GD87: 12 | GE87: 12 | GF87: 12 | GG87: 12 | GH87: 12 | GI87: 12
AD88: 7 | AE88: MAMMAL | AF88: M, A, L | AG88: No | CK88: 2 | CL88: 3 | CM88: 2 | CN88: 6 | CT88: =HLOOKUP(CT85,$CX$85:$GI$112,4) -> 1 | CU88: =HLOOKUP(CU85,$CX$85:$GI$112,4) -> 1 | CV88: =HLOOKUP(CV85,$CX$85:$GI$112,4) -> 1 | CW88: =HLOOKUP(CW85,$CX$85:$GI$112,4) -> 1 | CY88: 1 | DA88: 1 | DB88: 1 | DD88: 1 | DE88: 1 | DF88: 1 | DH88: 1 | DI88: 1 | DJ88: 1 | DK88: 1 | DM88: 1 | DN88: 1 | DO88: 1 | DP88: 1 | DQ88: 1 | DS88: 1 | DT88: 1 | DU88: 1 | DV88: 1 | DW88: 1 | DX88: 1 | DZ88: 1 | EA88: 1 | EB88: 1 | EC88: 1 | ED88: 1 | EE88: 1 | EF88: 1 | EH88: 1 | EI88: 1 | EJ88: 1 | EK88: 1 | EL88: 1 | EM88: 1 | EN88: 1 | EO88: 1 | EQ88: 1 | ER88: 1 | ES88: 1 | ET88: 1 | EU88: 1 | EV88: 1 | EW88: 1 | EX88: 1 | EY88: 1 | FA88: 1 | FB88: 1 | FC88: 1 | FD88: 1 | FE88: 1 | FF88: 1 | FG88: 1 | FH88: 1 | FI88: 1 | FJ88: 1 | FL88: 1 | FM88: 1 | FN88: 1 | FO88: 1 | FP88: 1 | FQ88: 1 | FR88: 1 | FS88: 1 | FT88: 1 | FU88: 1 | FV88: 1 | FX88: 1 | FY88: 1 | FZ88: 1 | GA88: 1 | GB88: 1 | GC88: 1 | GD88: 1 | GE88: 1 | GF88: 1 | GG88: 1 | GH88: 1 | GI88: 1
AD89: 8 | AE89: PEPPER | AF89: P, E, R | AG89: No | CK89: 3 | CL89: 4 | CM89: 3 | CN89: 9 | CT89: =HLOOKUP(CT85,$CX$85:$GI$112,5) -> 0 | CU89: =HLOOKUP(CU85,$CX$85:$GI$112,5) -> 0 | CV89: =HLOOKUP(CV85,$CX$85:$GI$112,5) -> 0 | CW89: =HLOOKUP(CW85,$CX$85:$GI$112,5) -> 1 | CX89: 1 | CZ89: 1 | DA89: 1 | DC89: 1 | DD89: 1 | DG89: 1 | DH89: 1 | DI89: 1 | DL89: 1 | DM89: 1 | DN89: 1 | DO89: 1 | DR89: 1 | DS89: 1 | DT89: 1 | DU89: 1 | DY89: 1 | DZ89: 1 | EA89: 1 | EB89: 1 | EC89: 1 | EG89: 1 | EH89: 1 | EI89: 1 | EJ89: 1 | EK89: 1 | EP89: 1 | EQ89: 1 | ER89: 1 | ES89: 1 | ET89: 1 | EU89: 1 | EZ89: 1 | FA89: 1 | FB89: 1 | FC89: 1 | FD89: 1 | FE89: 1 | FK89: 1 | FL89: 1 | FM89: 1 | FN89: 1 | FO89: 1 | FP89: 1 | FQ89: 1 | FW89: 1 | FX89: 1 | FY89: 1 | FZ89: 1 | GA89: 1 | GB89: 1 | GC89: 1
AD90: 9 | AE90: COCOON | AF90: C, O, N | AG90: No | CK90: 4 | CL90: 5 | CM90: 4 | CN90: 12 | CT90: =HLOOKUP(CT85,$CX$85:$GI$112,6) -> 1 | CU90: =HLOOKUP(CU85,$CX$85:$GI$112,6) -> 1 | CV90: =HLOOKUP(CV85,$CX$85:$GI$112,6) -> 1 | CW90: =HLOOKUP(CW85,$CX$85:$GI$112,6) -> 0 | DB90: 1 | DE90: 1 | DF90: 1 | DI90: 1 | DJ90: 1 | DK90: 1 | DN90: 1 | DO90: 1 | DP90: 1 | DQ90: 1 | DT90: 1 | DU90: 1 | DV90: 1 | DW90: 1 | DX90: 1 | EA90: 1 | EB90: 1 | EC90: 1 | ED90: 1 | EE90: 1 | EF90: 1 | EI90: 1 | EJ90: 1 | EK90: 1 | EL90: 1 | EM90: 1 | EN90: 1 | EO90: 1 | ER90: 1 | ES90: 1 | ET90: 1 | EU90: 1 | EV90: 1 | EW90: 1 | EX90: 1 | EY90: 1 | FB90: 1 | FC90: 1 | FD90: 1 | FE90: 1 | FF90: 1 | FG90: 1 | FH90: 1 | FI90: 1 | FJ90: 1 | FM90: 1 | FN90: 1 | FO90: 1 | FP90: 1 | FQ90: 1 | FR90: 1 | FS90: 1 | FT90: 1 | FU90: 1 | FV90: 1 | FY90: 1 | FZ90: 1 | GA90: 1 | GB90: 1 | GC90: 1 | GD90: 1 | GE90: 1 | GF90: 1 | GG90: 1 | GH90: 1 | GI90: 1
AD91: 10 | AE91: RODEO | AF91: R, O, D, E | AG91: No | CK91: 5 | CL91: 6 | CM91: 5 | CN91: 15 | CT91: =HLOOKUP(CT85,$CX$85:$GI$112,7) -> 0 | CU91: =HLOOKUP(CU85,$CX$85:$GI$112,7) -> 0 | CV91: =HLOOKUP(CV85,$CX$85:$GI$112,7) -> 0 | CW91: =HLOOKUP(CW85,$CX$85:$GI$112,7) -> 0 | CZ91: 1 | DC91: 1 | DD91: 1 | DE91: 1 | DG91: 1 | DH91: 1 | DI91: 1 | DL91: 1 | DM91: 1 | DN91: 1 | DO91: 1 | DR91: 1 | DS91: 1 | DT91: 1 | DU91: 1 | DY91: 1 | DZ91: 1 | EA91: 1 | EB91: 1 | EC91: 1 | EG91: 1 | EH91: 1 | EI91: 1 | EJ91: 1 | EK91: 1 | EP91: 1 | EQ91: 1 | ER91: 1 | ES91: 1 | ET91: 1 | EU91: 1 | EZ91: 1 | FA91: 1 | FB91: 1 | FC91: 1 | FD91: 1 | FE91: 1 | FK91: 1 | FL91: 1 | FM91: 1 | FN91: 1 | FO91: 1 | FP91: 1 | FQ91: 1 | FW91: 1 | FX91: 1 | FY91: 1 | FZ91: 1 | GA91: 1 | GB91: 1 | GC91: 1
AD92: 11 | AE92: DEVOLVE | AF92: D, E, V, O, L | AG92: No | CK92: 6 | CL92: 7 | CM92: 6 | CN92: 18 | CT92: =HLOOKUP(CT85,$CX$85:$GI$112,8) -> 1 | CU92: =HLOOKUP(CU85,$CX$85:$GI$112,8) -> 1 | CV92: =HLOOKUP(CV85,$CX$85:$GI$112,8) -> 1 | CW92: =HLOOKUP(CW85,$CX$85:$GI$112,8) -> 0 | DF92: 1 | DJ92: 1 | DK92: 1 | DO92: 1 | DP92: 1 | DQ92: 1 | DU92: 1 | DV92: 1 | DW92: 1 | DX92: 1 | EB92: 1 | EC92: 1 | ED92: 1 | EE92: 1 | EF92: 1 | EJ92: 1 | EK92: 1 | EL92: 1 | EM92: 1 | EN92: 1 | EO92: 1 | ES92: 1 | ET92: 1 | EU92: 1 | EV92: 1 | EW92: 1 | EX92: 1 | EY92: 1 | FC92: 1 | FD92: 1 | FE92: 1 | FF92: 1 | FG92: 1 | FH92: 1 | FI92: 1 | FJ92: 1 | FN92: 1 | FO92: 1 | FP92: 1 | FQ92: 1 | FR92: 1 | FS92: 1 | FT92: 1 | FU92: 1 | FV92: 1 | FZ92: 1 | GA92: 1 | GB92: 1 | GC92: 1 | GD92: 1 | GE92: 1 | GF92: 1 | GG92: 1 | GH92: 1 | GI92: 1
AD93: 12 | AE93: ARREAR | AF93: A, R, E | AG93: No | CK93: 7 | CL93: 8 | CM93: 7 | CN93: 21 | CT93: =HLOOKUP(CT85,$CX$85:$GI$112,9) -> 0 | CU93: =HLOOKUP(CU85,$CX$85:$GI$112,9) -> 0 | CV93: =HLOOKUP(CV85,$CX$85:$GI$112,9) -> 0 | CW93: =HLOOKUP(CW85,$CX$85:$GI$112,9) -> 0 | DC93: 1 | DG93: 1 | DH93: 1 | DJ93: 1 | DL93: 1 | DM93: 1 | DN93: 1 | DP93: 1 | DR93: 1 | DS93: 1 | DT93: 1 | DU93: 1 | DV93: 1 | DY93: 1 | DZ93: 1 | EA93: 1 | EB93: 1 | EC93: 1 | ED93: 1 | EG93: 1 | EH93: 1 | EI93: 1 | EJ93: 1 | EK93: 1 | EL93: 1 | EP93: 1 | EQ93: 1 | ER93: 1 | ES93: 1 | ET93: 1 | EU93: 1 | EV93: 1 | EZ93: 1 | FA93: 1 | FB93: 1 | FC93: 1 | FD93: 1 | FE93: 1 | FF93: 1 | FK93: 1 | FL93: 1 | FM93: 1 | FN93: 1 | FO93: 1 | FP93: 1 | FQ93: 1 | FR93: 1 | FW93: 1 | FX93: 1 | FY93: 1 | FZ93: 1 | GA93: 1 | GB93: 1 | GC93: 1 | GD93: 1
AD94: 13 | AE94: WOLLOW | AF94: W, O, L | AG94: Yes, 2 of each | CK94: 8 | CL94: 9 | CM94: 8 | CN94: 24 | CT94: =HLOOKUP(CT85,$CX$85:$GI$112,10) -> 1 | CU94: =HLOOKUP(CU85,$CX$85:$GI$112,10) -> 1 | CV94: =HLOOKUP(CV85,$CX$85:$GI$112,10) -> 1 | CW94: =HLOOKUP(CW85,$CX$85:$GI$112,10) -> 0 | DK94: 1 | DP94: 1 | DQ94: 1 | DV94: 1 | DW94: 1 | DX94: 1 | EC94: 1 | ED94: 1 | EE94: 1 | EF94: 1 | EK94: 1 | EL94: 1 | EM94: 1 | EN94: 1 | EO94: 1 | ET94: 1 | EU94: 1 | EV94: 1 | EW94: 1 | EX94: 1 | EY94: 1 | FD94: 1 | FE94: 1 | FF94: 1 | FG94: 1 | FH94: 1 | FI94: 1 | FJ94: 1 | FO94: 1 | FP94: 1 | FQ94: 1 | FR94: 1 | FS94: 1 | FT94: 1 | FU94: 1 | FV94: 1 | GA94: 1 | GB94: 1 | GC94: 1 | GD94: 1 | GE94: 1 | GF94: 1 | GG94: 1 | GH94: 1 | GI94: 1
AD95: 14 | AE95: DOJO | AF95: D, O, J | AG95: No | CK95: 9 | CL95: 10 | CM95: 9 | CN95: 27 | CT95: =HLOOKUP(CT85,$CX$85:$GI$112,11) -> 0 | CU95: =HLOOKUP(CU85,$CX$85:$GI$112,11) -> 0 | CV95: =HLOOKUP(CV85,$CX$85:$GI$112,11) -> 0 | CW95: =HLOOKUP(CW85,$CX$85:$GI$112,11) -> 0 | DG95: 1 | DL95: 1 | DM95: 1 | DR95: 1 | DS95: 1 | DT95: 1 | DV95: 1 | DY95: 1 | DZ95: 1 | EA95: 1 | EB95: 1 | ED95: 1 | EG95: 1 | EH95: 1 | EI95: 1 | EJ95: 1 | EK95: 1 | EL95: 1 | EP95: 1 | EQ95: 1 | ER95: 1 | ES95: 1 | ET95: 1 | EU95: 1 | EV95: 1 | EZ95: 1 | FA95: 1 | FB95: 1 | FC95: 1 | FD95: 1 | FE95: 1 | FF95: 1 | FK95: 1 | FL95: 1 | FM95: 1 | FN95: 1 | FO95: 1 | FP95: 1 | FQ95: 1 | FR95: 1 | FW95: 1 | FX95: 1 | FY95: 1 | FZ95: 1 | GA95: 1 | GB95: 1 | GC95: 1 | GD95: 1
AD96: 15 | AE96: CHIPPY | AF96: C, H, I, P, Y | AG96: No | CK96: =MOD(89*$CT$79,1) -> 0.8466933731 | CL96: =(CL97-CM96)/CM97 -> 3 | CM96: =MOD(CL97,CM97) -> 8 | CN96: =CM97 -> 10 | CT96: =HLOOKUP(CT85,$CX$85:$GI$112,12) -> 1 | CU96: =HLOOKUP(CU85,$CX$85:$GI$112,12) -> 1 | CV96: =HLOOKUP(CV85,$CX$85:$GI$112,12) -> 1 | CW96: =HLOOKUP(CW85,$CX$85:$GI$112,12) -> 0 | DQ96: 1 | DW96: 1 | DX96: 1 | ED96: 1 | EE96: 1 | EF96: 1 | EL96: 1 | EM96: 1 | EN96: 1 | EO96: 1 | EU96: 1 | EV96: 1 | EW96: 1 | EX96: 1 | EY96: 1 | FE96: 1 | FF96: 1 | FG96: 1 | FH96: 1 | FI96: 1 | FJ96: 1 | FP96: 1 | FQ96: 1 | FR96: 1 | FS96: 1 | FT96: 1 | FU96: 1 | FV96: 1 | GB96: 1 | GC96: 1 | GD96: 1 | GE96: 1 | GF96: 1 | GG96: 1 | GH96: 1 | GI96: 1
AD97: 16 | AE97: REDDER | AF97: R, E, D | AG97: Yes, 2 of each | CJ97: =INT(45*N1)+1 -> 44 | CK97: =VLOOKUP(CJ97,CJ101:CK233,2) -> 134 | CL97: =VLOOKUP($CK$97,$CK$99:$CR$233,2) -> 38 | CM97: =VLOOKUP($CK$97,$CK$99:$CR$233,3) -> 10 | CN97: =VLOOKUP($CK$97,$CK$99:$CR$233,4) -> 3.8 | CO97: =VLOOKUP($CK$97,$CK$99:$CR$233,5) -> 65 | CP97: =VLOOKUP($CK$97,$CK$99:$CR$233,6) -> 65 | CQ97: =VLOOKUP($CK$97,$CK$99:$CR$233,7) -> 65 | CR97: =A13 -> 4 | CT97: =HLOOKUP(CT85,$CX$85:$GI$112,13) -> 0 | CU97: =HLOOKUP(CU85,$CX$85:$GI$112,13) -> 0 | CV97: =HLOOKUP(CV85,$CX$85:$GI$112,13) -> 0 | CW97: =HLOOKUP(CW85,$CX$85:$GI$112,13) -> 0 | DL97: 1 | DR97: 1 | DS97: 1 | DW97: 1 | DY97: 1 | DZ97: 1 | EA97: 1 | EE97: 1 | EG97: 1 | EH97: 1 | EI97: 1 | EJ97: 1 | EL97: 1 | EM97: 1 | EP97: 1 | EQ97: 1 | ER97: 1 | ES97: 1 | ET97: 1 | EV97: 1 | EW97: 1 | EZ97: 1 | FA97: 1 | FB97: 1 | FC97: 1 | FD97: 1 | FE97: 1 | FF97: 1 | FG97: 1 | FK97: 1 | FL97: 1 | FM97: 1 | FN97: 1 | FO97: 1 | FP97: 1 | FQ97: 1 | FR97: 1 | FS97: 1 | FW97: 1 | FX97: 1 | FY97: 1 | FZ97: 1 | GA97: 1 | GB97: 1 | GC97: 1 | GD97: 1 | GE97: 1
AD98: 17 | AE98: AFRICA | AF98: A, F, R, I, C | AG98: No | CL98: num | CM98: den | CN98: quot | CO98: pie1 | CP98: pie2 | CQ98: pie3 | CR98: pie4 | CT98: =HLOOKUP(CT85,$CX$85:$GI$112,14) -> 1 | CU98: =HLOOKUP(CU85,$CX$85:$GI$112,14) -> 1 | CV98: =HLOOKUP(CV85,$CX$85:$GI$112,14) -> 1 | CW98: =HLOOKUP(CW85,$CX$85:$GI$112,14) -> 0 | DX98: 1 | EE98: 1 | EF98: 1 | EM98: 1 | EN98: 1 | EO98: 1 | EV98: 1 | EW98: 1 | EX98: 1 | EY98: 1 | FF98: 1 | FG98: 1 | FH98: 1 | FI98: 1 | FJ98: 1 | FQ98: 1 | FR98: 1 | FS98: 1 | FT98: 1 | FU98: 1 | FV98: 1 | GC98: 1 | GD98: 1 | GE98: 1 | GF98: 1 | GG98: 1 | GH98: 1 | GI98: 1
AD99: 18 | AE99: PUPPY | AF99: P, U, Y | AG99: No | CK99: 1 | CL99: 3 | CM99: 2 | CN99: =CL99/CM99 -> 1.5 | CO99: 5 | CP99: 4 | CQ99: 3 | CR99: 3 | CT99: =HLOOKUP(CT85,$CX$85:$GI$112,15) -> 0 | CU99: =HLOOKUP(CU85,$CX$85:$GI$112,15) -> 0 | CV99: =HLOOKUP(CV85,$CX$85:$GI$112,15) -> 0 | CW99: =HLOOKUP(CW85,$CX$85:$GI$112,15) -> 0 | DR99: 1 | DY99: 1 | DZ99: 1 | EG99: 1 | EH99: 1 | EI99: 1 | EM99: 1 | EP99: 1 | EQ99: 1 | ER99: 1 | ES99: 1 | EW99: 1 | EZ99: 1 | FA99: 1 | FB99: 1 | FC99: 1 | FD99: 1 | FF99: 1 | FG99: 1 | FK99: 1 | FL99: 1 | FM99: 1 | FN99: 1 | FO99: 1 | FP99: 1 | FR99: 1 | FS99: 1 | FW99: 1 | FX99: 1 | FY99: 1 | FZ99: 1 | GA99: 1 | GB99: 1 | GC99: 1 | GD99: 1 | GE99: 1
AD100: 19 | AE100: TENANT | AF100: T, E, N, A | AG100: No | CK100: 2 | CL100: 5 | CM100: 2 | CN100: 2.5 | CO100: 5 | CP100: 5 | CQ100: 4 | CR100: 3 | CT100: =HLOOKUP(CT85,$CX$85:$GI$112,16) -> 1 | CU100: =HLOOKUP(CU85,$CX$85:$GI$112,16) -> 1 | CV100: =HLOOKUP(CV85,$CX$85:$GI$112,16) -> 1 | CW100: =HLOOKUP(CW85,$CX$85:$GI$112,16) -> 0 | EF100: 1 | EN100: 1 | EO100: 1 | EW100: 1 | EX100: 1 | EY100: 1 | FG100: 1 | FH100: 1 | FI100: 1 | FJ100: 1 | FR100: 1 | FS100: 1 | FT100: 1 | FU100: 1 | FV100: 1 | GD100: 1 | GE100: 1 | GF100: 1 | GG100: 1 | GH100: 1 | GI100: 1
AD101: 20 | AE101: ASIA | AF101: A, S, I | AG101: No | CJ101: 1 | CK101: 3 | CL101: 7 | CM101: 2 | CN101: 3.5 | CO101: 5 | CP101: 5 | CQ101: 5 | CR101: 4 | CT101: =HLOOKUP(CT85,$CX$85:$GI$112,17) -> 0 | CU101: =HLOOKUP(CU85,$CX$85:$GI$112,17) -> 0 | CV101: =HLOOKUP(CV85,$CX$85:$GI$112,17) -> 0 | CW101: =HLOOKUP(CW85,$CX$85:$GI$112,17) -> 0 | DY101: 1 | EG101: 1 | EH101: 1 | EN101: 1 | EP101: 1 | EQ101: 1 | ER101: 1 | EX101: 1 | EZ101: 1 | FA101: 1 | FB101: 1 | FC101: 1 | FG101: 1 | FH101: 1 | FK101: 1 | FL101: 1 | FM101: 1 | FN101: 1 | FO101: 1 | FS101: 1 | FT101: 1 | FW101: 1 | FX101: 1 | FY101: 1 | FZ101: 1 | GA101: 1 | GB101: 1 | GD101: 1 | GE101: 1 | GF101: 1
AD102: 21 | AE102: INDIA | AF102: I, N, D, A | AG102: No | CK102: 4 | CL102: 4 | CM102: 3 | CN102: 1.333333333 | CO102: 9 | CP102: 7 | CQ102: 6 | CR102: 6 | CT102: =HLOOKUP(CT85,$CX$85:$GI$112,18) -> 1 | CU102: =HLOOKUP(CU85,$CX$85:$GI$112,18) -> 1 | CV102: =HLOOKUP(CV85,$CX$85:$GI$112,18) -> 1 | CW102: =HLOOKUP(CW85,$CX$85:$GI$112,18) -> 0 | EO102: 1 | EX102: 1 | EY102: 1 | FH102: 1 | FI102: 1 | FJ102: 1 | FS102: 1 | FT102: 1 | FU102: 1 | FV102: 1 | GE102: 1 | GF102: 1 | GG102: 1 | GH102: 1 | GI102: 1
AD103: 22 | AE103: DIVIDE | AF103: D, I, V, E | AG103: No | CK103: 5 | CL103: 5 | CM103: =CM102 -> 3 | CN103: 1.666666667 | CO103: 9 | CP103: 8 | CQ103: 6 | CR103: 6 | CT103: =HLOOKUP(CT85,$CX$85:$GI$112,19) -> 0 | CU103: =HLOOKUP(CU85,$CX$85:$GI$112,19) -> 0 | CV103: =HLOOKUP(CV85,$CX$85:$GI$112,19) -> 0 | CW103: =HLOOKUP(CW85,$CX$85:$GI$112,19) -> 0 | EG103: 1 | EP103: 1 | EQ103: 1 | EZ103: 1 | FA103: 1 | FB103: 1 | FH103: 1 | FK103: 1 | FL103: 1 | FM103: 1 | FN103: 1 | FT103: 1 | FW103: 1 | FX103: 1 | FY103: 1 | FZ103: 1 | GA103: 1 | GE103: 1 | GF103: 1
AD104: 23 | AE104: DEED | AF104: D, E | AG104: Yes, 2 of each | CK104: 6 | CL104: 7 | CM104: =CM103 -> 3 | CN104: 2.333333333 | CO104: 9 | CP104: 9 | CQ104: 7 | CR104: 6 | CT104: =HLOOKUP(CT85,$CX$85:$GI$112,20) -> 1 | CU104: =HLOOKUP(CU85,$CX$85:$GI$112,20) -> 1 | CV104: =HLOOKUP(CV85,$CX$85:$GI$112,20) -> 1 | CW104: =HLOOKUP(CW85,$CX$85:$GI$112,20) -> 0 | EY104: 1 | FI104: 1 | FJ104: 1 | FT104: 1 | FU104: 1 | FV104: 1 | GF104: 1 | GG104: 1 | GH104: 1 | GI104: 1
AD105: 24 | AE105: LEVEL | AF105: L, E, V | AG105: No | CK105: 7 | CL105: 8 | CM105: =CM104 -> 3 | CN105: 2.666666667 | CO105: 9 | CP105: 9 | CQ105: 8 | CR105: 6 | CT105: =HLOOKUP(CT85,$CX$85:$GI$112,21) -> 0 | CU105: =HLOOKUP(CU85,$CX$85:$GI$112,21) -> 0 | CV105: =HLOOKUP(CV85,$CX$85:$GI$112,21) -> 0 | CW105: =HLOOKUP(CW85,$CX$85:$GI$112,21) -> 0 | EP105: 1 | EZ105: 1 | FA105: 1 | FI105: 1 | FK105: 1 | FL105: 1 | FM105: 1 | FU105: 1 | FW105: 1 | FX105: 1 | FY105: 1 | FZ105: 1 | GF105: 1 | GG105: 1
AD106: 25 | AE106: COFFEE | AF106: C, O, F, E | AG106: No | CJ106: 2 | CK106: 8 | CL106: 10 | CM106: =CM105 -> 3 | CN106: 3.333333333 | CO106: 9 | CP106: 9 | CQ106: 9 | CR106: 7 | CT106: =HLOOKUP(CT85,$CX$85:$GI$112,22) -> 1 | CU106: =HLOOKUP(CU85,$CX$85:$GI$112,22) -> 1 | CV106: =HLOOKUP(CV85,$CX$85:$GI$112,22) -> 1 | CW106: =HLOOKUP(CW85,$CX$85:$GI$112,22) -> 0 | FJ106: 1 | FU106: 1 | FV106: 1 | GG106: 1 | GH106: 1 | GI106: 1
AD107: 26 | AE107: TOOT | AF107: T, O | AG107: Yes, 2 of each | CJ107: 3 | CK107: 9 | CL107: 11 | CM107: =CM106 -> 3 | CN107: 3.666666667 | CO107: 9 | CP107: 9 | CQ107: 9 | CR107: 8 | CT107: =HLOOKUP(CT85,$CX$85:$GI$112,23) -> 0 | CU107: =HLOOKUP(CU85,$CX$85:$GI$112,23) -> 0 | CV107: =HLOOKUP(CV85,$CX$85:$GI$112,23) -> 0 | CW107: =HLOOKUP(CW85,$CX$85:$GI$112,23) -> 0 | EZ107: 1 | FK107: 1 | FL107: 1 | FW107: 1 | FX107: 1 | FY107: 1 | GG107: 1
AD108: 27 | AE108: WOOKIE | AF108: W, O, K, I, E | AG108: No | CK108: 10 | CL108: 5 | CM108: 4 | CN108: 1.25 | CO108: 14 | CP108: 11 | CQ108: 10 | CR108: 10 | CT108: =HLOOKUP(CT85,$CX$85:$GI$112,24) -> 0 | CU108: =HLOOKUP(CU85,$CX$85:$GI$112,24) -> 0 | CV108: =HLOOKUP(CV85,$CX$85:$GI$112,24) -> 0 | CW108: =HLOOKUP(CW85,$CX$85:$GI$112,24) -> 0 | FV108: 1 | GH108: 1 | GI108: 1
AD109: 28 | AE109: COLLECT | AF109: C, O, L, E, T | AG109: No | CK109: 11 | CL109: 6 | CM109: =CM108 -> 4 | CN109: 1.5 | CO109: 14 | CP109: 12 | CQ109: 10 | CR109: 10 | CT109: =HLOOKUP(CT85,$CX$85:$GI$112,25) -> 0 | CU109: =HLOOKUP(CU85,$CX$85:$GI$112,25) -> 0 | CV109: =HLOOKUP(CV85,$CX$85:$GI$112,25) -> 0 | CW109: =HLOOKUP(CW85,$CX$85:$GI$112,25) -> 0 | FK109: 1 | FW109: 1 | FX109: 1 | GH109: 1
AD110: 29 | AE110: RIVER | AF110: R, I, V, E | AG110: No | CK110: 12 | CL110: 7 | CM110: 4 | CN110: 1.75 | CO110: 14 | CP110: 13 | CQ110: 10 | CR110: 10 | CT110: =HLOOKUP(CT85,$CX$85:$GI$112,26) -> 0 | CU110: =HLOOKUP(CU85,$CX$85:$GI$112,26) -> 0 | CV110: =HLOOKUP(CV85,$CX$85:$GI$112,26) -> 0 | CW110: =HLOOKUP(CW85,$CX$85:$GI$112,26) -> 0 | GI110: 1
AD111: 30 | AE111: PEEP | AF111: P, E | AG111: Yes, 2 of each | CK111: 13 | CL111: 9 | CM111: 4 | CN111: 2.25 | CO111: 14 | CP111: 14 | CQ111: 11 | CR111: 10 | CT111: =HLOOKUP(CT85,$CX$85:$GI$112,27) -> 0 | CU111: =HLOOKUP(CU85,$CX$85:$GI$112,27) -> 0 | CV111: =HLOOKUP(CV85,$CX$85:$GI$112,27) -> 0 | CW111: =HLOOKUP(CW85,$CX$85:$GI$112,27) -> 0 | FW111: 1
AD112: 31 | AE112: MADAM | AF112: M, A, D | AG112: No | CK112: 14 | CL112: 10 | CM112: 4 | CN112: 2.5 | CO112: 14 | CP112: 14 | CQ112: 12 | CR112: 10 | CT112: =HLOOKUP(CT85,$CX$85:$GI$112,28) -> 0 | CU112: =HLOOKUP(CU85,$CX$85:$GI$112,28) -> 0 | CV112: =HLOOKUP(CV85,$CX$85:$GI$112,28) -> 0 | CW112: =HLOOKUP(CW85,$CX$85:$GI$112,28) -> 0
AD113: 32 | AE113: OTTO | AF113: O, T | AG113: Yes, 2 of each | CK113: 15 | CL113: 11 | CM113: 4 | CN113: 2.75 | CO113: 14 | CP113: 14 | CQ113: 13 | CR113: 10
AD114: 33 | AE114: QUEUE | AF114: Q, U, E | AG114: No | CJ114: 4 | CK114: 16 | CL114: 13 | CM114: 4 | CN114: 3.25 | CO114: 14 | CP114: 14 | CQ114: 14 | CR114: 11
AD115: 34 | AE115: MILLION | AF115: M, I, L, O, N | AG115: No | CJ115: 5 | CK115: 17 | CL115: 14 | CM115: 4 | CN115: 3.5 | CO115: 14 | CP115: 14 | CQ115: 14 | CR115: 12
AD116: 35 | AE116: IRISES | AF116: I, R, S, E | AG116: No | CJ116: 6 | CK116: 18 | CL116: 15 | CM116: 4 | CN116: 3.75 | CO116: 14 | CP116: 14 | CQ116: 14 | CR116: 13
AD117: 36 | AE117: BEETLE | AF117: B, E, T, L | AG117: No | CK117: 19 | CL117: 6 | CM117: 5 | CN117: 1.2 | CO117: 20 | CP117: 16 | CQ117: 15 | CR117: 15
AD118: 37 | AE118: REVERE | AF118: R, E, V | AG118: No | CK118: 20 | CL118: 7 | CM118: =CM117 -> 5 | CN118: 1.4 | CO118: 20 | CP118: 17 | CQ118: 15 | CR118: 15
AD119: 38 | AE119: SHUSH | AF119: S, H, U | AG119: No | CK119: 21 | CL119: 8 | CM119: 5 | CN119: 1.6 | CO119: 20 | CP119: 18 | CQ119: 15 | CR119: 15
AD120: 39 | AE120: SPOONS | AF120: S, P, O, N | AG120: No | CK120: 22 | CL120: 9 | CM120: 5 | CN120: 1.8 | CO120: 20 | CP120: 19 | CQ120: 15 | CR120: 15
AD121: 40 | AE121: GOOGLE | AF121: G, O, L, E | AG121: No | CK121: 23 | CL121: 11 | CM121: 5 | CN121: 2.2 | CO121: 20 | CP121: 20 | CQ121: 16 | CR121: 15
AD122: 41 | AE122: AREA | AF122: A, R, E | AG122: No | CK122: 24 | CL122: 12 | CM122: 5 | CN122: 2.4 | CO122: 20 | CP122: 20 | CQ122: 17 | CR122: 15
AD123: 42 | AE123: BILLION | AF123: B, I, L, O, N | AG123: No | CK123: 25 | CL123: 13 | CM123: 5 | CN123: 2.6 | CO123: 20 | CP123: 20 | CQ123: 18 | CR123: 15
AD124: 43 | AE124: CELSIUS | AF124: C, E, L, S, I, U | AG124: No | CK124: 26 | CL124: 14 | CM124: 5 | CN124: 2.8 | CO124: 20 | CP124: 20 | CQ124: 19 | CR124: 15
AD125: 44 | AE125: LOGO | AF125: L, O, G | AG125: No | CJ125: 7 | CK125: 27 | CL125: 16 | CM125: 5 | CN125: 3.2 | CO125: 20 | CP125: 20 | CQ125: 20 | CR125: 16
AD126: 45 | AE126: PROOF | AF126: P, R, O, F | AG126: No | CJ126: 8 | CK126: 28 | CL126: 17 | CM126: 5 | CN126: 3.4 | CO126: 20 | CP126: 20 | CQ126: 20 | CR126: 17
AD127: 46 | AE127: PREFER | AF127: P, R, E, F | AG127: No | CJ127: 9 | CK127: 29 | CL127: 18 | CM127: 5 | CN127: 3.6 | CO127: 20 | CP127: 20 | CQ127: 20 | CR127: 18
AD128: 47 | AE128: ABACUS | AF128: A, B, C, U, S | AG128: No | CJ128: 10 | CK128: 30 | CL128: 19 | CM128: 5 | CN128: 3.8 | CO128: 20 | CP128: 20 | CQ128: 20 | CR128: 19
AD129: 48 | AE129: INDIANA | AF129: I, N, D, A | AG129: No | CK129: 31 | CL129: 7 | CM129: 6 | CN129: 1.166666667 | CO129: 27 | CP129: 22 | CQ129: 21 | CR129: 21
AD130: 49 | AE130: ONION | AF130: O, N, I | AG130: No | CK130: 32 | CL130: 8 | CM130: =CM129 -> 6 | CN130: 1.333333333 | CO130: 27 | CP130: 23 | CQ130: 21 | CR130: 21
AD131: 50 | AE131: VERTEX | AF131: V, E, R, T, X | AG131: No | CK131: 33 | CL131: 9 | CM131: 6 | CN131: =CL131/CM131 -> 1.5 | CO131: 27 | CP131: 24 | CQ131: 21 | CR131: 21
AD132: 51 | AE132: ERROR | AF132: E, R, O | AG132: No | CK132: 34 | CL132: 10 | CM132: 6 | CN132: 1.666666667 | CO132: 27 | CP132: 25 | CQ132: 21 | CR132: 21
AD133: 52 | AE133: RABBIT | AF133: R, A, B, I, T | AG133: No | CK133: 35 | CL133: 11 | CM133: 6 | CN133: 1.833333333 | CO133: 27 | CP133: 26 | CQ133: 21 | CR133: 21
AD134: 53 | AE134: DOG | AF134: D, O, G | AG134: Yes, 1 of each | CK134: 36 | CL134: 13 | CM134: 6 | CN134: 2.166666667 | CO134: 27 | CP134: 27 | CQ134: 22 | CR134: 21
AD135: 54 | AE135: CAT | AF135: C, A, T | AG135: Yes, 1 of each | CK135: 37 | CL135: 14 | CM135: 6 | CN135: 2.333333333 | CO135: 27 | CP135: 27 | CQ135: 23 | CR135: 21
AD136: 55 | AE136: FISH | AF136: F, I, S, H | AG136: Yes, 1 of each | CK136: 38 | CL136: 15 | CM136: 6 | CN136: 2.5 | CO136: 27 | CP136: 27 | CQ136: 24 | CR136: 21
AD137: 56 | AE137: TIGER | AF137: T, I, G, E, R | AG137: Yes, 1 of each | CK137: 39 | CL137: 16 | CM137: 6 | CN137: 2.666666667 | CO137: 27 | CP137: 27 | CQ137: 25 | CR137: 21
AD138: 57 | AE138: JEDI | AF138: J, E, D, I | AG138: Yes, 1 of each | CK138: 40 | CL138: 17 | CM138: 6 | CN138: 2.833333333 | CO138: 27 | CP138: 27 | CQ138: 26 | CR138: 21
AD139: 58 | AE139: HARRY | AF139: H, A, R, Y | AG139: No | CJ139: 11 | CK139: 41 | CL139: 19 | CM139: 6 | CN139: 3.166666667 | CO139: 27 | CP139: 27 | CQ139: 27 | CR139: 22
AD140: 59 | AE140: FRODO | AF140: F, R, O, D | AG140: No | CJ140: 12 | CK140: 42 | CL140: 20 | CM140: 6 | CN140: 3.333333333 | CO140: 27 | CP140: 27 | CQ140: 27 | CR140: 23
AD141: 60 | AE141: NEO | AF141: N, E, O | AG141: Yes, 1 of each | CJ141: 13 | CK141: 43 | CL141: 21 | CM141: 6 | CN141: 3.5 | CO141: 27 | CP141: 27 | CQ141: 27 | CR141: 24
AD142: 61 | AE142: TRINITY | AF142: T, R, I, N, Y | AG142: No | CJ142: 14 | CK142: 44 | CL142: 22 | CM142: 6 | CN142: 3.666666667 | CO142: 27 | CP142: 27 | CQ142: 27 | CR142: 25
AD143: 62 | AE143: MATT | AF143: M, A, T | AG143: No | CJ143: 15 | CK143: 45 | CL143: 23 | CM143: 6 | CN143: 3.833333333 | CO143: 27 | CP143: 27 | CQ143: 27 | CR143: 26
AD144: 63 | CK144: 46 | CL144: 8 | CM144: 7 | CN144: 1.142857143 | CO144: 35 | CP144: 29 | CQ144: 28 | CR144: 28
AD145: 64 | CK145: 47 | CL145: 9 | CM145: =CM144 -> 7 | CN145: 1.285714286 | CO145: 35 | CP145: 30 | CQ145: 28 | CR145: 28
AD146: 65 | CK146: 48 | CL146: 10 | CM146: 7 | CN146: 1.428571429 | CO146: 35 | CP146: 31 | CQ146: 28 | CR146: 28
AD147: 66 | CK147: 49 | CL147: 11 | CM147: 7 | CN147: 1.571428571 | CO147: 35 | CP147: 32 | CQ147: 28 | CR147: 28
AD148: 67 | CK148: 50 | CL148: 12 | CM148: 7 | CN148: 1.714285714 | CO148: 35 | CP148: 33 | CQ148: 28 | CR148: 28
AD149: 68 | CK149: 51 | CL149: 13 | CM149: 7 | CN149: 1.857142857 | CO149: 35 | CP149: 34 | CQ149: 28 | CR149: 28
AD150: 69 | CK150: 52 | CL150: 15 | CM150: 7 | CN150: 2.142857143 | CO150: 35 | CP150: 35 | CQ150: 29 | CR150: 28
AD151: 70 | CK151: 53 | CL151: 16 | CM151: 7 | CN151: 2.285714286 | CO151: 35 | CP151: 35 | CQ151: 30 | CR151: 28
AD152: 71 | CK152: 54 | CL152: 17 | CM152: 7 | CN152: 2.428571429 | CO152: 35 | CP152: 35 | CQ152: 31 | CR152: 28
AD153: 72 | CK153: 55 | CL153: 18 | CM153: 7 | CN153: 2.571428571 | CO153: 35 | CP153: 35 | CQ153: 32 | CR153: 28
AD154: 73 | CK154: 56 | CL154: 19 | CM154: 7 | CN154: 2.714285714 | CO154: 35 | CP154: 35 | CQ154: 33 | CR154: 28
AD155: 74 | CK155: 57 | CL155: 20 | CM155: 7 | CN155: 2.857142857 | CO155: 35 | CP155: 35 | CQ155: 34 | CR155: 28
AD156: 75 | CJ156: 16 | CK156: 58 | CL156: 22 | CM156: 7 | CN156: 3.142857143 | CO156: 35 | CP156: 35 | CQ156: 35 | CR156: 29
AD157: 76 | CJ157: 17 | CK157: 59 | CL157: 23 | CM157: 7 | CN157: 3.285714286 | CO157: 35 | CP157: 35 | CQ157: 35 | CR157: 30
AD158: 77 | CJ158: 18 | CK158: 60 | CL158: 24 | CM158: 7 | CN158: 3.428571429 | CO158: 35 | CP158: 35 | CQ158: 35 | CR158: 31
AD159: 78 | CJ159: 19 | CK159: 61 | CL159: 25 | CM159: 7 | CN159: 3.571428571 | CO159: 35 | CP159: 35 | CQ159: 35 | CR159: 32
AD160: 79 | CJ160: 20 | CK160: 62 | CL160: 26 | CM160: 7 | CN160: 3.714285714 | CO160: 35 | CP160: 35 | CQ160: 35 | CR160: 33
AD161: 80 | CJ161: 21 | CK161: 63 | CL161: 27 | CM161: 7 | CN161: 3.857142857 | CO161: 35 | CP161: 35 | CQ161: 35 | CR161: 34
AD162: 81 | CK162: 64 | CL162: 9 | CM162: 8 | CN162: 1.125 | CO162: 44 | CP162: 37 | CQ162: 36 | CR162: 36
AD163: 82 | CK163: 65 | CL163: 10 | CM163: =CM162 -> 8 | CN163: =CL163/CM163 -> 1.25 | CO163: 44 | CP163: 38 | CQ163: 36 | CR163: 36
AD164: 83 | CK164: 66 | CL164: 11 | CM164: 8 | CN164: 1.375 | CO164: 44 | CP164: 39 | CQ164: 36 | CR164: 36
AD165: 84 | CK165: 67 | CL165: 12 | CM165: 8 | CN165: 1.5 | CO165: 44 | CP165: 40 | CQ165: 36 | CR165: 36
AD166: 85 | CK166: 68 | CL166: 13 | CM166: 8 | CN166: 1.625 | CO166: 44 | CP166: 41 | CQ166: 36 | CR166: 36
AD167: 86 | CK167: 69 | CL167: 14 | CM167: 8 | CN167: 1.75 | CO167: 44 | CP167: 42 | CQ167: 36 | CR167: 36
AD168: 87 | CK168: 70 | CL168: 15 | CM168: 8 | CN168: 1.875 | CO168: 44 | CP168: 43 | CQ168: 36 | CR168: 36
AD169: 88 | CK169: 71 | CL169: 17 | CM169: 8 | CN169: 2.125 | CO169: 44 | CP169: 44 | CQ169: 37 | CR169: 36
AD170: 89 | CK170: 72 | CL170: 18 | CM170: 8 | CN170: 2.25 | CO170: 44 | CP170: 44 | CQ170: 38 | CR170: 36
AD171: 90 | CK171: 73 | CL171: 19 | CM171: 8 | CN171: 2.375 | CO171: 44 | CP171: 44 | CQ171: 39 | CR171: 36
AD172: 91 | CK172: 74 | CL172: 20 | CM172: 8 | CN172: 2.5 | CO172: 44 | CP172: 44 | CQ172: 40 | CR172: 36
AD173: 92 | CK173: 75 | CL173: 21 | CM173: 8 | CN173: 2.625 | CO173: 44 | CP173: 44 | CQ173: 41 | CR173: 36
AD174: 93 | CK174: 76 | CL174: 22 | CM174: 8 | CN174: 2.75 | CO174: 44 | CP174: 44 | CQ174: 42 | CR174: 36
AD175: 94 | CK175: 77 | CL175: 23 | CM175: 8 | CN175: 2.875 | CO175: 44 | CP175: 44 | CQ175: 43 | CR175: 36
AD176: 95 | CJ176: 22 | CK176: 78 | CL176: 25 | CM176: 8 | CN176: 3.125 | CO176: 44 | CP176: 44 | CQ176: 44 | CR176: 37
AD177: 96 | CJ177: 23 | CK177: 79 | CL177: 26 | CM177: 8 | CN177: 3.25 | CO177: 44 | CP177: 44 | CQ177: 44 | CR177: 38
AD178: 97 | CJ178: 24 | CK178: 80 | CL178: 27 | CM178: 8 | CN178: 3.375 | CO178: 44 | CP178: 44 | CQ178: 44 | CR178: 39
AD179: 98 | CJ179: 25 | CK179: 81 | CL179: 28 | CM179: 8 | CN179: 3.5 | CO179: 44 | CP179: 44 | CQ179: 44 | CR179: 40
AD180: 99 | CJ180: 26 | CK180: 82 | CL180: 29 | CM180: 8 | CN180: 3.625 | CO180: 44 | CP180: 44 | CQ180: 44 | CR180: 41
AD181: 100 | CJ181: 27 | CK181: 83 | CL181: 30 | CM181: 8 | CN181: 3.75 | CO181: 44 | CP181: 44 | CQ181: 44 | CR181: 42
CJ182: 28 | CK182: 84 | CL182: 31 | CM182: 8 | CN182: 3.875 | CO182: 44 | CP182: 44 | CQ182: 44 | CR182: 43
AD183: =INT(10*RAND())+1 -> 1 | AE183: =VLOOKUP(AD183,AD184:AE193,2) -> 1 | CK183: 85 | CL183: 10 | CM183: 9 | CN183: 1.111111111 | CO183: 54 | CP183: 46 | CQ183: 45 | CR183: 45
AD184: 1 | AE184: 1 | CK184: 86 | CL184: 11 | CM184: =CM183 -> 9 | CN184: 1.222222222 | CO184: 54 | CP184: 47 | CQ184: 45 | CR184: 45
AD185: 2 | AE185: 3 | CK185: 87 | CL185: 12 | CM185: 9 | CN185: 1.333333333 | CO185: 54 | CP185: 48 | CQ185: 45 | CR185: 45
AD186: 3 | AE186: 5 | CK186: 88 | CL186: 13 | CM186: 9 | CN186: 1.444444444 | CO186: 54 | CP186: 49 | CQ186: 45 | CR186: 45
AD187: 4 | AE187: 14 | CK187: 89 | CL187: 14 | CM187: 9 | CN187: 1.555555556 | CO187: 54 | CP187: 50 | CQ187: 45 | CR187: 45
AD188: 5 | AE188: 16 | CK188: 90 | CL188: 15 | CM188: 9 | CN188: 1.666666667 | CO188: 54 | CP188: 51 | CQ188: 45 | CR188: 45
AD189: 6 | AE189: 27 | CK189: 91 | CL189: 16 | CM189: 9 | CN189: 1.777777778 | CO189: 54 | CP189: 52 | CQ189: 45 | CR189: 45
AD190: 7 | AE190: 38 | CK190: 92 | CL190: 17 | CM190: 9 | CN190: 1.888888889 | CO190: 54 | CP190: 53 | CQ190: 45 | CR190: 45
AD191: 8 | AE191: 44 | CK191: 93 | CL191: 19 | CM191: 9 | CN191: 2.111111111 | CO191: 54 | CP191: 54 | CQ191: 46 | CR191: 45
AD192: 9 | AE192: 65 | CK192: 94 | CL192: 20 | CM192: 9 | CN192: 2.222222222 | CO192: 54 | CP192: 54 | CQ192: 47 | CR192: 45
AD193: 10 | AE193: 69 | CK193: 95 | CL193: 21 | CM193: 9 | CN193: 2.333333333 | CO193: 54 | CP193: 54 | CQ193: 48 | CR193: 45
CK194: 96 | CL194: 22 | CM194: 9 | CN194: 2.444444444 | CO194: 54 | CP194: 54 | CQ194: 49 | CR194: 45
CK195: 97 | CL195: 23 | CM195: 9 | CN195: =CL195/CM195 -> 2.555555556 | CO195: 54 | CP195: 54 | CQ195: 50 | CR195: 45
CK196: 98 | CL196: 24 | CM196: 9 | CN196: 2.666666667 | CO196: 54 | CP196: 54 | CQ196: 51 | CR196: 45
CK197: 99 | CL197: 25 | CM197: 9 | CN197: 2.777777778 | CO197: 54 | CP197: 54 | CQ197: 52 | CR197: 45
CK198: 100 | CL198: 26 | CM198: 9 | CN198: 2.888888889 | CO198: 54 | CP198: 54 | CQ198: 53 | CR198: 45
CJ199: 29 | CK199: 101 | CL199: 28 | CM199: 9 | CN199: 3.111111111 | CO199: 54 | CP199: 54 | CQ199: 54 | CR199: 46
CJ200: 30 | CK200: 102 | CL200: 29 | CM200: 9 | CN200: 3.222222222 | CO200: 54 | CP200: 54 | CQ200: 54 | CR200: 47
... 33 more rows

Sheet IDALLTWO
A1: =RAND() -> 0.1838911268 | B1: 0.8780422355 | C1: 0.345892143 | D1: 0.8999128031 | E1: 0.49040427 | F1: 0.5508001171 | G1: 0.9797667344 | H1: 0.2306688257 | I1: 0.5737861022 | J1: 0.2623704417 | K1: 0.04754133104 | L1: 0.4442661725 | M1: 0.6991058255 | N1: 0.9568559094 | O1: 0.5572493156 | P1: 0.3633383487 | Q1: 0.03504246119 | R1: 0.02411401237 | S1: 0.7363621614 | T1: 0.3537852597 | U1: 0.8314980611 | V1: 0.7002973395 | W1: 0.9845727492 | X1: 0.9791032732 | Y1: 0.8546754685 | Z1: 0.2224461204
A2: =AE3 -> 58 | B2: Find all possible mutually exclusive outcomes | AD2: =AE183 -> 5 | AE2: 0.5 | AI2: x | AJ2: 1 | AK2: 2 | AL2: 3 | AM2: 4 | AN2: 5 | AO2: 6 | AP2: 7 | AQ2: =AH14 -> 1 | BI2: =INT(8*O1)+1 -> 5 | BJ2: 1 | BK2: 2 | BL2: 3 | BM2: 4 | BN2: 5 | BO2: 6 | BP2: 7 | BQ2: =BH14 -> 1
B3: when one card or letter is chosen at random. | X3: =B4 -> 47 | AD3: =IF(RAND()>AE2,AD2,X3) -> 47 | AE3: =VLOOKUP($AD$3,$AD$4:$AG$79,2) -> 58 | AF3: =VLOOKUP($AD$3,$AD$4:$AG$79,3) -> blue, green, white | AG3: =VLOOKUP($AD$3,$AD$4:$AG$79,4) -> No | AI3: 3 | AJ3: P(prime №) = | AK3: P(odd №) = | AL3: =CONCATENATE("P(",AQ2,") =") -> P(1) = | AM3: =CONCATENATE("P(№ < ",AI2,") =") -> P(№ < x) = | AN3: =CONCATENATE("P(№ > ",AI2,") =") -> P(№ > x) = | AO3: =CONCATENATE("P(№ ≤ ",AI2,") =") -> P(№ ≤ x) = | AP3: =CONCATENATE("P(№ ≥ ",AI2,") =") -> P(№ ≥ x) = | AQ3: № | AY3: № | BI3: =INT(4*P1)+4 -> 5 | BJ3: P(prime №) = | BK3: P(odd №) = | BL3: =CONCATENATE("P(",BQ2,") =") -> P(1) = | BM3: =CONCATENATE("P(№ < ",BI2,") =") -> P(№ < 5) = | BN3: =CONCATENATE("P(№ > ",BI2,") =") -> P(№ > 5) = | BO3: =CONCATENATE("P(№ ≤ ",BI2,") =") -> P(№ ≤ 5) = | BP3: =CONCATENATE("P(№ ≥ ",BI2,") =") -> P(№ ≥ 5) = | BQ3: № | BY3: №
B4: =INT(76*RAND())+1 -> 47 | Y4: =IF(S6="No","","*") ->  | Z4: =IF(S10="No","","*") ->  | AA4: =IF(AG81="No","","*") ->  | AD4: 1 | AE4: 4 | AF4: blue, green | AG4: Yes, 1 of each | AI4: 0 | AJ4: X | AK4: X | AL4: X | AM4: X | AN4: X | AO4: X | AP4: X | AQ4: =D4 -> 0 | AR4: =VLOOKUP(AQ4,AI4:AP24,AI3+1) -> 0 | AS4: =COUNTIF(AR4:AR13,1) -> 0 | AT4: =GCD(AS4,AS5) -> 6 | AU4: =AS4/AT4 -> 0 | AV4: =IF(AS4=0,0,AU4) -> 0 | AW4: =IF(AS4=0,CONCATENATE(" ",AV4," "),IF(AS6=1,CONCATENATE(" ",AV4," "),"X")) -> 0 | AY4: =AQ4 -> 0 | BI4: 0 | BJ4: X | BK4: X | BL4: X | BM4: X | BN4: X | BO4: X | BP4: X | BQ4: =#REF! ->  | BR4: =VLOOKUP(BQ4,$BI$4:$BP$24,$BI$3+1) ->  | BS4: =COUNTIF(BR4:BR13,1) -> 0 | BT4: =GCD(BS4,BS5) -> 8 | BU4: =BS4/BT4 -> 0 | BV4: =IF(BS4=0,0,BU4) -> 0 | BW4: =IF(BS4=0,CONCATENATE(" ",BV4," "),IF(BS6=1,CONCATENATE(" ",BV4," "),"X")) -> 0 | BY4: =BQ4 -> 
B5: =IF(F12=1,"●",IF(F12=2,"■",IF(F12=3,"♥","⊿"))) -> ● | C5: =IF(G12=1,"●",IF(G12=2,"■",IF(G12=3,"♥","⊿"))) -> ● | D5: =IF(H12=1,"●",IF(H12=2,"■",IF(H12=3,"♥","⊿"))) -> ● | E5: =IF(I12=1,"●",IF(I12=2,"■",IF(I12=3,"♥","⊿"))) -> ♥ | R5: Possible outcomes are : | S5: =CONCATENATE($D$19) -> ●, ■, ♥, ⊿ | AD5: 2 | AE5: 6 | AF5: green, white | AG5: No | AH5: =COUNTIF(AQ4:AQ13,AI5) -> 0 | AI5: 1 | AJ5: 0 | AK5: 1 | AL5: =IF(AI5=AQ2,1,0) -> 1 | AM5: =IF(AI5<AI2,1,0) -> 1 | AN5: =IF(AI5>AI2,1,0) -> 0 | AO5: =IF(AI5<=AI2,1,0) -> 1 | AP5: =IF(AI5>=AI2,1,0) -> 0 | AQ5: =E4 -> 0 | AR5: =VLOOKUP(AQ5,AI4:AP24,AI3+1) -> 0 | AS5: 6 | AT5: =LCM(AS4,AS5) -> 0 | AU5: =AS5/AT4 -> 1 | AV5: =IF(AS4=0,"",IF(AS6=1,"",AU5)) ->  | AY5: 0 | BH5: =COUNTIF(BQ4:BQ13,BI5) -> 0 | BI5: 1 | BJ5: 0 | BK5: 1 | BL5: =IF(BI5=$BQ$2,1,0) -> 1 | BM5: =IF(BI5<$BI$2,1,0) -> 1 | BN5: =IF(BI5>$BI$2,1,0) -> 0 | BO5: =IF(BI5<=$BI$2,1,0) -> 1 | BP5: =IF(BI5>=$BI$2,1,0) -> 0 | BQ5: =#REF! ->  | BS5: 8 | BT5: =LCM(BS4,BS5) -> 0 | BU5: =BS5/BT4 -> 1 | BV5: =IF(BS4=0,"",IF(BS6=1,"",BU5)) -> 
B6: =IF(J12=1,"●",IF(J12=2,"■",IF(J12=3,"♥","⊿"))) -> ⊿ | C6: =IF(K12=1,"●",IF(K12=2,"■",IF(K12=3,"♥","⊿"))) -> ⊿ | D6: =IF(L12=1,"●",IF(L12=2,"■",IF(L12=3,"♥","⊿"))) -> ■ | E6: =IF(M12=1,"●",IF(M12=2,"■",IF(M12=3,"♥","⊿"))) -> ⊿ | R6: Are they equally likely? : | S6: =E19 -> No | AD6: 3 | AE6: 7 | AF6: blue, green, white | AG6: Yes, 1 of each | AH6: =COUNTIF(AQ4:AQ13,AI6) -> 0 | AI6: 2 | AJ6: 1 | AK6: 0 | AL6: =IF(AI6=$AQ$2,1,0) -> 0 | AM6: =IF(AI6<$AI$2,1,0) -> 1 | AN6: =IF(AI6>$AI$2,1,0) -> 0 | AO6: =IF(AI6<=$AI$2,1,0) -> 1 | AP6: =IF(AI6>=$AI$2,1,0) -> 0 | AQ6: =F4 -> 0 | AR6: =VLOOKUP(AQ6,$AI$4:$AP$24,$AI$3+1) -> 0 | AS6: =AS4/AS5 -> 0 | AY6: 0 | BH6: =COUNTIF(BQ4:BQ13,BI6) -> 0 | BI6: 2 | BJ6: 1 | BK6: 0 | BL6: 0 | BM6: 1 | BN6: 0 | BO6: 1 | BP6: 0 | BQ6: =#REF! ->  | BS6: =BS4/BS5 -> 0
G7: =INT(10*RAND())+0 -> 6 | H7: =INT(10*RAND())+0 -> 1 | I7: =INT(10*RAND())+0 -> 5 | J7: =IF($M$7>0.66,G7,INT(10*RAND())+0) -> 4 | K7: =IF($M$7>0.66,H7,INT(10*RAND())+0) -> 8 | L7: =IF($M$7>0.66,I7,INT(10*RAND())+0) -> 7 | M7: =RAND() -> 0.4445027974 | Y7: =$BV$5 ->  | AD7: 4 | AE7: 8 | AF7: blue, white | AG7: No | AH7: =COUNTIF(AQ4:AQ13,AI7) -> 0 | AI7: 3 | AJ7: 1 | AK7: 1 | AL7: 0 | AM7: 1 | AN7: 0 | AO7: 1 | AP7: 0 | AQ7: =G4 -> 0 | AR7: 0 | AY7: 0 | BH7: =COUNTIF(BQ4:BQ13,BI7) -> 0 | BI7: 3 | BJ7: 1 | BK7: 1 | BL7: 0 | BM7: 1 | BN7: 0 | BO7: 1 | BP7: 0 | BQ7: =#REF! -> 
C8: =B16 -> 4 | D8: =C16 -> 3 | G8: =IF(F7>0.7,INT(5*RAND())+0,G7) -> 6 | H8: =IF($F$7>0.7,G8+1,H7) -> 1 | I8: =IF($F$7>0.7,H8+1,I7) -> 5 | J8: =IF($F$7>0.7,I8+1,J7) -> 4 | K8: =IF($F$7>0.7,J8+1,K7) -> 8 | L8: =IF($F$7>0.7,K8+1,L7) -> 7 | AD8: 5 | AE8: 10 | AF8: green, white | AG8: Yes, 2 of each | AH8: =COUNTIF(AQ4:AQ13,AI8) -> 0 | AI8: 4 | AJ8: 0 | AK8: 0 | AL8: 0 | AM8: 1 | AN8: 0 | AO8: 1 | AP8: 0 | AQ8: =H4 -> 0 | AR8: 0 | AY8: 0 | BH8: =COUNTIF(BQ4:BQ13,BI8) -> 0 | BI8: 4 | BJ8: 0 | BK8: 0 | BL8: 0 | BM8: 1 | BN8: 0 | BO8: 1 | BP8: 0 | BQ8: =U4 -> 0 | BR8: X | BY8: 0
B9: =D16 -> 6 | C9: =E16 -> 4 | D9: =F16 -> 3 | E9: =G16 -> 1 | R9: Possible outcomes are : | S9: =CONCATENATE($C$19) -> 1, 3, 4, 5, 6 | AD9: 6 | AE9: 11 | AF9: blue, green, white | AG9: No | AH9: =COUNTIF(AQ4:AQ13,AI9) -> 0 | AI9: 5 | AJ9: 1 | AK9: 1 | AL9: 0 | AM9: 1 | AN9: 0 | AO9: 1 | AP9: 0 | AQ9: =I4 -> 0 | AR9: 0 | AY9: 0 | BH9: =COUNTIF(BQ4:BQ13,BI9) -> 0 | BI9: 5 | BJ9: 1 | BK9: 1 | BL9: 0 | BM9: 0 | BN9: 0 | BO9: 1 | BP9: 1 | BQ9: =V4 -> 0 | BR9: X | BY9: 0
B10: =H16 -> 4 | C10: =I16 -> 6 | D10: =J16 -> 5 | E10: =K16 -> 1 | R10: Are they equally likely? : | S10: =F19 -> No | AD10: 7 | AE10: 12 | AF10: blue, green, white | AG10: No | AH10: =COUNTIF(AQ4:AQ13,AI10) -> 0 | AI10: 6 | AJ10: 0 | AK10: 0 | AL10: 0 | AM10: 1 | AN10: 0 | AO10: 1 | AP10: 0 | AR10: 0 | BH10: =COUNTIF(BQ4:BQ13,BI10) -> 0 | BI10: 6 | BJ10: 0 | BK10: 0 | BL10: 0 | BM10: 0 | BN10: 1 | BO10: 0 | BP10: 1 | BQ10: =W4 -> 0 | BR10: X | BY10: 0
C11: =L16 -> 6 | D11: =M16 -> 4 | F11: =IF(F12=1,"●","") -> ● | G11: =IF(G12=1,"●","") -> ● | H11: ● | N11: =IF(F12=2,"■","") ->  | O11: =IF(G12=2,"■","") ->  | T11: ■ | V11: =IF(V12=0,0,1) -> 1 | W11: =IF(W12=0,0,1) -> 1 | X11: =IF(X12=0,0,1) -> 1 | Y11: =IF(Y12=0,0,1) -> 1 | Z11: =Y11+X11*2+W11*4+V11*8 -> 15 | AD11: 8 | AE11: 13 | AF11: blue, white | AG11: No | AH11: =COUNTIF(AQ4:AQ13,AI11) -> 0 | AI11: 7 | AJ11: 1 | AK11: 1 | AL11: 0 | AM11: 1 | AN11: 0 | AO11: 1 | AP11: 0 | AR11: 0 | BH11: =COUNTIF(BQ4:BQ13,BI11) -> 0 | BI11: 7 | BJ11: 1 | BK11: 1 | BL11: 0 | BM11: 0 | BN11: 1 | BO11: 0 | BP11: 1 | BQ11: =X4 -> 0 | BR11: X | BY11: 0
F12: =INT(4*RAND())+1 -> 1 | G12: 1 | H12: 1 | I12: 3 | J12: 4 | K12: 4 | L12: 2 | M12: 4 | N12: =IF(F12=3,"♥","") ->  | O12: =IF(G12=3,"♥","") ->  | Q12: ♥ | V12: =COUNTIF($F$12:$M$12,1) -> 3 | W12: =COUNTIF($F$12:$M$12,2) -> 1 | X12: =COUNTIF($F$12:$M$12,3) -> 1 | Y12: =COUNTIF($F$12:$M$12,4) -> 3 | AD12: 9 | AE12: 15 | AF12: green, white | AG12: No | AH12: =COUNTIF(AQ4:AQ13,AI12) -> 0 | AI12: 8 | AJ12: 0 | AK12: 0 | AL12: 0 | AM12: 1 | AN12: 0 | AO12: 1 | AP12: 0 | AR12: 0 | BH12: =COUNTIF(BQ4:BQ13,BI12) -> 0 | BI12: 8 | BJ12: 0 | BK12: 0 | BL12: 0 | BM12: 0 | BN12: 1 | BO12: 0 | BP12: 1 | BR12: X
A13: =A2 -> 58 | B13: =CONCATENATE("A letter is randomly chosen from the word ",AE81,"") -> A letter is randomly chosen from the word SPOONS | AD13: 10 | AE13: 16 | AF13: blue, green, white | AG13: No | AH13: =MAX(AH5:AH12) -> 0 | AI13: 9 | AJ13: 0 | AK13: 1 | AL13: 0 | AM13: 1 | AN13: 0 | AO13: 1 | AP13: 0 | AR13: 0 | BH13: =MAX(BH5:BH12) -> 0 | BI13: 9 | BJ13: 0 | BK13: 1 | BL13: 0 | BM13: 0 | BN13: 1 | BO13: 0 | BP13: 1 | BR13: X
R14: Possible outcomes are : | S14: =AF81 -> S, P, O, N | AD14: 11 | AE14: 17 | AF14: blue, green, white | AG14: No | AH14: =IF(AH13=AH5,AI5,IF(AH13=AH6,AI6,IF(AH13=AH7,AI7,IF(AH13=AH8,AI8,IF(AH13=AH9,AI9,IF(AH13=AH10,AI10,IF(AH13=AH11,AI11,AI12))))))) -> 1 | BH14: =IF(BH13=BH5,BI5,IF(BH13=BH6,BI6,IF(BH13=BH7,BI7,IF(BH13=BH8,BI8,IF(BH13=BH9,BI9,IF(BH13=BH10,BI10,IF(BH13=BH11,BI11,BI12))))))) -> 1
R15: Are they equally likely? : | S15: =AG81 -> No | AD15: 12 | AE15: 18 | AF15: blue, green, white | AG15: No
B16: =IF($N$16=1,INT(3*RAND())+1,IF($N$16=2,INT(4*RAND())+1,IF($N$16=3,INT(5*RAND())+1,INT(6*RAND())+1))) -> 4 | C16: =IF($N$16=1,INT(3*RAND())+1,IF($N$16=2,INT(4*RAND())+1,IF($N$16=3,INT(5*RAND())+1,INT(6*RAND())+1))) -> 3 | D16: 6 | E16: 4 | F16: 3 | G16: 1 | H16: 4 | I16: 6 | J16: 5 | K16: 1 | L16: 6 | M16: 4 | N16: =INT(4*RAND())+1 -> 4 | AD16: 13 | AE16: 19 | AF16: blue, white | AG16: No
B17: =IF(B18=0,0,1) -> 1 | C17: 0 | D17: 1 | E17: 1 | F17: 1 | G17: 1 | H17: =G17*32+F17*16+E17*8+D17*4+C17*2+B17*1 -> 61 | AD17: 14 | AE17: 21 | AF17: green, white | AG17: Yes, 3 of each | AJ17: =G8 -> 6 | AK17: 1 | AL17: 5 | AM17: 4 | AN17: 8 | AO17: 7
B18: =COUNTIF($B$16:$M$16,1) -> 2 | C18: =COUNTIF($B$16:$M$16,2) -> 0 | D18: =COUNTIF($B$16:$M$16,3) -> 2 | E18: =COUNTIF($B$16:$M$16,4) -> 4 | F18: =COUNTIF($B$16:$M$16,5) -> 1 | G18: =COUNTIF($B$16:$M$16,6) -> 3 | AD18: 15 | AE18: 22 | AF18: blue, green, white | AG18: No | AJ18: 1 | AK18: 2 | AL18: 3 | AM18: 4 | AN18: 5 | AO18: 6
B19: =H17 -> 61 | C19: =VLOOKUP($B$19,$B$20:$M$82,2) -> 1, 3, 4, 5, 6 | D19: =VLOOKUP($Z$11,$B$20:$D$35,3) -> ●, ■, ♥, ⊿ | E19: =VLOOKUP($Z$11,$B$20:$X$35,17) -> No | F19: =VLOOKUP($B$19,$B$20:$Z$82,24) -> No | AD19: 16 | AE19: 23 | AF19: blue, green, white | AG19: Yes, 2 of each | AI19: 0 | AJ19: =IF($AJ$17=AI19,1,0) -> 0 | AK19: =IF($AK$17=AI19,1,0) -> 0 | AL19: =IF($AL$17=AI19,1,0) -> 0 | AM19: =IF($AM$17=AI19,1,0) -> 0 | AN19: =IF($AN$17=AI19,1,0) -> 0 | AO19: =IF($AO$17=AI19,1,0) -> 0 | AP19: =SUM(AJ19:AO19) -> 0 | AQ19: =IF(AND(AP19>0,SUM(AP20:$AP$28)>0),", ","") ->  | AR19: =IF(AP19>0,AI19,"") ->  | AS19: =IF(AP19>0,AP19,"") -> 
B20: 1 | C20: 1 | D20: ⊿ | F20: 0 | G20: 0 | H20: 0 | I20: 0 | J20: 0 | K20: 1 | L20: =K20*1+J20*2+I20*4+H20*8+G20*16+F20*32 -> 1 | M20: =L20-B20 -> 0 | Q20: =$Y$12 -> 3 | R20: Yes, single outcome | X20: =$B$18 -> 2 | Y20: Yes, single outcome | AD20: 17 | AE20: 24 | AF20: blue, green, white | AG20: No | AI20: 1 | AJ20: =IF($AJ$17=AI20,1,0) -> 0 | AK20: =IF($AK$17=AI20,1,0) -> 1 | AL20: =IF($AL$17=AI20,1,0) -> 0 | AM20: =IF($AM$17=AI20,1,0) -> 0 | AN20: =IF($AN$17=AI20,1,0) -> 0 | AO20: =IF($AO$17=AI20,1,0) -> 0 | AP20: =SUM(AJ20:AO20) -> 1 | AQ20: =IF(AND(AP20>0,SUM(AP21:$AP$28)>0),", ","") -> , | AR20: =IF(AP20>0,AI20,"") -> 1 | AS20: =IF(AP20>0,AP20,"") -> 1
B21: =B20+1 -> 2 | C21: 2 | D21: ♥ | F21: 0 | G21: 0 | H21: 0 | I21: 0 | J21: 1 | K21: 0 | L21: =K21*1+J21*2+I21*4+H21*8+G21*16+F21*32 -> 2 | M21: =L21-B21 -> 0 | Q21: =$X$12 -> 1 | R21: Yes, single outcome | X21: =$C$18 -> 0 | Y21: Yes, single outcome | AD21: 18 | AE21: 25 | AF21: blue, green, white | AG21: No | AI21: 2 | AJ21: 0 | AK21: 0 | AL21: 0 | AM21: 0 | AN21: 0 | AO21: 0 | AP21: 0 | AQ21: =IF(AND(AP21>0,SUM(AP22:$AP$28)>0),", ","") ->  | AR21: =IF(AP21>0,AI21,"") ->  | AS21: =IF(AP21>0,AP21,"") -> 
B22: =B21+1 -> 3 | C22: 1, 2 | D22: ♥, ⊿ | F22: 0 | G22: 0 | H22: 0 | I22: 0 | J22: 1 | K22: 1 | L22: 3 | M22: 0 | P22: =$X$12 -> 1 | Q22: =$Y$12 -> 3 | R22: =IF(P22=Q22,CONCATENATE("Yes, ",P22," of each"),"No") -> No | W22: =$B$18 -> 2 | X22: =$C$18 -> 0 | Y22: =IF(W22=X22,CONCATENATE("Yes, ",W22," of each"),"No") -> No | AD22: 19 | AE22: 26 | AF22: blue, white | AG22: No | AI22: 3 | AJ22: 0 | AK22: 0 | AL22: 0 | AM22: 0 | AN22: 0 | AO22: 0 | AP22: 0 | AQ22: =IF(AND(AP22>0,SUM(AP23:$AP$28)>0),", ","") -> 
B23: 4 | C23: 3 | D23: ■ | F23: 0 | G23: 0 | H23: 0 | I23: 1 | J23: 0 | K23: 0 | L23: 4 | M23: 0 | Q23: =$W$12 -> 1 | R23: Yes, single outcome | X23: =$D$18 -> 2 | Y23: Yes, single outcome | AD23: 20 | AE23: 28 | AF23: green, white | AG23: No | AI23: 4 | AJ23: 0 | AK23: 0 | AL23: 0 | AM23: 1 | AN23: 0 | AO23: 0 | AP23: 1 | AQ23: =IF(AND(AP23>0,SUM(AP24:$AP$28)>0),", ","") -> , | AR23: 4 | AS23: 1
B24: 5 | C24: 1, 3 | D24: ■, ⊿ | F24: 0 | G24: 0 | H24: 0 | I24: 1 | J24: 0 | K24: 1 | L24: 5 | M24: 0 | P24: =$W$12 -> 1 | Q24: =$Y$12 -> 3 | R24: =IF(P24=Q24,CONCATENATE("Yes, ",P24," of each"),"No") -> No | W24: =$B$18 -> 2 | X24: =$D$18 -> 2 | Y24: =IF(W24=X24,CONCATENATE("Yes, ",W24," of each"),"No") -> Yes, 2 of each | AD24: 21 | AE24: 29 | AF24: blue, green, white | AG24: No | AI24: 5 | AJ24: 0 | AK24: 0 | AL24: 1 | AM24: 0 | AN24: 0 | AO24: 0 | AP24: 1 | AQ24: =IF(AND(AP24>0,SUM(AP25:$AP$28)>0),", ","") -> , | AR24: 5 | AS24: 1
B25: 6 | C25: 2, 3 | D25: ■, ♥ | F25: 0 | G25: 0 | H25: 0 | I25: 1 | J25: 1 | K25: 0 | L25: 6 | M25: 0 | P25: =$W$12 -> 1 | Q25: =$X$12 -> 1 | R25: =IF(P25=Q25,CONCATENATE("Yes, ",P25," of each"),"No") -> Yes, 1 of each | W25: =$C$18 -> 0 | X25: =$D$18 -> 2 | Y25: =IF(W25=X25,CONCATENATE("Yes, ",W25," of each"),"No") -> No | AD25: 22 | AE25: 30 | AF25: blue, green, white | AG25: No | AI25: 6 | AJ25: 1 | AK25: 0 | AL25: 0 | AM25: 0 | AN25: 0 | AO25: 0 | AP25: 1 | AQ25: =IF(AND(AP25>0,SUM(AP26:$AP$28)>0),", ","") -> , | AR25: 6 | AS25: 1
B26: 7 | C26: 1, 2, 3 | D26: ■, ♥, ⊿ | F26: 0 | G26: 0 | H26: 0 | I26: 1 | J26: 1 | K26: 1 | L26: 7 | M26: 0 | O26: =$W$12 -> 1 | P26: =$X$12 -> 1 | Q26: =$Y$12 -> 3 | R26: =IF(AND(P26=Q26,O26=Q26),CONCATENATE("Yes, ",P26," of each"),"No") -> No | V26: =$B$18 -> 2 | W26: =$C$18 -> 0 | X26: =$D$18 -> 2 | Y26: =IF(AND(W26=X26,V26=X26),CONCATENATE("Yes, ",W26," of each"),"No") -> No | AD26: 23 | AE26: 31 | AF26: blue, green, white | AG26: No | AI26: 7 | AJ26: 0 | AK26: 0 | AL26: 0 | AM26: 0 | AN26: 0 | AO26: 1 | AP26: 1 | AQ26: =IF(AND(AP26>0,SUM(AP27:$AP$28)>0),", ","") -> , | AR26: 7 | AS26: 1
B27: 8 | C27: 4 | D27: ● | F27: 0 | G27: 0 | H27: 1 | I27: 0 | J27: 0 | K27: 0 | L27: 8 | M27: 0 | Q27: =$V$12 -> 3 | R27: Yes, single outcome | X27: =$E$18 -> 4 | Y27: Yes, single outcome | AD27: 24 | AE27: 32 | AF27: blue, green, white | AG27: No | AI27: 8 | AJ27: 0 | AK27: 0 | AL27: 0 | AM27: 0 | AN27: 1 | AO27: 0 | AP27: 1 | AQ27: =IF(AND(AP27>0,SUM(AP28:$AP$28)>0),", ","") ->  | AR27: 8 | AS27: 1
B28: 9 | C28: 1, 4 | D28: ●, ⊿ | F28: 0 | G28: 0 | H28: 1 | I28: 0 | J28: 0 | K28: 1 | L28: 9 | M28: 0 | P28: =$V$12 -> 3 | Q28: =$Y$12 -> 3 | R28: =IF(P28=Q28,CONCATENATE("Yes, ",P28," of each"),"No") -> Yes, 3 of each | W28: =$B$18 -> 2 | X28: 4 | Y28: =IF(W28=X28,CONCATENATE("Yes, ",W28," of each"),"No") -> No | AD28: 25 | AE28: 33 | AF28: blue, green, white | AG28: No | AI28: 9 | AJ28: 0 | AK28: 0 | AL28: 0 | AM28: 0 | AN28: 0 | AO28: 0 | AP28: 0
B29: 10 | C29: 2, 4 | D29: ●, ♥ | F29: 0 | G29: 0 | H29: 1 | I29: 0 | J29: 1 | K29: 0 | L29: 10 | M29: 0 | P29: =$V$12 -> 3 | Q29: =$X$12 -> 1 | R29: =IF(P29=Q29,CONCATENATE("Yes, ",P29," of each"),"No") -> No | W29: =$C$18 -> 0 | X29: 4 | Y29: =IF(W29=X29,CONCATENATE("Yes, ",W29," of each"),"No") -> No | AD29: 26 | AE29: 34 | AF29: blue, white | AG29: No | AS29: =MAX(AS19:AS28) -> 1
B30: 11 | C30: 1, 2, 4 | D30: ●, ♥, ⊿ | F30: 0 | G30: 0 | H30: 1 | I30: 0 | J30: 1 | K30: 1 | L30: 11 | M30: 0 | O30: =$V$12 -> 3 | P30: =$X$12 -> 1 | Q30: =$Y$12 -> 3 | R30: =IF(AND(P30=Q30,O30=Q30),CONCATENATE("Yes, ",P30," of each"),"No") -> No | V30: =$B$18 -> 2 | W30: =$C$18 -> 0 | X30: 4 | Y30: =IF(AND(W30=X30,V30=X30),CONCATENATE("Yes, ",W30," of each"),"No") -> No | AD30: 27 | AE30: 36 | AF30: green, white | AG30: Yes, 4 of each | AP30: =CONCATENATE(AR19,AQ19,AR20,AQ20,AR21,AQ21,AR22,AQ22,AR23,AQ23,AR24,AQ24,AR25,AQ25,AR26,AQ26,AR27,AQ27,AR28,AQ28) -> 1, 4, 5, 6, 7, 8 | AS30: =COUNTIF(AS19:AS28,AS29) -> 6
B31: 12 | C31: 3, 4 | D31: ●, ■ | F31: 0 | G31: 0 | H31: 1 | I31: 1 | J31: 0 | K31: 0 | L31: 12 | M31: 0 | P31: =$V$12 -> 3 | Q31: =$W$12 -> 1 | R31: =IF(P31=Q31,CONCATENATE("Yes, ",P31," of each"),"No") -> No | W31: =$D$18 -> 2 | X31: 4 | Y31: =IF(W31=X31,CONCATENATE("Yes, ",W31," of each"),"No") -> No | AD31: 28 | AE31: 37 | AF31: blue, green, white | AG31: No | AS31: =AS30*AS29 -> 6
B32: 13 | C32: 1, 3, 4 | D32: ●, ■, ⊿ | F32: 0 | G32: 0 | H32: 1 | I32: 1 | J32: 0 | K32: 1 | L32: 13 | M32: 0 | O32: =$V$12 -> 3 | P32: =$W$12 -> 1 | Q32: =$Y$12 -> 3 | R32: =IF(AND(P32=Q32,O32=Q32),CONCATENATE("Yes, ",P32," of each"),"No") -> No | V32: =$B$18 -> 2 | W32: =$D$18 -> 2 | X32: 4 | Y32: =IF(AND(W32=X32,V32=X32),CONCATENATE("Yes, ",W32," of each"),"No") -> No | AD32: 29 | AE32: 38 | AF32: blue, green, white | AG32: No
B33: 14 | C33: 2, 3, 4 | D33: ●, ■, ♥ | F33: 0 | G33: 0 | H33: 1 | I33: 1 | J33: 1 | K33: 0 | L33: 14 | M33: 0 | O33: =$V$12 -> 3 | P33: =$W$12 -> 1 | Q33: =$X$12 -> 1 | R33: =IF(AND(P33=Q33,O33=Q33),CONCATENATE("Yes, ",P33," of each"),"No") -> No | V33: =$C$18 -> 0 | W33: =$D$18 -> 2 | X33: 4 | Y33: =IF(AND(W33=X33,V33=X33),CONCATENATE("Yes, ",W33," of each"),"No") -> No | AD33: 30 | AE33: 39 | AF33: blue, green, white | AG33: No
B34: 15 | C34: 1, 2, 3, 4 | D34: ●, ■, ♥, ⊿ | F34: 0 | G34: 0 | H34: 1 | I34: 1 | J34: 1 | K34: 1 | L34: 15 | M34: 0 | N34: =$V$12 -> 3 | O34: =$W$12 -> 1 | P34: =$X$12 -> 1 | Q34: =$Y$12 -> 3 | R34: =IF(AND(P34=Q34,O34=Q34,N34=Q34),CONCATENATE("Yes, ",P34," of each"),"No") -> No | U34: =$B$18 -> 2 | V34: =$C$18 -> 0 | W34: =$D$18 -> 2 | X34: 4 | Y34: =IF(AND(W34=X34,V34=X34,U34=X34),CONCATENATE("Yes, ",W34," of each"),"No") -> No | AD34: 31 | AE34: 40 | AF34: blue, green, white | AG34: No
B35: 16 | C35: 5 | D35: xxxx | F35: 0 | G35: 1 | H35: 0 | I35: 0 | J35: 0 | K35: 0 | L35: 16 | M35: 0 | X35: =$F$18 -> 1 | Y35: Yes, single outcome | AD35: 32 | AE35: 41 | AF35: blue, green, white | AG35: No
B36: 17 | C36: 1, 5 | F36: 0 | G36: 1 | H36: 0 | I36: 0 | J36: 0 | K36: 1 | L36: 17 | M36: 0 | W36: =$B$18 -> 2 | X36: 1 | Y36: =IF(W36=X36,CONCATENATE("Yes, ",W36," of each"),"No") -> No | AD36: 33 | AE36: 42 | AF36: blue, green, white | AG36: No
B37: 18 | C37: 2, 5 | F37: 0 | G37: 1 | H37: 0 | I37: 0 | J37: 1 | K37: 0 | L37: 18 | M37: 0 | W37: =$C$18 -> 0 | X37: 1 | Y37: =IF(W37=X37,CONCATENATE("Yes, ",W37," of each"),"No") -> No | AD37: 34 | AE37: 43 | AF37: blue, white | AG37: No
B38: 19 | C38: 1, 2, 5 | F38: 0 | G38: 1 | H38: 0 | I38: 0 | J38: 1 | K38: 1 | L38: 19 | M38: 0 | V38: =$B$18 -> 2 | W38: =$C$18 -> 0 | X38: 1 | Y38: =IF(AND(W38=X38,V38=X38),CONCATENATE("Yes, ",W38," of each"),"No") -> No | AD38: 35 | AE38: 45 | AF38: green, white | AG38: No
B39: 20 | C39: 3, 5 | F39: 0 | G39: 1 | H39: 0 | I39: 1 | J39: 0 | K39: 0 | L39: 20 | M39: 0 | W39: =$D$18 -> 2 | X39: 1 | Y39: =IF(W39=X39,CONCATENATE("Yes, ",W39," of each"),"No") -> No | AD39: 36 | AE39: 46 | AF39: blue, green, white | AG39: No
B40: 21 | C40: 1, 3, 5 | F40: 0 | G40: 1 | H40: 0 | I40: 1 | J40: 0 | K40: 1 | L40: 21 | M40: 0 | V40: =$B$18 -> 2 | W40: =$D$18 -> 2 | X40: 1 | Y40: =IF(AND(W40=X40,V40=X40),CONCATENATE("Yes, ",W40," of each"),"No") -> No | AD40: 37 | AE40: 47 | AF40: blue, green, white | AG40: No
B41: 22 | C41: 2, 3, 5 | F41: 0 | G41: 1 | H41: 0 | I41: 1 | J41: 1 | K41: 0 | L41: 22 | M41: 0 | V41: =$C$18 -> 0 | W41: =$D$18 -> 2 | X41: 1 | Y41: =IF(AND(W41=X41,V41=X41),CONCATENATE("Yes, ",W41," of each"),"No") -> No | AD41: 38 | AE41: 48 | AF41: blue, green, white | AG41: Yes, 3 of each
B42: 23 | C42: 1, 2, 3, 5 | F42: 0 | G42: 1 | H42: 0 | I42: 1 | J42: 1 | K42: 1 | L42: 23 | M42: 0 | U42: =$B$18 -> 2 | V42: =$C$18 -> 0 | W42: =$D$18 -> 2 | X42: 1 | Y42: =IF(AND(W42=X42,V42=X42,U42=X42),CONCATENATE("Yes, ",W42," of each"),"No") -> No | AD42: 39 | AE42: 49 | AF42: blue, green, white | AG42: No
B43: 24 | C43: 4, 5 | F43: 0 | G43: 1 | H43: 1 | I43: 0 | J43: 0 | K43: 0 | L43: 24 | M43: 0 | W43: =$E$18 -> 4 | X43: 1 | Y43: =IF(W43=X43,CONCATENATE("Yes, ",W43," of each"),"No") -> No | AD43: 40 | AE43: 50 | AF43: blue, green, white | AG43: No
B44: 25 | C44: 1, 4, 5 | F44: 0 | G44: 1 | H44: 1 | I44: 0 | J44: 0 | K44: 1 | L44: 25 | M44: 0 | V44: =$B$18 -> 2 | W44: 4 | X44: 1 | Y44: =IF(AND(W44=X44,V44=X44),CONCATENATE("Yes, ",W44," of each"),"No") -> No | AD44: 41 | AE44: 51 | AF44: blue, green, white | AG44: No
B45: 26 | C45: 2, 4, 5 | F45: 0 | G45: 1 | H45: 1 | I45: 0 | J45: 1 | K45: 0 | L45: 26 | M45: 0 | V45: =$C$18 -> 0 | W45: 4 | X45: =$F$18 -> 1 | Y45: =IF(AND(W45=X45,V45=X45),CONCATENATE("Yes, ",W45," of each"),"No") -> No | AD45: 42 | AE45: 52 | AF45: blue, green, white | AG45: No
B46: 27 | C46: 1, 2, 4, 5 | F46: 0 | G46: 1 | H46: 1 | I46: 0 | J46: 1 | K46: 1 | L46: 27 | M46: 0 | U46: =$B$18 -> 2 | V46: =$C$18 -> 0 | W46: 4 | X46: 1 | Y46: =IF(AND(W46=X46,V46=X46,U46=X46),CONCATENATE("Yes, ",W46," of each"),"No") -> No | AD46: 43 | AE46: 53 | AF46: blue, white | AG46: No
B47: 28 | C47: 3, 4, 5 | F47: 0 | G47: 1 | H47: 1 | I47: 1 | J47: 0 | K47: 0 | L47: 28 | M47: 0 | V47: =$D$18 -> 2 | W47: 4 | X47: 1 | Y47: =IF(AND(W47=X47,V47=X47),CONCATENATE("Yes, ",W47," of each"),"No") -> No | AD47: 44 | AE47: 55 | AF47: green, white | AG47: Yes, 5 of each
B48: 29 | C48: 1, 3, 4, 5 | F48: 0 | G48: 1 | H48: 1 | I48: 1 | J48: 0 | K48: 1 | L48: 29 | M48: 0 | U48: =$B$18 -> 2 | V48: =$D$18 -> 2 | W48: 4 | X48: 1 | Y48: =IF(AND(W48=X48,V48=X48,U48=X48),CONCATENATE("Yes, ",W48," of each"),"No") -> No | AD48: 45 | AE48: 56 | AF48: blue, green, white | AG48: No
B49: 30 | C49: 2, 3, 4, 5 | F49: 0 | G49: 1 | H49: 1 | I49: 1 | J49: 1 | K49: 0 | L49: 30 | M49: 0 | U49: =$C$18 -> 0 | V49: =$D$18 -> 2 | W49: 4 | X49: 1 | Y49: =IF(AND(W49=X49,V49=X49,U49=X49),CONCATENATE("Yes, ",W49," of each"),"No") -> No | AD49: 46 | AE49: 57 | AF49: blue, green, white | AG49: No
B50: 31 | C50: 1, 2, 3, 4, 5 | F50: 0 | G50: 1 | H50: 1 | I50: 1 | J50: 1 | K50: 1 | L50: 31 | M50: 0 | T50: =$B$18 -> 2 | U50: =$C$18 -> 0 | V50: =$D$18 -> 2 | W50: 4 | X50: 1 | Y50: =IF(AND(W50=X50,V50=X50,U50=X50,T50=X50),CONCATENATE("Yes, ",W50," of each"),"No") -> No | AD50: 47 | AE50: 58 | AF50: blue, green, white | AG50: No
B51: 32 | C51: 6 | F51: 1 | G51: 0 | H51: 0 | I51: 0 | J51: 0 | K51: 0 | L51: 32 | M51: 0 | X51: =$G$18 -> 3 | Y51: Yes, single outcome | AD51: 48 | AE51: 59 | AF51: blue, green, white | AG51: No
B52: 33 | C52: 1, 6 | F52: 1 | G52: 0 | H52: 0 | I52: 0 | J52: 0 | K52: 1 | L52: 33 | M52: 0 | W52: =$B$18 -> 2 | X52: =$G$18 -> 3 | Y52: =IF(W52=X52,CONCATENATE("Yes, ",W52," of each"),"No") -> No | AD52: 49 | AE52: 60 | AF52: blue, green, white | AG52: No
B53: 34 | C53: 2, 6 | F53: 1 | G53: 0 | H53: 0 | I53: 0 | J53: 1 | K53: 0 | L53: 34 | M53: 0 | W53: =$C$18 -> 0 | X53: =$G$18 -> 3 | Y53: =IF(W53=X53,CONCATENATE("Yes, ",W53," of each"),"No") -> No | AD53: 50 | AE53: 61 | AF53: blue, green, white | AG53: No
B54: 35 | C54: 1, 2, 6 | F54: 1 | G54: 0 | H54: 0 | I54: 0 | J54: 1 | K54: 1 | L54: 35 | M54: 0 | V54: =$B$18 -> 2 | W54: =$C$18 -> 0 | X54: 3 | Y54: =IF(AND(W54=X54,V54=X54),CONCATENATE("Yes, ",W54," of each"),"No") -> No | AD54: 51 | AE54: 62 | AF54: blue, green, white | AG54: No
B55: 36 | C55: 3, 6 | F55: 1 | G55: 0 | H55: 0 | I55: 1 | J55: 0 | K55: 0 | L55: 36 | M55: 0 | W55: =$D$18 -> 2 | X55: 3 | Y55: =IF(W55=X55,CONCATENATE("Yes, ",W55," of each"),"No") -> No | AD55: 52 | AE55: 63 | AF55: blue, green, white | AG55: No
B56: 37 | C56: 1, 3, 6 | F56: 1 | G56: 0 | H56: 0 | I56: 1 | J56: 0 | K56: 1 | L56: 37 | M56: 0 | V56: =$B$18 -> 2 | W56: =$D$18 -> 2 | X56: 3 | Y56: =IF(AND(W56=X56,V56=X56),CONCATENATE("Yes, ",W56," of each"),"No") -> No | AD56: 53 | AE56: 64 | AF56: blue, white | AG56: No
B57: 38 | C57: 2, 3, 6 | F57: 1 | G57: 0 | H57: 0 | I57: 1 | J57: 1 | K57: 0 | L57: 38 | M57: 0 | V57: =$C$18 -> 0 | W57: =$D$18 -> 2 | X57: 3 | Y57: =IF(AND(W57=X57,V57=X57),CONCATENATE("Yes, ",W57," of each"),"No") -> No | AD57: 54 | AE57: 66 | AF57: green, white | AG57: No | AK57: =-0.3/2.7 -> -0.1111111111 | AL57: 0.4 | AM57: =10*$AS$6+AK57 -> -0.1111111111 | AN57: =AL57-1.5+AU60 -> -11.1 | AO57: =10*$BS$6+AK57 -> -0.1111111111 | AP57: =AL57-1.5+AW60 -> -11.1 | AQ57: =10*$CL$78+AK57 -> 2.888888889 | AR57: =AL57-1.5+AY60 -> -11.1
B58: 39 | C58: 1, 2, 3, 6 | F58: 1 | G58: 0 | H58: 0 | I58: 1 | J58: 1 | K58: 1 | L58: 39 | M58: 0 | U58: =$B$18 -> 2 | V58: =$C$18 -> 0 | W58: =$D$18 -> 2 | X58: 3 | Y58: =IF(AND(W58=X58,V58=X58,U58=X58),CONCATENATE("Yes, ",W58," of each"),"No") -> No | AD58: 55 | AE58: 67 | AF58: blue, green, white | AG58: No | AK58: 0 | AL58: 0 | AM58: =10*$AS$6+AK58 -> 0 | AN58: =AL58-1.5+AU60 -> -11.5 | AO58: =10*$BS$6+AK58 -> 0 | AP58: =AL58-1.5+AW60 -> -11.5 | AQ58: =10*$CL$78+AK58 -> 3 | AR58: =AL58-1.5+AY60 -> -11.5 | AU58: =DYNOFRACT!AU62 -> 0.25 | AW58: =DYNOFRACT!AW62 -> 0.25 | AY58: =DYNOFRACT!AY62 -> 0.25
B59: 40 | C59: 4, 6 | F59: 1 | G59: 0 | H59: 1 | I59: 0 | J59: 0 | K59: 0 | L59: 40 | M59: 0 | W59: =$E$18 -> 4 | X59: 3 | Y59: =IF(W59=X59,CONCATENATE("Yes, ",W59," of each"),"No") -> No | AD59: 56 | AE59: 68 | AF59: blue, green, white | AG59: No | AK59: =0.3/2.7 -> 0.1111111111 | AL59: 0.4 | AM59: =10*$AS$6+AK59 -> 0.1111111111 | AN59: =AL59-1.5+AU60 -> -11.1 | AO59: =10*$BS$6+AK59 -> 0.1111111111 | AP59: =AL59-1.5+AW60 -> -11.1 | AQ59: =10*$CL$78+AK59 -> 3.111111111 | AR59: =AL59-1.5+AY60 -> -11.1 | AU59: =IF(AU60=-10,"","a") ->  | AW59: =IF(AW60=-10,"","b") ->  | AY59: =IF(AY60=-10,"","c") -> 
B60: 41 | C60: 1, 4, 6 | F60: 1 | G60: 0 | H60: 1 | I60: 0 | J60: 0 | K60: 1 | L60: 41 | M60: 0 | V60: =$B$18 -> 2 | W60: 4 | X60: 3 | Y60: =IF(AND(W60=X60,V60=X60),CONCATENATE("Yes, ",W60," of each"),"No") -> No | AD60: 57 | AE60: 69 | AF60: blue, green, white | AG60: No | AK60: 0 | AL60: 0 | AM60: =10*$AS$6+AK60 -> 0 | AN60: =AL60-1.5+AU60 -> -11.5 | AO60: =10*$BS$6+AK60 -> 0 | AP60: =AL60-1.5+AW60 -> -11.5 | AQ60: =10*$CL$78+AK60 -> 3 | AR60: =AL60-1.5+AY60 -> -11.5 | AT60: =10*$AS$6 -> 0 | AU60: -10 | AV60: =10*BS6 -> 0 | AW60: -10 | AX60: =10*CL78 -> 3 | AY60: -10
B61: 42 | C61: 2, 4, 6 | F61: 1 | G61: 0 | H61: 1 | I61: 0 | J61: 1 | K61: 0 | L61: 42 | M61: 0 | V61: =$C$18 -> 0 | W61: 4 | X61: 3 | Y61: =IF(AND(W61=X61,V61=X61),CONCATENATE("Yes, ",W61," of each"),"No") -> No | AD61: 58 | AE61: 70 | AF61: blue, green, white | AG61: No | AK61: 0 | AL61: 0.8 | AM61: =10*$AS$6+AK61 -> 0 | AN61: =AL61-1.5+AU60 -> -10.7 | AO61: =10*$BS$6+AK61 -> 0 | AP61: =AL61-1.5+AW60 -> -10.7 | AQ61: =10*$CL$78+AK61 -> 3 | AR61: =AL61-1.5+AY60 -> -10.7 | AT61: =0.1/1.4 -> 0.07142857143 | AU61: =0.2/1.4 -> 0.1428571429 | AV61: =0.1/1.4 -> 0.07142857143 | AW61: =0.2/1.4 -> 0.1428571429 | AX61: =0.1/1.4 -> 0.07142857143 | AY61: =0.2/1.4 -> 0.1428571429
B62: 43 | C62: 1, 2, 4, 6 | F62: 1 | G62: 0 | H62: 1 | I62: 0 | J62: 1 | K62: 1 | L62: 43 | M62: 0 | U62: =$B$18 -> 2 | V62: =$C$18 -> 0 | W62: 4 | X62: 3 | Y62: =IF(AND(W62=X62,V62=X62,U62=X62),CONCATENATE("Yes, ",W62," of each"),"No") -> No | AD62: 59 | AE62: 71 | AF62: blue, green, white | AG62: No | AM62: a | AN62: a | AO62: b | AP62: b | AQ62: c | AR62: c | AT62: a | AU62: a | AV62: b | AW62: b | AX62: c | AY62: c
B63: 44 | C63: 3, 4, 6 | F63: 1 | G63: 0 | H63: 1 | I63: 1 | J63: 0 | K63: 0 | L63: 44 | M63: 0 | V63: =$D$18 -> 2 | W63: 4 | X63: 3 | Y63: =IF(AND(W63=X63,V63=X63),CONCATENATE("Yes, ",W63," of each"),"No") -> No | AD63: 60 | AE63: 72 | AF63: blue, green, white | AG63: No | AM63: -1 | AN63: 1.15 | AO63: -1.2 | AP63: 3 | AQ63: 1.25 | AR63: 1 | AT63: =$AT$60+$AT$61*AM63 -> -0.07142857143 | AU63: =$AU$60+$AU$61*AN63-$AU$58 -> -10.08571429 | AV63: =$AV$60+$AV$61*AO63 -> -0.08571428571 | AW63: =$AW$60+$AW$61*AP63-$AW$58 -> -9.821428571 | AX63: =$AX$60+$AX$61*AQ63 -> 3.089285714 | AY63: =$AY$60+$AY$61*AR63-$AY$58 -> -10.10714286
B64: 45 | C64: 1, 3, 4, 6 | F64: 1 | G64: 0 | H64: 1 | I64: 1 | J64: 0 | K64: 1 | L64: 45 | M64: 0 | U64: =$B$18 -> 2 | V64: =$D$18 -> 2 | W64: 4 | X64: 3 | Y64: =IF(AND(W64=X64,V64=X64,U64=X64),CONCATENATE("Yes, ",W64," of each"),"No") -> No | AD64: 61 | AE64: 73 | AF64: blue, green, white | AG64: No | AM64: 0 | AN64: 1.75 | AO64: =AO63 -> -1.2 | AP64: -1.325 | AQ64: 1 | AR64: 1.5 | AT64: 0 | AU64: -10 | AV64: -0.08571428571 | AW64: -10.43928571 | AX64: 3.071428571 | AY64: -10.03571429
B65: 46 | C65: 2, 3, 4, 6 | F65: 1 | G65: 0 | H65: 1 | I65: 1 | J65: 1 | K65: 0 | L65: 46 | M65: 0 | U65: =$C$18 -> 0 | V65: =$D$18 -> 2 | W65: 4 | X65: 3 | Y65: =IF(AND(W65=X65,V65=X65,U65=X65),CONCATENATE("Yes, ",W65," of each"),"No") -> No | AD65: 62 | AE65: 74 | AF65: blue, green, white | AG65: No | AM65: 0.8 | AN65: 1.45 | AO65: =AO63 -> -1.2 | AP65: -0.6 | AQ65: 0 | AR65: 1.75 | AT65: 0.05714285714 | AU65: -10.04285714 | AV65: -0.08571428571 | AW65: -10.33571429 | AX65: 3 | AY65: -10
B66: 47 | C66: 1, 2, 3, 4, 6 | F66: 1 | G66: 0 | H66: 1 | I66: 1 | J66: 1 | K66: 1 | L66: 47 | M66: 0 | T66: =$B$18 -> 2 | U66: =$C$18 -> 0 | V66: =$D$18 -> 2 | W66: 4 | X66: 3 | Y66: =IF(AND(W66=X66,V66=X66,U66=X66,T66=X66),CONCATENATE("Yes, ",W66," of each"),"No") -> No | AD66: 63 | AE66: 75 | AF66: blue, green, white | AG66: No | AM66: 1 | AN66: 0.5 | AO66: =AO63 -> -1.2 | AP66: =AP65 -> -0.6 | AQ66: -1 | AR66: 1.2 | AT66: 0.07142857143 | AU66: -10.17857143 | AV66: -0.08571428571 | AW66: -10.33571429 | AX66: 2.928571429 | AY66: -10.07857143
B67: 48 | C67: 5, 6 | F67: 1 | G67: 1 | H67: 0 | I67: 0 | J67: 0 | K67: 0 | L67: 48 | M67: 0 | W67: =$F$18 -> 1 | X67: 3 | Y67: =IF(W67=X67,CONCATENATE("Yes, ",W67," of each"),"No") -> No | AD67: 64 | AE67: 76 | AF67: blue, white | AG67: No | AM67: 1 | AN67: -1.2 | AO67: 0 | AP67: -1.4 | AQ67: -1.25 | AR67: 0.2 | AT67: 0.07142857143 | AU67: -10.42142857 | AV67: 0 | AW67: -10.45 | AX67: 2.910714286 | AY67: -10.22142857
B68: 49 | C68: 1, 5, 6 | F68: 1 | G68: 1 | H68: 0 | I68: 0 | J68: 0 | K68: 1 | L68: 49 | M68: 0 | V68: =$B$18 -> 2 | W68: =$F$18 -> 1 | X68: 3 | Y68: =IF(AND(W68=X68,V68=X68),CONCATENATE("Yes, ",W68," of each"),"No") -> No | AD68: 65 | AE68: 78 | AF68: green, white | AG68: Yes, 6 of each | AM68: 1 | AN68: -0.6 | AO68: 1 | AP68: -1 | AQ68: -1 | AR68: -0.8 | AT68: 0.07142857143 | AU68: -10.33571429 | AV68: 0.07142857143 | AW68: -10.39285714 | AX68: 2.928571429 | AY68: -10.36428571
B69: 50 | C69: 2, 5, 6 | F69: 1 | G69: 1 | H69: 0 | I69: 0 | J69: 1 | K69: 0 | L69: 50 | M69: 0 | V69: =$C$18 -> 0 | W69: 1 | X69: 3 | Y69: =IF(AND(W69=X69,V69=X69),CONCATENATE("Yes, ",W69," of each"),"No") -> No | AD69: 66 | AE69: 79 | AF69: blue, green, white | AG69: No | AM69: 0 | AN69: -1.2 | AO69: 1.25 | AP69: 0 | AQ69: 0 | AR69: -1.35 | AT69: 0 | AU69: -10.42142857 | AV69: 0.08928571429 | AW69: -10.25 | AX69: 3 | AY69: -10.44285714
B70: 51 | C70: 1, 2, 5, 6 | F70: 1 | G70: 1 | H70: 0 | I70: 0 | J70: 1 | K70: 1 | L70: 51 | M70: 0 | U70: =$B$18 -> 2 | V70: =$C$18 -> 0 | W70: 1 | X70: 3 | Y70: =IF(AND(W70=X70,V70=X70,U70=X70),CONCATENATE("Yes, ",W70," of each"),"No") -> No | AD70: 67 | AE70: 80 | AF70: blue, green, white | AG70: No | AM70: -1 | AN70: -1 | AO70: 1 | AP70: 1.25 | AQ70: 1 | AR70: -1 | AT70: -0.07142857143 | AU70: -10.39285714 | AV70: 0.07142857143 | AW70: -10.07142857 | AX70: 3.071428571 | AY70: -10.39285714
B71: 52 | C71: 3, 5, 6 | F71: 1 | G71: 1 | H71: 0 | I71: 1 | J71: 0 | K71: 0 | L71: 52 | M71: 0 | V71: =$D$18 -> 2 | W71: 1 | X71: 3 | Y71: =IF(AND(W71=X71,V71=X71),CONCATENATE("Yes, ",W71," of each"),"No") -> No | AD71: 68 | AE71: 81 | AF71: blue, green, white | AG71: No | AM71: -1 | AN71: 0 | AO71: 0 | AP71: 1.75 | AQ71: 1.35 | AR71: -0.5 | AT71: -0.07142857143 | AU71: -10.25 | AV71: 0 | AW71: -10 | AX71: 3.096428571 | AY71: -10.32142857
B72: 53 | C72: 1, 3, 5, 6 | F72: 1 | G72: 1 | H72: 0 | I72: 1 | J72: 0 | K72: 1 | L72: 53 | M72: 0 | U72: =$B$18 -> 2 | V72: =$D$18 -> 2 | W72: 1 | X72: 3 | Y72: =IF(AND(W72=X72,V72=X72,U72=X72),CONCATENATE("Yes, ",W72," of each"),"No") -> No | AD72: 69 | AE72: 82 | AF72: blue, green, white | AG72: Yes, 4 of each | AM72: 0 | AN72: 0.3 | AO72: =AO63 -> -1.2 | AP72: 0.8 | AQ72: 1.35 | AR72: -0.5 | AT72: 0 | AU72: -10.20714286 | AV72: -0.08571428571 | AW72: -10.13571429 | AX72: 3.096428571 | AY72: -10.32142857
B73: 54 | C73: 2, 3, 5, 6 | F73: 1 | G73: 1 | H73: 0 | I73: 1 | J73: 1 | K73: 0 | L73: 54 | M73: 0 | U73: =$C$18 -> 0 | V73: =$D$18 -> 2 | W73: 1 | X73: 3 | Y73: =IF(AND(W73=X73,V73=X73,U73=X73),CONCATENATE("Yes, ",W73," of each"),"No") -> No | AD73: 70 | AE73: 83 | AF73: blue, green, white | AG73: No | AM73: 1 | AN73: 0.6 | AO73: =AO63 -> -1.2 | AP73: 0.8 | AQ73: 1.35 | AR73: -0.5 | AT73: 0.07142857143 | AU73: -10.16428571 | AV73: -0.08571428571 | AW73: -10.13571429 | AX73: 3.096428571 | AY73: -10.32142857 | CW73: =CX73*8+CY73 -> 2 | CY73: =1*INT(9*RAND())+1 -> 2
B74: 55 | C74: 1, 2, 3, 5, 6 | F74: 1 | G74: 1 | H74: 0 | I74: 1 | J74: 1 | K74: 1 | L74: 55 | M74: 0 | T74: =$B$18 -> 2 | U74: =$C$18 -> 0 | V74: =$D$18 -> 2 | W74: 1 | X74: 3 | Y74: =IF(AND(W74=X74,V74=X74,U74=X74,T74=X74),CONCATENATE("Yes, ",W74," of each"),"No") -> No | AD74: 71 | AE74: 84 | AF74: blue, green, white | AG74: No | AM74: 1 | AN74: 0.6 | AO74: =AO63 -> -1.2 | AP74: 0.8 | AQ74: 1.35 | AR74: -0.5 | AT74: 0.07142857143 | AU74: -10.16428571 | AV74: -0.08571428571 | AW74: -10.13571429 | AX74: 3.096428571 | AY74: -10.32142857
B75: 56 | C75: 4, 5, 6 | F75: 1 | G75: 1 | H75: 1 | I75: 0 | J75: 0 | K75: 0 | L75: 56 | M75: 0 | V75: =$E$18 -> 4 | W75: 1 | X75: 3 | Y75: =IF(AND(W75=X75,V75=X75),CONCATENATE("Yes, ",W75," of each"),"No") -> No | AD75: 72 | AE75: 85 | AF75: blue, green, white | AG75: No | AM75: 1 | AN75: 0.6 | AO75: =AO63 -> -1.2 | AP75: 0.8 | AQ75: 1.35 | AR75: -0.5 | AT75: 0.07142857143 | AU75: -10.16428571 | AV75: -0.08571428571 | AW75: -10.13571429 | AX75: 3.096428571 | AY75: -10.32142857
B76: 57 | C76: 1, 4, 5, 6 | F76: 1 | G76: 1 | H76: 1 | I76: 0 | J76: 0 | K76: 1 | L76: 57 | M76: 0 | U76: =$B$18 -> 2 | V76: 4 | W76: 1 | X76: 3 | Y76: =IF(AND(W76=X76,V76=X76,U76=X76),CONCATENATE("Yes, ",W76," of each"),"No") -> No | AD76: 73 | AE76: 86 | AF76: blue, green, white | AG76: No | CX76: 1 | CY76: 2 | CZ76: 3 | DA76: 4 | DB76: 5 | DC76: 6 | DD76: 7 | DE76: 8 | DF76: 9 | DG76: 10 | DH76: 11 | DI76: 12 | DJ76: 13 | DK76: 14 | DL76: 15 | DM76: 16 | DN76: 17 | DO76: 18 | DP76: 19 | DQ76: 20 | DR76: 21 | DS76: 22 | DT76: 23 | DU76: 24 | DV76: 25 | DW76: 26 | DX76: 27 | DY76: 28 | DZ76: 29 | EA76: 30 | EB76: 31 | EC76: 32 | ED76: 33 | EE76: 34 | EF76: 35 | EG76: 36 | EH76: 37 | EI76: 38 | EJ76: 39 | EK76: 40 | EL76: 41 | EM76: 42 | EN76: 43 | EO76: 44 | EP76: 45 | EQ76: 46 | ER76: 47 | ES76: 48 | ET76: 49 | EU76: 50 | EV76: 51 | EW76: 52 | EX76: 53 | EY76: 54 | EZ76: 55 | FA76: 56 | FB76: 57 | FC76: 58 | FD76: 59 | FE76: 60 | FF76: 61 | FG76: 62 | FH76: 63 | FI76: 64 | FJ76: 65 | FK76: 66 | FL76: 67 | FM76: 68 | FN76: 69 | FO76: 70 | FP76: 71 | FQ76: 72 | FR76: 73 | FS76: 74 | FT76: 75 | FU76: 76 | FV76: 77 | FW76: 78 | FX76: 79 | FY76: 80 | FZ76: 81 | GA76: 82 | GB76: 83 | GC76: 84 | GD76: 85 | GE76: 86 | GF76: 87 | GG76: 88 | GH76: 89 | GI76: 90
B77: 58 | C77: 2, 4, 5, 6 | F77: 1 | G77: 1 | H77: 1 | I77: 0 | J77: 1 | K77: 0 | L77: 58 | M77: 0 | U77: =$C$18 -> 0 | V77: 4 | W77: 1 | X77: 3 | Y77: =IF(AND(W77=X77,V77=X77,U77=X77),CONCATENATE("Yes, ",W77," of each"),"No") -> No | AD77: 74 | AE77: 87 | AF77: blue, green, white | AG77: No | CW77: =HLOOKUP($CW$85,$CX$76:$GI$79,2) ->  | CX77: = | CY77: = | CZ77: = | DB77: = | DC77: = | DF77: = | DG77: = | DI77: = | DK77: = | DL77: = | DQ77: = | DR77: = | DT77: = | DU77: = | DV77: = | DX77: = | DY77: = | EF77: = | EG77: = | EI77: = | EK77: = | EM77: = | EO77: = | EP77: = | ES77: = | EV77: = | EY77: = | EZ77: = | FB77: = | FD77: = | FE77: = | FF77: = | FH77: = | FJ77: = | FK77: = | FV77: = | FW77: = | FY77: = | FZ77: = | GA77: = | GC77: = | GE77: = | GF77: = | GG77: = | GI77: =
B78: 59 | C78: 1, 2, 4, 5, 6 | F78: 1 | G78: 1 | H78: 1 | I78: 0 | J78: 1 | K78: 1 | L78: 59 | M78: 0 | T78: =$B$18 -> 2 | U78: =$C$18 -> 0 | V78: 4 | W78: 1 | X78: 3 | Y78: =IF(AND(W78=X78,V78=X78,U78=X78,T78=X78),CONCATENATE("Yes, ",W78," of each"),"No") -> No | AD78: 75 | AE78: 88 | AF78: blue, green, white | AG78: No | CL78: =CL79/CL80 -> 0.3 | CW78: =HLOOKUP($CW$85,$CX$76:$GI$79,3) ->  | CX78: 0 | CY78: 1 | CZ78: 0 | DB78: 1 | DC78: 0 | DF78: 1 | DG78: 0 | DI78: 1 | DK78: 1 | DL78: 0 | DQ78: 1 | DR78: 0 | DT78: 1 | DU78: 1 | DV78: 2 | DX78: 1 | DY78: 0 | EF78: 1 | EG78: 0 | EI78: 1 | EK78: 1 | EM78: 3 | EO78: 1 | EP78: 0 | ES78: 1 | EV78: 2 | EY78: 1 | EZ78: 0 | FB78: 1 | FD78: 2 | FE78: 1 | FF78: 3 | FH78: 4 | FJ78: 1 | FK78: 0 | FV78: 1 | FW78: 0 | FY78: 1 | FZ78: 1 | GA78: 1 | GC78: 1 | GE78: 2 | GF78: 3 | GG78: 5 | GI78: 1
B79: 60 | C79: 3, 4, 5, 6 | F79: 1 | G79: 1 | H79: 1 | I79: 1 | J79: 0 | K79: 0 | L79: 60 | M79: 0 | U79: =$D$18 -> 2 | V79: 4 | W79: 1 | X79: 3 | Y79: =IF(AND(W79=X79,V79=X79,U79=X79),CONCATENATE("Yes, ",W79," of each"),"No") -> No | AD79: 76 | AE79: 89 | AF79: blue, white | AG79: No | CJ79: =CL97 -> 38 | CK79: =CL96 -> 3 | CL79: =CW86 -> 3 | CM79: =GCD(CL79,CL80) -> 1 | CN79: =CL79/CM79 -> 3 | CO79: =IF($BF$3=1,CN79,CL79) -> 3 | CT79: =B1 -> 0.8780422355 | CW79: =HLOOKUP($CW$85,$CX$76:$GI$79,4) -> 1 | CX79: 1 | CY79: 1 | CZ79: 1 | DA79: 1 | DB79: 1 | DC79: 1 | DD79: 1 | DE79: 1 | DF79: 1 | DG79: 1 | DH79: 1 | DI79: 2 | DJ79: 1 | DK79: 1 | DL79: 1 | DM79: 1 | DN79: 1 | DO79: 1 | DP79: 1 | DQ79: 1 | DR79: 1 | DS79: 1 | DT79: 3 | DU79: 2 | DV79: 3 | DW79: 1 | DX79: 1 | DY79: 1 | DZ79: 1 | EA79: 1 | EB79: 1 | EC79: 1 | ED79: 1 | EE79: 1 | EF79: 1 | EG79: 1 | EH79: 1 | EI79: 4 | EJ79: 1 | EK79: 2 | EL79: 1 | EM79: 4 | EN79: 1 | EO79: 1 | EP79: 1 | EQ79: 1 | ER79: 1 | ES79: 3 | ET79: 1 | EU79: 1 | EV79: 3 | EW79: 1 | EX79: 1 | EY79: 1 | EZ79: 1 | FA79: 1 | FB79: 5 | FC79: 1 | FD79: 5 | FE79: 2 | FF79: 5 | FG79: 1 | FH79: 5 | FI79: 1 | FJ79: 1 | FK79: 1 | FL79: 1 | FM79: 1 | FN79: 1 | FO79: 1 | FP79: 1 | FQ79: 1 | FR79: 1 | FS79: 1 | FT79: 1 | FU79: 1 | FV79: 1 | FW79: 1 | FX79: 1 | FY79: 6 | FZ79: 4 | GA79: 3 | GB79: 1 | GC79: 2 | GD79: 1 | GE79: 3 | GF79: 4 | GG79: 6 | GH79: 1 | GI79: 1
B80: 61 | C80: 1, 3, 4, 5, 6 | F80: 1 | G80: 1 | H80: 1 | I80: 1 | J80: 0 | K80: 1 | L80: 61 | M80: 0 | T80: =$B$18 -> 2 | U80: =$D$18 -> 2 | V80: 4 | W80: 1 | X80: 3 | Y80: =IF(AND(W80=X80,V80=X80,U80=X80,T80=X80),CONCATENATE("Yes, ",W80," of each"),"No") -> No | CL80: =CW87 -> 10 | CM80: =LCM(CL79,CL80) -> 30 | CN80: =CL80/CM79 -> 10 | CO80: =IF($BF$3=1,CN80,CL80) -> 10 | CT80: =MOD(29*$CT$79,1) -> 0.4632248294 | CW80: =HLOOKUP($CW$85,$CX$76:$GI$80,5) ->  | CX80: 1 | CY80: 0 | CZ80: 1 | DB80: 0 | DC80: 1 | DF80: 0 | DG80: 1 | DI80: 1 | DK80: 0 | DL80: 1 | DQ80: 0 | DR80: 1 | DT80: 2 | DU80: 1 | DV80: 1 | DX80: 0 | DY80: 1 | EF80: 0 | EG80: 1 | EI80: 3 | EK80: 1 | EM80: 1 | EO80: 0 | EP80: 1 | ES80: 2 | EV80: 1 | EY80: 0 | EZ80: 1 | FB80: 4 | FD80: 3 | FE80: 1 | FF80: 2 | FH80: 1 | FJ80: 0 | FK80: 1 | FV80: 0 | FW80: 1 | FY80: 5 | FZ80: 3 | GA80: 2 | GC80: 1 | GE80: 1 | GF80: 1 | GG80: 1 | GI80: 0
B81: 62 | C81: 2, 3, 4, 5, 6 | F81: 1 | G81: 1 | H81: 1 | I81: 1 | J81: 1 | K81: 0 | L81: 62 | M81: 0 | T81: =$C$18 -> 0 | U81: =$D$18 -> 2 | V81: 4 | W81: 1 | X81: 3 | Y81: =IF(AND(W81=X81,V81=X81,U81=X81,T81=X81),CONCATENATE("Yes, ",W81," of each"),"No") -> No | AD81: =INT(62*RAND())+1 -> 39 | AE81: =VLOOKUP($AD$81,$AD$82:$AF$181,2) -> SPOONS | AF81: =VLOOKUP($AD$81,$AD$82:$AF$181,3) -> S, P, O, N | AG81: =VLOOKUP($AD$81,$AD$82:$AM$181,4) -> No | CL81: =CJ79 -> 38 | CM81: =GCD(CL81,CL82) -> 2 | CN81: =CL81/CM81 -> 19 | CO81: =IF(BF$3=1,CN81,CL81) -> 38 | CW81: =HLOOKUP($CW$85,$CX$76:$GI$79,4) -> 1 | CX81: =CX89+CX91+CX93+CX95+CX97+CX99+CX101+CX103+CX105+CX107+CX109+CX111 -> 1 | CY81: 1 | CZ81: =CZ89+CZ91+CZ93+CZ95+CZ97+CZ99+CZ101+CZ103+CZ105+CZ107+CZ109+CZ111 -> 2 | DA81: =DA89+DA91+DA93+DA95+DA97+DA99+DA101+DA103+DA105+DA107+DA109+DA111 -> 1 | DB81: 1 | DC81: =DC89+DC91+DC93+DC95+DC97+DC99+DC101+DC103+DC105+DC107+DC109+DC111 -> 3 | DD81: =DD89+DD91+DD93+DD95+DD97+DD99+DD101+DD103+DD105+DD107+DD109+DD111 -> 2 | DE81: =DE89+DE91+DE93+DE95+DE97+DE99+DE101+DE103+DE105+DE107+DE109+DE111 -> 1 | DF81: 1 | DG81: =DG89+DG91+DG93+DG95+DG97+DG99+DG101+DG103+DG105+DG107+DG109+DG111 -> 4 | DH81: =DH89+DH91+DH93+DH95+DH97+DH99+DH101+DH103+DH105+DH107+DH109+DH111 -> 3 | DI81: =DI89+DI91+DI93+DI95+DI97+DI99+DI101+DI103+DI105+DI107+DI109+DI111 -> 2 | DJ81: =DJ89+DJ91+DJ93+DJ95+DJ97+DJ99+DJ101+DJ103+DJ105+DJ107+DJ109+DJ111 -> 1 | DK81: 1 | DL81: =DL89+DL91+DL93+DL95+DL97+DL99+DL101+DL103+DL105+DL107+DL109+DL111 -> 5 | DM81: =DM89+DM91+DM93+DM95+DM97+DM99+DM101+DM103+DM105+DM107+DM109+DM111 -> 4 | DN81: =DN89+DN91+DN93+DN95+DN97+DN99+DN101+DN103+DN105+DN107+DN109+DN111 -> 3 | DO81: =DO89+DO91+DO93+DO95+DO97+DO99+DO101+DO103+DO105+DO107+DO109+DO111 -> 2 | DP81: =DP89+DP91+DP93+DP95+DP97+DP99+DP101+DP103+DP105+DP107+DP109+DP111 -> 1 | DQ81: 1 | DR81: =DR89+DR91+DR93+DR95+DR97+DR99+DR101+DR103+DR105+DR107+DR109+DR111 -> 6 | DS81: 5 | DT81: 4 | DU81: 3 | DV81: 2 | DW81: 1 | DX81: 1 | DY81: =DY89+DY91+DY93+DY95+DY97+DY99+DY101+DY103+DY105+DY107+DY109+DY111 -> 7 | DZ81: 6 | EA81: 5 | EB81: 4 | EC81: 3 | ED81: 2 | EE81: 1 | EF81: 1 | EG81: =EG89+EG91+EG93+EG95+EG97+EG99+EG101+EG103+EG105+EG107+EG109+EG111 -> 8 | EH81: 7 | EI81: 6 | EJ81: 5 | EK81: 4 | EL81: 3 | EM81: 2 | EN81: 1 | EO81: 1 | EP81: =EP89+EP91+EP93+EP95+EP97+EP99+EP101+EP103+EP105+EP107+EP109+EP111 -> 9 | EQ81: 8 | ER81: 7 | ES81: 6 | ET81: 5 | EU81: 4 | EV81: 3 | EW81: 2 | EX81: 1 | EY81: 1 | EZ81: =EZ89+EZ91+EZ93+EZ95+EZ97+EZ99+EZ101+EZ103+EZ105+EZ107+EZ109+EZ111 -> 10 | FA81: =FA89+FA91+FA93+FA95+FA97+FA99+FA101+FA103+FA105+FA107+FA109+FA111 -> 9 | FB81: =FB89+FB91+FB93+FB95+FB97+FB99+FB101+FB103+FB105+FB107+FB109+FB111 -> 8 | FC81: =FC89+FC91+FC93+FC95+FC97+FC99+FC101+FC103+FC105+FC107+FC109+FC111 -> 7 | FD81: =FD89+FD91+FD93+FD95+FD97+FD99+FD101+FD103+FD105+FD107+FD109+FD111 -> 6 | FE81: 2 | FF81: =FF89+FF91+FF93+FF95+FF97+FF99+FF101+FF103+FF105+FF107+FF109+FF111 -> 4 | FG81: =FG89+FG91+FG93+FG95+FG97+FG99+FG101+FG103+FG105+FG107+FG109+FG111 -> 3 | FH81: =FH89+FH91+FH93+FH95+FH97+FH99+FH101+FH103+FH105+FH107+FH109+FH111 -> 2 | FI81: =FI89+FI91+FI93+FI95+FI97+FI99+FI101+FI103+FI105+FI107+FI109+FI111 -> 1 | FJ81: 1 | FK81: =FK89+FK91+FK93+FK95+FK97+FK99+FK101+FK103+FK105+FK107+FK109+FK111 -> 11 | FL81: 10 | FM81: 9 | FN81: 8 | FO81: 7 | FP81: 6 | FQ81: 5 | FR81: 4 | FS81: 3 | FT81: 2 | FU81: 1 | FV81: 1 | FW81: =FW89+FW91+FW93+FW95+FW97+FW99+FW101+FW103+FW105+FW107+FW109+FW111 -> 12 | FX81: 11 | FY81: 10 | FZ81: 9 | GA81: 8 | GB81: 7 | GC81: 6 | GD81: 5 | GE81: 4 | GF81: 3 | GG81: 2 | GH81: 1 | GI81: 1
B82: 63 | C82: 1, 2, 3, 4, 5, 6 | F82: 1 | G82: 1 | H82: 1 | I82: 1 | J82: 1 | K82: 1 | L82: 63 | M82: 0 | S82: =$B$18 -> 2 | T82: =$C$18 -> 0 | U82: =$D$18 -> 2 | V82: 4 | W82: =$F$18 -> 1 | X82: =$G$18 -> 3 | Y82: =IF(AND(W82=X82,V82=X82,U82=X82,T82=X82,S82=X82),CONCATENATE("Yes, ",W82," of each"),"No") -> No | AD82: 1 | AE82: MAMA | AF82: M, A | AG82: Yes, 2 of each | CL82: =CM97 -> 10 | CM82: =LCM(CL81,CL82) -> 190 | CN82: =CL82/CM81 -> 5 | CO82: =IF(BF$3=1,CN82,CL82) -> 10 | CX82: =IF(AND(CX83=CX86,CX84=CX87),1,0) -> 1 | CY82: 0 | CZ82: 1 | DA82: 1 | DB82: 0 | DC82: 1 | DD82: 1 | DE82: 1 | DF82: 0 | DG82: 1 | DH82: 1 | DI82: 1 | DJ82: 1 | DK82: 0 | DL82: 1 | DM82: 1 | DN82: 1 | DO82: 1 | DP82: 1 | DQ82: 0 | DR82: 1 | DS82: 1 | DT82: 1 | DU82: 1 | DV82: 1 | DW82: 1 | DX82: 0 | DY82: 1 | DZ82: 1 | EA82: 1 | EB82: 1 | EC82: 1 | ED82: 1 | EE82: 1 | EF82: 0 | EG82: 1 | EH82: 1 | EI82: 1 | EJ82: 1 | EK82: 1 | EL82: 1 | EM82: 1 | EN82: 1 | EO82: 0 | EP82: 1 | EQ82: 1 | ER82: 1 | ES82: 1 | ET82: 1 | EU82: 1 | EV82: 1 | EW82: 1 | EX82: 1 | EY82: 0 | EZ82: 1 | FA82: 1 | FB82: 1 | FC82: 1 | FD82: 1 | FE82: 0 | FF82: 1 | FG82: 1 | FH82: 1 | FI82: 1 | FJ82: =IF(AND(FJ83=FJ86,FJ84=FJ87),1,0) -> 0 | FK82: 1 | FL82: 1 | FM82: 1 | FN82: 1 | FO82: 1 | FP82: 1 | FQ82: 1 | FR82: 1 | FS82: 1 | FT82: 1 | FU82: 1 | FV82: 0 | FW82: 1 | FX82: 1 | FY82: 1 | FZ82: 1 | GA82: 1 | GB82: 1 | GC82: 1 | GD82: 1 | GE82: 1 | GF82: 1 | GG82: 1 | GH82: 1 | GI82: 0
AD83: 2 | AE83: HISSES | AF83: H, I, S, E | AG83: No | CX83: =CX88+CX90+CX92+CX94+CX96+CX98+CX100+CX102+CX104+CX106+CX108+CX110 -> 0 | CY83: 1 | CZ83: 0 | DA83: 1 | DB83: 2 | DC83: 0 | DD83: 1 | DE83: 2 | DF83: 3 | DG83: 0 | DH83: 1 | DI83: 2 | DJ83: 3 | DK83: 4 | DL83: 0 | DM83: 1 | DN83: 2 | DO83: 3 | DP83: 4 | DQ83: 5 | DR83: 0 | DS83: 1 | DT83: 2 | DU83: 3 | DV83: 4 | DW83: 5 | DX83: 6 | DY83: 0 | DZ83: 1 | EA83: 2 | EB83: 3 | EC83: 4 | ED83: 5 | EE83: 6 | EF83: 7 | EG83: 0 | EH83: 1 | EI83: 2 | EJ83: 3 | EK83: 4 | EL83: 5 | EM83: 6 | EN83: 7 | EO83: 8 | EP83: 0 | EQ83: 1 | ER83: 2 | ES83: 3 | ET83: 4 | EU83: 5 | EV83: 6 | EW83: 7 | EX83: 8 | EY83: 9 | EZ83: 0 | FA83: 1 | FB83: 2 | FC83: 3 | FD83: 4 | FE83: 5 | FF83: 6 | FG83: 7 | FH83: 8 | FI83: 9 | FJ83: =FJ88+FJ90+FJ92+FJ94+FJ96+FJ98+FJ100+FJ102+FJ104+FJ106+FJ108+FJ110 -> 10 | FK83: 0 | FL83: 1 | FM83: 2 | FN83: 3 | FO83: 4 | FP83: 5 | FQ83: 6 | FR83: 7 | FS83: 8 | FT83: 9 | FU83: 10 | FV83: 11 | FW83: 0 | FX83: 1 | FY83: 2 | FZ83: 3 | GA83: 4 | GB83: 5 | GC83: 6 | GD83: 7 | GE83: 8 | GF83: 9 | GG83: 10 | GH83: 11 | GI83: 12
AD84: 3 | AE84: COMMA | AF84: C, O, M, A | AG84: No | CX84: =CX83+CX81 -> 1 | CY84: 2 | CZ84: 2 | DA84: 2 | DB84: 3 | DC84: 3 | DD84: 3 | DE84: 3 | DF84: 4 | DG84: 4 | DH84: 4 | DI84: 4 | DJ84: 4 | DK84: 5 | DL84: 5 | DM84: 5 | DN84: 5 | DO84: 5 | DP84: 5 | DQ84: 6 | DR84: 6 | DS84: 6 | DT84: 6 | DU84: 6 | DV84: 6 | DW84: 6 | DX84: 7 | DY84: 7 | DZ84: 7 | EA84: 7 | EB84: 7 | EC84: 7 | ED84: 7 | EE84: 7 | EF84: 8 | EG84: 8 | EH84: 8 | EI84: 8 | EJ84: 8 | EK84: 8 | EL84: 8 | EM84: 8 | EN84: 8 | EO84: 9 | EP84: 9 | EQ84: 9 | ER84: 9 | ES84: 9 | ET84: 9 | EU84: 9 | EV84: 9 | EW84: 9 | EX84: 9 | EY84: 10 | EZ84: 10 | FA84: 10 | FB84: 10 | FC84: 10 | FD84: 10 | FE84: 7 | FF84: 10 | FG84: 10 | FH84: 10 | FI84: 10 | FJ84: =FJ83+FJ81 -> 11 | FK84: 11 | FL84: 11 | FM84: 11 | FN84: 11 | FO84: 11 | FP84: 11 | FQ84: 11 | FR84: 11 | FS84: 11 | FT84: 11 | FU84: 11 | FV84: 12 | FW84: 12 | FX84: 12 | FY84: 12 | FZ84: 12 | GA84: 12 | GB84: 12 | GC84: 12 | GD84: 12 | GE84: 12 | GF84: 12 | GG84: 12 | GH84: 12 | GI84: 13
AD85: 4 | AE85: COCO | AF85: C, O | AG85: Yes, 2 of each | CT85: =CO97 -> 65 | CU85: =CP97 -> 65 | CV85: =CQ97 -> 65 | CW85: =CR97 -> 58 | CX85: 1 | CY85: 2 | CZ85: 3 | DA85: 4 | DB85: 5 | DC85: 6 | DD85: 7 | DE85: 8 | DF85: 9 | DG85: 10 | DH85: 11 | DI85: 12 | DJ85: 13 | DK85: 14 | DL85: 15 | DM85: 16 | DN85: 17 | DO85: 18 | DP85: 19 | DQ85: 20 | DR85: 21 | DS85: 22 | DT85: 23 | DU85: 24 | DV85: 25 | DW85: 26 | DX85: 27 | DY85: 28 | DZ85: 29 | EA85: 30 | EB85: 31 | EC85: 32 | ED85: 33 | EE85: 34 | EF85: 35 | EG85: 36 | EH85: 37 | EI85: 38 | EJ85: 39 | EK85: 40 | EL85: 41 | EM85: 42 | EN85: 43 | EO85: 44 | EP85: 45 | EQ85: 46 | ER85: 47 | ES85: 48 | ET85: 49 | EU85: 50 | EV85: 51 | EW85: 52 | EX85: 53 | EY85: 54 | EZ85: 55 | FA85: 56 | FB85: 57 | FC85: 58 | FD85: 59 | FE85: 60 | FF85: 61 | FG85: 62 | FH85: 63 | FI85: 64 | FJ85: 65 | FK85: 66 | FL85: 67 | FM85: 68 | FN85: 69 | FO85: 70 | FP85: 71 | FQ85: 72 | FR85: 73 | FS85: 74 | FT85: 75 | FU85: 76 | FV85: 77 | FW85: 78 | FX85: 79 | FY85: 80 | FZ85: 81 | GA85: 82 | GB85: 83 | GC85: 84 | GD85: 85 | GE85: 86 | GF85: 87 | GG85: 88 | GH85: 89 | GI85: 90
AD86: 5 | AE86: TOTO | AF86: T, O | AG86: Yes, 2 of each | CL86: den | CM86: num | CN86: options | CT86: =HLOOKUP(CT85,$CX$85:$GI$112,2) -> 10 | CU86: =HLOOKUP(CU85,$CX$85:$GI$112,2) -> 10 | CV86: =HLOOKUP(CV85,$CX$85:$GI$112,2) -> 10 | CW86: =HLOOKUP(CW85,$CX$85:$GI$112,2) -> 3 | CX86: 0 | CY86: 1 | CZ86: 0 | DA86: 1 | DB86: 2 | DC86: 0 | DD86: 1 | DE86: 2 | DF86: 3 | DG86: 0 | DH86: 1 | DI86: 2 | DJ86: 3 | DK86: 4 | DL86: 0 | DM86: 1 | DN86: 2 | DO86: 3 | DP86: 4 | DQ86: 5 | DR86: 0 | DS86: 1 | DT86: 2 | DU86: 3 | DV86: 4 | DW86: 5 | DX86: 6 | DY86: 0 | DZ86: 1 | EA86: 2 | EB86: 3 | EC86: 4 | ED86: 5 | EE86: 6 | EF86: 7 | EG86: 0 | EH86: 1 | EI86: 2 | EJ86: 3 | EK86: 4 | EL86: 5 | EM86: 6 | EN86: 7 | EO86: 8 | EP86: 0 | EQ86: 1 | ER86: 2 | ES86: 3 | ET86: 4 | EU86: 5 | EV86: 6 | EW86: 7 | EX86: 8 | EY86: 9 | EZ86: 0 | FA86: 1 | FB86: 2 | FC86: 3 | FD86: 4 | FE86: 5 | FF86: 6 | FG86: 7 | FH86: 8 | FI86: 9 | FJ86: 10 | FK86: 0 | FL86: 1 | FM86: 2 | FN86: 3 | FO86: 4 | FP86: 5 | FQ86: 6 | FR86: 7 | FS86: 8 | FT86: 9 | FU86: 10 | FV86: 11 | FW86: 0 | FX86: 1 | FY86: 2 | FZ86: 3 | GA86: 4 | GB86: 5 | GC86: 6 | GD86: 7 | GE86: 8 | GF86: 9 | GG86: 10 | GH86: 11 | GI86: 12
AD87: 6 | AE87: WINNER | AF87: W, I, N, E, R | AG87: No | CK87: 1 | CL87: 2 | CM87: 1 | CN87: 3 | CT87: =HLOOKUP(CT85,$CX$85:$GI$112,3) -> 10 | CU87: =HLOOKUP(CU85,$CX$85:$GI$112,3) -> 10 | CV87: =HLOOKUP(CV85,$CX$85:$GI$112,3) -> 10 | CW87: =HLOOKUP(CW85,$CX$85:$GI$112,3) -> 10 | CX87: 1 | CY87: 1 | CZ87: 2 | DA87: 2 | DB87: 2 | DC87: 3 | DD87: 3 | DE87: 3 | DF87: 3 | DG87: 4 | DH87: 4 | DI87: 4 | DJ87: 4 | DK87: 4 | DL87: 5 | DM87: 5 | DN87: 5 | DO87: 5 | DP87: 5 | DQ87: 5 | DR87: 6 | DS87: 6 | DT87: 6 | DU87: 6 | DV87: 6 | DW87: 6 | DX87: 6 | DY87: 7 | DZ87: 7 | EA87: 7 | EB87: 7 | EC87: 7 | ED87: 7 | EE87: 7 | EF87: 7 | EG87: 8 | EH87: 8 | EI87: 8 | EJ87: 8 | EK87: 8 | EL87: 8 | EM87: 8 | EN87: 8 | EO87: 8 | EP87: 9 | EQ87: 9 | ER87: 9 | ES87: 9 | ET87: 9 | EU87: 9 | EV87: 9 | EW87: 9 | EX87: 9 | EY87: 9 | EZ87: 10 | FA87: 10 | FB87: 10 | FC87: 10 | FD87: 10 | FE87: 10 | FF87: 10 | FG87: 10 | FH87: 10 | FI87: 10 | FJ87: 10 | FK87: 11 | FL87: 11 | FM87: 11 | FN87: 11 | FO87: 11 | FP87: 11 | FQ87: 11 | FR87: 11 | FS87: 11 | FT87: 11 | FU87: 11 | FV87: 11 | FW87: 12 | FX87: 12 | FY87: 12 | FZ87: 12 | GA87: 12 | GB87: 12 | GC87: 12 | GD87: 12 | GE87: 12 | GF87: 12 | GG87: 12 | GH87: 12 | GI87: 12
AD88: 7 | AE88: MAMMAL | AF88: M, A, L | AG88: No | CK88: 2 | CL88: 3 | CM88: 2 | CN88: 6 | CT88: =HLOOKUP(CT85,$CX$85:$GI$112,4) -> 1 | CU88: =HLOOKUP(CU85,$CX$85:$GI$112,4) -> 1 | CV88: =HLOOKUP(CV85,$CX$85:$GI$112,4) -> 1 | CW88: =HLOOKUP(CW85,$CX$85:$GI$112,4) -> 1 | CY88: 1 | DA88: 1 | DB88: 1 | DD88: 1 | DE88: 1 | DF88: 1 | DH88: 1 | DI88: 1 | DJ88: 1 | DK88: 1 | DM88: 1 | DN88: 1 | DO88: 1 | DP88: 1 | DQ88: 1 | DS88: 1 | DT88: 1 | DU88: 1 | DV88: 1 | DW88: 1 | DX88: 1 | DZ88: 1 | EA88: 1 | EB88: 1 | EC88: 1 | ED88: 1 | EE88: 1 | EF88: 1 | EH88: 1 | EI88: 1 | EJ88: 1 | EK88: 1 | EL88: 1 | EM88: 1 | EN88: 1 | EO88: 1 | EQ88: 1 | ER88: 1 | ES88: 1 | ET88: 1 | EU88: 1 | EV88: 1 | EW88: 1 | EX88: 1 | EY88: 1 | FA88: 1 | FB88: 1 | FC88: 1 | FD88: 1 | FE88: 1 | FF88: 1 | FG88: 1 | FH88: 1 | FI88: 1 | FJ88: 1 | FL88: 1 | FM88: 1 | FN88: 1 | FO88: 1 | FP88: 1 | FQ88: 1 | FR88: 1 | FS88: 1 | FT88: 1 | FU88: 1 | FV88: 1 | FX88: 1 | FY88: 1 | FZ88: 1 | GA88: 1 | GB88: 1 | GC88: 1 | GD88: 1 | GE88: 1 | GF88: 1 | GG88: 1 | GH88: 1 | GI88: 1
AD89: 8 | AE89: PEPPER | AF89: P, E, R | AG89: No | CK89: 3 | CL89: 4 | CM89: 3 | CN89: 9 | CT89: =HLOOKUP(CT85,$CX$85:$GI$112,5) -> 0 | CU89: =HLOOKUP(CU85,$CX$85:$GI$112,5) -> 0 | CV89: =HLOOKUP(CV85,$CX$85:$GI$112,5) -> 0 | CW89: =HLOOKUP(CW85,$CX$85:$GI$112,5) -> 1 | CX89: 1 | CZ89: 1 | DA89: 1 | DC89: 1 | DD89: 1 | DG89: 1 | DH89: 1 | DI89: 1 | DL89: 1 | DM89: 1 | DN89: 1 | DO89: 1 | DR89: 1 | DS89: 1 | DT89: 1 | DU89: 1 | DY89: 1 | DZ89: 1 | EA89: 1 | EB89: 1 | EC89: 1 | EG89: 1 | EH89: 1 | EI89: 1 | EJ89: 1 | EK89: 1 | EP89: 1 | EQ89: 1 | ER89: 1 | ES89: 1 | ET89: 1 | EU89: 1 | EZ89: 1 | FA89: 1 | FB89: 1 | FC89: 1 | FD89: 1 | FE89: 1 | FK89: 1 | FL89: 1 | FM89: 1 | FN89: 1 | FO89: 1 | FP89: 1 | FQ89: 1 | FW89: 1 | FX89: 1 | FY89: 1 | FZ89: 1 | GA89: 1 | GB89: 1 | GC89: 1
AD90: 9 | AE90: COCOON | AF90: C, O, N | AG90: No | CK90: 4 | CL90: 5 | CM90: 4 | CN90: 12 | CT90: =HLOOKUP(CT85,$CX$85:$GI$112,6) -> 1 | CU90: =HLOOKUP(CU85,$CX$85:$GI$112,6) -> 1 | CV90: =HLOOKUP(CV85,$CX$85:$GI$112,6) -> 1 | CW90: =HLOOKUP(CW85,$CX$85:$GI$112,6) -> 1 | DB90: 1 | DE90: 1 | DF90: 1 | DI90: 1 | DJ90: 1 | DK90: 1 | DN90: 1 | DO90: 1 | DP90: 1 | DQ90: 1 | DT90: 1 | DU90: 1 | DV90: 1 | DW90: 1 | DX90: 1 | EA90: 1 | EB90: 1 | EC90: 1 | ED90: 1 | EE90: 1 | EF90: 1 | EI90: 1 | EJ90: 1 | EK90: 1 | EL90: 1 | EM90: 1 | EN90: 1 | EO90: 1 | ER90: 1 | ES90: 1 | ET90: 1 | EU90: 1 | EV90: 1 | EW90: 1 | EX90: 1 | EY90: 1 | FB90: 1 | FC90: 1 | FD90: 1 | FE90: 1 | FF90: 1 | FG90: 1 | FH90: 1 | FI90: 1 | FJ90: 1 | FM90: 1 | FN90: 1 | FO90: 1 | FP90: 1 | FQ90: 1 | FR90: 1 | FS90: 1 | FT90: 1 | FU90: 1 | FV90: 1 | FY90: 1 | FZ90: 1 | GA90: 1 | GB90: 1 | GC90: 1 | GD90: 1 | GE90: 1 | GF90: 1 | GG90: 1 | GH90: 1 | GI90: 1
AD91: 10 | AE91: RODEO | AF91: R, O, D, E | AG91: No | CK91: 5 | CL91: 6 | CM91: 5 | CN91: 15 | CT91: =HLOOKUP(CT85,$CX$85:$GI$112,7) -> 0 | CU91: =HLOOKUP(CU85,$CX$85:$GI$112,7) -> 0 | CV91: =HLOOKUP(CV85,$CX$85:$GI$112,7) -> 0 | CW91: =HLOOKUP(CW85,$CX$85:$GI$112,7) -> 1 | CZ91: 1 | DC91: 1 | DD91: 1 | DE91: 1 | DG91: 1 | DH91: 1 | DI91: 1 | DL91: 1 | DM91: 1 | DN91: 1 | DO91: 1 | DR91: 1 | DS91: 1 | DT91: 1 | DU91: 1 | DY91: 1 | DZ91: 1 | EA91: 1 | EB91: 1 | EC91: 1 | EG91: 1 | EH91: 1 | EI91: 1 | EJ91: 1 | EK91: 1 | EP91: 1 | EQ91: 1 | ER91: 1 | ES91: 1 | ET91: 1 | EU91: 1 | EZ91: 1 | FA91: 1 | FB91: 1 | FC91: 1 | FD91: 1 | FE91: 1 | FK91: 1 | FL91: 1 | FM91: 1 | FN91: 1 | FO91: 1 | FP91: 1 | FQ91: 1 | FW91: 1 | FX91: 1 | FY91: 1 | FZ91: 1 | GA91: 1 | GB91: 1 | GC91: 1
AD92: 11 | AE92: DEVOLVE | AF92: D, E, V, O, L | AG92: No | CK92: 6 | CL92: 7 | CM92: 6 | CN92: 18 | CT92: =HLOOKUP(CT85,$CX$85:$GI$112,8) -> 1 | CU92: =HLOOKUP(CU85,$CX$85:$GI$112,8) -> 1 | CV92: =HLOOKUP(CV85,$CX$85:$GI$112,8) -> 1 | CW92: =HLOOKUP(CW85,$CX$85:$GI$112,8) -> 1 | DF92: 1 | DJ92: 1 | DK92: 1 | DO92: 1 | DP92: 1 | DQ92: 1 | DU92: 1 | DV92: 1 | DW92: 1 | DX92: 1 | EB92: 1 | EC92: 1 | ED92: 1 | EE92: 1 | EF92: 1 | EJ92: 1 | EK92: 1 | EL92: 1 | EM92: 1 | EN92: 1 | EO92: 1 | ES92: 1 | ET92: 1 | EU92: 1 | EV92: 1 | EW92: 1 | EX92: 1 | EY92: 1 | FC92: 1 | FD92: 1 | FE92: 1 | FF92: 1 | FG92: 1 | FH92: 1 | FI92: 1 | FJ92: 1 | FN92: 1 | FO92: 1 | FP92: 1 | FQ92: 1 | FR92: 1 | FS92: 1 | FT92: 1 | FU92: 1 | FV92: 1 | FZ92: 1 | GA92: 1 | GB92: 1 | GC92: 1 | GD92: 1 | GE92: 1 | GF92: 1 | GG92: 1 | GH92: 1 | GI92: 1
